{"text_format":"1","workbook":"xlsx","n_sheets":15,"sheets":["Entrée","    Trouver le  mot (Ecrit)    ","    Trouver le  mot  (Oral)","Chercher la définition","Voc 1","Voc 2","Voc 3","Voc 4","Voc 5","Voc 6","Voc 7","Voc 8","Voc 9","Voc 10","Maître"],"not_rendered":{"charts":0,"images":10,"macros":1,"external_links":0,"defined_names":15,"comments":0,"pivot_tables":0},"unopened":[],"bounds":{"document_bytes":16777216,"sheet_cells":100000,"rows_first":2000,"rows_last":500,"rows_between":2000,"halvings":0,"cell_chars":16384,"cell_head_chars":4096},"cells_cut":0,"cells_raw":0,"read":"whole","date_system":"1900"}

{"sheet":"Entrée","index":0,"n_rows":42,"n_cols":9,"rows_kept":42,"cut":false,"hidden":false,"merged":[[9,3,12,7],[17,3,17,7],[19,2,20,5],[19,6,20,8],[13,3,13,7],[41,8,41,9],[21,6,22,8],[24,6,24,8],[35,2,36,8],[37,2,37,8],[21,2,23,5],[24,2,24,3],[24,4,24,5],[33,2,33,5]]}
[]
[]
[]
[]
[]
[]
[]
[]
[]
[null,null,null,"Ce programme Excel vous permet de vous exercer sur plusieurs vocabulaires. "]
[]
[]
[]
[null,null,null,"Vous trouverez la liste dans le menu déroulant de chaque feuille."]
[]
[]
[]
[null,null,null,"Vous avez trois modes de fonctionnement"]
[]
[null,null,"Une définition est affichée ... ",null,null,null,"Un mot est affiché ..."]
[]
[null,null,"... vous devez donner le mot correspondant :",null,null,null,"... vous devez trouver la définition"]
[]
[]
[null,null,"par écrit",null,"par oral",null,"par oral"]
[]
[]
[]
[]
[]
[]
[]
[]
[null,null,"Cliquez sur une icône pour accéder au mode souhaité !"]
[]
[null,null,"Vous pouvez vous faire vos propres quiz ou driller vos vocabulaires dans tous les sens !!!"]
[]
[null,null,"Il suffit de les rentrer dans les feuilles Voc_ (cf onglets)"]
[]
[]
[]
[null,null,"© Yvan Péguiron - Infodidac - 2014",null,null,null,null,null,"        Version 28.11.02/27.11.14"]

{"sheet":"    Trouver le  mot (Ecrit)    ","index":1,"n_rows":509,"n_cols":27,"rows_kept":509,"cut":false,"hidden":false,"merged":[[24,22,24,24],[1,2,1,3],[18,22,18,24],[19,22,19,24],[20,22,20,24],[21,22,21,24],[14,22,14,24],[15,22,15,24],[16,22,16,24],[17,22,17,24],[1,10,1,11],[13,2,13,3],[22,22,22,24],[23,22,23,24],[38,0,38,2],[38,10,38,11],[31,8,31,9],[9,2,9,10],[14,2,14,10],[16,0,16,2],[24,5,25,9]]}
[null,null,null,null,null,null,null,null,null,null,null,null,null,null,null,null,null,null,null,null,null,"Solution :"]
[null,null,null,null,null,null,null,null,null,null,null,null,null,null,null,null,null,null,null,null,null,{"$f":"VLOOKUP(B10,Zonevoc,3)","v":"Vocabulaire économique"}]
[]
[]
[null,null,null,null,null,null,null,null,null,null,null,null,null,null,null,{"$f":"INDEX(P16:P25,P7)","v":"Voc 1"},"Nombre de question :",null,{"$f":"500-COUNTIF(R8:R508,\"=0\")","v":323},0,false,0,"nb tirages"]
[null,null,null,null,null,null,null,null,null,null,null,null,null,null,null,null,null,null,null,null,null,{"$f":"COUNTIF(V9:V508,\"=1\")","v":0},"total juste"]
[null,null,null,null,null,null,null,null,null,null,null,null,null,null,null,1,"no","Questions","Réponses","Réponses pour test",null,null,null,null,"Test réponse"]
[null,null,null,null,null,null,null,null,null,null,null,null,null,null,null,"Cellule liée",0,{"$f":"'Voc 1'!C3","v":"Vocabulaire économique"},{"$f":"R8","v":"Vocabulaire économique"},{"$f":"'Voc 1'!E3","v":0}]
[null,null,"Question :",null,null,null,null,null,null,null,null,null,null,null,null,null,1,{"$f":"'Voc 1'!C4","v":"Immédiatement à la présentation d'un papier-valeur"},{"$f":"'Voc 1'!D4","v":"à vue"},{"$f":"'Voc 1'!E4","v":"vue"},"  ",null,null,null,"Réponse E","contenu"]
[null,0,{"$f":"VLOOKUP(B10,Zonevoc,2)","v":"Vocabulaire économique"},null,null,null,null,null,null,null,null,null,null,null,null,null,2,{"$f":"'Voc 1'!C5","v":"Signature du tiré sur un effet de change par laquelle il s'engage à payer le montant indiqué."},{"$f":"'Voc 1'!D5","v":"acceptation"},{"$f":"'Voc 1'!E5","v":"acceptation"},null,null,null,null,{"$f":"F25","v":0},{"$f":"SEARCH(VLOOKUP(B10,Zonevoc,4),Y10)","v":1},{"$f":"IF(ISERR(Z10)=TRUE,0,1)","v":1}]
[null,null,null,null,null,null,null,null,null,null,null,null,null,null,null,null,3,{"$f":"'Voc 1'!C6","v":"Titre d'un texte publicitaire souvent mis en valeur graphiquement. (Headline)"},{"$f":"'Voc 1'!D6","v":"accroche"},{"$f":"'Voc 1'!E6","v":"accroche"}]
[null,null,null,null,null,null,null,null,null,null,null,null,null,null,null,null,4,{"$f":"'Voc 1'!C7","v":"Versement d'une partie d'une somme due, à valoir sur le paiement final."},{"$f":"'Voc 1'!D7","v":"acompte"},{"$f":"'Voc 1'!E7","v":"acompte"},null,null,{"$f":"B10","v":0},null,{"$f":"B10","v":0}]
[null,null,null,null,null,null,null,null,null,null,null,null,null,null,null,null,5,{"$f":"'Voc 1'!C8","v":"Ecrit constatant légalement un fait."},{"$f":"'Voc 1'!D8","v":"acte"},{"$f":"'Voc 1'!E8","v":"acte"}]
[null,null,"Mot à trouver :",null,null,null,null,null,null,null,null,null,null,null,null,null,6,{"$f":"'Voc 1'!C9","v":"Ecrit constatant légalement un fait et établi par un notaire"},{"$f":"'Voc 1'!D9","v":"acte authentique"},{"$f":"'Voc 1'!E9","v":"authentique"}]
[null,174,{"$f":"VLOOKUP(B15,Zonevoc,3)","v":"léser"},null,null,null,null,null,null,null,null,null,null,null,null,"Nom des onglets",7,{"$f":"'Voc 1'!C10","v":"Document établissant, après la faillite, le montant non couvert d'une créance."},{"$f":"'Voc 1'!D10","v":"acte de défaut de biens"},{"$f":"'Voc 1'!E10","v":"défaut de biens"},null,null,"Nom des voc"]
[null,null,null,null,null,null,null,null,null,null,null,null,null,null,null,"Voc 1",8,{"$f":"'Voc 1'!C11","v":"Partie gauche du Bilan où sont énumérés tous les emplois non-consommés"},{"$f":"'Voc 1'!D11","v":"actif"},{"$f":"'Voc 1'!E11","v":"actif"},null,null,{"$f":"'Voc 1'!$C$3","v":"Vocabulaire économique"}]
["      Question suivante     ",null,null,null,null,null,null,null,null,null,null,null,null,null,null,"Voc 2",9,{"$f":"'Voc 1'!C12","v":"Acte par lequel on attribue quelque chose (un bien ou des travaux) à quelqu'un."},{"$f":"'Voc 1'!D12","v":"adjudication"},{"$f":"'Voc 1'!E12","v":"adjudication"},null,null,{"$f":"'Voc 2'!$C$3","v":"Voc. abscons !"}]
[" +",null,null,null,null,null,null,null,null,null,null,null,null,null,null,"Voc 3",10,{"$f":"'Voc 1'!C13","v":"Disposition, installation d'un magasin. (vitrines, mobilier, etc...)"},{"$f":"'Voc 1'!D13","v":"agencement"},{"$f":"'Voc 1'!E13","v":"agencement"},null,null,{"$f":"'Voc 3'!$C$3","v":"Voc Louis"}]
[null,1,null,null,null,null,null,null,null,null,null,null,null,null,null,"Voc 4",11,{"$f":"'Voc 1'!C14","v":"Fait de transmettre à une personne une propriété ou un droit."},{"$f":"'Voc 1'!D14","v":"aliéner"},{"$f":"'Voc 1'!E14","v":"aliéner"},null,null,{"$f":"'Voc 4'!$C$3","v":"Cris des animaux"}]
[null,null,null,null,null,null,null,null,null,null,null,null,null,null,null,"Voc 5",12,{"$f":"'Voc 1'!C15","v":"Attribuer une somme d'argent à quelqu'un"},{"$f":"'Voc 1'!D15","v":"allouer"},{"$f":"'Voc 1'!E15","v":"allouer"},null,null,{"$f":"'Voc 5'!$C$3","v":"Hommes et femmes "}]
["-",null,null,null,null,null,null,null,null,null,null,null,null,null,null,"Voc 6",13,{"$f":"'Voc 1'!C16","v":"Réduction de la valeur d'un poste du Bilan."},{"$f":"'Voc 1'!D16","v":"amortissement comptable"},{"$f":"'Voc 1'!E16","v":"amortissement comp"},null,null,{"$f":"'Voc 6'!$C$3","v":"Architecture"}]
[null,null,null,null,null,null,null,null,null,null,null,null,null,null,null,"Voc 7",14,{"$f":"'Voc 1'!C17","v":"Remboursement d'une dette."},{"$f":"'Voc 1'!D17","v":"amortissement financier"},{"$f":"'Voc 1'!E17","v":"amortissement fin"},null,null,{"$f":"'Voc 7'!$C$3","v":"Anglais de base"}]
[null,null,null,null,null,null,null,null,null,null,null,null,null,null,null,"Voc 8",15,{"$f":"'Voc 1'!C18","v":"Somme dépensée annuellement pour les intérêts et l'amortissement d'une dette."},{"$f":"'Voc 1'!D18","v":"annuité"},{"$f":"'Voc 1'!E18","v":"annuité"},null,null,{"$f":"'Voc 8'!$C$3","v":"Anglais commercial"}]
[null,null,null,null,null,"Réponse écrite ici :",null,null,null,null,null,null,null,null,null,"Voc 9",16,{"$f":"'Voc 1'!C19","v":"Rétribution fixe pour un emploi régulier. (Ne s'emploie qu'au pluriel !)"},{"$f":"'Voc 1'!D19","v":"appointements"},{"$f":"'Voc 1'!E19","v":"appointements"},null,null,{"$f":"'Voc 9'!$C$3","v":"Vide"}]
[null,null,null,{"$f":"IF(U5=TRUE,LEFT(V2,1),\"\")","v":""},null,null,null,null,null,null,{"$f":"IF(V6<2,V6&\" point s/\",V6 & \" points s/\")","v":"0 point s/"},{"$f":"V5-1","v":-1},null,null,null,"Voc 10",17,{"$f":"'Voc 1'!C20","v":"Opération visant à tirer profit de la différence de cours du change existant à un moment donné entre plusieurs marchés"},{"$f":"'Voc 1'!D20","v":"arbitrage"},{"$f":"'Voc 1'!E20","v":"arbitrage"},null,null,{"$f":"'Voc 10'!$C$3","v":"Vide"}]
[null,null,null,null,null,null,null,null,null,null,"Return",null,null,null,null,null,18,{"$f":"'Voc 1'!C21","v":"Périodique publiant le prix moyen des voitures d'occasion"},{"$f":"'Voc 1'!D21","v":"argus"},{"$f":"'Voc 1'!E21","v":"argus"}]
[null,null,null,null,null,null,null,null,null,null,null,null,null,null,null,null,19,{"$f":"'Voc 1'!C22","v":"Celui qui exerce un métier manuel pour son propre compte"},{"$f":"'Voc 1'!D22","v":"artisan"},{"$f":"'Voc 1'!E22","v":"artisan"}]
[null,null,null,null,null,null,null,null,null,null,null,null,null,null,null,null,20,{"$f":"'Voc 1'!C23","v":"Versement postal par mandat de paiement."},{"$f":"'Voc 1'!D23","v":"assignation"},{"$f":"'Voc 1'!E23","v":"assignation"}]
[null,null,null,null,null,{"$f":"IF(F25=\"\",\"\",IF(AA10=1,IF(T5=1,\"Réponse vue !!!\",\"B R A V O !\"),\"Désolé, je n'ai pas cette réponse...\"))","v":""},null,null,null,null,null,null,null,null,null,null,21,{"$f":"'Voc 1'!C24","v":"Alternance des cultures d'un champ pour obtenir le maximum de rendement, sans épuiser le sol."},{"$f":"'Voc 1'!D24","v":"assolement"},{"$f":"'Voc 1'!E24","v":"assolement"}]
[null,null,null,null,null,null,null,null,null,null,null,null,null,null,null,null,22,{"$f":"'Voc 1'!C25","v":"Manière de vivre qui vise à se suffire à soi-même, sans faire appel à une aide extérieure."},{"$f":"'Voc 1'!D25","v":"autarcie"},{"$f":"'Voc 1'!E25","v":"autarcie"}]
[null,null,null,null,null,null,null,null,null,null,null,null,null,null,null,null,23,{"$f":"'Voc 1'!C26","v":"Originaire du pays où il vit."},{"$f":"'Voc 1'!D26","v":"autochtone"},{"$f":"'Voc 1'!E26","v":"autochtone"}]
[null,null,"Ctrl s = voir solution",null,null,null,null,null,"Tirage au sort ",null,null,null,null,null,null,null,24,{"$f":"'Voc 1'!C27","v":"Augmentation du capital de l'entreprise au moyen des bénéfices non distribués."},{"$f":"'Voc 1'!D27","v":"autofinancement"},{"$f":"'Voc 1'!E27","v":"autofinancement"}]
[null,null,"Ctrl w = cacher la zone solution",null,null,"Zoom",null,null,"entre :",1,{"$f":"B10","v":0},null,null,null,null,null,25,{"$f":"'Voc 1'!C28","v":"Cautionnement d'un tiers en faveur du tiré."},{"$f":"'Voc 1'!D28","v":"aval"},{"$f":"'Voc 1'!E28","v":"aval"}]
[null,null,"Ctrl  t = tirage au sort",null,null,null,null,null,"et :",{"$f":"J35","v":323},null,null,null,null,null,null,26,{"$f":"'Voc 1'!C29","v":"Acte additionnel modifiant un contrat."},{"$f":"'Voc 1'!D29","v":"avenant"},{"$f":"'Voc 1'!E29","v":"avenant"}]
[null,null,null,null,null,100,null,null,"maximum :",{"$f":"S5","v":323},null,null,null,null,null,null,27,{"$f":"'Voc 1'!C30","v":"Contrat par lequel le propriétaire d'un bien en cède la jouissance à une autre, moyennant un prix convenu."},{"$f":"'Voc 1'!D30","v":"bail"},{"$f":"'Voc 1'!E30","v":"bail"}]
[null,null,null,null,null,null,null,null,null,null,null,null,null,null,null,null,28,{"$f":"'Voc 1'!C31","v":"Action de créer des pièces de monnaie et des billets pour un pays."},{"$f":"'Voc 1'!D31","v":"battre"},{"$f":"'Voc 1'!E31","v":"battre"}]
[null,null,null,null,null,null,null,null,null,null,null,null,null,null,null,null,29,{"$f":"'Voc 1'!C32","v":"Chiffre d'affaires net moins Prix de revient d'achat."},{"$f":"'Voc 1'!D32","v":"bénéfice brut"},{"$f":"'Voc 1'!E32","v":"bénéfice brut"}]
[null,null,null,null,null,null,null,null,null,null,null,null,null,null,null,null,30,{"$f":"'Voc 1'!C33","v":"Bénéfice brut moins les frais généraux et les frais de vente."},{"$f":"'Voc 1'!D33","v":"bénéfice net"},{"$f":"'Voc 1'!E33","v":"bénéfice net"}]
[{"$f":"Entrée!I42","v":"        Version 28.11.02/27.11.14"},null,null,null,null,null,null,null,null,null,"© Y. Péguiron  ",null,null,null,null,null,31,{"$f":"'Voc 1'!C34","v":"Celui qui pourra encaisser une lettre de change à l'échéance"},{"$f":"'Voc 1'!D34","v":"bénéficiaire"},{"$f":"'Voc 1'!E34","v":"bénéficiaire"}]
[null,null,null,null,null,null,null,null,null,null,null,null,null,null,null,null,32,{"$f":"'Voc 1'!C35","v":"Etat de privation qui se traduit par une sensation pénible d'insuffisance génératrice de désir."},{"$f":"'Voc 1'!D35","v":"besoin"},{"$f":"'Voc 1'!E35","v":"besoin"}]
[null,null,null,null,null,null,null,null,null,null,null,null,null,null,null,null,33,{"$f":"'Voc 1'!C36","v":"Produit qui sert à satisfaire les besoins"},{"$f":"'Voc 1'!D36","v":"bien"},{"$f":"'Voc 1'!E36","v":"bien"}]
[null,null,null,null,null,null,null,null,null,null,null,null,null,null,null,null,34,{"$f":"'Voc 1'!C37","v":"Terme cadastral pour définir un bien immobilier (terre, maison)."},{"$f":"'Voc 1'!D37","v":"bien-fonds"},{"$f":"'Voc 1'!E37","v":"bien-fonds"}]
[null,null,null,null,null,null,null,null,null,null,null,null,null,null,null,null,35,{"$f":"'Voc 1'!C38","v":"Qui a lieu tous les deux ans."},{"$f":"'Voc 1'!D38","v":"biennal"},{"$f":"'Voc 1'!E38","v":"biennal"}]
[null,null,null,null,null,null,null,null,null,null,null,null,null,null,null,null,36,{"$f":"'Voc 1'!C39","v":"Tableau résumant la situation de l'entreprise (ressources et emplois) à un moment donné."},{"$f":"'Voc 1'!D39","v":"bilan"},{"$f":"'Voc 1'!E39","v":"bilan"}]
[null,null,null,null,null,null,null,null,null,null,null,null,null,null,null,null,37,{"$f":"'Voc 1'!C40","v":"Papier-valeur par lequel le souscripteur s'engage à payer une certaine somme au bénéficiaire."},{"$f":"'Voc 1'!D40","v":"billet à ordre"},{"$f":"'Voc 1'!E40","v":"billet à ordre"}]
[null,null,null,null,null,null,null,null,null,null,null,null,null,null,null,null,38,{"$f":"'Voc 1'!C41","v":"Réduction accordée sur un poids brut pour tenir compte des pertes provenant de la vente au détail"},{"$f":"'Voc 1'!D41","v":"bon poids"},{"$f":"'Voc 1'!E41","v":"bon poids"}]
[null,null,null,null,null,null,null,null,null,null,null,null,null,null,null,null,39,{"$f":"'Voc 1'!C42","v":"Relevé détaillé des éléments d'un décompte, d'un inventaire, d'une opération bancaire, etc."},{"$f":"'Voc 1'!D42","v":"bordereau"},{"$f":"'Voc 1'!E42","v":"bordereau"}]
[null,null,null,null,null,null,null,null,null,null,null,null,null,null,null,null,40,{"$f":"'Voc 1'!C43","v":"Ville américaine où furent signés des accords qui donnèrent naissance au FMI en 1944."},{"$f":"'Voc 1'!D43","v":"Bretton Woods"},{"$f":"'Voc 1'!E43","v":"Bretton Woods"}]
[null,null,null,null,null,null,null,null,null,null,null,null,null,null,null,null,41,{"$f":"'Voc 1'!C44","v":"Titre délivré à un inventeur et qui lui assure le droit exclusif d'exploiter sa découverte."},{"$f":"'Voc 1'!D44","v":"brevet"},{"$f":"'Voc 1'!E44","v":"brevet"}]
[null,null,null,null,null,null,null,null,null,null,null,null,null,null,null,null,42,{"$f":"'Voc 1'!C45","v":"Portion de champs dont on a brûlé les herbes pour améliorer le sol."},{"$f":"'Voc 1'!D45","v":"brûlis"},{"$f":"'Voc 1'!E45","v":"brûlis"}]
[null,null,null,null,null,null,null,null,null,null,null,null,null,null,null,null,43,{"$f":"'Voc 1'!C46","v":"Tout compris, c'est-à-dire avant déduction."},{"$f":"'Voc 1'!D46","v":"brut"},{"$f":"'Voc 1'!E46","v":"brut"}]
[null,null,null,null,null,null,null,null,null,null,null,null,null,null,null,null,44,{"$f":"'Voc 1'!C47","v":"Evaluation prévisionnelle des recettes et des dépenses pour une période déterminée"},{"$f":"'Voc 1'!D47","v":"budget"},{"$f":"'Voc 1'!E47","v":"budget"}]
[null,null,null,null,null,null,null,null,null,null,null,null,null,null,null,null,45,{"$f":"'Voc 1'!C48","v":"L'assurance et les frais de transport sont compris dans le prix d'achat."},{"$f":"'Voc 1'!D48","v":"c.i.f."},{"$f":"'Voc 1'!E48","v":"c.i.f."}]
[null,null,null,null,null,null,null,null,null,null,null,null,null,null,null,null,46,{"$f":"'Voc 1'!C49","v":"Revenu d'un artiste"},{"$f":"'Voc 1'!D49","v":"cachet"},{"$f":"'Voc 1'!E49","v":"cachet"}]
[null,null,null,null,null,null,null,null,null,null,null,null,null,null,null,null,47,{"$f":"'Voc 1'!C50","v":"Courtier en devises"},{"$f":"'Voc 1'!D50","v":"cambiste"},{"$f":"'Voc 1'!E50","v":"cambiste"}]
[null,null,null,null,null,null,null,null,null,null,null,null,null,null,null,null,48,{"$f":"'Voc 1'!C51","v":"Convention passée entre plusieurs entreprises de la même branche"},{"$f":"'Voc 1'!D51","v":"cartel"},{"$f":"'Voc 1'!E51","v":"cartel"}]
[null,null,null,null,null,null,null,null,null,null,null,null,null,null,null,null,49,{"$f":"'Voc 1'!C52","v":"Petits coquillages utilisés jadis comme argent en Asie et en Afrique"},{"$f":"'Voc 1'!D52","v":"cauris"},{"$f":"'Voc 1'!E52","v":"cauris"}]
[null,null,null,null,null,null,null,null,null,null,null,null,null,null,null,null,50,{"$f":"'Voc 1'!C53","v":"Personne qui s'engage à payer à la place d'une autre si celle-ci ne peut pas s'exécuter."},{"$f":"'Voc 1'!D53","v":"caution"},{"$f":"'Voc 1'!E53","v":"caution"}]
[null,null,null,null,null,null,null,null,null,null,null,null,null,null,null,null,51,{"$f":"'Voc 1'!C54","v":"Papier-valeur établi par un notaire lors de la constitution d'une hypothèque."},{"$f":"'Voc 1'!D54","v":"cédule"},{"$f":"'Voc 1'!E54","v":"cédule"}]
[null,null,null,null,null,null,null,null,null,null,null,null,null,null,null,null,52,{"$f":"'Voc 1'!C55","v":"Cotation qui indique la quantité de monnaie étrangère pour 1 unité nationale"},{"$f":"'Voc 1'!D55","v":"certain"},{"$f":"'Voc 1'!E55","v":"certain"}]
[null,null,null,null,null,null,null,null,null,null,null,null,null,null,null,null,53,{"$f":"'Voc 1'!C56","v":"Opération qui consiste à échanger une monnaie d'un pays contre une autre d'un autre pays."},{"$f":"'Voc 1'!D56","v":"change"},{"$f":"'Voc 1'!E56","v":"change"}]
[null,null,null,null,null,null,null,null,null,null,null,null,null,null,null,null,54,{"$f":"'Voc 1'!C57","v":"Ce qui oblige à des dépenses. Frais que l'entreprise doit supporter pour exercer son activité."},{"$f":"'Voc 1'!D57","v":"charges"},{"$f":"'Voc 1'!E57","v":"charges"}]
[null,null,null,null,null,null,null,null,null,null,null,null,null,null,null,null,55,{"$f":"'Voc 1'!C58","v":"Papier-valeur donnant l'ordre à une banque de payer à vue, une somme déterminée à la personne désignée."},{"$f":"'Voc 1'!D58","v":"chèque"},{"$f":"'Voc 1'!E58","v":"chèque"}]
[null,null,null,null,null,null,null,null,null,null,null,null,null,null,null,null,56,{"$f":"'Voc 1'!C59","v":"Quantité vendue au prix de vente. Total des ventes."},{"$f":"'Voc 1'!D59","v":"chiffre d'affaires"},{"$f":"'Voc 1'!E59","v":" d'affaire"}]
[null,null,null,null,null,null,null,null,null,null,null,null,null,null,null,null,57,{"$f":"'Voc 1'!C60","v":"Bien immatériel représentant la réputation d'une entreprise et pouvant être négocié"},{"$f":"'Voc 1'!D60","v":"clientèle"},{"$f":"'Voc 1'!E60","v":"clientèle"}]
[null,null,null,null,null,null,null,null,null,null,null,null,null,null,null,null,58,{"$f":"'Voc 1'!C61","v":"bouclement des comptes à une date donnée"},{"$f":"'Voc 1'!D61","v":"clôture"},{"$f":"'Voc 1'!E61","v":"clôture"}]
[null,null,null,null,null,null,null,null,null,null,null,null,null,null,null,null,59,{"$f":"'Voc 1'!C62","v":"Tirer le solde d'un compte par différence entre débit et crédit."},{"$f":"'Voc 1'!D62","v":"clôturer"},{"$f":"'Voc 1'!E62","v":"clôturer"}]
[null,null,null,null,null,null,null,null,null,null,null,null,null,null,null,null,60,{"$f":"'Voc 1'!C63","v":"Ouvrages où sont regroupés les lois selon leur nature."},{"$f":"'Voc 1'!D63","v":"code"},{"$f":"'Voc 1'!E63","v":"code"}]
[null,null,null,null,null,null,null,null,null,null,null,null,null,null,null,null,61,{"$f":"'Voc 1'!C64","v":"Somme due à un courtier ou à un vendeur en fonction de son chiffre d'affaires."},{"$f":"'Voc 1'!D64","v":"commission"},{"$f":"'Voc 1'!E64","v":"commission"}]
[null,null,null,null,null,null,null,null,null,null,null,null,null,null,null,null,62,{"$f":"'Voc 1'!C65","v":"avec paiement immédiat"},{"$f":"'Voc 1'!D65","v":"comptant"},{"$f":"'Voc 1'!E65","v":"comptant"}]
[null,null,null,null,null,null,null,null,null,null,null,null,null,null,null,null,63,{"$f":"'Voc 1'!C66","v":"tableau dans lequel on inscrit les opérations financières entre deux personnes ou deux entreprises."},{"$f":"'Voc 1'!D66","v":"compte courant"},{"$f":"'Voc 1'!E66","v":"courant"}]
[null,null,null,null,null,null,null,null,null,null,null,null,null,null,null,null,64,{"$f":"'Voc 1'!C67","v":"Compte de résultat intermédiaire centralisateur des charges et produits de l'activité principale de l'entreprise"},{"$f":"'Voc 1'!D67","v":"compte d'exploitation"},{"$f":"'Voc 1'!E67","v":"exploitation"}]
[null,null,null,null,null,null,null,null,null,null,null,null,null,null,null,null,65,{"$f":"'Voc 1'!C68","v":"Celui qui propose des idées ou des projets pour la publicité"},{"$f":"'Voc 1'!D68","v":"concepteur"},{"$f":"'Voc 1'!E68","v":"concepteur"}]
[null,null,null,null,null,null,null,null,null,null,null,null,null,null,null,null,66,{"$f":"'Voc 1'!C69","v":"Compétition entre plusieurs personnes ou plusieurs entreprises visant les mêmes avantages."},{"$f":"'Voc 1'!D69","v":"concurrence"},{"$f":"'Voc 1'!E69","v":"concurrence"}]
[null,null,null,null,null,null,null,null,null,null,null,null,null,null,null,null,67,{"$f":"'Voc 1'!C70","v":"Malversation dans l'exercice d'une fonction publique."},{"$f":"'Voc 1'!D70","v":"concussion"},{"$f":"'Voc 1'!E70","v":"concussion"}]
[null,null,null,null,null,null,null,null,null,null,null,null,null,null,null,null,68,{"$f":"'Voc 1'!C71","v":"Lettre de transport maritime possédant le caractère d'un papier-valeur."},{"$f":"'Voc 1'!D71","v":"connaissement"},{"$f":"'Voc 1'!E71","v":"connaissement"}]
[null,null,null,null,null,null,null,null,null,null,null,null,null,null,null,null,69,{"$f":"'Voc 1'!C72","v":"Accepter qu'une chose se fasse, accorder un avantage à quelqu'un."},{"$f":"'Voc 1'!D72","v":"consentir"},{"$f":"'Voc 1'!E72","v":"consentir"}]
[null,null,null,null,null,null,null,null,null,null,null,null,null,null,null,null,70,{"$f":"'Voc 1'!C73","v":"Usure ou destruction d'un bien ou utilisation d'un service pour satisfaire des besoins."},{"$f":"'Voc 1'!D73","v":"consommation"},{"$f":"'Voc 1'!E73","v":"consommation"}]
[null,null,null,null,null,null,null,null,null,null,null,null,null,null,null,null,71,{"$f":"'Voc 1'!C74","v":"Dont on ne peut se servir sans le détruire."},{"$f":"'Voc 1'!D74","v":"consomptible"},{"$f":"'Voc 1'!E74","v":"consomptible"}]
[null,null,null,null,null,null,null,null,null,null,null,null,null,null,null,null,72,{"$f":"'Voc 1'!C75","v":"acte juridique par lequel une ou plusieurs personnes s'obligent envers une ou plusieurs autres."},{"$f":"'Voc 1'!D75","v":"contrat"},{"$f":"'Voc 1'!E75","v":"contrat"}]
[null,null,null,null,null,null,null,null,null,null,null,null,null,null,null,null,73,{"$f":"'Voc 1'!C76","v":"Personne assujettie au paiement d'un impôt."},{"$f":"'Voc 1'!D76","v":"contribuable"},{"$f":"'Voc 1'!E76","v":"contribuable"}]
[null,null,null,null,null,null,null,null,null,null,null,null,null,null,null,null,74,{"$f":"'Voc 1'!C77","v":"Adjectif qui qualifie une monnaie que l'on peut échanger contre de l'or."},{"$f":"'Voc 1'!D77","v":"convertible"},{"$f":"'Voc 1'!E77","v":"convertible"}]
[null,null,null,null,null,null,null,null,null,null,null,null,null,null,null,null,75,{"$f":"'Voc 1'!C78","v":"Ensemble des personnes exerçant la même profession"},{"$f":"'Voc 1'!D78","v":"corporation"},{"$f":"'Voc 1'!E78","v":"corporation"}]
[null,null,null,null,null,null,null,null,null,null,null,null,null,null,null,null,76,{"$f":"'Voc 1'!C79","v":"Liste des monnaies étrangères et de leur valeur par rapport à une monnaie donnée."},{"$f":"'Voc 1'!D79","v":"cote"},{"$f":"'Voc 1'!E79","v":"cote"}]
[null,null,null,null,null,null,null,null,null,null,null,null,null,null,null,null,77,{"$f":"'Voc 1'!C80","v":"Réduction accordée sur un poids brut pour tenir compte des pertes éventuelles dues aux manipulation de la marchandise."},{"$f":"'Voc 1'!D80","v":"coulage"},{"$f":"'Voc 1'!E80","v":"coulage"}]
[null,null,null,null,null,null,null,null,null,null,null,null,null,null,null,null,78,{"$f":"'Voc 1'!C81","v":"Pièce donnant droit au dividende d'une action."},{"$f":"'Voc 1'!D81","v":"coupon"},{"$f":"'Voc 1'!E81","v":"coupon"}]
[null,null,null,null,null,null,null,null,null,null,null,null,null,null,null,null,79,{"$f":"'Voc 1'!C82","v":"Monnaie des pays scandinaves"},{"$f":"'Voc 1'!D82","v":"couronne"},{"$f":"'Voc 1'!E82","v":"couronne"}]
[null,null,null,null,null,null,null,null,null,null,null,null,null,null,null,null,80,{"$f":"'Voc 1'!C83","v":"Prix d'une monnaie étrangère"},{"$f":"'Voc 1'!D83","v":"cours"},{"$f":"'Voc 1'!E83","v":"cours"}]
[null,null,null,null,null,null,null,null,null,null,null,null,null,null,null,null,81,{"$f":"'Voc 1'!C84","v":"Commission, rémunération du courtier."},{"$f":"'Voc 1'!D84","v":"courtage"},{"$f":"'Voc 1'!E84","v":"courtage"}]
[null,null,null,null,null,null,null,null,null,null,null,null,null,null,null,null,82,{"$f":"'Voc 1'!C85","v":"Commerçant dont l'activité consiste à mettre en présence un acheteur et un vendeur."},{"$f":"'Voc 1'!D85","v":"courtier"},{"$f":"'Voc 1'!E85","v":"courtier"}]
[null,null,null,null,null,null,null,null,null,null,null,null,null,null,null,null,83,{"$f":"'Voc 1'!C86","v":"Loi non écrite"},{"$f":"'Voc 1'!D86","v":"coutume"},{"$f":"'Voc 1'!E86","v":"coutume"}]
[null,null,null,null,null,null,null,null,null,null,null,null,null,null,null,null,84,{"$f":"'Voc 1'!C87","v":"Droit que l'on a de demander à quelqu'un le paiement d'une somme due."},{"$f":"'Voc 1'!D87","v":"créance"},{"$f":"'Voc 1'!E87","v":"créance"}]
[null,null,null,null,null,null,null,null,null,null,null,null,null,null,null,null,85,{"$f":"'Voc 1'!C88","v":"Personne à qui l'on doit une somme d'argent."},{"$f":"'Voc 1'!D88","v":"créancier"},{"$f":"'Voc 1'!E88","v":"créancier"}]
[null,null,null,null,null,null,null,null,null,null,null,null,null,null,null,null,86,{"$f":"'Voc 1'!C89","v":"1) Confiance qu'inspire quelqu'un. Degré de solvabilité"},{"$f":"'Voc 1'!D89","v":"crédit"},{"$f":"'Voc 1'!E89","v":"crédit"}]
[null,null,null,null,null,null,null,null,null,null,null,null,null,null,null,null,87,{"$f":"'Voc 1'!C90","v":"2) Opération par laquelle une personne met une somme d'argent à disposition d'une autre."},{"$f":"'Voc 1'!D90","v":"crédit"},{"$f":"'Voc 1'!E90","v":"crédit"}]
[null,null,null,null,null,null,null,null,null,null,null,null,null,null,null,null,88,{"$f":"'Voc 1'!C91","v":"3) Partie droite d'un compte"},{"$f":"'Voc 1'!D91","v":"crédit"},{"$f":"'Voc 1'!E91","v":"crédit"}]
[null,null,null,null,null,null,null,null,null,null,null,null,null,null,null,null,89,{"$f":"'Voc 1'!C92","v":"Elevage des lapins"},{"$f":"'Voc 1'!D92","v":"cuniculiculture"},{"$f":"'Voc 1'!E92","v":"cuniculiculture"}]
[null,null,null,null,null,null,null,null,null,null,null,null,null,null,null,null,90,{"$f":"'Voc 1'!C93","v":"Science qui étudie les mécanismes de communication dans les machines"},{"$f":"'Voc 1'!D93","v":"cybernétique"},{"$f":"'Voc 1'!E93","v":"cybernétique"}]
[null,null,null,null,null,null,null,null,null,null,null,null,null,null,null,null,91,{"$f":"'Voc 1'!C94","v":"1) Quantité de fluide fournie. (pour une fontaine par ex.)"},{"$f":"'Voc 1'!D94","v":"débit"},{"$f":"'Voc 1'!E94","v":"débit"}]
[null,null,null,null,null,null,null,null,null,null,null,null,null,null,null,null,92,{"$f":"'Voc 1'!C95","v":"2) Vente au détail"},{"$f":"'Voc 1'!D95","v":"débit"},{"$f":"'Voc 1'!E95","v":"débit"}]
[null,null,null,null,null,null,null,null,null,null,null,null,null,null,null,null,93,{"$f":"'Voc 1'!C96","v":"3) Partie gauche d'un compte"},{"$f":"'Voc 1'!D96","v":"débit"},{"$f":"'Voc 1'!E96","v":"débit"}]
[null,null,null,null,null,null,null,null,null,null,null,null,null,null,null,null,94,{"$f":"'Voc 1'!C97","v":"Celui ou celle qui doit une somme d'argent à un tiers."},{"$f":"'Voc 1'!D97","v":"débiteur"},{"$f":"'Voc 1'!E97","v":"débiteur"}]
[null,null,null,null,null,null,null,null,null,null,null,null,null,null,null,null,95,{"$f":"'Voc 1'!C98","v":"Qui suit logiquement"},{"$f":"'Voc 1'!D98","v":"découler"},{"$f":"'Voc 1'!E98","v":"découler"}]
[null,null,null,null,null,null,null,null,null,null,null,null,null,null,null,null,96,{"$f":"'Voc 1'!C99","v":"Situation financière d'une entreprise caractérisée par des dettes supérieures aux biens et aux créances."},{"$f":"'Voc 1'!D99","v":"découvert"},{"$f":"'Voc 1'!E99","v":"découvert"}]
[null,null,null,null,null,null,null,null,null,null,null,null,null,null,null,null,97,{"$f":"'Voc 1'!C100","v":"Porter une affaire ou traduire un accusé devant un tribunal."},{"$f":"'Voc 1'!D100","v":"déférer"},{"$f":"'Voc 1'!E100","v":"déférer"}]
[null,null,null,null,null,null,null,null,null,null,null,null,null,null,null,null,98,{"$f":"'Voc 1'!C101","v":"Acte illicite, infraction à la loi."},{"$f":"'Voc 1'!D101","v":"délit"},{"$f":"'Voc 1'!E101","v":"délit"}]
[null,null,null,null,null,null,null,null,null,null,null,null,null,null,null,null,99,{"$f":"'Voc 1'!C102","v":"Prix auquel la banque achète des monnaies étrangères. Cours ..."},{"$f":"'Voc 1'!D102","v":"demande"},{"$f":"'Voc 1'!E102","v":"demande"}]
[null,null,null,null,null,null,null,null,null,null,null,null,null,null,null,null,100,{"$f":"'Voc 1'!C103","v":"Terme juridique indiquant un retard."},{"$f":"'Voc 1'!D103","v":"demeure"},{"$f":"'Voc 1'!E103","v":"demeure"}]
[null,null,null,null,null,null,null,null,null,null,null,null,null,null,null,null,101,{"$f":"'Voc 1'!C104","v":"Manquer à l'observation d'une loi."},{"$f":"'Voc 1'!D104","v":"déroger"},{"$f":"'Voc 1'!E104","v":"déroger"}]
[null,null,null,null,null,null,null,null,null,null,null,null,null,null,null,null,102,{"$f":"'Voc 1'!C105","v":"Somme que l'on doit à quelqu'un."},{"$f":"'Voc 1'!D105","v":"dette"},{"$f":"'Voc 1'!E105","v":"dette"}]
[null,null,null,null,null,null,null,null,null,null,null,null,null,null,null,null,103,{"$f":"'Voc 1'!C106","v":"Créances sur l'étranger libellées en monnaie étrangère"},{"$f":"'Voc 1'!D106","v":"devise"},{"$f":"'Voc 1'!E106","v":"devise"}]
[null,null,null,null,null,null,null,null,null,null,null,null,null,null,null,null,104,{"$f":"'Voc 1'!C107","v":"Désaccord résultant d'une différence d'opinion."},{"$f":"'Voc 1'!D107","v":"différend"},{"$f":"'Voc 1'!E107","v":"différend"}]
[null,null,null,null,null,null,null,null,null,null,null,null,null,null,null,null,105,{"$f":"'Voc 1'!C108","v":"Reporter à plus tard."},{"$f":"'Voc 1'!D108","v":"différer"},{"$f":"'Voc 1'!E108","v":"différer"}]
[null,null,null,null,null,null,null,null,null,null,null,null,null,null,null,null,106,{"$f":"'Voc 1'!C109","v":"Soin, zèle, faire ...."},{"$f":"'Voc 1'!D109","v":"diligence"},{"$f":"'Voc 1'!E109","v":"diligence"}]
[null,null,null,null,null,null,null,null,null,null,null,null,null,null,null,null,107,{"$f":"'Voc 1'!C110","v":"Fonds dont on peut user à tout moment."},{"$f":"'Voc 1'!D110","v":"disponibilité"},{"$f":"'Voc 1'!E110","v":"disponibilité"}]
[null,null,null,null,null,null,null,null,null,null,null,null,null,null,null,null,108,{"$f":"'Voc 1'!C111","v":"Part du bénéfice d'une société anonyme (SA) qui est versée pour chaque action."},{"$f":"'Voc 1'!D111","v":"dividende"},{"$f":"'Voc 1'!E111","v":"dividende"}]
[null,null,null,null,null,null,null,null,null,null,null,null,null,null,null,null,109,{"$f":"'Voc 1'!C112","v":"Qui est du domaine de l'Etat, du seigneur. (adj.)"},{"$f":"'Voc 1'!D112","v":"domanial"},{"$f":"'Voc 1'!E112","v":"domanial"}]
[null,null,null,null,null,null,null,null,null,null,null,null,null,null,null,null,110,{"$f":"'Voc 1'!C113","v":"Indication d'un lieu de paiement, autre que le domicile du tiré, sur un effet de change"},{"$f":"'Voc 1'!D113","v":"domiciliation"},{"$f":"'Voc 1'!E113","v":"domiciliation"}]
[null,null,null,null,null,null,null,null,null,null,null,null,null,null,null,null,111,{"$f":"'Voc 1'!C114","v":"Pourcentage reçu par l'auteur sur la production en série d'une de ses oeuvres"},{"$f":"'Voc 1'!D114","v":"droit d'auteur"},{"$f":"'Voc 1'!E114","v":"droit d'auteur"}]
[null,null,null,null,null,null,null,null,null,null,null,null,null,null,null,null,112,{"$f":"'Voc 1'!C115","v":"Date à laquelle une dette doit être payée."},{"$f":"'Voc 1'!D115","v":"échéance"},{"$f":"'Voc 1'!E115","v":"échéance"}]
[null,null,null,null,null,null,null,null,null,null,null,null,null,null,null,null,113,{"$f":"'Voc 1'!C116","v":"Etre payable à une époque déterminée (dette échue)."},{"$f":"'Voc 1'!D116","v":"échoir"},{"$f":"'Voc 1'!E116","v":"échoir"}]
[null,null,null,null,null,null,null,null,null,null,null,null,null,null,null,null,114,{"$f":"'Voc 1'!C117","v":"Nom (abrégé) de l'unité monétaire européenne."},{"$f":"'Voc 1'!D117","v":"Ecu"},{"$f":"'Voc 1'!E117","v":"Ecu"}]
[null,null,null,null,null,null,null,null,null,null,null,null,null,null,null,null,115,{"$f":"'Voc 1'!C118","v":"Action de quitter son pays pour s'établir dans un autre."},{"$f":"'Voc 1'!D118","v":"émigration"},{"$f":"'Voc 1'!E118","v":"émigration"}]
[null,null,null,null,null,null,null,null,null,null,null,null,null,null,null,null,116,{"$f":"'Voc 1'!C119","v":"Rétribution tarifée alloué à une administration ou à un notaire."},{"$f":"'Voc 1'!D119","v":"émolument"},{"$f":"'Voc 1'!E119","v":"émolument"}]
[null,null,null,null,null,null,null,null,null,null,null,null,null,null,null,null,117,{"$f":"'Voc 1'!C120","v":"Offre supérieure au prix proposé au cours d'une adjudication."},{"$f":"'Voc 1'!D120","v":"enchère"},{"$f":"'Voc 1'!E120","v":"enchère"}]
[null,null,null,null,null,null,null,null,null,null,null,null,null,null,null,null,118,{"$f":"'Voc 1'!C121","v":"Maladie qui sévit continuellement dans un pays"},{"$f":"'Voc 1'!D121","v":"endémie"},{"$f":"'Voc 1'!E121","v":"endémie"}]
[null,null,null,null,null,null,null,null,null,null,null,null,null,null,null,null,119,{"$f":"'Voc 1'!C122","v":"déduction d'un intérêt lors de l'exécution d'un engagement avant l'échéance."},{"$f":"'Voc 1'!D122","v":"escompte"},{"$f":"'Voc 1'!E122","v":"escompte"}]
[null,null,null,null,null,null,null,null,null,null,null,null,null,null,null,null,120,{"$f":"'Voc 1'!C123","v":"Action de remettre à la banque un effet avant l'échéance."},{"$f":"'Voc 1'!D123","v":"escompter"},{"$f":"'Voc 1'!E123","v":"escompter"}]
[null,null,null,null,null,null,null,null,null,null,null,null,null,null,null,null,121,{"$f":"'Voc 1'!C124","v":"Nom féminin pluriel désignant l'ensemble des billets de banque et des pièces de monnaie."},{"$f":"'Voc 1'!D124","v":"espèces"},{"$f":"'Voc 1'!E124","v":"espèces"}]
[null,null,null,null,null,null,null,null,null,null,null,null,null,null,null,null,122,{"$f":"'Voc 1'!C125","v":"Poursuivre une action en justice, comme demandeur ou comme défendeur."},{"$f":"'Voc 1'!D125","v":"ester"},{"$f":"'Voc 1'!E125","v":"ester"}]
[null,null,null,null,null,null,null,null,null,null,null,null,null,null,null,null,123,{"$f":"'Voc 1'!C126","v":"Surplus"},{"$f":"'Voc 1'!D126","v":"excédent"},{"$f":"'Voc 1'!E126","v":"excédent"}]
[null,null,null,null,null,null,null,null,null,null,null,null,null,null,null,null,124,{"$f":"'Voc 1'!C127","v":"Complet"},{"$f":"'Voc 1'!D127","v":"exhaustif"},{"$f":"'Voc 1'!E127","v":"exhaustif"}]
[null,null,null,null,null,null,null,null,null,null,null,null,null,null,null,null,125,{"$f":"'Voc 1'!C128","v":"Action de mettre en valeur"},{"$f":"'Voc 1'!D128","v":"exploitation"},{"$f":"'Voc 1'!E128","v":"exploitation"}]
[null,null,null,null,null,null,null,null,null,null,null,null,null,null,null,null,126,{"$f":"'Voc 1'!C129","v":"Transbordement compris dans le prix d'achat."},{"$f":"'Voc 1'!D129","v":"f.o.b."},{"$f":"'Voc 1'!E129","v":"f.o.b."}]
[null,null,null,null,null,null,null,null,null,null,null,null,null,null,null,null,127,{"$f":"'Voc 1'!C130","v":"Procédure judiciaire entraînant la liquidation d'une société qui ne peut plus honorer ses paiements."},{"$f":"'Voc 1'!D130","v":"faillite"},{"$f":"'Voc 1'!E130","v":"faillite"}]
[null,null,null,null,null,null,null,null,null,null,null,null,null,null,null,null,128,{"$f":"'Voc 1'!C131","v":"Qui trompe"},{"$f":"'Voc 1'!D131","v":"fallacieux"},{"$f":"'Voc 1'!E131","v":"fallacieux"}]
[null,null,null,null,null,null,null,null,null,null,null,null,null,null,null,null,129,{"$f":"'Voc 1'!C132","v":"Adjectif qui qualifie la monnaie basée sur la confiance, comme les pièces ou les billets de banque."},{"$f":"'Voc 1'!D132","v":"fiduciaire"},{"$f":"'Voc 1'!E132","v":"fiduciaire"}]
[null,null,null,null,null,null,null,null,null,null,null,null,null,null,null,null,130,{"$f":"'Voc 1'!C133","v":"Succursale"},{"$f":"'Voc 1'!D133","v":"filiale"},{"$f":"'Voc 1'!E133","v":"filiale"}]
[null,null,null,null,null,null,null,null,null,null,null,null,null,null,null,null,131,{"$f":"'Voc 1'!C134","v":"Cours moyen d'un titre fixé entre le prix d'achat et le prix de vente"},{"$f":"'Voc 1'!D134","v":"fixing"},{"$f":"'Voc 1'!E134","v":"fixing"}]
[null,null,null,null,null,null,null,null,null,null,null,null,null,null,null,null,132,{"$f":"'Voc 1'!C135","v":"Nom de la monnaie hollandaise"},{"$f":"'Voc 1'!D135","v":"florin"},{"$f":"'Voc 1'!E135","v":"florin"}]
[null,null,null,null,null,null,null,null,null,null,null,null,null,null,null,null,133,{"$f":"'Voc 1'!C136","v":"Sol d'un champ, d'un domaine, terrain (n.m. singulier)"},{"$f":"'Voc 1'!D136","v":"fonds"},{"$f":"'Voc 1'!E136","v":"fonds"}]
[null,null,null,null,null,null,null,null,null,null,null,null,null,null,null,null,134,{"$f":"'Voc 1'!C137","v":"Somme d'argent à disposition pour acquérir des biens (n. m. pluriel)"},{"$f":"'Voc 1'!D137","v":"fonds"},{"$f":"'Voc 1'!E137","v":"fonds"}]
[null,null,null,null,null,null,null,null,null,null,null,null,null,null,null,null,135,{"$f":"'Voc 1'!C138","v":"Apport du propriétaire"},{"$f":"'Voc 1'!D138","v":"fonds propres"},{"$f":"'Voc 1'!E138","v":"fonds propres"}]
[null,null,null,null,null,null,null,null,null,null,null,null,null,null,null,null,136,{"$f":"'Voc 1'!C139","v":"Qui se consomme par l'usage et qui peut être remplacé par une chose analogue."},{"$f":"'Voc 1'!D139","v":"fongible"},{"$f":"'Voc 1'!E139","v":"fongible"}]
[null,null,null,null,null,null,null,null,null,null,null,null,null,null,null,null,137,{"$f":"'Voc 1'!C140","v":"Lieu où une action judiciaire doit être intentée"},{"$f":"'Voc 1'!D140","v":"for"},{"$f":"'Voc 1'!E140","v":"for"}]
[null,null,null,null,null,null,null,null,null,null,null,null,null,null,null,null,138,{"$f":"'Voc 1'!C141","v":"Personne qui nous vend des marchandises à crédit"},{"$f":"'Voc 1'!D141","v":"fournisseur"},{"$f":"'Voc 1'!E141","v":"fournisseur"}]
[null,null,null,null,null,null,null,null,null,null,null,null,null,null,null,null,139,{"$f":"'Voc 1'!C142","v":"Le fournisseur supporte les frais de transport jusqu'au point indiqué (domicile, douane, etc)."},{"$f":"'Voc 1'!D142","v":"franco"},{"$f":"'Voc 1'!E142","v":"franco"}]
[null,null,null,null,null,null,null,null,null,null,null,null,null,null,null,null,140,{"$f":"'Voc 1'!C143","v":"Frais de transport par navire ou par avion"},{"$f":"'Voc 1'!D143","v":"fret"},{"$f":"'Voc 1'!E143","v":"fret"}]
[null,null,null,null,null,null,null,null,null,null,null,null,null,null,null,null,141,{"$f":"'Voc 1'!C144","v":"Bien mobilier remis par un débiteur à son créancier en garantie du paiement d'une dette."},{"$f":"'Voc 1'!D144","v":"gage"},{"$f":"'Voc 1'!E144","v":"gage"}]
[null,null,null,null,null,null,null,null,null,null,null,null,null,null,null,null,142,{"$f":"'Voc 1'!C145","v":"Système de virement entre banques permettant le règlement de sommes sans utilisation d'espèces."},{"$f":"'Voc 1'!D145","v":"giro"},{"$f":"'Voc 1'!E145","v":"giro"}]
[null,null,null,null,null,null,null,null,null,null,null,null,null,null,null,null,143,{"$f":"'Voc 1'!C146","v":"Mot anglais désignant la valeur immatérielle de la clientèle et du fonds de commerce."},{"$f":"'Voc 1'!D146","v":"goodwill"},{"$f":"'Voc 1'!E146","v":"goodwill"}]
[null,null,null,null,null,null,null,null,null,null,null,null,null,null,null,null,144,{"$f":"'Voc 1'!C147","v":"Etablissement non alimentaire, non spécialisé proposant une grande variété de produits, sur un surface de plus de 2500 m2"},{"$f":"'Voc 1'!D147","v":"grand magasin"},{"$f":"'Voc 1'!E147","v":"grand magasin"}]
[null,null,null,null,null,null,null,null,null,null,null,null,null,null,null,null,145,{"$f":"'Voc 1'!C148","v":"Frapper de charges financières, de servitudes, etc..."},{"$f":"'Voc 1'!D148","v":"grever"},{"$f":"'Voc 1'!E148","v":"grever"}]
[null,null,null,null,null,null,null,null,null,null,null,null,null,null,null,null,146,{"$f":"'Voc 1'!C149","v":"Publication qui paraît chaque semaine"},{"$f":"'Voc 1'!D149","v":"hebdomadaire"},{"$f":"'Voc 1'!E149","v":"hebdomadaire"}]
[null,null,null,null,null,null,null,null,null,null,null,null,null,null,null,null,147,{"$f":"'Voc 1'!C150","v":"Rétribution accordée à des personnes exerçant une profession libérale."},{"$f":"'Voc 1'!D150","v":"honoraire"},{"$f":"'Voc 1'!E150","v":"honoraire"}]
[null,null,null,null,null,null,null,null,null,null,null,null,null,null,null,null,148,{"$f":"'Voc 1'!C151","v":"Journal édité par une entreprise et destiné à ses collaborateurs ou à ses partenaires commerciaux"},{"$f":"'Voc 1'!D151","v":"house organ"},{"$f":"'Voc 1'!E151","v":"house organ"}]
[null,null,null,null,null,null,null,null,null,null,null,null,null,null,null,null,149,{"$f":"'Voc 1'!C152","v":"libre-service réalisant plus de 1/3 de son chiffre d'affaires en alimentation, sur une surface de plus de 2500 m2"},{"$f":"'Voc 1'!D152","v":"hypermarché"},{"$f":"'Voc 1'!E152","v":"hypermarché"}]
[null,null,null,null,null,null,null,null,null,null,null,null,null,null,null,null,150,{"$f":"'Voc 1'!C153","v":"Droit de gage inscrit au R.F., sur un bien immobilier en garantie d'un prêt."},{"$f":"'Voc 1'!D153","v":"hypothèque"},{"$f":"'Voc 1'!E153","v":"hypothèque"}]
[null,null,null,null,null,null,null,null,null,null,null,null,null,null,null,null,151,{"$f":"'Voc 1'!C154","v":"Contraire à la loi"},{"$f":"'Voc 1'!D154","v":"illicite"},{"$f":"'Voc 1'!E154","v":"illicite"}]
[null,null,null,null,null,null,null,null,null,null,null,null,null,null,null,null,152,{"$f":"'Voc 1'!C155","v":"Action de venir s'établir dans un pays étranger."},{"$f":"'Voc 1'!D155","v":"immigration"},{"$f":"'Voc 1'!E155","v":"immigration"}]
[null,null,null,null,null,null,null,null,null,null,null,null,null,null,null,null,153,{"$f":"'Voc 1'!C156","v":"Capitaux engagés durablement dans l'entreprise et utilisables de nombreuses fois. (Machines, véhicules, immeubles,etc)"},{"$f":"'Voc 1'!D156","v":"immobilisation"},{"$f":"'Voc 1'!E156","v":"immobilisation"}]
[null,null,null,null,null,null,null,null,null,null,null,null,null,null,null,null,154,{"$f":"'Voc 1'!C157","v":"Impôt prélevé immédiatement sur des revenus provenant d'un capital et remboursé au contribuable lorsque ces revenus sont"},{"$f":"'Voc 1'!D157","v":"impôt anticipé"},{"$f":"'Voc 1'!E157","v":"impôt anticipé"}]
[null,null,null,null,null,null,null,null,null,null,null,null,null,null,null,null,155,{"$f":"'Voc 1'!C158","v":"Mettre sur le compte de quelqu'un. Inscrire un montant dans un compte"},{"$f":"'Voc 1'!D158","v":"imputer"},{"$f":"'Voc 1'!E158","v":"imputer"}]
[null,null,null,null,null,null,null,null,null,null,null,null,null,null,null,null,156,{"$f":"'Voc 1'!C159","v":"Dont l'état général ou les propriétés ne se modifient pas avec le temps."},{"$f":"'Voc 1'!D159","v":"inaltérable"},{"$f":"'Voc 1'!E159","v":"inaltérable"}]
[null,null,null,null,null,null,null,null,null,null,null,null,null,null,null,null,157,{"$f":"'Voc 1'!C160","v":"Manière de coter où l'on indique en FS le prix de 100 unités étrangères"},{"$f":"'Voc 1'!D160","v":"incertain"},{"$f":"'Voc 1'!E160","v":"incertain"}]
[null,null,null,null,null,null,null,null,null,null,null,null,null,null,null,null,158,{"$f":"'Voc 1'!C161","v":"Hausse du niveau général des prix"},{"$f":"'Voc 1'!D161","v":"inflation"},{"$f":"'Voc 1'!E161","v":"inflation"}]
[null,null,null,null,null,null,null,null,null,null,null,null,null,null,null,null,159,{"$f":"'Voc 1'!C162","v":"Ensemble des constructions de base (routes, ponts, etc...)"},{"$f":"'Voc 1'!D162","v":"infrastructure"},{"$f":"'Voc 1'!E162","v":"infrastructure"}]
[null,null,null,null,null,null,null,null,null,null,null,null,null,null,null,null,160,{"$f":"'Voc 1'!C163","v":"Attaché à, inséparable."},{"$f":"'Voc 1'!D163","v":"inhérent"},{"$f":"'Voc 1'!E163","v":"inhérent"}]
[null,null,null,null,null,null,null,null,null,null,null,null,null,null,null,null,161,{"$f":"'Voc 1'!C164","v":"Qui n'a pas de quoi payer"},{"$f":"'Voc 1'!D164","v":"insolvable"},{"$f":"'Voc 1'!E164","v":"insolvable"}]
[null,null,null,null,null,null,null,null,null,null,null,null,null,null,null,null,162,{"$f":"'Voc 1'!C165","v":"Entreprendre contre quelqu'un une action en justice."},{"$f":"'Voc 1'!D165","v":"intenter"},{"$f":"'Voc 1'!E165","v":"intenter"}]
[null,null,null,null,null,null,null,null,null,null,null,null,null,null,null,null,163,{"$f":"'Voc 1'!C166","v":"Revenu du capital - Loyer perçu pour une somme placée."},{"$f":"'Voc 1'!D166","v":"intérêt"},{"$f":"'Voc 1'!E166","v":"intérêt"}]
[null,null,null,null,null,null,null,null,null,null,null,null,null,null,null,null,164,{"$f":"'Voc 1'!C167","v":"Qui qualifie la valeur d'une chose pour elle-même, en dehors de toute convention"},{"$f":"'Voc 1'!D167","v":"intrinsèque"},{"$f":"'Voc 1'!E167","v":"intrinsèque"}]
[null,null,null,null,null,null,null,null,null,null,null,null,null,null,null,null,165,{"$f":"'Voc 1'!C168","v":"Recensement de tous les biens d'une entreprise, compte par compte."},{"$f":"'Voc 1'!D168","v":"inventaire"},{"$f":"'Voc 1'!E168","v":"inventaire"}]
[null,null,null,null,null,null,null,null,null,null,null,null,null,null,null,null,166,{"$f":"'Voc 1'!C169","v":"Consacrer de l'argent à étendre, remplacer, moderniser les moyens de production. Placer une somme d'argent à long terme."},{"$f":"'Voc 1'!D169","v":"investir"},{"$f":"'Voc 1'!E169","v":"investir"}]
[null,null,null,null,null,null,null,null,null,null,null,null,null,null,null,null,167,{"$f":"'Voc 1'!C170","v":"D'office, automatiquement"},{"$f":"'Voc 1'!D170","v":"ipso facto"},{"$f":"'Voc 1'!E170","v":"ipso facto"}]
[null,null,null,null,null,null,null,null,null,null,null,null,null,null,null,null,168,{"$f":"'Voc 1'!C171","v":"Terre labourée, mais non ensemencée, pour la laisser reposer temporairement"},{"$f":"'Voc 1'!D171","v":"jachère"},{"$f":"'Voc 1'!E171","v":"jachère"}]
[null,null,null,null,null,null,null,null,null,null,null,null,null,null,null,null,169,{"$f":"'Voc 1'!C172","v":"Publicité mélodique ou chantée"},{"$f":"'Voc 1'!D172","v":"jingle"},{"$f":"'Voc 1'!E172","v":"jingle"}]
[null,null,null,null,null,null,null,null,null,null,null,null,null,null,null,null,170,{"$f":"'Voc 1'!C173","v":"Liste chronologique des opérations comptables"},{"$f":"'Voc 1'!D173","v":"journal"},{"$f":"'Voc 1'!E173","v":"journal"}]
[null,null,null,null,null,null,null,null,null,null,null,null,null,null,null,null,171,{"$f":"'Voc 1'!C174","v":"Interprétation de la loi donnée par les tribunaux lors de procès et restant valable pour tous les jugements à venir."},{"$f":"'Voc 1'!D174","v":"jurisprudence"},{"$f":"'Voc 1'!E174","v":"jurisprudence"}]
[null,null,null,null,null,null,null,null,null,null,null,null,null,null,null,null,172,{"$f":"'Voc 1'!C175","v":"qui demeure caché et qui ne c'est pas encore déclaré"},{"$f":"'Voc 1'!D175","v":"latent"},{"$f":"'Voc 1'!E175","v":"latent"}]
[null,null,null,null,null,null,null,null,null,null,null,null,null,null,null,null,173,{"$f":"'Voc 1'!C176","v":"Forme d'acquisition de biens entre la vente et la location."},{"$f":"'Voc 1'!D176","v":"leasing"},{"$f":"'Voc 1'!E176","v":"leasing"}]
[null,null,null,null,null,null,null,null,null,null,null,null,null,null,null,null,174,{"$f":"'Voc 1'!C177","v":"Blesser quelqu'un dans ses intérêts, ses droits; lui causer du tort."},{"$f":"'Voc 1'!D177","v":"léser"},{"$f":"'Voc 1'!E177","v":"léser"}]
[null,null,null,null,null,null,null,null,null,null,null,null,null,null,null,null,175,{"$f":"'Voc 1'!C178","v":"Courte description d'un fait comptable."},{"$f":"'Voc 1'!D178","v":"libellé"},{"$f":"'Voc 1'!E178","v":"libellé"}]
[null,null,null,null,null,null,null,null,null,null,null,null,null,null,null,null,176,{"$f":"'Voc 1'!C179","v":"Adjectif qui qualifie une profession qui n'appartient ni à l'industrie, ni au commerce, ni à la fonction publique."},{"$f":"'Voc 1'!D179","v":"libérale"},{"$f":"'Voc 1'!E179","v":"libérale"}]
[null,null,null,null,null,null,null,null,null,null,null,null,null,null,null,null,177,{"$f":"'Voc 1'!C180","v":"Barre de métal fondu et non ouvragé."},{"$f":"'Voc 1'!D180","v":"lingot"},{"$f":"'Voc 1'!E180","v":"lingot"}]
[null,null,null,null,null,null,null,null,null,null,null,null,null,null,null,null,178,{"$f":"'Voc 1'!C181","v":"Montant des moyens de paiement dont l'entreprise peut disposer immédiatement."},{"$f":"'Voc 1'!D181","v":"liquidité"},{"$f":"'Voc 1'!E181","v":"liquidité"}]
[null,null,null,null,null,null,null,null,null,null,null,null,null,null,null,null,179,{"$f":"'Voc 1'!C182","v":"Conflit, contestation donnant matière à procès."},{"$f":"'Voc 1'!D182","v":"litige"},{"$f":"'Voc 1'!E182","v":"litige"}]
[null,null,null,null,null,null,null,null,null,null,null,null,null,null,null,null,180,{"$f":"'Voc 1'!C183","v":"Département qui s'occupe de la distribution des biens"},{"$f":"'Voc 1'!D183","v":"logistique"},{"$f":"'Voc 1'!E183","v":"logistique"}]
[null,null,null,null,null,null,null,null,null,null,null,null,null,null,null,null,181,{"$f":"'Voc 1'!C184","v":"Nom, initiales ou image qui représente symboliquement une marque ou une entreprise"},{"$f":"'Voc 1'!D184","v":"logo"},{"$f":"'Voc 1'!E184","v":"logo"}]
[null,null,null,null,null,null,null,null,null,null,null,null,null,null,null,null,182,{"$f":"'Voc 1'!C185","v":"Ensemble des règles imposées au citoyen."},{"$f":"'Voc 1'!D185","v":"loi"},{"$f":"'Voc 1'!E185","v":"loi"}]
[null,null,null,null,null,null,null,null,null,null,null,null,null,null,null,null,183,{"$f":"'Voc 1'!C186","v":"Qui procure un gain, des profits, des bénéfices."},{"$f":"'Voc 1'!D186","v":"lucratif"},{"$f":"'Voc 1'!E186","v":"lucratif"}]
[null,null,null,null,null,null,null,null,null,null,null,null,null,null,null,null,184,{"$f":"'Voc 1'!C187","v":"Amour du gain, du profit."},{"$f":"'Voc 1'!D187","v":"lucre"},{"$f":"'Voc 1'!E187","v":"lucre"}]
[null,null,null,null,null,null,null,null,null,null,null,null,null,null,null,null,185,{"$f":"'Voc 1'!C188","v":"Fonctionnaire investi d'une autorité juridique ou politique"},{"$f":"'Voc 1'!D188","v":"magistrat"},{"$f":"'Voc 1'!E188","v":"magistrat"}]
[null,null,null,null,null,null,null,null,null,null,null,null,null,null,null,null,186,{"$f":"'Voc 1'!C189","v":"Charge salariale de production"},{"$f":"'Voc 1'!D189","v":"main d'oeuvre"},{"$f":"'Voc 1'!E189","v":"main d'oeuvre"}]
[null,null,null,null,null,null,null,null,null,null,null,null,null,null,null,null,187,{"$f":"'Voc 1'!C190","v":"Augmenter la valeur attribuée à un objet."},{"$f":"'Voc 1'!D190","v":"majorer"},{"$f":"'Voc 1'!E190","v":"majorer"}]
[null,null,null,null,null,null,null,null,null,null,null,null,null,null,null,null,188,{"$f":"'Voc 1'!C191","v":"Convention par laquelle une personne donne pouvoir à une autre d'effectuer un acte en son nom."},{"$f":"'Voc 1'!D191","v":"mandat"},{"$f":"'Voc 1'!E191","v":"mandat"}]
[null,null,null,null,null,null,null,null,null,null,null,null,null,null,null,null,189,{"$f":"'Voc 1'!C192","v":"Titre postal qui permet d'adresser une somme d'argent à une personne qui n'a pas de CCP."},{"$f":"'Voc 1'!D192","v":"mandat"},{"$f":"'Voc 1'!E192","v":"mandat"}]
[null,null,null,null,null,null,null,null,null,null,null,null,null,null,null,null,190,{"$f":"'Voc 1'!C193","v":"Partie principale d'un papier-valeur sans la feuille de coupon"},{"$f":"'Voc 1'!D193","v":"manteau"},{"$f":"'Voc 1'!E193","v":"manteau"}]
[null,null,null,null,null,null,null,null,null,null,null,null,null,null,null,null,191,{"$f":"'Voc 1'!C194","v":"Grande fabrique où certains produits se font à la main"},{"$f":"'Voc 1'!D194","v":"manufacture"},{"$f":"'Voc 1'!E194","v":"manufacture"}]
[null,null,null,null,null,null,null,null,null,null,null,null,null,null,null,null,192,{"$f":"'Voc 1'!C195","v":"Transport avec les mains"},{"$f":"'Voc 1'!D195","v":"manutention"},{"$f":"'Voc 1'!E195","v":"manutention"}]
[null,null,null,null,null,null,null,null,null,null,null,null,null,null,null,null,193,{"$f":"'Voc 1'!C196","v":"différence entre le prix de revient et le prix de vente. (Bénéfice)"},{"$f":"'Voc 1'!D196","v":"marge"},{"$f":"'Voc 1'!E196","v":"marge"}]
[null,null,null,null,null,null,null,null,null,null,null,null,null,null,null,null,194,{"$f":"'Voc 1'!C197","v":"Science visant à distribuer rationnellement sur un marché des biens et des services adaptés au besoins des consommateurs."},{"$f":"'Voc 1'!D197","v":"marketing"},{"$f":"'Voc 1'!E197","v":"marketing"}]
[null,null,null,null,null,null,null,null,null,null,null,null,null,null,null,null,195,{"$f":"'Voc 1'!C198","v":"Protecteur des arts, des sciences ou du sport, généreux et désintéressé"},{"$f":"'Voc 1'!D198","v":"mécène"},{"$f":"'Voc 1'!E198","v":"mécène"}]
[null,null,null,null,null,null,null,null,null,null,null,null,null,null,null,null,196,{"$f":"'Voc 1'!C199","v":"Moyens de communication tels que la presse, la radio, la TV, le cinéma, les affiches"},{"$f":"'Voc 1'!D199","v":"médias"},{"$f":"'Voc 1'!E199","v":"médias"}]
[null,null,null,null,null,null,null,null,null,null,null,null,null,null,null,null,197,{"$f":"'Voc 1'!C200","v":"Somme payée mensuellement"},{"$f":"'Voc 1'!D200","v":"mensualité"},{"$f":"'Voc 1'!E200","v":"mensualité"}]
[null,null,null,null,null,null,null,null,null,null,null,null,null,null,null,null,198,{"$f":"'Voc 1'!C201","v":"publication qui paraît chaque mois"},{"$f":"'Voc 1'!D201","v":"mensuel"},{"$f":"'Voc 1'!E201","v":"mensuel"}]
[null,null,null,null,null,null,null,null,null,null,null,null,null,null,null,null,199,{"$f":"'Voc 1'!C202","v":"Soldat qui loue ses services."},{"$f":"'Voc 1'!D202","v":"mercenaire"},{"$f":"'Voc 1'!E202","v":"mercenaire"}]
[null,null,null,null,null,null,null,null,null,null,null,null,null,null,null,null,200,{"$f":"'Voc 1'!C203","v":"Action de passer d'un pays dans un autre pour s'y établir"},{"$f":"'Voc 1'!D203","v":"migration"},{"$f":"'Voc 1'!E203","v":"migration"}]
[null,null,null,null,null,null,null,null,null,null,null,null,null,null,null,null,201,{"$f":"'Voc 1'!C204","v":"Revenu au-dessous duquel la survie de l'homme devient difficile."},{"$f":"'Voc 1'!D204","v":"minimum vital"},{"$f":"'Voc 1'!E204","v":"minimum vital"}]
[null,null,null,null,null,null,null,null,null,null,null,null,null,null,null,null,202,{"$f":"'Voc 1'!C205","v":"Qui pénalise un débiteur en retard. Intérêt ..."},{"$f":"'Voc 1'!D205","v":"moratoire"},{"$f":"'Voc 1'!E205","v":"moratoire"}]
[null,null,null,null,null,null,null,null,null,null,null,null,null,null,null,null,203,{"$f":"'Voc 1'!C206","v":"Mise en gage de biens mobiliers en garantie d'un crédit."},{"$f":"'Voc 1'!D206","v":"nantissement"},{"$f":"'Voc 1'!E206","v":"nantissement"}]
[null,null,null,null,null,null,null,null,null,null,null,null,null,null,null,null,204,{"$f":"'Voc 1'!C207","v":"Prix ou poids après déduction d'une bonification. Contraire de brut"},{"$f":"'Voc 1'!D207","v":"net"},{"$f":"'Voc 1'!E207","v":"net"}]
[null,null,null,null,null,null,null,null,null,null,null,null,null,null,null,null,205,{"$f":"'Voc 1'!C208","v":"Qui n'a pas d'habitation fixe"},{"$f":"'Voc 1'!D208","v":"nomade"},{"$f":"'Voc 1'!E208","v":"nomade"}]
[null,null,null,null,null,null,null,null,null,null,null,null,null,null,null,null,206,{"$f":"'Voc 1'!C209","v":"Se dit d'un titre sur lequel le nom du propriétaire figure."},{"$f":"'Voc 1'!D209","v":"nominatif"},{"$f":"'Voc 1'!E209","v":"nominatif"}]
[null,null,null,null,null,null,null,null,null,null,null,null,null,null,null,null,207,{"$f":"'Voc 1'!C210","v":"Document établi par le vendeur, confirmant une diminution d'un prix de vente à faire valoir sur un prochain achat."},{"$f":"'Voc 1'!D210","v":"note de crédit"},{"$f":"'Voc 1'!E210","v":"note de crédit"}]
[null,null,null,null,null,null,null,null,null,null,null,null,null,null,null,null,208,{"$f":"'Voc 1'!C211","v":"Papier-valeur incorporant un droit de créance et émis en représentation d'un capital souscrit."},{"$f":"'Voc 1'!D211","v":"obligation"},{"$f":"'Voc 1'!E211","v":"obligation"}]
[null,null,null,null,null,null,null,null,null,null,null,null,null,null,null,null,209,{"$f":"'Voc 1'!C212","v":"Diminution de la valeur d'un bien due à un vieillissement technologique."},{"$f":"'Voc 1'!D212","v":"obsolescence"},{"$f":"'Voc 1'!E212","v":"obsolescence"}]
[null,null,null,null,null,null,null,null,null,null,null,null,null,null,null,null,210,{"$f":"'Voc 1'!C213","v":"Prendre les précautions nécessaires pour prévenir un mal."},{"$f":"'Voc 1'!D213","v":"obvier"},{"$f":"'Voc 1'!E213","v":"obvier"}]
[null,null,null,null,null,null,null,null,null,null,null,null,null,null,null,null,211,{"$f":"'Voc 1'!C214","v":"Prix auquel la banque vend les monnaies étrangères. Cours ..."},{"$f":"'Voc 1'!D214","v":"offre"},{"$f":"'Voc 1'!E214","v":"offre"}]
[null,null,null,null,null,null,null,null,null,null,null,null,null,null,null,null,212,{"$f":"'Voc 1'!C215","v":"Office Fédéral de l'Industrie, des Arts et Métiers, du travail"},{"$f":"'Voc 1'!D215","v":"OFIAMT"},{"$f":"'Voc 1'!E215","v":"OFIAMT"}]
[null,null,null,null,null,null,null,null,null,null,null,null,null,null,null,null,213,{"$f":"'Voc 1'!C216","v":"Unité de poids utilisée pour les métaux précieux et valant 31.1035 grammes."},{"$f":"'Voc 1'!D216","v":"once"},{"$f":"'Voc 1'!E216","v":"once"}]
[null,null,null,null,null,null,null,null,null,null,null,null,null,null,null,null,214,{"$f":"'Voc 1'!C217","v":"Contraire de gratuit."},{"$f":"'Voc 1'!D217","v":"onéreux"},{"$f":"'Voc 1'!E217","v":"onéreux"}]
[null,null,null,null,null,null,null,null,null,null,null,null,null,null,null,null,215,{"$f":"'Voc 1'!C218","v":"Epreuve judiciaire pour établir la culpabilité ou l'innocence d'un accusé. (duel, épreuve du fer rouge ou de l'eau bouillante)"},{"$f":"'Voc 1'!D218","v":"ordalie"},{"$f":"'Voc 1'!E218","v":"ordalie"}]
[null,null,null,null,null,null,null,null,null,null,null,null,null,null,null,null,216,{"$f":"'Voc 1'!C219","v":"Loi condamnant au bannissement temporaire des citoyens jugés dangereux."},{"$f":"'Voc 1'!D219","v":"ostracisme"},{"$f":"'Voc 1'!E219","v":"ostracisme"}]
[null,null,null,null,null,null,null,null,null,null,null,null,null,null,null,null,217,{"$f":"'Voc 1'!C220","v":"Elevage des huîtres"},{"$f":"'Voc 1'!D220","v":"ostréiculture"},{"$f":"'Voc 1'!E220","v":"ostréiculture"}]
[null,null,null,null,null,null,null,null,null,null,null,null,null,null,null,null,218,{"$f":"'Voc 1'!C221","v":"Titre dans lequel un droit est incorporé d'une manière telle qu'il est impossible de le faire valoir ou de le transmettre"},{"$f":"'Voc 1'!D221","v":"papier-valeur"},{"$f":"'Voc 1'!E221","v":"papier-valeur"}]
[null,null,null,null,null,null,null,null,null,null,null,null,null,null,null,null,219,{"$f":"'Voc 1'!C222","v":"Egalité de la valeur d'échange."},{"$f":"'Voc 1'!D222","v":"parité"},{"$f":"'Voc 1'!E222","v":"parité"}]
[null,null,null,null,null,null,null,null,null,null,null,null,null,null,null,null,220,{"$f":"'Voc 1'!C223","v":"Indemnité versée au propriétaire d'un fonds de commerce par son successeur."},{"$f":"'Voc 1'!D223","v":"pas de porte"},{"$f":"'Voc 1'!E223","v":"pas de porte"}]
[null,null,null,null,null,null,null,null,null,null,null,null,null,null,null,null,221,{"$f":"'Voc 1'!C224","v":"Partie droite du Bilan où sont énumérées toutes les ressources financières de l'entreprise."},{"$f":"'Voc 1'!D224","v":"passif"},{"$f":"'Voc 1'!E224","v":"passif"}]
[null,null,null,null,null,null,null,null,null,null,null,null,null,null,null,null,222,{"$f":"'Voc 1'!C225","v":"Ensemble des biens d'une famille ou d'une entreprise, appréciable en argent."},{"$f":"'Voc 1'!D225","v":"patrimoine"},{"$f":"'Voc 1'!E225","v":"patrimoine"}]
[null,null,null,null,null,null,null,null,null,null,null,null,null,null,null,null,223,{"$f":"'Voc 1'!C226","v":"Droit perçu sur les personnes, les véhicules pour leur passage sur certains chemins, ponts, tunnels, etc..."},{"$f":"'Voc 1'!D226","v":"péage"},{"$f":"'Voc 1'!E226","v":"péage"}]
[null,null,null,null,null,null,null,null,null,null,null,null,null,null,null,null,224,{"$f":"'Voc 1'!C227","v":"Somme d'argent économisée lentement."},{"$f":"'Voc 1'!D227","v":"pécule"},{"$f":"'Voc 1'!E227","v":"pécule"}]
[null,null,null,null,null,null,null,null,null,null,null,null,null,null,null,null,225,{"$f":"'Voc 1'!C228","v":"Relatif à l'argent. (Du mot bétail en latin)"},{"$f":"'Voc 1'!D228","v":"pécuniaire"},{"$f":"'Voc 1'!E228","v":"pécuniaire"}]
[null,null,null,null,null,null,null,null,null,null,null,null,null,null,null,null,226,{"$f":"'Voc 1'!C229","v":"Contre quoi on ne peut rien répliquer."},{"$f":"'Voc 1'!D229","v":"péremptoire"},{"$f":"'Voc 1'!E229","v":"péremptoire"}]
[null,null,null,null,null,null,null,null,null,null,null,null,null,null,null,null,227,{"$f":"'Voc 1'!C230","v":"Région de banlieue entourant une ville"},{"$f":"'Voc 1'!D230","v":"périphérie"},{"$f":"'Voc 1'!E230","v":"périphérie"}]
[null,null,null,null,null,null,null,null,null,null,null,null,null,null,null,null,228,{"$f":"'Voc 1'!C231","v":"Synonyme de vital pour définir un besoin."},{"$f":"'Voc 1'!D231","v":"physiologique"},{"$f":"'Voc 1'!E231","v":"physiologique"}]
[null,null,null,null,null,null,null,null,null,null,null,null,null,null,null,null,229,{"$f":"'Voc 1'!C232","v":"Poteau où l'on attachait les condamnés pour les exposer au public"},{"$f":"'Voc 1'!D232","v":"pilori"},{"$f":"'Voc 1'!E232","v":"pilori"}]
[null,null,null,null,null,null,null,null,null,null,null,null,null,null,null,null,230,{"$f":"'Voc 1'!C233","v":"Elevage des poissons"},{"$f":"'Voc 1'!D233","v":"pisciculture"},{"$f":"'Voc 1'!E233","v":"pisciculture"}]
[null,null,null,null,null,null,null,null,null,null,null,null,null,null,null,null,231,{"$f":"'Voc 1'!C234","v":"Personne détenant légalement un titre non nominatif"},{"$f":"'Voc 1'!D234","v":"porteur"},{"$f":"'Voc 1'!E234","v":"porteur"}]
[null,null,null,null,null,null,null,null,null,null,null,null,null,null,null,null,232,{"$f":"'Voc 1'!C235","v":"adjectif : qui existe en puissance"},{"$f":"'Voc 1'!D235","v":"potentiel"},{"$f":"'Voc 1'!E235","v":"potentiel"}]
[null,null,null,null,null,null,null,null,null,null,null,null,null,null,null,null,233,{"$f":"'Voc 1'!C236","v":"nom : Ensemble des ressources d'un pays"},{"$f":"'Voc 1'!D236","v":"potentiel"},{"$f":"'Voc 1'!E236","v":"potentiel"}]
[null,null,null,null,null,null,null,null,null,null,null,null,null,null,null,null,234,{"$f":"'Voc 1'!C237","v":"Droit d'acheter avant tout autre"},{"$f":"'Voc 1'!D237","v":"préemption"},{"$f":"'Voc 1'!E237","v":"préemption"}]
[null,null,null,null,null,null,null,null,null,null,null,null,null,null,null,null,235,{"$f":"'Voc 1'!C238","v":"Extinction d'un droit par l'écoulement du temps."},{"$f":"'Voc 1'!D238","v":"prescription"},{"$f":"'Voc 1'!E238","v":"prescription"}]
[null,null,null,null,null,null,null,null,null,null,null,null,null,null,null,null,236,{"$f":"'Voc 1'!C239","v":"Terme englobant tous les médias imprimés, tels quotidiens, hebdomadaires, revues, etc..."},{"$f":"'Voc 1'!D239","v":"presse"},{"$f":"'Voc 1'!E239","v":"presse"}]
[null,null,null,null,null,null,null,null,null,null,null,null,null,null,null,null,237,{"$f":"'Voc 1'!C240","v":"Ce qu'une partie s'engage par contrat à faire ou à ne pas faire."},{"$f":"'Voc 1'!D240","v":"prestation"},{"$f":"'Voc 1'!E240","v":"prestation"}]
[null,null,null,null,null,null,null,null,null,null,null,null,null,null,null,null,238,{"$f":"'Voc 1'!C241","v":"prêt sans garanties données au créancier (crédit en blanc)"},{"$f":"'Voc 1'!D241","v":"prêt non gagé"},{"$f":"'Voc 1'!E241","v":"prêt non gagé"}]
[null,null,null,null,null,null,null,null,null,null,null,null,null,null,null,null,239,{"$f":"'Voc 1'!C242","v":"Ensemble des actions qui doivent être mises en oeuvre pour parvenir à une solution judiciaire"},{"$f":"'Voc 1'!D242","v":"procédure"},{"$f":"'Voc 1'!E242","v":"procédure"}]
[null,null,null,null,null,null,null,null,null,null,null,null,null,null,null,null,240,{"$f":"'Voc 1'!C243","v":"Titre donnant à une personne la capacité d'agir pour une autre."},{"$f":"'Voc 1'!D243","v":"procuration"},{"$f":"'Voc 1'!E243","v":"procuration"}]
[null,null,null,null,null,null,null,null,null,null,null,null,null,null,null,null,241,{"$f":"'Voc 1'!C244","v":"qui fait des dépenses excessives"},{"$f":"'Voc 1'!D244","v":"prodigue"},{"$f":"'Voc 1'!E244","v":"prodigue"}]
[null,null,null,null,null,null,null,null,null,null,null,null,null,null,null,null,242,{"$f":"'Voc 1'!C245","v":"Amélioration quantitative et qualitative de la production"},{"$f":"'Voc 1'!D245","v":"productivité"},{"$f":"'Voc 1'!E245","v":"productivité"}]
[null,null,null,null,null,null,null,null,null,null,null,null,null,null,null,null,243,{"$f":"'Voc 1'!C246","v":"Ce qui rapporte un capital"},{"$f":"'Voc 1'!D246","v":"produit"},{"$f":"'Voc 1'!E246","v":"produit"}]
[null,null,null,null,null,null,null,null,null,null,null,null,null,null,null,null,244,{"$f":"'Voc 1'!C247","v":"Interdiction légale."},{"$f":"'Voc 1'!D247","v":"prohibition"},{"$f":"'Voc 1'!E247","v":"prohibition"}]
[null,null,null,null,null,null,null,null,null,null,null,null,null,null,null,null,245,{"$f":"'Voc 1'!C248","v":"Mot latin qui signifie proportionnellement."},{"$f":"'Voc 1'!D248","v":"prorata"},{"$f":"'Voc 1'!E248","v":"prorata"}]
[null,null,null,null,null,null,null,null,null,null,null,null,null,null,null,null,246,{"$f":"'Voc 1'!C249","v":"Prolonger un délai, différer l'échéance."},{"$f":"'Voc 1'!D249","v":"proroger"},{"$f":"'Voc 1'!E249","v":"proroger"}]
[null,null,null,null,null,null,null,null,null,null,null,null,null,null,null,null,247,{"$f":"'Voc 1'!C250","v":"Ensemble des moyens destinés à informer le public et à le convaincre d'acheter un produit ou un service"},{"$f":"'Voc 1'!D250","v":"publicité"},{"$f":"'Voc 1'!E250","v":"publicité"}]
[null,null,null,null,null,null,null,null,null,null,null,null,null,null,null,null,248,{"$f":"'Voc 1'!C251","v":"Terme juridique indiquant le cadet."},{"$f":"'Voc 1'!D251","v":"puîné"},{"$f":"'Voc 1'!E251","v":"puîné"}]
[null,null,null,null,null,null,null,null,null,null,null,null,null,null,null,null,249,{"$f":"'Voc 1'!C252","v":"Qui dure 5 ans ou qui se produit tous les 5 ans."},{"$f":"'Voc 1'!D252","v":"quinquennal"},{"$f":"'Voc 1'!E252","v":"quinquennal"}]
[null,null,null,null,null,null,null,null,null,null,null,null,null,null,null,null,250,{"$f":"'Voc 1'!C253","v":"100 kg"},{"$f":"'Voc 1'!D253","v":"quintal"},{"$f":"'Voc 1'!E253","v":"quintal"}]
[null,null,null,null,null,null,null,null,null,null,null,null,null,null,null,null,251,{"$f":"'Voc 1'!C254","v":"Déclaration écrite que l'on donne à celui qui acquitte une dette"},{"$f":"'Voc 1'!D254","v":"quittance"},{"$f":"'Voc 1'!E254","v":"quittance"}]
[null,null,null,null,null,null,null,null,null,null,null,null,null,null,null,null,252,{"$f":"'Voc 1'!C255","v":"Publication qui paraît chaque jour"},{"$f":"'Voc 1'!D255","v":"quotidien"},{"$f":"'Voc 1'!E255","v":"quotidien"}]
[null,null,null,null,null,null,null,null,null,null,null,null,null,null,null,null,253,{"$f":"'Voc 1'!C256","v":"Bonification accordée sur un prix en fonction de la qualité du produit."},{"$f":"'Voc 1'!D256","v":"rabais"},{"$f":"'Voc 1'!E256","v":"rabais"}]
[null,null,null,null,null,null,null,null,null,null,null,null,null,null,null,null,254,{"$f":"'Voc 1'!C257","v":"Degré dans une hiérarchie"},{"$f":"'Voc 1'!D257","v":"rang"},{"$f":"'Voc 1'!E257","v":"rang"}]
[null,null,null,null,null,null,null,null,null,null,null,null,null,null,null,null,255,{"$f":"'Voc 1'!C258","v":"Dénombrement d'une population."},{"$f":"'Voc 1'!D258","v":"recensement"},{"$f":"'Voc 1'!E258","v":"recensement"}]
[null,null,null,null,null,null,null,null,null,null,null,null,null,null,null,null,256,{"$f":"'Voc 1'!C259","v":"Document par lequel on reconnaît avoir reçu des documents, des objets ou de l'argent."},{"$f":"'Voc 1'!D259","v":"récépissé"},{"$f":"'Voc 1'!E259","v":"récépissé"}]
[null,null,null,null,null,null,null,null,null,null,null,null,null,null,null,null,257,{"$f":"'Voc 1'!C260","v":"Partie gauche d'un bulletin de versement vert."},{"$f":"'Voc 1'!D260","v":"récépissé PTT"},{"$f":"'Voc 1'!E260","v":"récépissé"}]
[null,null,null,null,null,null,null,null,null,null,null,null,null,null,null,null,258,{"$f":"'Voc 1'!C261","v":"Taxe"},{"$f":"'Voc 1'!D261","v":"redevance"},{"$f":"'Voc 1'!E261","v":"redevance"}]
[null,null,null,null,null,null,null,null,null,null,null,null,null,null,null,null,259,{"$f":"'Voc 1'!C262","v":"Action d'un acheteur pour faire annuler une vente dans le cas où l'objet se révèle défectueux."},{"$f":"'Voc 1'!D262","v":"rédhibition"},{"$f":"'Voc 1'!E262","v":"rédhibition"}]
[null,null,null,null,null,null,null,null,null,null,null,null,null,null,null,null,260,{"$f":"'Voc 1'!C263","v":"Réduction accordée sur un poids brut pour tenir compte des impuretés et des déchets éventuels."},{"$f":"'Voc 1'!D263","v":"réfaction"},{"$f":"'Voc 1'!E263","v":"réfaction"}]
[null,null,null,null,null,null,null,null,null,null,null,null,null,null,null,null,261,{"$f":"'Voc 1'!C264","v":"Bonification accordée sur un prix en fonction de la quantité achetée."},{"$f":"'Voc 1'!D264","v":"remise"},{"$f":"'Voc 1'!E264","v":"remise"}]
[null,null,null,null,null,null,null,null,null,null,null,null,null,null,null,null,262,{"$f":"'Voc 1'!C265","v":"Argent reçu contre un travail ou un service."},{"$f":"'Voc 1'!D265","v":"rémunération"},{"$f":"'Voc 1'!E265","v":"rémunération"}]
[null,null,null,null,null,null,null,null,null,null,null,null,null,null,null,null,263,{"$f":"'Voc 1'!C266","v":"Action de demander en justice."},{"$f":"'Voc 1'!D266","v":"réquisition"},{"$f":"'Voc 1'!E266","v":"réquisition"}]
[null,null,null,null,null,null,null,null,null,null,null,null,null,null,null,null,264,{"$f":"'Voc 1'!C267","v":"Annulation d'un contrat."},{"$f":"'Voc 1'!D267","v":"résiliation"},{"$f":"'Voc 1'!E267","v":"résiliation"}]
[null,null,null,null,null,null,null,null,null,null,null,null,null,null,null,null,265,{"$f":"'Voc 1'!C268","v":"Action de retirer de l'argent liquide d'un compte bancaire ou postal."},{"$f":"'Voc 1'!D268","v":"retrait"},{"$f":"'Voc 1'!E268","v":"retrait"}]
[null,null,null,null,null,null,null,null,null,null,null,null,null,null,null,null,266,{"$f":"'Voc 1'!C269","v":"Bonification accordée en fin d'année en fonction du volume des commandes."},{"$f":"'Voc 1'!D269","v":"ristourne"},{"$f":"'Voc 1'!E269","v":"ristourne"}]
[null,null,null,null,null,null,null,null,null,null,null,null,null,null,null,null,267,{"$f":"'Voc 1'!C270","v":"Frais de licence pour l'exploitation de brevets et de procédés de fabrication. (mot anglais)"},{"$f":"'Voc 1'!D270","v":"royalty"},{"$f":"'Voc 1'!E270","v":"royalty"}]
[null,null,null,null,null,null,null,null,null,null,null,null,null,null,null,null,268,{"$f":"'Voc 1'!C271","v":"Qui concerne la campagne. (adj)"},{"$f":"'Voc 1'!D271","v":"rural"},{"$f":"'Voc 1'!E271","v":"rural"}]
[null,null,null,null,null,null,null,null,null,null,null,null,null,null,null,null,269,{"$f":"'Voc 1'!C272","v":"Adjectif qui qualifie une monnaie écrite comme les chèques par exemple."},{"$f":"'Voc 1'!D272","v":"scripturale"},{"$f":"'Voc 1'!E272","v":"scripturale"}]
[null,null,null,null,null,null,null,null,null,null,null,null,null,null,null,null,270,{"$f":"'Voc 1'!C273","v":"Qui a une habitation fixe."},{"$f":"'Voc 1'!D273","v":"sédentaire"},{"$f":"'Voc 1'!E273","v":"sédentaire"}]
[null,null,null,null,null,null,null,null,null,null,null,null,null,null,null,null,271,{"$f":"'Voc 1'!C274","v":"Signature d'un acte non enregistré devant notaire."},{"$f":"'Voc 1'!D274","v":"seing privé"},{"$f":"'Voc 1'!E274","v":"seing privé"}]
[null,null,null,null,null,null,null,null,null,null,null,null,null,null,null,null,272,{"$f":"'Voc 1'!C275","v":"Elevage du ver à soie"},{"$f":"'Voc 1'!D275","v":"sériciculture"},{"$f":"'Voc 1'!E275","v":"sériciculture"}]
[null,null,null,null,null,null,null,null,null,null,null,null,null,null,null,null,273,{"$f":"'Voc 1'!C276","v":"Charge imposée sur une propriété pour l'usage d'un fonds qui appartient à un autre propriétaire"},{"$f":"'Voc 1'!D276","v":"servitude"},{"$f":"'Voc 1'!E276","v":"servitude"}]
[null,null,null,null,null,null,null,null,null,null,null,null,null,null,null,null,274,{"$f":"'Voc 1'!C277","v":"Phrase courte facile à retenir, qui est étroitement associée à un produit."},{"$f":"'Voc 1'!D277","v":"slogan"},{"$f":"'Voc 1'!E277","v":"slogan"}]
[null,null,null,null,null,null,null,null,null,null,null,null,null,null,null,null,275,{"$f":"'Voc 1'!C278","v":"Qui a les moyens de payer."},{"$f":"'Voc 1'!D278","v":"solvable"},{"$f":"'Voc 1'!E278","v":"solvable"}]
[null,null,null,null,null,null,null,null,null,null,null,null,null,null,null,null,276,{"$f":"'Voc 1'!C279","v":"Talon d'un chèque ou d'une quittance qui reste en main de celui qui l'établit."},{"$f":"'Voc 1'!D279","v":"souche"},{"$f":"'Voc 1'!E279","v":"souche"}]
[null,null,null,null,null,null,null,null,null,null,null,null,null,null,null,null,277,{"$f":"'Voc 1'!C280","v":"Somme d'argent qui, dans un partage ou un échange, compense l'inégalité des lots."},{"$f":"'Voc 1'!D280","v":"soulte"},{"$f":"'Voc 1'!E280","v":"soulte"}]
[null,null,null,null,null,null,null,null,null,null,null,null,null,null,null,null,278,{"$f":"'Voc 1'!C281","v":"Action de s'engager pour un certain montant."},{"$f":"'Voc 1'!D281","v":"souscription"},{"$f":"'Voc 1'!E281","v":"souscription"}]
[null,null,null,null,null,null,null,null,null,null,null,null,null,null,null,null,279,{"$f":"'Voc 1'!C282","v":"Recherche d'un profit résultant des variations des cours ou des prix."},{"$f":"'Voc 1'!D282","v":"spéculation"},{"$f":"'Voc 1'!E282","v":"spéculation"}]
[null,null,null,null,null,null,null,null,null,null,null,null,null,null,null,null,280,{"$f":"'Voc 1'!C283","v":"Souteneur financier d'une manifestation, d'une équipe, d'un sportif, en échange de publicité indirecte"},{"$f":"'Voc 1'!D283","v":"sponsor"},{"$f":"'Voc 1'!E283","v":"sponsor"}]
[null,null,null,null,null,null,null,null,null,null,null,null,null,null,null,null,281,{"$f":"'Voc 1'!C284","v":"Publicité radio ou TV de courte durée"},{"$f":"'Voc 1'!D284","v":"spot"},{"$f":"'Voc 1'!E284","v":"spot"}]
[null,null,null,null,null,null,null,null,null,null,null,null,null,null,null,null,282,{"$f":"'Voc 1'!C285","v":"Payer pour une besogne ignoble. Corrompre."},{"$f":"'Voc 1'!D285","v":"stipendier"},{"$f":"'Voc 1'!E285","v":"stipendier"}]
[null,null,null,null,null,null,null,null,null,null,null,null,null,null,null,null,283,{"$f":"'Voc 1'!C286","v":"Enoncer comme condition dans un contrat ou dans un acte."},{"$f":"'Voc 1'!D286","v":"stipuler"},{"$f":"'Voc 1'!E286","v":"stipuler"}]
[null,null,null,null,null,null,null,null,null,null,null,null,null,null,null,null,284,{"$f":"'Voc 1'!C287","v":"Quantité de marchandise en réserve."},{"$f":"'Voc 1'!D287","v":"stock"},{"$f":"'Voc 1'!E287","v":"stock"}]
[null,null,null,null,null,null,null,null,null,null,null,null,null,null,null,null,285,{"$f":"'Voc 1'!C288","v":"Esquisse d'un projet de film, avec croquis et légendes"},{"$f":"'Voc 1'!D288","v":"storyboard"},{"$f":"'Voc 1'!E288","v":"storyboard"}]
[null,null,null,null,null,null,null,null,null,null,null,null,null,null,null,null,286,{"$f":"'Voc 1'!C289","v":"Secours d'argent d'un Etat à un autre Etat ami."},{"$f":"'Voc 1'!D289","v":"subside"},{"$f":"'Voc 1'!E289","v":"subside"}]
[null,null,null,null,null,null,null,null,null,null,null,null,null,null,null,null,287,{"$f":"'Voc 1'!C290","v":"Aide que l'Etat accorde à un groupement, une association, voire à un privé."},{"$f":"'Voc 1'!D290","v":"subvention"},{"$f":"'Voc 1'!E290","v":"subvention"}]
[null,null,null,null,null,null,null,null,null,null,null,null,null,null,null,null,288,{"$f":"'Voc 1'!C291","v":"Entreprise dépendante de la maison mère"},{"$f":"'Voc 1'!D291","v":"succursale"},{"$f":"'Voc 1'!E291","v":"succursale"}]
[null,null,null,null,null,null,null,null,null,null,null,null,null,null,null,null,289,{"$f":"'Voc 1'!C292","v":"Libre-service vendant principalement des produits alimentaires, sur une surface de 120 à 400 m2"},{"$f":"'Voc 1'!D292","v":"supérette"},{"$f":"'Voc 1'!E292","v":"supérette"}]
[null,null,null,null,null,null,null,null,null,null,null,null,null,null,null,null,290,{"$f":"'Voc 1'!C293","v":"Libre-service réalisant plus des 2/3 de son chiffre d'affaires en alimentation, sur une surface de 400 à 2500 m2"},{"$f":"'Voc 1'!D293","v":"supermarché"},{"$f":"'Voc 1'!E293","v":"supermarché"}]
[null,null,null,null,null,null,null,null,null,null,null,null,null,null,null,null,291,{"$f":"'Voc 1'!C294","v":"En plus, en sus..."},{"$f":"'Voc 1'!D294","v":"supplémentaire"},{"$f":"'Voc 1'!E294","v":"supplémentaire"}]
[null,null,null,null,null,null,null,null,null,null,null,null,null,null,null,null,292,{"$f":"'Voc 1'!C295","v":"Part de la production qui excède la quantité nécessaire à sa propre consommation."},{"$f":"'Voc 1'!D295","v":"surplus"},{"$f":"'Voc 1'!E295","v":"surplus"}]
[null,null,null,null,null,null,null,null,null,null,null,null,null,null,null,null,293,{"$f":"'Voc 1'!C296","v":"Culture des arbres"},{"$f":"'Voc 1'!D296","v":"sylviculture"},{"$f":"'Voc 1'!E296","v":"sylviculture"}]
[null,null,null,null,null,null,null,null,null,null,null,null,null,null,null,null,294,{"$f":"'Voc 1'!C297","v":"Qui comporte des obligations réciproques entre deux parties.(Bilatéral)"},{"$f":"'Voc 1'!D297","v":"synallagmatique"},{"$f":"'Voc 1'!E297","v":"synallagmatique"}]
[null,null,null,null,null,null,null,null,null,null,null,null,null,null,null,null,295,{"$f":"'Voc 1'!C298","v":"Qui découle du comportement, sans qu'il y ait une acceptation écrite ou orale."},{"$f":"'Voc 1'!D298","v":"tacite"},{"$f":"'Voc 1'!E298","v":"tacite"}]
[null,null,null,null,null,null,null,null,null,null,null,null,null,null,null,null,296,{"$f":"'Voc 1'!C299","v":"bon de renouvellement attaché à la feuille de coupons d'un titre"},{"$f":"'Voc 1'!D299","v":"talon"},{"$f":"'Voc 1'!E299","v":"talon"}]
[null,null,null,null,null,null,null,null,null,null,null,null,null,null,null,null,297,{"$f":"'Voc 1'!C300","v":"Poids de l'emballage."},{"$f":"'Voc 1'!D300","v":"tare"},{"$f":"'Voc 1'!E300","v":"tare"}]
[null,null,null,null,null,null,null,null,null,null,null,null,null,null,null,null,298,{"$f":"'Voc 1'!C301","v":"Acheter en payant par acomptes successifs réguliers. Acheter à ..."},{"$f":"'Voc 1'!D301","v":"tempérament"},{"$f":"'Voc 1'!E301","v":"tempérament"}]
[null,null,null,null,null,null,null,null,null,null,null,null,null,null,null,null,299,{"$f":"'Voc 1'!C302","v":"Expiration d'un délai pour l'accomplissement d'une obligation."},{"$f":"'Voc 1'!D302","v":"terme"},{"$f":"'Voc 1'!E302","v":"terme"}]
[null,null,null,null,null,null,null,null,null,null,null,null,null,null,null,null,300,{"$f":"'Voc 1'!C303","v":"Action de retirer de l'argent du circuit économique en le conservant dans un \"bas de laine\"."},{"$f":"'Voc 1'!D303","v":"thésauriser"},{"$f":"'Voc 1'!E303","v":"thésauriser"}]
[null,null,null,null,null,null,null,null,null,null,null,null,null,null,null,null,301,{"$f":"'Voc 1'!C304","v":"Personne étrangère à l'action."},{"$f":"'Voc 1'!D304","v":"tiers"},{"$f":"'Voc 1'!E304","v":"tiers"}]
[null,null,null,null,null,null,null,null,null,null,null,null,null,null,null,null,302,{"$f":"'Voc 1'!C305","v":"Nombre d'exemplaires imprimés et mis en vente"},{"$f":"'Voc 1'!D305","v":"tirage"},{"$f":"'Voc 1'!E305","v":"tirage"}]
[null,null,null,null,null,null,null,null,null,null,null,null,null,null,null,null,303,{"$f":"'Voc 1'!C306","v":"Celui qui devra payer une lettre de change"},{"$f":"'Voc 1'!D306","v":"tiré"},{"$f":"'Voc 1'!E306","v":"tiré"}]
[null,null,null,null,null,null,null,null,null,null,null,null,null,null,null,null,304,{"$f":"'Voc 1'!C307","v":"Personne qui établit un effet de change."},{"$f":"'Voc 1'!D307","v":"tireur"},{"$f":"'Voc 1'!E307","v":"tireur"}]
[null,null,null,null,null,null,null,null,null,null,null,null,null,null,null,null,305,{"$f":"'Voc 1'!C308","v":"Acte écrit, pièce authentique qui sert a établir un droit ou une qualité."},{"$f":"'Voc 1'!D308","v":"titre"},{"$f":"'Voc 1'!E308","v":"titre"}]
[null,null,null,null,null,null,null,null,null,null,null,null,null,null,null,null,306,{"$f":"'Voc 1'!C309","v":"Synonyme de lettre de change"},{"$f":"'Voc 1'!D309","v":"traite"},{"$f":"'Voc 1'!E309","v":"traite"}]
[null,null,null,null,null,null,null,null,null,null,null,null,null,null,null,null,307,{"$f":"'Voc 1'!C310","v":"Somme d'argent versée à quelqu'un en échange d'un travail fixe pour lequel elle a été nommée."},{"$f":"'Voc 1'!D310","v":"traitement"},{"$f":"'Voc 1'!E310","v":"traitement"}]
[null,null,null,null,null,null,null,null,null,null,null,null,null,null,null,null,308,{"$f":"'Voc 1'!C311","v":"Commissionnaire qui se charge du passage des marchandises"},{"$f":"'Voc 1'!D311","v":"transitaire"},{"$f":"'Voc 1'!E311","v":"transitaire"}]
[null,null,null,null,null,null,null,null,null,null,null,null,null,null,null,null,309,{"$f":"'Voc 1'!C312","v":"Fonds liquides dont dispose une entreprise."},{"$f":"'Voc 1'!D312","v":"trésorerie"},{"$f":"'Voc 1'!E312","v":"trésorerie"}]
[null,null,null,null,null,null,null,null,null,null,null,null,null,null,null,null,310,{"$f":"'Voc 1'!C313","v":"Qui a lieu tous les trois ans."},{"$f":"'Voc 1'!D313","v":"triennal"},{"$f":"'Voc 1'!E313","v":"triennal"}]
[null,null,null,null,null,null,null,null,null,null,null,null,null,null,null,null,311,{"$f":"'Voc 1'!C314","v":"Echange d'un objet contre un autre, sans usage de monnaie."},{"$f":"'Voc 1'!D314","v":"troc"},{"$f":"'Voc 1'!E314","v":"troc"}]
[null,null,null,null,null,null,null,null,null,null,null,null,null,null,null,null,312,{"$f":"'Voc 1'!C315","v":"Intégration par une entreprise de toutes les étapes allant de la production à la distribution"},{"$f":"'Voc 1'!D315","v":"trust"},{"$f":"'Voc 1'!E315","v":"trust"}]
[null,null,null,null,null,null,null,null,null,null,null,null,null,null,null,null,313,{"$f":"'Voc 1'!C316","v":"Possibilité d'être présent en plusieurs lieux à la fois"},{"$f":"'Voc 1'!D316","v":"ubiquité"},{"$f":"'Voc 1'!E316","v":"ubiquité"}]
[null,null,null,null,null,null,null,null,null,null,null,null,null,null,null,null,314,{"$f":"'Voc 1'!C317","v":"Droit d'utiliser un bien sans en avoir la propriété"},{"$f":"'Voc 1'!D317","v":"usufruit"},{"$f":"'Voc 1'!E317","v":"usufruit"}]
[null,null,null,null,null,null,null,null,null,null,null,null,null,null,null,null,315,{"$f":"'Voc 1'!C318","v":"Montant de la rémunération due pour une séance de travail."},{"$f":"'Voc 1'!D318","v":"vacation"},{"$f":"'Voc 1'!E318","v":"vacation"}]
[null,null,null,null,null,null,null,null,null,null,null,null,null,null,null,null,316,{"$f":"'Voc 1'!C319","v":"Valeur inscrite sur un titre"},{"$f":"'Voc 1'!D319","v":"valeur nominale"},{"$f":"'Voc 1'!E319","v":"nominale"}]
[null,null,null,null,null,null,null,null,null,null,null,null,null,null,null,null,317,{"$f":"'Voc 1'!C320","v":"valeur d'un bien après une certaine durée d'utilisation"},{"$f":"'Voc 1'!D320","v":"valeur résiduelle"},{"$f":"'Voc 1'!E320","v":"résiduelle"}]
[null,null,null,null,null,null,null,null,null,null,null,null,null,null,null,null,318,{"$f":"'Voc 1'!C321","v":"Celui qui confectionne des paniers, corbeilles, sièges en rotin, paille ou osier."},{"$f":"'Voc 1'!D321","v":"vannier"},{"$f":"'Voc 1'!E321","v":"vannier"}]
[null,null,null,null,null,null,null,null,null,null,null,null,null,null,null,null,319,{"$f":"'Voc 1'!C322","v":"Transfère d'argent d'un compte sur un autre, sans mouvement d'espèce."},{"$f":"'Voc 1'!D322","v":"virement"},{"$f":"'Voc 1'!E322","v":"virement"}]
[null,null,null,null,null,null,null,null,null,null,null,null,null,null,null,null,320,{"$f":"'Voc 1'!C323","v":"Opération qui consiste à reporter un montant d'un compte dans un autre."},{"$f":"'Voc 1'!D323","v":"virement comptable"},{"$f":"'Voc 1'!E323","v":"virement"}]
[null,null,null,null,null,null,null,null,null,null,null,null,null,null,null,null,321,{"$f":"'Voc 1'!C324","v":"Livraison de marchandise pêle-mêle, sans emballage."},{"$f":"'Voc 1'!D324","v":"vrac"},{"$f":"'Voc 1'!E324","v":"vrac"}]
[null,null,null,null,null,null,null,null,null,null,null,null,null,null,null,null,322,{"$f":"'Voc 1'!C325","v":"Se dit des effets de commerce payables sur simple présentation. A ..."},{"$f":"'Voc 1'!D325","v":"à vue"},{"$f":"'Voc 1'!E325","v":"vue"}]
[null,null,null,null,null,null,null,null,null,null,null,null,null,null,null,null,323,{"$f":"'Voc 1'!C326","v":"Certificat d'entrepôt servant au nantissement de marchandises."},{"$f":"'Voc 1'!D326","v":"warrant"},{"$f":"'Voc 1'!E326","v":"warrant"}]
[null,null,null,null,null,null,null,null,null,null,null,null,null,null,null,null,324,{"$f":"'Voc 1'!C327","v":0},{"$f":"'Voc 1'!D327","v":0},{"$f":"'Voc 1'!E327","v":0}]
[null,null,null,null,null,null,null,null,null,null,null,null,null,null,null,null,325,{"$f":"'Voc 1'!C328","v":0},{"$f":"'Voc 1'!D328","v":0},{"$f":"'Voc 1'!E328","v":0}]
[null,null,null,null,null,null,null,null,null,null,null,null,null,null,null,null,326,{"$f":"'Voc 1'!C329","v":0},{"$f":"'Voc 1'!D329","v":0},{"$f":"'Voc 1'!E329","v":0}]
[null,null,null,null,null,null,null,null,null,null,null,null,null,null,null,null,327,{"$f":"'Voc 1'!C330","v":0},{"$f":"'Voc 1'!D330","v":0},{"$f":"'Voc 1'!E330","v":0}]
[null,null,null,null,null,null,null,null,null,null,null,null,null,null,null,null,328,{"$f":"'Voc 1'!C331","v":0},{"$f":"'Voc 1'!D331","v":0},{"$f":"'Voc 1'!E331","v":0}]
[null,null,null,null,null,null,null,null,null,null,null,null,null,null,null,null,329,{"$f":"'Voc 1'!C332","v":0},{"$f":"'Voc 1'!D332","v":0},{"$f":"'Voc 1'!E332","v":0}]
[null,null,null,null,null,null,null,null,null,null,null,null,null,null,null,null,330,{"$f":"'Voc 1'!C333","v":0},{"$f":"'Voc 1'!D333","v":0},{"$f":"'Voc 1'!E333","v":0}]
[null,null,null,null,null,null,null,null,null,null,null,null,null,null,null,null,331,{"$f":"'Voc 1'!C334","v":0},{"$f":"'Voc 1'!D334","v":0},{"$f":"'Voc 1'!E334","v":0}]
[null,null,null,null,null,null,null,null,null,null,null,null,null,null,null,null,332,{"$f":"'Voc 1'!C335","v":0},{"$f":"'Voc 1'!D335","v":0},{"$f":"'Voc 1'!E335","v":0}]
[null,null,null,null,null,null,null,null,null,null,null,null,null,null,null,null,333,{"$f":"'Voc 1'!C336","v":0},{"$f":"'Voc 1'!D336","v":0},{"$f":"'Voc 1'!E336","v":0}]
[null,null,null,null,null,null,null,null,null,null,null,null,null,null,null,null,334,{"$f":"'Voc 1'!C337","v":0},{"$f":"'Voc 1'!D337","v":0},{"$f":"'Voc 1'!E337","v":0}]
[null,null,null,null,null,null,null,null,null,null,null,null,null,null,null,null,335,{"$f":"'Voc 1'!C338","v":0},{"$f":"'Voc 1'!D338","v":0},{"$f":"'Voc 1'!E338","v":0}]
[null,null,null,null,null,null,null,null,null,null,null,null,null,null,null,null,336,{"$f":"'Voc 1'!C339","v":0},{"$f":"'Voc 1'!D339","v":0},{"$f":"'Voc 1'!E339","v":0}]
[null,null,null,null,null,null,null,null,null,null,null,null,null,null,null,null,337,{"$f":"'Voc 1'!C340","v":0},{"$f":"'Voc 1'!D340","v":0},{"$f":"'Voc 1'!E340","v":0}]
[null,null,null,null,null,null,null,null,null,null,null,null,null,null,null,null,338,{"$f":"'Voc 1'!C341","v":0},{"$f":"'Voc 1'!D341","v":0},{"$f":"'Voc 1'!E341","v":0}]
[null,null,null,null,null,null,null,null,null,null,null,null,null,null,null,null,339,{"$f":"'Voc 1'!C342","v":0},{"$f":"'Voc 1'!D342","v":0},{"$f":"'Voc 1'!E342","v":0}]
[null,null,null,null,null,null,null,null,null,null,null,null,null,null,null,null,340,{"$f":"'Voc 1'!C343","v":0},{"$f":"'Voc 1'!D343","v":0},{"$f":"'Voc 1'!E343","v":0}]
[null,null,null,null,null,null,null,null,null,null,null,null,null,null,null,null,341,{"$f":"'Voc 1'!C344","v":0},{"$f":"'Voc 1'!D344","v":0},{"$f":"'Voc 1'!E344","v":0}]
[null,null,null,null,null,null,null,null,null,null,null,null,null,null,null,null,342,{"$f":"'Voc 1'!C345","v":0},{"$f":"'Voc 1'!D345","v":0},{"$f":"'Voc 1'!E345","v":0}]
[null,null,null,null,null,null,null,null,null,null,null,null,null,null,null,null,343,{"$f":"'Voc 1'!C346","v":0},{"$f":"'Voc 1'!D346","v":0},{"$f":"'Voc 1'!E346","v":0}]
[null,null,null,null,null,null,null,null,null,null,null,null,null,null,null,null,344,{"$f":"'Voc 1'!C347","v":0},{"$f":"'Voc 1'!D347","v":0},{"$f":"'Voc 1'!E347","v":0}]
[null,null,null,null,null,null,null,null,null,null,null,null,null,null,null,null,345,{"$f":"'Voc 1'!C348","v":0},{"$f":"'Voc 1'!D348","v":0},{"$f":"'Voc 1'!E348","v":0}]
[null,null,null,null,null,null,null,null,null,null,null,null,null,null,null,null,346,{"$f":"'Voc 1'!C349","v":0},{"$f":"'Voc 1'!D349","v":0},{"$f":"'Voc 1'!E349","v":0}]
[null,null,null,null,null,null,null,null,null,null,null,null,null,null,null,null,347,{"$f":"'Voc 1'!C350","v":0},{"$f":"'Voc 1'!D350","v":0},{"$f":"'Voc 1'!E350","v":0}]
[null,null,null,null,null,null,null,null,null,null,null,null,null,null,null,null,348,{"$f":"'Voc 1'!C351","v":0},{"$f":"'Voc 1'!D351","v":0},{"$f":"'Voc 1'!E351","v":0}]
[null,null,null,null,null,null,null,null,null,null,null,null,null,null,null,null,349,{"$f":"'Voc 1'!C352","v":0},{"$f":"'Voc 1'!D352","v":0},{"$f":"'Voc 1'!E352","v":0}]
[null,null,null,null,null,null,null,null,null,null,null,null,null,null,null,null,350,{"$f":"'Voc 1'!C353","v":0},{"$f":"'Voc 1'!D353","v":0},{"$f":"'Voc 1'!E353","v":0}]
[null,null,null,null,null,null,null,null,null,null,null,null,null,null,null,null,351,{"$f":"'Voc 1'!C354","v":0},{"$f":"'Voc 1'!D354","v":0},{"$f":"'Voc 1'!E354","v":0}]
[null,null,null,null,null,null,null,null,null,null,null,null,null,null,null,null,352,{"$f":"'Voc 1'!C355","v":0},{"$f":"'Voc 1'!D355","v":0},{"$f":"'Voc 1'!E355","v":0}]
[null,null,null,null,null,null,null,null,null,null,null,null,null,null,null,null,353,{"$f":"'Voc 1'!C356","v":0},{"$f":"'Voc 1'!D356","v":0},{"$f":"'Voc 1'!E356","v":0}]
[null,null,null,null,null,null,null,null,null,null,null,null,null,null,null,null,354,{"$f":"'Voc 1'!C357","v":0},{"$f":"'Voc 1'!D357","v":0},{"$f":"'Voc 1'!E357","v":0}]
[null,null,null,null,null,null,null,null,null,null,null,null,null,null,null,null,355,{"$f":"'Voc 1'!C358","v":0},{"$f":"'Voc 1'!D358","v":0},{"$f":"'Voc 1'!E358","v":0}]
[null,null,null,null,null,null,null,null,null,null,null,null,null,null,null,null,356,{"$f":"'Voc 1'!C359","v":0},{"$f":"'Voc 1'!D359","v":0},{"$f":"'Voc 1'!E359","v":0}]
[null,null,null,null,null,null,null,null,null,null,null,null,null,null,null,null,357,{"$f":"'Voc 1'!C360","v":0},{"$f":"'Voc 1'!D360","v":0},{"$f":"'Voc 1'!E360","v":0}]
[null,null,null,null,null,null,null,null,null,null,null,null,null,null,null,null,358,{"$f":"'Voc 1'!C361","v":0},{"$f":"'Voc 1'!D361","v":0},{"$f":"'Voc 1'!E361","v":0}]
[null,null,null,null,null,null,null,null,null,null,null,null,null,null,null,null,359,{"$f":"'Voc 1'!C362","v":0},{"$f":"'Voc 1'!D362","v":0},{"$f":"'Voc 1'!E362","v":0}]
[null,null,null,null,null,null,null,null,null,null,null,null,null,null,null,null,360,{"$f":"'Voc 1'!C363","v":0},{"$f":"'Voc 1'!D363","v":0},{"$f":"'Voc 1'!E363","v":0}]
[null,null,null,null,null,null,null,null,null,null,null,null,null,null,null,null,361,{"$f":"'Voc 1'!C364","v":0},{"$f":"'Voc 1'!D364","v":0},{"$f":"'Voc 1'!E364","v":0}]
[null,null,null,null,null,null,null,null,null,null,null,null,null,null,null,null,362,{"$f":"'Voc 1'!C365","v":0},{"$f":"'Voc 1'!D365","v":0},{"$f":"'Voc 1'!E365","v":0}]
[null,null,null,null,null,null,null,null,null,null,null,null,null,null,null,null,363,{"$f":"'Voc 1'!C366","v":0},{"$f":"'Voc 1'!D366","v":0},{"$f":"'Voc 1'!E366","v":0}]
[null,null,null,null,null,null,null,null,null,null,null,null,null,null,null,null,364,{"$f":"'Voc 1'!C367","v":0},{"$f":"'Voc 1'!D367","v":0},{"$f":"'Voc 1'!E367","v":0}]
[null,null,null,null,null,null,null,null,null,null,null,null,null,null,null,null,365,{"$f":"'Voc 1'!C368","v":0},{"$f":"'Voc 1'!D368","v":0},{"$f":"'Voc 1'!E368","v":0}]
[null,null,null,null,null,null,null,null,null,null,null,null,null,null,null,null,366,{"$f":"'Voc 1'!C369","v":0},{"$f":"'Voc 1'!D369","v":0},{"$f":"'Voc 1'!E369","v":0}]
[null,null,null,null,null,null,null,null,null,null,null,null,null,null,null,null,367,{"$f":"'Voc 1'!C370","v":0},{"$f":"'Voc 1'!D370","v":0},{"$f":"'Voc 1'!E370","v":0}]
[null,null,null,null,null,null,null,null,null,null,null,null,null,null,null,null,368,{"$f":"'Voc 1'!C371","v":0},{"$f":"'Voc 1'!D371","v":0},{"$f":"'Voc 1'!E371","v":0}]
[null,null,null,null,null,null,null,null,null,null,null,null,null,null,null,null,369,{"$f":"'Voc 1'!C372","v":0},{"$f":"'Voc 1'!D372","v":0},{"$f":"'Voc 1'!E372","v":0}]
[null,null,null,null,null,null,null,null,null,null,null,null,null,null,null,null,370,{"$f":"'Voc 1'!C373","v":0},{"$f":"'Voc 1'!D373","v":0},{"$f":"'Voc 1'!E373","v":0}]
[null,null,null,null,null,null,null,null,null,null,null,null,null,null,null,null,371,{"$f":"'Voc 1'!C374","v":0},{"$f":"'Voc 1'!D374","v":0},{"$f":"'Voc 1'!E374","v":0}]
[null,null,null,null,null,null,null,null,null,null,null,null,null,null,null,null,372,{"$f":"'Voc 1'!C375","v":0},{"$f":"'Voc 1'!D375","v":0},{"$f":"'Voc 1'!E375","v":0}]
[null,null,null,null,null,null,null,null,null,null,null,null,null,null,null,null,373,{"$f":"'Voc 1'!C376","v":0},{"$f":"'Voc 1'!D376","v":0},{"$f":"'Voc 1'!E376","v":0}]
[null,null,null,null,null,null,null,null,null,null,null,null,null,null,null,null,374,{"$f":"'Voc 1'!C377","v":0},{"$f":"'Voc 1'!D377","v":0},{"$f":"'Voc 1'!E377","v":0}]
[null,null,null,null,null,null,null,null,null,null,null,null,null,null,null,null,375,{"$f":"'Voc 1'!C378","v":0},{"$f":"'Voc 1'!D378","v":0},{"$f":"'Voc 1'!E378","v":0}]
[null,null,null,null,null,null,null,null,null,null,null,null,null,null,null,null,376,{"$f":"'Voc 1'!C379","v":0},{"$f":"'Voc 1'!D379","v":0},{"$f":"'Voc 1'!E379","v":0}]
[null,null,null,null,null,null,null,null,null,null,null,null,null,null,null,null,377,{"$f":"'Voc 1'!C380","v":0},{"$f":"'Voc 1'!D380","v":0},{"$f":"'Voc 1'!E380","v":0}]
[null,null,null,null,null,null,null,null,null,null,null,null,null,null,null,null,378,{"$f":"'Voc 1'!C381","v":0},{"$f":"'Voc 1'!D381","v":0},{"$f":"'Voc 1'!E381","v":0}]
[null,null,null,null,null,null,null,null,null,null,null,null,null,null,null,null,379,{"$f":"'Voc 1'!C382","v":0},{"$f":"'Voc 1'!D382","v":0},{"$f":"'Voc 1'!E382","v":0}]
[null,null,null,null,null,null,null,null,null,null,null,null,null,null,null,null,380,{"$f":"'Voc 1'!C383","v":0},{"$f":"'Voc 1'!D383","v":0},{"$f":"'Voc 1'!E383","v":0}]
[null,null,null,null,null,null,null,null,null,null,null,null,null,null,null,null,381,{"$f":"'Voc 1'!C384","v":0},{"$f":"'Voc 1'!D384","v":0},{"$f":"'Voc 1'!E384","v":0}]
[null,null,null,null,null,null,null,null,null,null,null,null,null,null,null,null,382,{"$f":"'Voc 1'!C385","v":0},{"$f":"'Voc 1'!D385","v":0},{"$f":"'Voc 1'!E385","v":0}]
[null,null,null,null,null,null,null,null,null,null,null,null,null,null,null,null,383,{"$f":"'Voc 1'!C386","v":0},{"$f":"'Voc 1'!D386","v":0},{"$f":"'Voc 1'!E386","v":0}]
[null,null,null,null,null,null,null,null,null,null,null,null,null,null,null,null,384,{"$f":"'Voc 1'!C387","v":0},{"$f":"'Voc 1'!D387","v":0},{"$f":"'Voc 1'!E387","v":0}]
[null,null,null,null,null,null,null,null,null,null,null,null,null,null,null,null,385,{"$f":"'Voc 1'!C388","v":0},{"$f":"'Voc 1'!D388","v":0},{"$f":"'Voc 1'!E388","v":0}]
[null,null,null,null,null,null,null,null,null,null,null,null,null,null,null,null,386,{"$f":"'Voc 1'!C389","v":0},{"$f":"'Voc 1'!D389","v":0},{"$f":"'Voc 1'!E389","v":0}]
[null,null,null,null,null,null,null,null,null,null,null,null,null,null,null,null,387,{"$f":"'Voc 1'!C390","v":0},{"$f":"'Voc 1'!D390","v":0},{"$f":"'Voc 1'!E390","v":0}]
[null,null,null,null,null,null,null,null,null,null,null,null,null,null,null,null,388,{"$f":"'Voc 1'!C391","v":0},{"$f":"'Voc 1'!D391","v":0},{"$f":"'Voc 1'!E391","v":0}]
[null,null,null,null,null,null,null,null,null,null,null,null,null,null,null,null,389,{"$f":"'Voc 1'!C392","v":0},{"$f":"'Voc 1'!D392","v":0},{"$f":"'Voc 1'!E392","v":0}]
[null,null,null,null,null,null,null,null,null,null,null,null,null,null,null,null,390,{"$f":"'Voc 1'!C393","v":0},{"$f":"'Voc 1'!D393","v":0},{"$f":"'Voc 1'!E393","v":0}]
[null,null,null,null,null,null,null,null,null,null,null,null,null,null,null,null,391,{"$f":"'Voc 1'!C394","v":0},{"$f":"'Voc 1'!D394","v":0},{"$f":"'Voc 1'!E394","v":0}]
[null,null,null,null,null,null,null,null,null,null,null,null,null,null,null,null,392,{"$f":"'Voc 1'!C395","v":0},{"$f":"'Voc 1'!D395","v":0},{"$f":"'Voc 1'!E395","v":0}]
[null,null,null,null,null,null,null,null,null,null,null,null,null,null,null,null,393,{"$f":"'Voc 1'!C396","v":0},{"$f":"'Voc 1'!D396","v":0},{"$f":"'Voc 1'!E396","v":0}]
[null,null,null,null,null,null,null,null,null,null,null,null,null,null,null,null,394,{"$f":"'Voc 1'!C397","v":0},{"$f":"'Voc 1'!D397","v":0},{"$f":"'Voc 1'!E397","v":0}]
[null,null,null,null,null,null,null,null,null,null,null,null,null,null,null,null,395,{"$f":"'Voc 1'!C398","v":0},{"$f":"'Voc 1'!D398","v":0},{"$f":"'Voc 1'!E398","v":0}]
[null,null,null,null,null,null,null,null,null,null,null,null,null,null,null,null,396,{"$f":"'Voc 1'!C399","v":0},{"$f":"'Voc 1'!D399","v":0},{"$f":"'Voc 1'!E399","v":0}]
[null,null,null,null,null,null,null,null,null,null,null,null,null,null,null,null,397,{"$f":"'Voc 1'!C400","v":0},{"$f":"'Voc 1'!D400","v":0},{"$f":"'Voc 1'!E400","v":0}]
[null,null,null,null,null,null,null,null,null,null,null,null,null,null,null,null,398,{"$f":"'Voc 1'!C401","v":0},{"$f":"'Voc 1'!D401","v":0},{"$f":"'Voc 1'!E401","v":0}]
[null,null,null,null,null,null,null,null,null,null,null,null,null,null,null,null,399,{"$f":"'Voc 1'!C402","v":0},{"$f":"'Voc 1'!D402","v":0},{"$f":"'Voc 1'!E402","v":0}]
[null,null,null,null,null,null,null,null,null,null,null,null,null,null,null,null,400,{"$f":"'Voc 1'!C403","v":0},{"$f":"'Voc 1'!D403","v":0},{"$f":"'Voc 1'!E403","v":0}]
[null,null,null,null,null,null,null,null,null,null,null,null,null,null,null,null,401,{"$f":"'Voc 1'!C404","v":0},{"$f":"'Voc 1'!D404","v":0},{"$f":"'Voc 1'!E404","v":0}]
[null,null,null,null,null,null,null,null,null,null,null,null,null,null,null,null,402,{"$f":"'Voc 1'!C405","v":0},{"$f":"'Voc 1'!D405","v":0},{"$f":"'Voc 1'!E405","v":0}]
[null,null,null,null,null,null,null,null,null,null,null,null,null,null,null,null,403,{"$f":"'Voc 1'!C406","v":0},{"$f":"'Voc 1'!D406","v":0},{"$f":"'Voc 1'!E406","v":0}]
[null,null,null,null,null,null,null,null,null,null,null,null,null,null,null,null,404,{"$f":"'Voc 1'!C407","v":0},{"$f":"'Voc 1'!D407","v":0},{"$f":"'Voc 1'!E407","v":0}]
[null,null,null,null,null,null,null,null,null,null,null,null,null,null,null,null,405,{"$f":"'Voc 1'!C408","v":0},{"$f":"'Voc 1'!D408","v":0},{"$f":"'Voc 1'!E408","v":0}]
[null,null,null,null,null,null,null,null,null,null,null,null,null,null,null,null,406,{"$f":"'Voc 1'!C409","v":0},{"$f":"'Voc 1'!D409","v":0},{"$f":"'Voc 1'!E409","v":0}]
[null,null,null,null,null,null,null,null,null,null,null,null,null,null,null,null,407,{"$f":"'Voc 1'!C410","v":0},{"$f":"'Voc 1'!D410","v":0},{"$f":"'Voc 1'!E410","v":0}]
[null,null,null,null,null,null,null,null,null,null,null,null,null,null,null,null,408,{"$f":"'Voc 1'!C411","v":0},{"$f":"'Voc 1'!D411","v":0},{"$f":"'Voc 1'!E411","v":0}]
[null,null,null,null,null,null,null,null,null,null,null,null,null,null,null,null,409,{"$f":"'Voc 1'!C412","v":0},{"$f":"'Voc 1'!D412","v":0},{"$f":"'Voc 1'!E412","v":0}]
[null,null,null,null,null,null,null,null,null,null,null,null,null,null,null,null,410,{"$f":"'Voc 1'!C413","v":0},{"$f":"'Voc 1'!D413","v":0},{"$f":"'Voc 1'!E413","v":0}]
[null,null,null,null,null,null,null,null,null,null,null,null,null,null,null,null,411,{"$f":"'Voc 1'!C414","v":0},{"$f":"'Voc 1'!D414","v":0},{"$f":"'Voc 1'!E414","v":0}]
[null,null,null,null,null,null,null,null,null,null,null,null,null,null,null,null,412,{"$f":"'Voc 1'!C415","v":0},{"$f":"'Voc 1'!D415","v":0},{"$f":"'Voc 1'!E415","v":0}]
[null,null,null,null,null,null,null,null,null,null,null,null,null,null,null,null,413,{"$f":"'Voc 1'!C416","v":0},{"$f":"'Voc 1'!D416","v":0},{"$f":"'Voc 1'!E416","v":0}]
[null,null,null,null,null,null,null,null,null,null,null,null,null,null,null,null,414,{"$f":"'Voc 1'!C417","v":0},{"$f":"'Voc 1'!D417","v":0},{"$f":"'Voc 1'!E417","v":0}]
[null,null,null,null,null,null,null,null,null,null,null,null,null,null,null,null,415,{"$f":"'Voc 1'!C418","v":0},{"$f":"'Voc 1'!D418","v":0},{"$f":"'Voc 1'!E418","v":0}]
[null,null,null,null,null,null,null,null,null,null,null,null,null,null,null,null,416,{"$f":"'Voc 1'!C419","v":0},{"$f":"'Voc 1'!D419","v":0},{"$f":"'Voc 1'!E419","v":0}]
[null,null,null,null,null,null,null,null,null,null,null,null,null,null,null,null,417,{"$f":"'Voc 1'!C420","v":0},{"$f":"'Voc 1'!D420","v":0},{"$f":"'Voc 1'!E420","v":0}]
[null,null,null,null,null,null,null,null,null,null,null,null,null,null,null,null,418,{"$f":"'Voc 1'!C421","v":0},{"$f":"'Voc 1'!D421","v":0},{"$f":"'Voc 1'!E421","v":0}]
[null,null,null,null,null,null,null,null,null,null,null,null,null,null,null,null,419,{"$f":"'Voc 1'!C422","v":0},{"$f":"'Voc 1'!D422","v":0},{"$f":"'Voc 1'!E422","v":0}]
[null,null,null,null,null,null,null,null,null,null,null,null,null,null,null,null,420,{"$f":"'Voc 1'!C423","v":0},{"$f":"'Voc 1'!D423","v":0},{"$f":"'Voc 1'!E423","v":0}]
[null,null,null,null,null,null,null,null,null,null,null,null,null,null,null,null,421,{"$f":"'Voc 1'!C424","v":0},{"$f":"'Voc 1'!D424","v":0},{"$f":"'Voc 1'!E424","v":0}]
[null,null,null,null,null,null,null,null,null,null,null,null,null,null,null,null,422,{"$f":"'Voc 1'!C425","v":0},{"$f":"'Voc 1'!D425","v":0},{"$f":"'Voc 1'!E425","v":0}]
[null,null,null,null,null,null,null,null,null,null,null,null,null,null,null,null,423,{"$f":"'Voc 1'!C426","v":0},{"$f":"'Voc 1'!D426","v":0},{"$f":"'Voc 1'!E426","v":0}]
[null,null,null,null,null,null,null,null,null,null,null,null,null,null,null,null,424,{"$f":"'Voc 1'!C427","v":0},{"$f":"'Voc 1'!D427","v":0},{"$f":"'Voc 1'!E427","v":0}]
[null,null,null,null,null,null,null,null,null,null,null,null,null,null,null,null,425,{"$f":"'Voc 1'!C428","v":0},{"$f":"'Voc 1'!D428","v":0},{"$f":"'Voc 1'!E428","v":0}]
[null,null,null,null,null,null,null,null,null,null,null,null,null,null,null,null,426,{"$f":"'Voc 1'!C429","v":0},{"$f":"'Voc 1'!D429","v":0},{"$f":"'Voc 1'!E429","v":0}]
[null,null,null,null,null,null,null,null,null,null,null,null,null,null,null,null,427,{"$f":"'Voc 1'!C430","v":0},{"$f":"'Voc 1'!D430","v":0},{"$f":"'Voc 1'!E430","v":0}]
[null,null,null,null,null,null,null,null,null,null,null,null,null,null,null,null,428,{"$f":"'Voc 1'!C431","v":0},{"$f":"'Voc 1'!D431","v":0},{"$f":"'Voc 1'!E431","v":0}]
[null,null,null,null,null,null,null,null,null,null,null,null,null,null,null,null,429,{"$f":"'Voc 1'!C432","v":0},{"$f":"'Voc 1'!D432","v":0},{"$f":"'Voc 1'!E432","v":0}]
[null,null,null,null,null,null,null,null,null,null,null,null,null,null,null,null,430,{"$f":"'Voc 1'!C433","v":0},{"$f":"'Voc 1'!D433","v":0},{"$f":"'Voc 1'!E433","v":0}]
[null,null,null,null,null,null,null,null,null,null,null,null,null,null,null,null,431,{"$f":"'Voc 1'!C434","v":0},{"$f":"'Voc 1'!D434","v":0},{"$f":"'Voc 1'!E434","v":0}]
[null,null,null,null,null,null,null,null,null,null,null,null,null,null,null,null,432,{"$f":"'Voc 1'!C435","v":0},{"$f":"'Voc 1'!D435","v":0},{"$f":"'Voc 1'!E435","v":0}]
[null,null,null,null,null,null,null,null,null,null,null,null,null,null,null,null,433,{"$f":"'Voc 1'!C436","v":0},{"$f":"'Voc 1'!D436","v":0},{"$f":"'Voc 1'!E436","v":0}]
[null,null,null,null,null,null,null,null,null,null,null,null,null,null,null,null,434,{"$f":"'Voc 1'!C437","v":0},{"$f":"'Voc 1'!D437","v":0},{"$f":"'Voc 1'!E437","v":0}]
[null,null,null,null,null,null,null,null,null,null,null,null,null,null,null,null,435,{"$f":"'Voc 1'!C438","v":0},{"$f":"'Voc 1'!D438","v":0},{"$f":"'Voc 1'!E438","v":0}]
[null,null,null,null,null,null,null,null,null,null,null,null,null,null,null,null,436,{"$f":"'Voc 1'!C439","v":0},{"$f":"'Voc 1'!D439","v":0},{"$f":"'Voc 1'!E439","v":0}]
[null,null,null,null,null,null,null,null,null,null,null,null,null,null,null,null,437,{"$f":"'Voc 1'!C440","v":0},{"$f":"'Voc 1'!D440","v":0},{"$f":"'Voc 1'!E440","v":0}]
[null,null,null,null,null,null,null,null,null,null,null,null,null,null,null,null,438,{"$f":"'Voc 1'!C441","v":0},{"$f":"'Voc 1'!D441","v":0},{"$f":"'Voc 1'!E441","v":0}]
[null,null,null,null,null,null,null,null,null,null,null,null,null,null,null,null,439,{"$f":"'Voc 1'!C442","v":0},{"$f":"'Voc 1'!D442","v":0},{"$f":"'Voc 1'!E442","v":0}]
[null,null,null,null,null,null,null,null,null,null,null,null,null,null,null,null,440,{"$f":"'Voc 1'!C443","v":0},{"$f":"'Voc 1'!D443","v":0},{"$f":"'Voc 1'!E443","v":0}]
[null,null,null,null,null,null,null,null,null,null,null,null,null,null,null,null,441,{"$f":"'Voc 1'!C444","v":0},{"$f":"'Voc 1'!D444","v":0},{"$f":"'Voc 1'!E444","v":0}]
[null,null,null,null,null,null,null,null,null,null,null,null,null,null,null,null,442,{"$f":"'Voc 1'!C445","v":0},{"$f":"'Voc 1'!D445","v":0},{"$f":"'Voc 1'!E445","v":0}]
[null,null,null,null,null,null,null,null,null,null,null,null,null,null,null,null,443,{"$f":"'Voc 1'!C446","v":0},{"$f":"'Voc 1'!D446","v":0},{"$f":"'Voc 1'!E446","v":0}]
[null,null,null,null,null,null,null,null,null,null,null,null,null,null,null,null,444,{"$f":"'Voc 1'!C447","v":0},{"$f":"'Voc 1'!D447","v":0},{"$f":"'Voc 1'!E447","v":0}]
[null,null,null,null,null,null,null,null,null,null,null,null,null,null,null,null,445,{"$f":"'Voc 1'!C448","v":0},{"$f":"'Voc 1'!D448","v":0},{"$f":"'Voc 1'!E448","v":0}]
[null,null,null,null,null,null,null,null,null,null,null,null,null,null,null,null,446,{"$f":"'Voc 1'!C449","v":0},{"$f":"'Voc 1'!D449","v":0},{"$f":"'Voc 1'!E449","v":0}]
[null,null,null,null,null,null,null,null,null,null,null,null,null,null,null,null,447,{"$f":"'Voc 1'!C450","v":0},{"$f":"'Voc 1'!D450","v":0},{"$f":"'Voc 1'!E450","v":0}]
[null,null,null,null,null,null,null,null,null,null,null,null,null,null,null,null,448,{"$f":"'Voc 1'!C451","v":0},{"$f":"'Voc 1'!D451","v":0},{"$f":"'Voc 1'!E451","v":0}]
[null,null,null,null,null,null,null,null,null,null,null,null,null,null,null,null,449,{"$f":"'Voc 1'!C452","v":0},{"$f":"'Voc 1'!D452","v":0},{"$f":"'Voc 1'!E452","v":0}]
[null,null,null,null,null,null,null,null,null,null,null,null,null,null,null,null,450,{"$f":"'Voc 1'!C453","v":0},{"$f":"'Voc 1'!D453","v":0},{"$f":"'Voc 1'!E453","v":0}]
[null,null,null,null,null,null,null,null,null,null,null,null,null,null,null,null,451,{"$f":"'Voc 1'!C454","v":0},{"$f":"'Voc 1'!D454","v":0},{"$f":"'Voc 1'!E454","v":0}]
[null,null,null,null,null,null,null,null,null,null,null,null,null,null,null,null,452,{"$f":"'Voc 1'!C455","v":0},{"$f":"'Voc 1'!D455","v":0},{"$f":"'Voc 1'!E455","v":0}]
[null,null,null,null,null,null,null,null,null,null,null,null,null,null,null,null,453,{"$f":"'Voc 1'!C456","v":0},{"$f":"'Voc 1'!D456","v":0},{"$f":"'Voc 1'!E456","v":0}]
[null,null,null,null,null,null,null,null,null,null,null,null,null,null,null,null,454,{"$f":"'Voc 1'!C457","v":0},{"$f":"'Voc 1'!D457","v":0},{"$f":"'Voc 1'!E457","v":0}]
[null,null,null,null,null,null,null,null,null,null,null,null,null,null,null,null,455,{"$f":"'Voc 1'!C458","v":0},{"$f":"'Voc 1'!D458","v":0},{"$f":"'Voc 1'!E458","v":0}]
[null,null,null,null,null,null,null,null,null,null,null,null,null,null,null,null,456,{"$f":"'Voc 1'!C459","v":0},{"$f":"'Voc 1'!D459","v":0},{"$f":"'Voc 1'!E459","v":0}]
[null,null,null,null,null,null,null,null,null,null,null,null,null,null,null,null,457,{"$f":"'Voc 1'!C460","v":0},{"$f":"'Voc 1'!D460","v":0},{"$f":"'Voc 1'!E460","v":0}]
[null,null,null,null,null,null,null,null,null,null,null,null,null,null,null,null,458,{"$f":"'Voc 1'!C461","v":0},{"$f":"'Voc 1'!D461","v":0},{"$f":"'Voc 1'!E461","v":0}]
[null,null,null,null,null,null,null,null,null,null,null,null,null,null,null,null,459,{"$f":"'Voc 1'!C462","v":0},{"$f":"'Voc 1'!D462","v":0},{"$f":"'Voc 1'!E462","v":0}]
[null,null,null,null,null,null,null,null,null,null,null,null,null,null,null,null,460,{"$f":"'Voc 1'!C463","v":0},{"$f":"'Voc 1'!D463","v":0},{"$f":"'Voc 1'!E463","v":0}]
[null,null,null,null,null,null,null,null,null,null,null,null,null,null,null,null,461,{"$f":"'Voc 1'!C464","v":0},{"$f":"'Voc 1'!D464","v":0},{"$f":"'Voc 1'!E464","v":0}]
[null,null,null,null,null,null,null,null,null,null,null,null,null,null,null,null,462,{"$f":"'Voc 1'!C465","v":0},{"$f":"'Voc 1'!D465","v":0},{"$f":"'Voc 1'!E465","v":0}]
[null,null,null,null,null,null,null,null,null,null,null,null,null,null,null,null,463,{"$f":"'Voc 1'!C466","v":0},{"$f":"'Voc 1'!D466","v":0},{"$f":"'Voc 1'!E466","v":0}]
[null,null,null,null,null,null,null,null,null,null,null,null,null,null,null,null,464,{"$f":"'Voc 1'!C467","v":0},{"$f":"'Voc 1'!D467","v":0},{"$f":"'Voc 1'!E467","v":0}]
[null,null,null,null,null,null,null,null,null,null,null,null,null,null,null,null,465,{"$f":"'Voc 1'!C468","v":0},{"$f":"'Voc 1'!D468","v":0},{"$f":"'Voc 1'!E468","v":0}]
[null,null,null,null,null,null,null,null,null,null,null,null,null,null,null,null,466,{"$f":"'Voc 1'!C469","v":0},{"$f":"'Voc 1'!D469","v":0},{"$f":"'Voc 1'!E469","v":0}]
[null,null,null,null,null,null,null,null,null,null,null,null,null,null,null,null,467,{"$f":"'Voc 1'!C470","v":0},{"$f":"'Voc 1'!D470","v":0},{"$f":"'Voc 1'!E470","v":0}]
[null,null,null,null,null,null,null,null,null,null,null,null,null,null,null,null,468,{"$f":"'Voc 1'!C471","v":0},{"$f":"'Voc 1'!D471","v":0},{"$f":"'Voc 1'!E471","v":0}]
[null,null,null,null,null,null,null,null,null,null,null,null,null,null,null,null,469,{"$f":"'Voc 1'!C472","v":0},{"$f":"'Voc 1'!D472","v":0},{"$f":"'Voc 1'!E472","v":0}]
[null,null,null,null,null,null,null,null,null,null,null,null,null,null,null,null,470,{"$f":"'Voc 1'!C473","v":0},{"$f":"'Voc 1'!D473","v":0},{"$f":"'Voc 1'!E473","v":0}]
[null,null,null,null,null,null,null,null,null,null,null,null,null,null,null,null,471,{"$f":"'Voc 1'!C474","v":0},{"$f":"'Voc 1'!D474","v":0},{"$f":"'Voc 1'!E474","v":0}]
[null,null,null,null,null,null,null,null,null,null,null,null,null,null,null,null,472,{"$f":"'Voc 1'!C475","v":0},{"$f":"'Voc 1'!D475","v":0},{"$f":"'Voc 1'!E475","v":0}]
[null,null,null,null,null,null,null,null,null,null,null,null,null,null,null,null,473,{"$f":"'Voc 1'!C476","v":0},{"$f":"'Voc 1'!D476","v":0},{"$f":"'Voc 1'!E476","v":0}]
[null,null,null,null,null,null,null,null,null,null,null,null,null,null,null,null,474,{"$f":"'Voc 1'!C477","v":0},{"$f":"'Voc 1'!D477","v":0},{"$f":"'Voc 1'!E477","v":0}]
[null,null,null,null,null,null,null,null,null,null,null,null,null,null,null,null,475,{"$f":"'Voc 1'!C478","v":0},{"$f":"'Voc 1'!D478","v":0},{"$f":"'Voc 1'!E478","v":0}]
[null,null,null,null,null,null,null,null,null,null,null,null,null,null,null,null,476,{"$f":"'Voc 1'!C479","v":0},{"$f":"'Voc 1'!D479","v":0},{"$f":"'Voc 1'!E479","v":0}]
[null,null,null,null,null,null,null,null,null,null,null,null,null,null,null,null,477,{"$f":"'Voc 1'!C480","v":0},{"$f":"'Voc 1'!D480","v":0},{"$f":"'Voc 1'!E480","v":0}]
[null,null,null,null,null,null,null,null,null,null,null,null,null,null,null,null,478,{"$f":"'Voc 1'!C481","v":0},{"$f":"'Voc 1'!D481","v":0},{"$f":"'Voc 1'!E481","v":0}]
[null,null,null,null,null,null,null,null,null,null,null,null,null,null,null,null,479,{"$f":"'Voc 1'!C482","v":0},{"$f":"'Voc 1'!D482","v":0},{"$f":"'Voc 1'!E482","v":0}]
[null,null,null,null,null,null,null,null,null,null,null,null,null,null,null,null,480,{"$f":"'Voc 1'!C483","v":0},{"$f":"'Voc 1'!D483","v":0},{"$f":"'Voc 1'!E483","v":0}]
[null,null,null,null,null,null,null,null,null,null,null,null,null,null,null,null,481,{"$f":"'Voc 1'!C484","v":0},{"$f":"'Voc 1'!D484","v":0},{"$f":"'Voc 1'!E484","v":0}]
[null,null,null,null,null,null,null,null,null,null,null,null,null,null,null,null,482,{"$f":"'Voc 1'!C485","v":0},{"$f":"'Voc 1'!D485","v":0},{"$f":"'Voc 1'!E485","v":0}]
[null,null,null,null,null,null,null,null,null,null,null,null,null,null,null,null,483,{"$f":"'Voc 1'!C486","v":0},{"$f":"'Voc 1'!D486","v":0},{"$f":"'Voc 1'!E486","v":0}]
[null,null,null,null,null,null,null,null,null,null,null,null,null,null,null,null,484,{"$f":"'Voc 1'!C487","v":0},{"$f":"'Voc 1'!D487","v":0},{"$f":"'Voc 1'!E487","v":0}]
[null,null,null,null,null,null,null,null,null,null,null,null,null,null,null,null,485,{"$f":"'Voc 1'!C488","v":0},{"$f":"'Voc 1'!D488","v":0},{"$f":"'Voc 1'!E488","v":0}]
[null,null,null,null,null,null,null,null,null,null,null,null,null,null,null,null,486,{"$f":"'Voc 1'!C489","v":0},{"$f":"'Voc 1'!D489","v":0},{"$f":"'Voc 1'!E489","v":0}]
[null,null,null,null,null,null,null,null,null,null,null,null,null,null,null,null,487,{"$f":"'Voc 1'!C490","v":0},{"$f":"'Voc 1'!D490","v":0},{"$f":"'Voc 1'!E490","v":0}]
[null,null,null,null,null,null,null,null,null,null,null,null,null,null,null,null,488,{"$f":"'Voc 1'!C491","v":0},{"$f":"'Voc 1'!D491","v":0},{"$f":"'Voc 1'!E491","v":0}]
[null,null,null,null,null,null,null,null,null,null,null,null,null,null,null,null,489,{"$f":"'Voc 1'!C492","v":0},{"$f":"'Voc 1'!D492","v":0},{"$f":"'Voc 1'!E492","v":0}]
[null,null,null,null,null,null,null,null,null,null,null,null,null,null,null,null,490,{"$f":"'Voc 1'!C493","v":0},{"$f":"'Voc 1'!D493","v":0},{"$f":"'Voc 1'!E493","v":0}]
[null,null,null,null,null,null,null,null,null,null,null,null,null,null,null,null,491,{"$f":"'Voc 1'!C494","v":0},{"$f":"'Voc 1'!D494","v":0},{"$f":"'Voc 1'!E494","v":0}]
[null,null,null,null,null,null,null,null,null,null,null,null,null,null,null,null,492,{"$f":"'Voc 1'!C495","v":0},{"$f":"'Voc 1'!D495","v":0},{"$f":"'Voc 1'!E495","v":0}]
[null,null,null,null,null,null,null,null,null,null,null,null,null,null,null,null,493,{"$f":"'Voc 1'!C496","v":0},{"$f":"'Voc 1'!D496","v":0},{"$f":"'Voc 1'!E496","v":0}]
[null,null,null,null,null,null,null,null,null,null,null,null,null,null,null,null,494,{"$f":"'Voc 1'!C497","v":0},{"$f":"'Voc 1'!D497","v":0},{"$f":"'Voc 1'!E497","v":0}]
[null,null,null,null,null,null,null,null,null,null,null,null,null,null,null,null,495,{"$f":"'Voc 1'!C498","v":0},{"$f":"'Voc 1'!D498","v":0},{"$f":"'Voc 1'!E498","v":0}]
[null,null,null,null,null,null,null,null,null,null,null,null,null,null,null,null,496,{"$f":"'Voc 1'!C499","v":0},{"$f":"'Voc 1'!D499","v":0},{"$f":"'Voc 1'!E499","v":0}]
[null,null,null,null,null,null,null,null,null,null,null,null,null,null,null,null,497,{"$f":"'Voc 1'!C500","v":0},{"$f":"'Voc 1'!D500","v":0},{"$f":"'Voc 1'!E500","v":0}]
[null,null,null,null,null,null,null,null,null,null,null,null,null,null,null,null,498,{"$f":"'Voc 1'!C501","v":0},{"$f":"'Voc 1'!D501","v":0},{"$f":"'Voc 1'!E501","v":0}]
[null,null,null,null,null,null,null,null,null,null,null,null,null,null,null,null,499,{"$f":"'Voc 1'!C502","v":0},{"$f":"'Voc 1'!D502","v":0},{"$f":"'Voc 1'!E502","v":0}]
[null,null,null,null,null,null,null,null,null,null,null,null,null,null,null,null,500,{"$f":"'Voc 1'!C503","v":0},{"$f":"'Voc 1'!D503","v":0},{"$f":"'Voc 1'!E503","v":0}]
[null,null,null,null,null,null,null,null,null,null,null,null,null,null,null,null,501]

{"sheet":"    Trouver le  mot  (Oral)","index":2,"n_rows":509,"n_cols":27,"rows_kept":509,"cut":false,"hidden":false,"merged":[[24,22,24,24],[18,22,18,24],[19,22,19,24],[20,22,20,24],[21,22,21,24],[23,22,23,24],[14,22,14,24],[15,22,15,24],[16,22,16,24],[17,22,17,24],[22,22,22,24],[1,10,1,11],[13,2,13,3],[38,0,38,2],[38,10,38,11],[31,8,31,9],[9,2,9,10],[14,2,14,10],[16,0,16,2],[24,5,25,9]]}
[null,null,null,null,null,null,null,null,null,null,null,null,null,null,null,null,null,null,null,null,null,"Solution :"]
[null,null,null,null,null,null,null,null,null,null,null,null,null,null,null,null,null,null,null,null,null,{"$f":"VLOOKUP(B10,Zonevoc,3)","v":"Cris des animaux"}]
[]
[]
[null,null,null,null,null,null,null,null,null,null,null,null,null,null,null,{"$f":"INDEX(P16:P25,P7)","v":"Voc 4"},"Nombre de question :",null,{"$f":"500-COUNTIF(R8:R508,\"=0\")","v":54},0,true,8]
[null,null,null,null,null,null,null,null,null,null,null,null,null,null,null,null,null,null,null,null,null,{"$f":"COUNTIF(V9:V508,\"=1\")","v":0},"total juste"]
[null,null,null,null,null,null,null,null,null,null,null,null,null,null,null,4,"no","Questions","Réponses","Réponses pour test",null,null,null,null,"Test réponse"]
[null,null,null,null,null,null,null,null,null,null,null,null,null,null,null,"Cellule liée",0,{"$f":"'Voc 4'!C3","v":"Cris des animaux"},{"$f":"R8","v":"Cris des animaux"},{"$f":"'Voc 4'!E3","v":0}]
[null,null,"Question :",null,null,null,null,null,null,null,null,null,null,null,null,null,1,{"$f":"'Voc 4'!C4","v":" le petit chien ... ?"},{"$f":"'Voc 4'!D4","v":"jappe"},{"$f":"'Voc 4'!E4","v":"jappe"},"  ",null,null,null,"Réponse E","contenu"]
[null,0,{"$f":"VLOOKUP(B10,Zonevoc,2)","v":"Cris des animaux"},null,null,null,null,null,null,null,null,null,null,null,null,null,2,{"$f":"'Voc 4'!C5","v":" le crocodile ... ?"},{"$f":"'Voc 4'!D5","v":"vagit"},{"$f":"'Voc 4'!E5","v":"vagit"},null,null,null,null,{"$f":"F25","v":0},{"$f":"SEARCH(VLOOKUP(B10,Zonevoc,4),Y10)","v":1},{"$f":"IF(ISERR(Z10)=TRUE,0,1)","v":1}]
[null,null,null,null,null,null,null,null,null,null,null,null,null,null,null,null,3,{"$f":"'Voc 4'!C6","v":" l'éléphant ... ?"},{"$f":"'Voc 4'!D6","v":"barrit"},{"$f":"'Voc 4'!E6","v":"barrit"}]
[null,null,null,null,null,null,null,null,null,null,null,null,null,null,null,null,4,{"$f":"'Voc 4'!C7","v":" la fourmi ... ?"},{"$f":"'Voc 4'!D7","v":"croonde"},{"$f":"'Voc 4'!E7","v":"croonde"},null,null,{"$f":"B10","v":0},null,{"$f":"B10","v":0}]
[null,null,null,null,null,null,null,null,null,null,null,null,null,null,null,null,5,{"$f":"'Voc 4'!C8","v":" le lapin ... ?"},{"$f":"'Voc 4'!D8","v":"clapit"},{"$f":"'Voc 4'!E8","v":"clapit"}]
[null,null,"Mot à trouver :",null,null,null,null,null,null,null,null,null,null,null,null,null,6,{"$f":"'Voc 4'!C9","v":" la grenouille ... ?"},{"$f":"'Voc 4'!D9","v":"coasse"},{"$f":"'Voc 4'!E9","v":"coasse"}]
[null,50,{"$f":"VLOOKUP(B15,Zonevoc,3)","v":"coasse"},null,null,null,null,null,null,null,null,null,null,null,null,"Nom des onglets",7,{"$f":"'Voc 4'!C10","v":" le lièvre ... ?"},{"$f":"'Voc 4'!D10","v":"vagit"},{"$f":"'Voc 4'!E10","v":"vagit"},null,null,"Nom des voc"]
[null,null,null,null,null,null,null,null,null,null,null,null,null,null,null,"Voc 1",8,{"$f":"'Voc 4'!C11","v":" le lion ... ?"},{"$f":"'Voc 4'!D11","v":"rugit"},{"$f":"'Voc 4'!E11","v":"rugit"},null,null,{"$f":"'Voc 1'!$C$3","v":"Vocabulaire économique"}]
["      Question suivante     ",null,null,null,null,null,null,null,null,null,"Nombre de tirages :",null,null,null,null,"Voc 2",9,{"$f":"'Voc 4'!C12","v":" le loup ... ?"},{"$f":"'Voc 4'!D12","v":"hurle"},{"$f":"'Voc 4'!E12","v":"hurle"},null,null,{"$f":"'Voc 2'!$C$3","v":"Voc. abscons !"}]
[" +",null,null,null,null,null,null,null,null,null,{"$f":"V6","v":0},null,null,null,null,"Voc 3",10,{"$f":"'Voc 4'!C13","v":" l'ours ... ?"},{"$f":"'Voc 4'!D13","v":"grogne"},{"$f":"'Voc 4'!E13","v":"grogne"},null,null,{"$f":"'Voc 3'!$C$3","v":"Voc Louis"}]
[null,1,null,null,null,null,null,null,null,null,null,null,null,null,null,"Voc 4",11,{"$f":"'Voc 4'!C14","v":" le renard ... ?"},{"$f":"'Voc 4'!D14","v":"glapit"},{"$f":"'Voc 4'!E14","v":"glapit"},null,null,{"$f":"'Voc 4'!$C$3","v":"Cris des animaux"}]
[null,null,null,null,null,null,null,null,null,null,null,null,null,null,null,"Voc 5",12,{"$f":"'Voc 4'!C15","v":" le porc ... ?"},{"$f":"'Voc 4'!D15","v":"grogne"},{"$f":"'Voc 4'!E15","v":"grogne"},null,null,{"$f":"'Voc 5'!$C$3","v":"Hommes et femmes "}]
[null,null,null,null,null,null,null,null,null,null,null,null,null,null,null,"Voc 6",13,{"$f":"'Voc 4'!C16","v":" le sanglier ... ?"},{"$f":"'Voc 4'!D16","v":"grommelle"},{"$f":"'Voc 4'!E16","v":"grommelle"},null,null,{"$f":"'Voc 6'!$C$3","v":"Architecture"}]
["-",null,null,null,null,null,null,null,null,null,null,null,null,null,null,"Voc 7",14,{"$f":"'Voc 4'!C17","v":" le serpent ... ?"},{"$f":"'Voc 4'!D17","v":"siffle"},{"$f":"'Voc 4'!E17","v":"siffle"},null,null,{"$f":"'Voc 7'!$C$3","v":"Anglais de base"}]
[null,null,null,null,null,null,null,null,null,null,null,null,null,null,null,"Voc 8",15,{"$f":"'Voc 4'!C18","v":" la souris ... ?"},{"$f":"'Voc 4'!D18","v":"chicote"},{"$f":"'Voc 4'!E18","v":"chicote"},null,null,{"$f":"'Voc 8'!$C$3","v":"Anglais commercial"}]
[null,null,null,null,null,null,null,null,null,null,null,null,null,null,null,"Voc 9",16,{"$f":"'Voc 4'!C19","v":" le tigre ... ?"},{"$f":"'Voc 4'!D19","v":"feule"},{"$f":"'Voc 4'!E19","v":"feule"},null,null,{"$f":"'Voc 9'!$C$3","v":"Vide"}]
[null,null,null,{"$f":"IF(U5=TRUE,LEFT(V2,1),\"\")","v":"C"},null,null,null,null,null,null,null,null,null,null,null,"Voc 10",17,{"$f":"'Voc 4'!C20","v":" l'aigle ... ?"},{"$f":"'Voc 4'!D20","v":"glatit"},{"$f":"'Voc 4'!E20","v":"glatit"},null,null,{"$f":"'Voc 10'!$C$3","v":"Vide"}]
[null,null,null,null,null,null,null,null,null,null,null,null,null,null,null,null,18,{"$f":"'Voc 4'!C21","v":" l'alouette ... ?"},{"$f":"'Voc 4'!D21","v":"tirelire"},{"$f":"'Voc 4'!E21","v":"tirelire"}]
[null,null,null,null,null,null,null,null,null,null,null,null,null,null,null,null,19,{"$f":"'Voc 4'!C22","v":" la bécasse ... ?"},{"$f":"'Voc 4'!D22","v":"croule"},{"$f":"'Voc 4'!E22","v":"croule"}]
[null,null,null,null,null,null,null,null,null,null,null,null,null,null,null,null,20,{"$f":"'Voc 4'!C23","v":" la caille ... ?"},{"$f":"'Voc 4'!D23","v":"courcaille"},{"$f":"'Voc 4'!E23","v":"courcaille"}]
[null,null,null,null,null,null,null,null,null,null,null,null,null,null,null,null,21,{"$f":"'Voc 4'!C24","v":" le cannard ... ?"},{"$f":"'Voc 4'!D24","v":"cancane"},{"$f":"'Voc 4'!E24","v":"cancane"}]
[null,null,null,null,null,null,null,null,null,null,null,null,null,null,null,null,22,{"$f":"'Voc 4'!C25","v":" la chouette ... ?"},{"$f":"'Voc 4'!D25","v":"ulule"},{"$f":"'Voc 4'!E25","v":"ulule"}]
[null,null,null,null,null,null,null,null,null,null,"   Remettre dans le tirage",null,null,null,null,null,23,{"$f":"'Voc 4'!C26","v":" le coq ... ?"},{"$f":"'Voc 4'!D26","v":"coquerique"},{"$f":"'Voc 4'!E26","v":"coquerique"}]
[null,null,"Ctrl s = voir solution",null,null,null,null,null,"Tirage au sort ",null,"   la question  no :",null,null,null,null,null,24,{"$f":"'Voc 4'!C27","v":" la colombe ... ?"},{"$f":"'Voc 4'!D27","v":"roucoule"},{"$f":"'Voc 4'!E27","v":"roucoule"}]
[null,null,"Ctrl w = cacher la zone solution",null,null,"Zoom",null,null,"entre :",1,{"$f":"B10","v":0},null,null,null,null,null,25,{"$f":"'Voc 4'!C28","v":" le corbeau ... ?"},{"$f":"'Voc 4'!D28","v":"croasse"},{"$f":"'Voc 4'!E28","v":"croasse"}]
[null,null,"Ctrl r = tirage au sort",null,null,null,null,null,"et :",{"$f":"J35","v":54},null,null,null,null,null,null,26,{"$f":"'Voc 4'!C29","v":" le coucou ... ?"},{"$f":"'Voc 4'!D29","v":"coucoule"},{"$f":"'Voc 4'!E29","v":"coucoule"}]
[null,null,null,null,null,100,null,null,"maximum :",{"$f":"S5","v":54},null,null,null,null,null,null,27,{"$f":"'Voc 4'!C30","v":" le dindon ... ?"},{"$f":"'Voc 4'!D30","v":"glougloute"},{"$f":"'Voc 4'!E30","v":"glougloute"}]
[null,null,null,null,null,null,null,null,null,null,null,null,null,null,null,null,28,{"$f":"'Voc 4'!C31","v":" la grue ... ?"},{"$f":"'Voc 4'!D31","v":"craque"},{"$f":"'Voc 4'!E31","v":"craque"}]
[null,null,null,null,null,null,null,null,null,null,null,null,null,null,null,null,29,{"$f":"'Voc 4'!C32","v":" le hibou ... ?"},{"$f":"'Voc 4'!D32","v":"hue"},{"$f":"'Voc 4'!E32","v":"hue"}]
[null,null,null,null,null,null,null,null,null,null,null,null,null,null,null,null,30,{"$f":"'Voc 4'!C33","v":" l'hirondelle ... ?"},{"$f":"'Voc 4'!D33","v":"trisse"},{"$f":"'Voc 4'!E33","v":"trisse"}]
[{"$f":"Entrée!I42","v":"        Version 28.11.02/27.11.14"},null,null,null,null,null,null,null,null,null,"© Y. Péguiron  ",null,null,null,null,null,31,{"$f":"'Voc 4'!C34","v":" la huppe ... ?"},{"$f":"'Voc 4'!D34","v":"pupule"},{"$f":"'Voc 4'!E34","v":"pupule"}]
[null,null,null,null,null,null,null,null,null,null,null,null,null,null,null,null,32,{"$f":"'Voc 4'!C35","v":" le merle ... ?"},{"$f":"'Voc 4'!D35","v":"flûte"},{"$f":"'Voc 4'!E35","v":"flûte"}]
[null,null,null,null,null,null,null,null,null,null,null,null,null,null,null,null,33,{"$f":"'Voc 4'!C36","v":" le moineau ... ?"},{"$f":"'Voc 4'!D36","v":"pépie"},{"$f":"'Voc 4'!E36","v":"pépie"}]
[null,null,null,null,null,null,null,null,null,null,null,null,null,null,null,null,34,{"$f":"'Voc 4'!C37","v":" l'oie ... ?"},{"$f":"'Voc 4'!D37","v":"cacarde"},{"$f":"'Voc 4'!E37","v":"cacarde"}]
[null,null,null,null,null,null,null,null,null,null,null,null,null,null,null,null,35,{"$f":"'Voc 4'!C38","v":" la pie ... ?"},{"$f":"'Voc 4'!D38","v":"jacasse"},{"$f":"'Voc 4'!E38","v":"jacasse"}]
[null,null,null,null,null,null,null,null,null,null,null,null,null,null,null,null,36,{"$f":"'Voc 4'!C39","v":" le pigeon ... ?"},{"$f":"'Voc 4'!D39","v":"roucoule"},{"$f":"'Voc 4'!E39","v":"roucoule"}]
[null,null,null,null,null,null,null,null,null,null,null,null,null,null,null,null,37,{"$f":"'Voc 4'!C40","v":" la poule ... ?"},{"$f":"'Voc 4'!D40","v":"glousse"},{"$f":"'Voc 4'!E40","v":"glousse"}]
[null,null,null,null,null,null,null,null,null,null,null,null,null,null,null,null,38,{"$f":"'Voc 4'!C41","v":" le rossignol ... ?"},{"$f":"'Voc 4'!D41","v":"gringotte"},{"$f":"'Voc 4'!E41","v":"gringotte"}]
[null,null,null,null,null,null,null,null,null,null,null,null,null,null,null,null,39,{"$f":"'Voc 4'!C42","v":" l'abeille ... ?"},{"$f":"'Voc 4'!D42","v":"bourdonne"},{"$f":"'Voc 4'!E42","v":"bourdonne"}]
[null,null,null,null,null,null,null,null,null,null,null,null,null,null,null,null,40,{"$f":"'Voc 4'!C43","v":" la cigale ... ?"},{"$f":"'Voc 4'!D43","v":"stridule"},{"$f":"'Voc 4'!E43","v":"stridule"}]
[null,null,null,null,null,null,null,null,null,null,null,null,null,null,null,null,41,{"$f":"'Voc 4'!C44","v":" le grillon ... ?"},{"$f":"'Voc 4'!D44","v":"grésille"},{"$f":"'Voc 4'!E44","v":"grésille"}]
[null,null,null,null,null,null,null,null,null,null,null,null,null,null,null,null,42,{"$f":"'Voc 4'!C45","v":" le chat ... ?"},{"$f":"'Voc 4'!D45","v":"miaule"},{"$f":"'Voc 4'!E45","v":"miaule"}]
[null,null,null,null,null,null,null,null,null,null,null,null,null,null,null,null,43,{"$f":"'Voc 4'!C46","v":" le chameau ... ?"},{"$f":"'Voc 4'!D46","v":"blatère"},{"$f":"'Voc 4'!E46","v":"blatère"}]
[null,null,null,null,null,null,null,null,null,null,null,null,null,null,null,null,44,{"$f":"'Voc 4'!C47","v":" le chien ... ?"},{"$f":"'Voc 4'!D47","v":"aboie"},{"$f":"'Voc 4'!E47","v":"aboie"}]
[null,null,null,null,null,null,null,null,null,null,null,null,null,null,null,null,45,{"$f":"'Voc 4'!C48","v":" le cheval ... ?"},{"$f":"'Voc 4'!D48","v":"hennit"},{"$f":"'Voc 4'!E48","v":"hennit"}]
[null,null,null,null,null,null,null,null,null,null,null,null,null,null,null,null,46,{"$f":"'Voc 4'!C49","v":" la vache... ?"},{"$f":"'Voc 4'!D49","v":"meugle"},{"$f":"'Voc 4'!E49","v":"meugle"}]
[null,null,null,null,null,null,null,null,null,null,null,null,null,null,null,null,47,{"$f":"'Voc 4'!C50","v":"Cris d'animaux !!!: le nouveau-né ... ?"},{"$f":"'Voc 4'!D50","v":"vagit"},{"$f":"'Voc 4'!E50","v":"vagit"}]
[null,null,null,null,null,null,null,null,null,null,null,null,null,null,null,null,48,{"$f":"'Voc 4'!C51","v":" la chèvre ... ?"},{"$f":"'Voc 4'!D51","v":"bêle"},{"$f":"'Voc 4'!E51","v":"bêle"}]
[null,null,null,null,null,null,null,null,null,null,null,null,null,null,null,null,49,{"$f":"'Voc 4'!C52","v":" l'âne... ?"},{"$f":"'Voc 4'!D52","v":"brait"},{"$f":"'Voc 4'!E52","v":"brait"}]
[null,null,null,null,null,null,null,null,null,null,null,null,null,null,null,null,50,{"$f":"'Voc 4'!C53","v":" la grenouille ... ?"},{"$f":"'Voc 4'!D53","v":"coasse"},{"$f":"'Voc 4'!E53","v":"coasse"}]
[null,null,null,null,null,null,null,null,null,null,null,null,null,null,null,null,51,{"$f":"'Voc 4'!C54","v":" le mouton ... ?"},{"$f":"'Voc 4'!D54","v":"bêle"},{"$f":"'Voc 4'!E54","v":"bêle"}]
[null,null,null,null,null,null,null,null,null,null,null,null,null,null,null,null,52,{"$f":"'Voc 4'!C55","v":" le buffle ... ?"},{"$f":"'Voc 4'!D55","v":"souffle"},{"$f":"'Voc 4'!E55","v":"souffle"}]
[null,null,null,null,null,null,null,null,null,null,null,null,null,null,null,null,53,{"$f":"'Voc 4'!C56","v":" le cerf ... ?"},{"$f":"'Voc 4'!D56","v":"brame"},{"$f":"'Voc 4'!E56","v":"brame"}]
[null,null,null,null,null,null,null,null,null,null,null,null,null,null,null,null,54,{"$f":"'Voc 4'!C57","v":" le rhinocéros ... ?"},{"$f":"'Voc 4'!D57","v":"barète"},{"$f":"'Voc 4'!E57","v":"barète"}]
[null,null,null,null,null,null,null,null,null,null,null,null,null,null,null,null,55,{"$f":"'Voc 4'!C58","v":0},{"$f":"'Voc 4'!D58","v":0},{"$f":"'Voc 4'!E58","v":0}]
[null,null,null,null,null,null,null,null,null,null,null,null,null,null,null,null,56,{"$f":"'Voc 4'!C59","v":0},{"$f":"'Voc 4'!D59","v":0},{"$f":"'Voc 4'!E59","v":0}]
[null,null,null,null,null,null,null,null,null,null,null,null,null,null,null,null,57,{"$f":"'Voc 4'!C60","v":0},{"$f":"'Voc 4'!D60","v":0},{"$f":"'Voc 4'!E60","v":0}]
[null,null,null,null,null,null,null,null,null,null,null,null,null,null,null,null,58,{"$f":"'Voc 4'!C61","v":0},{"$f":"'Voc 4'!D61","v":0},{"$f":"'Voc 4'!E61","v":0}]
[null,null,null,null,null,null,null,null,null,null,null,null,null,null,null,null,59,{"$f":"'Voc 4'!C62","v":0},{"$f":"'Voc 4'!D62","v":0},{"$f":"'Voc 4'!E62","v":0}]
[null,null,null,null,null,null,null,null,null,null,null,null,null,null,null,null,60,{"$f":"'Voc 4'!C63","v":0},{"$f":"'Voc 4'!D63","v":0},{"$f":"'Voc 4'!E63","v":0}]
[null,null,null,null,null,null,null,null,null,null,null,null,null,null,null,null,61,{"$f":"'Voc 4'!C64","v":0},{"$f":"'Voc 4'!D64","v":0},{"$f":"'Voc 4'!E64","v":0}]
[null,null,null,null,null,null,null,null,null,null,null,null,null,null,null,null,62,{"$f":"'Voc 4'!C65","v":0},{"$f":"'Voc 4'!D65","v":0},{"$f":"'Voc 4'!E65","v":0}]
[null,null,null,null,null,null,null,null,null,null,null,null,null,null,null,null,63,{"$f":"'Voc 4'!C66","v":0},{"$f":"'Voc 4'!D66","v":0},{"$f":"'Voc 4'!E66","v":0}]
[null,null,null,null,null,null,null,null,null,null,null,null,null,null,null,null,64,{"$f":"'Voc 4'!C67","v":0},{"$f":"'Voc 4'!D67","v":0},{"$f":"'Voc 4'!E67","v":0}]
[null,null,null,null,null,null,null,null,null,null,null,null,null,null,null,null,65,{"$f":"'Voc 4'!C68","v":0},{"$f":"'Voc 4'!D68","v":0},{"$f":"'Voc 4'!E68","v":0}]
[null,null,null,null,null,null,null,null,null,null,null,null,null,null,null,null,66,{"$f":"'Voc 4'!C69","v":0},{"$f":"'Voc 4'!D69","v":0},{"$f":"'Voc 4'!E69","v":0}]
[null,null,null,null,null,null,null,null,null,null,null,null,null,null,null,null,67,{"$f":"'Voc 4'!C70","v":0},{"$f":"'Voc 4'!D70","v":0},{"$f":"'Voc 4'!E70","v":0}]
[null,null,null,null,null,null,null,null,null,null,null,null,null,null,null,null,68,{"$f":"'Voc 4'!C71","v":0},{"$f":"'Voc 4'!D71","v":0},{"$f":"'Voc 4'!E71","v":0}]
[null,null,null,null,null,null,null,null,null,null,null,null,null,null,null,null,69,{"$f":"'Voc 4'!C72","v":0},{"$f":"'Voc 4'!D72","v":0},{"$f":"'Voc 4'!E72","v":0}]
[null,null,null,null,null,null,null,null,null,null,null,null,null,null,null,null,70,{"$f":"'Voc 4'!C73","v":0},{"$f":"'Voc 4'!D73","v":0},{"$f":"'Voc 4'!E73","v":0}]
[null,null,null,null,null,null,null,null,null,null,null,null,null,null,null,null,71,{"$f":"'Voc 4'!C74","v":0},{"$f":"'Voc 4'!D74","v":0},{"$f":"'Voc 4'!E74","v":0}]
[null,null,null,null,null,null,null,null,null,null,null,null,null,null,null,null,72,{"$f":"'Voc 4'!C75","v":0},{"$f":"'Voc 4'!D75","v":0},{"$f":"'Voc 4'!E75","v":0}]
[null,null,null,null,null,null,null,null,null,null,null,null,null,null,null,null,73,{"$f":"'Voc 4'!C76","v":0},{"$f":"'Voc 4'!D76","v":0},{"$f":"'Voc 4'!E76","v":0}]
[null,null,null,null,null,null,null,null,null,null,null,null,null,null,null,null,74,{"$f":"'Voc 4'!C77","v":0},{"$f":"'Voc 4'!D77","v":0},{"$f":"'Voc 4'!E77","v":0}]
[null,null,null,null,null,null,null,null,null,null,null,null,null,null,null,null,75,{"$f":"'Voc 4'!C78","v":0},{"$f":"'Voc 4'!D78","v":0},{"$f":"'Voc 4'!E78","v":0}]
[null,null,null,null,null,null,null,null,null,null,null,null,null,null,null,null,76,{"$f":"'Voc 4'!C79","v":0},{"$f":"'Voc 4'!D79","v":0},{"$f":"'Voc 4'!E79","v":0}]
[null,null,null,null,null,null,null,null,null,null,null,null,null,null,null,null,77,{"$f":"'Voc 4'!C80","v":0},{"$f":"'Voc 4'!D80","v":0},{"$f":"'Voc 4'!E80","v":0}]
[null,null,null,null,null,null,null,null,null,null,null,null,null,null,null,null,78,{"$f":"'Voc 4'!C81","v":0},{"$f":"'Voc 4'!D81","v":0},{"$f":"'Voc 4'!E81","v":0}]
[null,null,null,null,null,null,null,null,null,null,null,null,null,null,null,null,79,{"$f":"'Voc 4'!C82","v":0},{"$f":"'Voc 4'!D82","v":0},{"$f":"'Voc 4'!E82","v":0}]
[null,null,null,null,null,null,null,null,null,null,null,null,null,null,null,null,80,{"$f":"'Voc 4'!C83","v":0},{"$f":"'Voc 4'!D83","v":0},{"$f":"'Voc 4'!E83","v":0}]
[null,null,null,null,null,null,null,null,null,null,null,null,null,null,null,null,81,{"$f":"'Voc 4'!C84","v":0},{"$f":"'Voc 4'!D84","v":0},{"$f":"'Voc 4'!E84","v":0}]
[null,null,null,null,null,null,null,null,null,null,null,null,null,null,null,null,82,{"$f":"'Voc 4'!C85","v":0},{"$f":"'Voc 4'!D85","v":0},{"$f":"'Voc 4'!E85","v":0}]
[null,null,null,null,null,null,null,null,null,null,null,null,null,null,null,null,83,{"$f":"'Voc 4'!C86","v":0},{"$f":"'Voc 4'!D86","v":0},{"$f":"'Voc 4'!E86","v":0}]
[null,null,null,null,null,null,null,null,null,null,null,null,null,null,null,null,84,{"$f":"'Voc 4'!C87","v":0},{"$f":"'Voc 4'!D87","v":0},{"$f":"'Voc 4'!E87","v":0}]
[null,null,null,null,null,null,null,null,null,null,null,null,null,null,null,null,85,{"$f":"'Voc 4'!C88","v":0},{"$f":"'Voc 4'!D88","v":0},{"$f":"'Voc 4'!E88","v":0}]
[null,null,null,null,null,null,null,null,null,null,null,null,null,null,null,null,86,{"$f":"'Voc 4'!C89","v":0},{"$f":"'Voc 4'!D89","v":0},{"$f":"'Voc 4'!E89","v":0}]
[null,null,null,null,null,null,null,null,null,null,null,null,null,null,null,null,87,{"$f":"'Voc 4'!C90","v":0},{"$f":"'Voc 4'!D90","v":0},{"$f":"'Voc 4'!E90","v":0}]
[null,null,null,null,null,null,null,null,null,null,null,null,null,null,null,null,88,{"$f":"'Voc 4'!C91","v":0},{"$f":"'Voc 4'!D91","v":0},{"$f":"'Voc 4'!E91","v":0}]
[null,null,null,null,null,null,null,null,null,null,null,null,null,null,null,null,89,{"$f":"'Voc 4'!C92","v":0},{"$f":"'Voc 4'!D92","v":0},{"$f":"'Voc 4'!E92","v":0}]
[null,null,null,null,null,null,null,null,null,null,null,null,null,null,null,null,90,{"$f":"'Voc 4'!C93","v":0},{"$f":"'Voc 4'!D93","v":0},{"$f":"'Voc 4'!E93","v":0}]
[null,null,null,null,null,null,null,null,null,null,null,null,null,null,null,null,91,{"$f":"'Voc 4'!C94","v":0},{"$f":"'Voc 4'!D94","v":0},{"$f":"'Voc 4'!E94","v":0}]
[null,null,null,null,null,null,null,null,null,null,null,null,null,null,null,null,92,{"$f":"'Voc 4'!C95","v":0},{"$f":"'Voc 4'!D95","v":0},{"$f":"'Voc 4'!E95","v":0}]
[null,null,null,null,null,null,null,null,null,null,null,null,null,null,null,null,93,{"$f":"'Voc 4'!C96","v":0},{"$f":"'Voc 4'!D96","v":0},{"$f":"'Voc 4'!E96","v":0}]
[null,null,null,null,null,null,null,null,null,null,null,null,null,null,null,null,94,{"$f":"'Voc 4'!C97","v":0},{"$f":"'Voc 4'!D97","v":0},{"$f":"'Voc 4'!E97","v":0}]
[null,null,null,null,null,null,null,null,null,null,null,null,null,null,null,null,95,{"$f":"'Voc 4'!C98","v":0},{"$f":"'Voc 4'!D98","v":0},{"$f":"'Voc 4'!E98","v":0}]
[null,null,null,null,null,null,null,null,null,null,null,null,null,null,null,null,96,{"$f":"'Voc 4'!C99","v":0},{"$f":"'Voc 4'!D99","v":0},{"$f":"'Voc 4'!E99","v":0}]
[null,null,null,null,null,null,null,null,null,null,null,null,null,null,null,null,97,{"$f":"'Voc 4'!C100","v":0},{"$f":"'Voc 4'!D100","v":0},{"$f":"'Voc 4'!E100","v":0}]
[null,null,null,null,null,null,null,null,null,null,null,null,null,null,null,null,98,{"$f":"'Voc 4'!C101","v":0},{"$f":"'Voc 4'!D101","v":0},{"$f":"'Voc 4'!E101","v":0}]
[null,null,null,null,null,null,null,null,null,null,null,null,null,null,null,null,99,{"$f":"'Voc 4'!C102","v":0},{"$f":"'Voc 4'!D102","v":0},{"$f":"'Voc 4'!E102","v":0}]
[null,null,null,null,null,null,null,null,null,null,null,null,null,null,null,null,100,{"$f":"'Voc 4'!C103","v":0},{"$f":"'Voc 4'!D103","v":0},{"$f":"'Voc 4'!E103","v":0}]
[null,null,null,null,null,null,null,null,null,null,null,null,null,null,null,null,101,{"$f":"'Voc 4'!C104","v":0},{"$f":"'Voc 4'!D104","v":0},{"$f":"'Voc 4'!E104","v":0}]
[null,null,null,null,null,null,null,null,null,null,null,null,null,null,null,null,102,{"$f":"'Voc 4'!C105","v":0},{"$f":"'Voc 4'!D105","v":0},{"$f":"'Voc 4'!E105","v":0}]
[null,null,null,null,null,null,null,null,null,null,null,null,null,null,null,null,103,{"$f":"'Voc 4'!C106","v":0},{"$f":"'Voc 4'!D106","v":0},{"$f":"'Voc 4'!E106","v":0}]
[null,null,null,null,null,null,null,null,null,null,null,null,null,null,null,null,104,{"$f":"'Voc 4'!C107","v":0},{"$f":"'Voc 4'!D107","v":0},{"$f":"'Voc 4'!E107","v":0}]
[null,null,null,null,null,null,null,null,null,null,null,null,null,null,null,null,105,{"$f":"'Voc 4'!C108","v":0},{"$f":"'Voc 4'!D108","v":0},{"$f":"'Voc 4'!E108","v":0}]
[null,null,null,null,null,null,null,null,null,null,null,null,null,null,null,null,106,{"$f":"'Voc 4'!C109","v":0},{"$f":"'Voc 4'!D109","v":0},{"$f":"'Voc 4'!E109","v":0}]
[null,null,null,null,null,null,null,null,null,null,null,null,null,null,null,null,107,{"$f":"'Voc 4'!C110","v":0},{"$f":"'Voc 4'!D110","v":0},{"$f":"'Voc 4'!E110","v":0}]
[null,null,null,null,null,null,null,null,null,null,null,null,null,null,null,null,108,{"$f":"'Voc 4'!C111","v":0},{"$f":"'Voc 4'!D111","v":0},{"$f":"'Voc 4'!E111","v":0}]
[null,null,null,null,null,null,null,null,null,null,null,null,null,null,null,null,109,{"$f":"'Voc 4'!C112","v":0},{"$f":"'Voc 4'!D112","v":0},{"$f":"'Voc 4'!E112","v":0}]
[null,null,null,null,null,null,null,null,null,null,null,null,null,null,null,null,110,{"$f":"'Voc 4'!C113","v":0},{"$f":"'Voc 4'!D113","v":0},{"$f":"'Voc 4'!E113","v":0}]
[null,null,null,null,null,null,null,null,null,null,null,null,null,null,null,null,111,{"$f":"'Voc 4'!C114","v":0},{"$f":"'Voc 4'!D114","v":0},{"$f":"'Voc 4'!E114","v":0}]
[null,null,null,null,null,null,null,null,null,null,null,null,null,null,null,null,112,{"$f":"'Voc 4'!C115","v":0},{"$f":"'Voc 4'!D115","v":0},{"$f":"'Voc 4'!E115","v":0}]
[null,null,null,null,null,null,null,null,null,null,null,null,null,null,null,null,113,{"$f":"'Voc 4'!C116","v":0},{"$f":"'Voc 4'!D116","v":0},{"$f":"'Voc 4'!E116","v":0}]
[null,null,null,null,null,null,null,null,null,null,null,null,null,null,null,null,114,{"$f":"'Voc 4'!C117","v":0},{"$f":"'Voc 4'!D117","v":0},{"$f":"'Voc 4'!E117","v":0}]
[null,null,null,null,null,null,null,null,null,null,null,null,null,null,null,null,115,{"$f":"'Voc 4'!C118","v":0},{"$f":"'Voc 4'!D118","v":0},{"$f":"'Voc 4'!E118","v":0}]
[null,null,null,null,null,null,null,null,null,null,null,null,null,null,null,null,116,{"$f":"'Voc 4'!C119","v":0},{"$f":"'Voc 4'!D119","v":0},{"$f":"'Voc 4'!E119","v":0}]
[null,null,null,null,null,null,null,null,null,null,null,null,null,null,null,null,117,{"$f":"'Voc 4'!C120","v":0},{"$f":"'Voc 4'!D120","v":0},{"$f":"'Voc 4'!E120","v":0}]
[null,null,null,null,null,null,null,null,null,null,null,null,null,null,null,null,118,{"$f":"'Voc 4'!C121","v":0},{"$f":"'Voc 4'!D121","v":0},{"$f":"'Voc 4'!E121","v":0}]
[null,null,null,null,null,null,null,null,null,null,null,null,null,null,null,null,119,{"$f":"'Voc 4'!C122","v":0},{"$f":"'Voc 4'!D122","v":0},{"$f":"'Voc 4'!E122","v":0}]
[null,null,null,null,null,null,null,null,null,null,null,null,null,null,null,null,120,{"$f":"'Voc 4'!C123","v":0},{"$f":"'Voc 4'!D123","v":0},{"$f":"'Voc 4'!E123","v":0}]
[null,null,null,null,null,null,null,null,null,null,null,null,null,null,null,null,121,{"$f":"'Voc 4'!C124","v":0},{"$f":"'Voc 4'!D124","v":0},{"$f":"'Voc 4'!E124","v":0}]
[null,null,null,null,null,null,null,null,null,null,null,null,null,null,null,null,122,{"$f":"'Voc 4'!C125","v":0},{"$f":"'Voc 4'!D125","v":0},{"$f":"'Voc 4'!E125","v":0}]
[null,null,null,null,null,null,null,null,null,null,null,null,null,null,null,null,123,{"$f":"'Voc 4'!C126","v":0},{"$f":"'Voc 4'!D126","v":0},{"$f":"'Voc 4'!E126","v":0}]
[null,null,null,null,null,null,null,null,null,null,null,null,null,null,null,null,124,{"$f":"'Voc 4'!C127","v":0},{"$f":"'Voc 4'!D127","v":0},{"$f":"'Voc 4'!E127","v":0}]
[null,null,null,null,null,null,null,null,null,null,null,null,null,null,null,null,125,{"$f":"'Voc 4'!C128","v":0},{"$f":"'Voc 4'!D128","v":0},{"$f":"'Voc 4'!E128","v":0}]
[null,null,null,null,null,null,null,null,null,null,null,null,null,null,null,null,126,{"$f":"'Voc 4'!C129","v":0},{"$f":"'Voc 4'!D129","v":0},{"$f":"'Voc 4'!E129","v":0}]
[null,null,null,null,null,null,null,null,null,null,null,null,null,null,null,null,127,{"$f":"'Voc 4'!C130","v":0},{"$f":"'Voc 4'!D130","v":0},{"$f":"'Voc 4'!E130","v":0}]
[null,null,null,null,null,null,null,null,null,null,null,null,null,null,null,null,128,{"$f":"'Voc 4'!C131","v":0},{"$f":"'Voc 4'!D131","v":0},{"$f":"'Voc 4'!E131","v":0}]
[null,null,null,null,null,null,null,null,null,null,null,null,null,null,null,null,129,{"$f":"'Voc 4'!C132","v":0},{"$f":"'Voc 4'!D132","v":0},{"$f":"'Voc 4'!E132","v":0}]
[null,null,null,null,null,null,null,null,null,null,null,null,null,null,null,null,130,{"$f":"'Voc 4'!C133","v":0},{"$f":"'Voc 4'!D133","v":0},{"$f":"'Voc 4'!E133","v":0}]
[null,null,null,null,null,null,null,null,null,null,null,null,null,null,null,null,131,{"$f":"'Voc 4'!C134","v":0},{"$f":"'Voc 4'!D134","v":0},{"$f":"'Voc 4'!E134","v":0}]
[null,null,null,null,null,null,null,null,null,null,null,null,null,null,null,null,132,{"$f":"'Voc 4'!C135","v":0},{"$f":"'Voc 4'!D135","v":0},{"$f":"'Voc 4'!E135","v":0}]
[null,null,null,null,null,null,null,null,null,null,null,null,null,null,null,null,133,{"$f":"'Voc 4'!C136","v":0},{"$f":"'Voc 4'!D136","v":0},{"$f":"'Voc 4'!E136","v":0}]
[null,null,null,null,null,null,null,null,null,null,null,null,null,null,null,null,134,{"$f":"'Voc 4'!C137","v":0},{"$f":"'Voc 4'!D137","v":0},{"$f":"'Voc 4'!E137","v":0}]
[null,null,null,null,null,null,null,null,null,null,null,null,null,null,null,null,135,{"$f":"'Voc 4'!C138","v":0},{"$f":"'Voc 4'!D138","v":0},{"$f":"'Voc 4'!E138","v":0}]
[null,null,null,null,null,null,null,null,null,null,null,null,null,null,null,null,136,{"$f":"'Voc 4'!C139","v":0},{"$f":"'Voc 4'!D139","v":0},{"$f":"'Voc 4'!E139","v":0}]
[null,null,null,null,null,null,null,null,null,null,null,null,null,null,null,null,137,{"$f":"'Voc 4'!C140","v":0},{"$f":"'Voc 4'!D140","v":0},{"$f":"'Voc 4'!E140","v":0}]
[null,null,null,null,null,null,null,null,null,null,null,null,null,null,null,null,138,{"$f":"'Voc 4'!C141","v":0},{"$f":"'Voc 4'!D141","v":0},{"$f":"'Voc 4'!E141","v":0}]
[null,null,null,null,null,null,null,null,null,null,null,null,null,null,null,null,139,{"$f":"'Voc 4'!C142","v":0},{"$f":"'Voc 4'!D142","v":0},{"$f":"'Voc 4'!E142","v":0}]
[null,null,null,null,null,null,null,null,null,null,null,null,null,null,null,null,140,{"$f":"'Voc 4'!C143","v":0},{"$f":"'Voc 4'!D143","v":0},{"$f":"'Voc 4'!E143","v":0}]
[null,null,null,null,null,null,null,null,null,null,null,null,null,null,null,null,141,{"$f":"'Voc 4'!C144","v":0},{"$f":"'Voc 4'!D144","v":0},{"$f":"'Voc 4'!E144","v":0}]
[null,null,null,null,null,null,null,null,null,null,null,null,null,null,null,null,142,{"$f":"'Voc 4'!C145","v":0},{"$f":"'Voc 4'!D145","v":0},{"$f":"'Voc 4'!E145","v":0}]
[null,null,null,null,null,null,null,null,null,null,null,null,null,null,null,null,143,{"$f":"'Voc 4'!C146","v":0},{"$f":"'Voc 4'!D146","v":0},{"$f":"'Voc 4'!E146","v":0}]
[null,null,null,null,null,null,null,null,null,null,null,null,null,null,null,null,144,{"$f":"'Voc 4'!C147","v":0},{"$f":"'Voc 4'!D147","v":0},{"$f":"'Voc 4'!E147","v":0}]
[null,null,null,null,null,null,null,null,null,null,null,null,null,null,null,null,145,{"$f":"'Voc 4'!C148","v":0},{"$f":"'Voc 4'!D148","v":0},{"$f":"'Voc 4'!E148","v":0}]
[null,null,null,null,null,null,null,null,null,null,null,null,null,null,null,null,146,{"$f":"'Voc 4'!C149","v":0},{"$f":"'Voc 4'!D149","v":0},{"$f":"'Voc 4'!E149","v":0}]
[null,null,null,null,null,null,null,null,null,null,null,null,null,null,null,null,147,{"$f":"'Voc 4'!C150","v":0},{"$f":"'Voc 4'!D150","v":0},{"$f":"'Voc 4'!E150","v":0}]
[null,null,null,null,null,null,null,null,null,null,null,null,null,null,null,null,148,{"$f":"'Voc 4'!C151","v":0},{"$f":"'Voc 4'!D151","v":0},{"$f":"'Voc 4'!E151","v":0}]
[null,null,null,null,null,null,null,null,null,null,null,null,null,null,null,null,149,{"$f":"'Voc 4'!C152","v":0},{"$f":"'Voc 4'!D152","v":0},{"$f":"'Voc 4'!E152","v":0}]
[null,null,null,null,null,null,null,null,null,null,null,null,null,null,null,null,150,{"$f":"'Voc 4'!C153","v":0},{"$f":"'Voc 4'!D153","v":0},{"$f":"'Voc 4'!E153","v":0}]
[null,null,null,null,null,null,null,null,null,null,null,null,null,null,null,null,151,{"$f":"'Voc 4'!C154","v":0},{"$f":"'Voc 4'!D154","v":0},{"$f":"'Voc 4'!E154","v":0}]
[null,null,null,null,null,null,null,null,null,null,null,null,null,null,null,null,152,{"$f":"'Voc 4'!C155","v":0},{"$f":"'Voc 4'!D155","v":0},{"$f":"'Voc 4'!E155","v":0}]
[null,null,null,null,null,null,null,null,null,null,null,null,null,null,null,null,153,{"$f":"'Voc 4'!C156","v":0},{"$f":"'Voc 4'!D156","v":0},{"$f":"'Voc 4'!E156","v":0}]
[null,null,null,null,null,null,null,null,null,null,null,null,null,null,null,null,154,{"$f":"'Voc 4'!C157","v":0},{"$f":"'Voc 4'!D157","v":0},{"$f":"'Voc 4'!E157","v":0}]
[null,null,null,null,null,null,null,null,null,null,null,null,null,null,null,null,155,{"$f":"'Voc 4'!C158","v":0},{"$f":"'Voc 4'!D158","v":0},{"$f":"'Voc 4'!E158","v":0}]
[null,null,null,null,null,null,null,null,null,null,null,null,null,null,null,null,156,{"$f":"'Voc 4'!C159","v":0},{"$f":"'Voc 4'!D159","v":0},{"$f":"'Voc 4'!E159","v":0}]
[null,null,null,null,null,null,null,null,null,null,null,null,null,null,null,null,157,{"$f":"'Voc 4'!C160","v":0},{"$f":"'Voc 4'!D160","v":0},{"$f":"'Voc 4'!E160","v":0}]
[null,null,null,null,null,null,null,null,null,null,null,null,null,null,null,null,158,{"$f":"'Voc 4'!C161","v":0},{"$f":"'Voc 4'!D161","v":0},{"$f":"'Voc 4'!E161","v":0}]
[null,null,null,null,null,null,null,null,null,null,null,null,null,null,null,null,159,{"$f":"'Voc 4'!C162","v":0},{"$f":"'Voc 4'!D162","v":0},{"$f":"'Voc 4'!E162","v":0}]
[null,null,null,null,null,null,null,null,null,null,null,null,null,null,null,null,160,{"$f":"'Voc 4'!C163","v":0},{"$f":"'Voc 4'!D163","v":0},{"$f":"'Voc 4'!E163","v":0}]
[null,null,null,null,null,null,null,null,null,null,null,null,null,null,null,null,161,{"$f":"'Voc 4'!C164","v":0},{"$f":"'Voc 4'!D164","v":0},{"$f":"'Voc 4'!E164","v":0}]
[null,null,null,null,null,null,null,null,null,null,null,null,null,null,null,null,162,{"$f":"'Voc 4'!C165","v":0},{"$f":"'Voc 4'!D165","v":0},{"$f":"'Voc 4'!E165","v":0}]
[null,null,null,null,null,null,null,null,null,null,null,null,null,null,null,null,163,{"$f":"'Voc 4'!C166","v":0},{"$f":"'Voc 4'!D166","v":0},{"$f":"'Voc 4'!E166","v":0}]
[null,null,null,null,null,null,null,null,null,null,null,null,null,null,null,null,164,{"$f":"'Voc 4'!C167","v":0},{"$f":"'Voc 4'!D167","v":0},{"$f":"'Voc 4'!E167","v":0}]
[null,null,null,null,null,null,null,null,null,null,null,null,null,null,null,null,165,{"$f":"'Voc 4'!C168","v":0},{"$f":"'Voc 4'!D168","v":0},{"$f":"'Voc 4'!E168","v":0}]
[null,null,null,null,null,null,null,null,null,null,null,null,null,null,null,null,166,{"$f":"'Voc 4'!C169","v":0},{"$f":"'Voc 4'!D169","v":0},{"$f":"'Voc 4'!E169","v":0}]
[null,null,null,null,null,null,null,null,null,null,null,null,null,null,null,null,167,{"$f":"'Voc 4'!C170","v":0},{"$f":"'Voc 4'!D170","v":0},{"$f":"'Voc 4'!E170","v":0}]
[null,null,null,null,null,null,null,null,null,null,null,null,null,null,null,null,168,{"$f":"'Voc 4'!C171","v":0},{"$f":"'Voc 4'!D171","v":0},{"$f":"'Voc 4'!E171","v":0}]
[null,null,null,null,null,null,null,null,null,null,null,null,null,null,null,null,169,{"$f":"'Voc 4'!C172","v":0},{"$f":"'Voc 4'!D172","v":0},{"$f":"'Voc 4'!E172","v":0}]
[null,null,null,null,null,null,null,null,null,null,null,null,null,null,null,null,170,{"$f":"'Voc 4'!C173","v":0},{"$f":"'Voc 4'!D173","v":0},{"$f":"'Voc 4'!E173","v":0}]
[null,null,null,null,null,null,null,null,null,null,null,null,null,null,null,null,171,{"$f":"'Voc 4'!C174","v":0},{"$f":"'Voc 4'!D174","v":0},{"$f":"'Voc 4'!E174","v":0}]
[null,null,null,null,null,null,null,null,null,null,null,null,null,null,null,null,172,{"$f":"'Voc 4'!C175","v":0},{"$f":"'Voc 4'!D175","v":0},{"$f":"'Voc 4'!E175","v":0}]
[null,null,null,null,null,null,null,null,null,null,null,null,null,null,null,null,173,{"$f":"'Voc 4'!C176","v":0},{"$f":"'Voc 4'!D176","v":0},{"$f":"'Voc 4'!E176","v":0}]
[null,null,null,null,null,null,null,null,null,null,null,null,null,null,null,null,174,{"$f":"'Voc 4'!C177","v":0},{"$f":"'Voc 4'!D177","v":0},{"$f":"'Voc 4'!E177","v":0}]
[null,null,null,null,null,null,null,null,null,null,null,null,null,null,null,null,175,{"$f":"'Voc 4'!C178","v":0},{"$f":"'Voc 4'!D178","v":0},{"$f":"'Voc 4'!E178","v":0}]
[null,null,null,null,null,null,null,null,null,null,null,null,null,null,null,null,176,{"$f":"'Voc 4'!C179","v":0},{"$f":"'Voc 4'!D179","v":0},{"$f":"'Voc 4'!E179","v":0}]
[null,null,null,null,null,null,null,null,null,null,null,null,null,null,null,null,177,{"$f":"'Voc 4'!C180","v":0},{"$f":"'Voc 4'!D180","v":0},{"$f":"'Voc 4'!E180","v":0}]
[null,null,null,null,null,null,null,null,null,null,null,null,null,null,null,null,178,{"$f":"'Voc 4'!C181","v":0},{"$f":"'Voc 4'!D181","v":0},{"$f":"'Voc 4'!E181","v":0}]
[null,null,null,null,null,null,null,null,null,null,null,null,null,null,null,null,179,{"$f":"'Voc 4'!C182","v":0},{"$f":"'Voc 4'!D182","v":0},{"$f":"'Voc 4'!E182","v":0}]
[null,null,null,null,null,null,null,null,null,null,null,null,null,null,null,null,180,{"$f":"'Voc 4'!C183","v":0},{"$f":"'Voc 4'!D183","v":0},{"$f":"'Voc 4'!E183","v":0}]
[null,null,null,null,null,null,null,null,null,null,null,null,null,null,null,null,181,{"$f":"'Voc 4'!C184","v":0},{"$f":"'Voc 4'!D184","v":0},{"$f":"'Voc 4'!E184","v":0}]
[null,null,null,null,null,null,null,null,null,null,null,null,null,null,null,null,182,{"$f":"'Voc 4'!C185","v":0},{"$f":"'Voc 4'!D185","v":0},{"$f":"'Voc 4'!E185","v":0}]
[null,null,null,null,null,null,null,null,null,null,null,null,null,null,null,null,183,{"$f":"'Voc 4'!C186","v":0},{"$f":"'Voc 4'!D186","v":0},{"$f":"'Voc 4'!E186","v":0}]
[null,null,null,null,null,null,null,null,null,null,null,null,null,null,null,null,184,{"$f":"'Voc 4'!C187","v":0},{"$f":"'Voc 4'!D187","v":0},{"$f":"'Voc 4'!E187","v":0}]
[null,null,null,null,null,null,null,null,null,null,null,null,null,null,null,null,185,{"$f":"'Voc 4'!C188","v":0},{"$f":"'Voc 4'!D188","v":0},{"$f":"'Voc 4'!E188","v":0}]
[null,null,null,null,null,null,null,null,null,null,null,null,null,null,null,null,186,{"$f":"'Voc 4'!C189","v":0},{"$f":"'Voc 4'!D189","v":0},{"$f":"'Voc 4'!E189","v":0}]
[null,null,null,null,null,null,null,null,null,null,null,null,null,null,null,null,187,{"$f":"'Voc 4'!C190","v":0},{"$f":"'Voc 4'!D190","v":0},{"$f":"'Voc 4'!E190","v":0}]
[null,null,null,null,null,null,null,null,null,null,null,null,null,null,null,null,188,{"$f":"'Voc 4'!C191","v":0},{"$f":"'Voc 4'!D191","v":0},{"$f":"'Voc 4'!E191","v":0}]
[null,null,null,null,null,null,null,null,null,null,null,null,null,null,null,null,189,{"$f":"'Voc 4'!C192","v":0},{"$f":"'Voc 4'!D192","v":0},{"$f":"'Voc 4'!E192","v":0}]
[null,null,null,null,null,null,null,null,null,null,null,null,null,null,null,null,190,{"$f":"'Voc 4'!C193","v":0},{"$f":"'Voc 4'!D193","v":0},{"$f":"'Voc 4'!E193","v":0}]
[null,null,null,null,null,null,null,null,null,null,null,null,null,null,null,null,191,{"$f":"'Voc 4'!C194","v":0},{"$f":"'Voc 4'!D194","v":0},{"$f":"'Voc 4'!E194","v":0}]
[null,null,null,null,null,null,null,null,null,null,null,null,null,null,null,null,192,{"$f":"'Voc 4'!C195","v":0},{"$f":"'Voc 4'!D195","v":0},{"$f":"'Voc 4'!E195","v":0}]
[null,null,null,null,null,null,null,null,null,null,null,null,null,null,null,null,193,{"$f":"'Voc 4'!C196","v":0},{"$f":"'Voc 4'!D196","v":0},{"$f":"'Voc 4'!E196","v":0}]
[null,null,null,null,null,null,null,null,null,null,null,null,null,null,null,null,194,{"$f":"'Voc 4'!C197","v":0},{"$f":"'Voc 4'!D197","v":0},{"$f":"'Voc 4'!E197","v":0}]
[null,null,null,null,null,null,null,null,null,null,null,null,null,null,null,null,195,{"$f":"'Voc 4'!C198","v":0},{"$f":"'Voc 4'!D198","v":0},{"$f":"'Voc 4'!E198","v":0}]
[null,null,null,null,null,null,null,null,null,null,null,null,null,null,null,null,196,{"$f":"'Voc 4'!C199","v":0},{"$f":"'Voc 4'!D199","v":0},{"$f":"'Voc 4'!E199","v":0}]
[null,null,null,null,null,null,null,null,null,null,null,null,null,null,null,null,197,{"$f":"'Voc 4'!C200","v":0},{"$f":"'Voc 4'!D200","v":0},{"$f":"'Voc 4'!E200","v":0}]
[null,null,null,null,null,null,null,null,null,null,null,null,null,null,null,null,198,{"$f":"'Voc 4'!C201","v":0},{"$f":"'Voc 4'!D201","v":0},{"$f":"'Voc 4'!E201","v":0}]
[null,null,null,null,null,null,null,null,null,null,null,null,null,null,null,null,199,{"$f":"'Voc 4'!C202","v":0},{"$f":"'Voc 4'!D202","v":0},{"$f":"'Voc 4'!E202","v":0}]
[null,null,null,null,null,null,null,null,null,null,null,null,null,null,null,null,200,{"$f":"'Voc 4'!C203","v":0},{"$f":"'Voc 4'!D203","v":0},{"$f":"'Voc 4'!E203","v":0}]
[null,null,null,null,null,null,null,null,null,null,null,null,null,null,null,null,201,{"$f":"'Voc 4'!C204","v":0},{"$f":"'Voc 4'!D204","v":0},{"$f":"'Voc 4'!E204","v":0}]
[null,null,null,null,null,null,null,null,null,null,null,null,null,null,null,null,202,{"$f":"'Voc 4'!C205","v":0},{"$f":"'Voc 4'!D205","v":0},{"$f":"'Voc 4'!E205","v":0}]
[null,null,null,null,null,null,null,null,null,null,null,null,null,null,null,null,203,{"$f":"'Voc 4'!C206","v":0},{"$f":"'Voc 4'!D206","v":0},{"$f":"'Voc 4'!E206","v":0}]
[null,null,null,null,null,null,null,null,null,null,null,null,null,null,null,null,204,{"$f":"'Voc 4'!C207","v":0},{"$f":"'Voc 4'!D207","v":0},{"$f":"'Voc 4'!E207","v":0}]
[null,null,null,null,null,null,null,null,null,null,null,null,null,null,null,null,205,{"$f":"'Voc 4'!C208","v":0},{"$f":"'Voc 4'!D208","v":0},{"$f":"'Voc 4'!E208","v":0}]
[null,null,null,null,null,null,null,null,null,null,null,null,null,null,null,null,206,{"$f":"'Voc 4'!C209","v":0},{"$f":"'Voc 4'!D209","v":0},{"$f":"'Voc 4'!E209","v":0}]
[null,null,null,null,null,null,null,null,null,null,null,null,null,null,null,null,207,{"$f":"'Voc 4'!C210","v":0},{"$f":"'Voc 4'!D210","v":0},{"$f":"'Voc 4'!E210","v":0}]
[null,null,null,null,null,null,null,null,null,null,null,null,null,null,null,null,208,{"$f":"'Voc 4'!C211","v":0},{"$f":"'Voc 4'!D211","v":0},{"$f":"'Voc 4'!E211","v":0}]
[null,null,null,null,null,null,null,null,null,null,null,null,null,null,null,null,209,{"$f":"'Voc 4'!C212","v":0},{"$f":"'Voc 4'!D212","v":0},{"$f":"'Voc 4'!E212","v":0}]
[null,null,null,null,null,null,null,null,null,null,null,null,null,null,null,null,210,{"$f":"'Voc 4'!C213","v":0},{"$f":"'Voc 4'!D213","v":0},{"$f":"'Voc 4'!E213","v":0}]
[null,null,null,null,null,null,null,null,null,null,null,null,null,null,null,null,211,{"$f":"'Voc 4'!C214","v":0},{"$f":"'Voc 4'!D214","v":0},{"$f":"'Voc 4'!E214","v":0}]
[null,null,null,null,null,null,null,null,null,null,null,null,null,null,null,null,212,{"$f":"'Voc 4'!C215","v":0},{"$f":"'Voc 4'!D215","v":0},{"$f":"'Voc 4'!E215","v":0}]
[null,null,null,null,null,null,null,null,null,null,null,null,null,null,null,null,213,{"$f":"'Voc 4'!C216","v":0},{"$f":"'Voc 4'!D216","v":0},{"$f":"'Voc 4'!E216","v":0}]
[null,null,null,null,null,null,null,null,null,null,null,null,null,null,null,null,214,{"$f":"'Voc 4'!C217","v":0},{"$f":"'Voc 4'!D217","v":0},{"$f":"'Voc 4'!E217","v":0}]
[null,null,null,null,null,null,null,null,null,null,null,null,null,null,null,null,215,{"$f":"'Voc 4'!C218","v":0},{"$f":"'Voc 4'!D218","v":0},{"$f":"'Voc 4'!E218","v":0}]
[null,null,null,null,null,null,null,null,null,null,null,null,null,null,null,null,216,{"$f":"'Voc 4'!C219","v":0},{"$f":"'Voc 4'!D219","v":0},{"$f":"'Voc 4'!E219","v":0}]
[null,null,null,null,null,null,null,null,null,null,null,null,null,null,null,null,217,{"$f":"'Voc 4'!C220","v":0},{"$f":"'Voc 4'!D220","v":0},{"$f":"'Voc 4'!E220","v":0}]
[null,null,null,null,null,null,null,null,null,null,null,null,null,null,null,null,218,{"$f":"'Voc 4'!C221","v":0},{"$f":"'Voc 4'!D221","v":0},{"$f":"'Voc 4'!E221","v":0}]
[null,null,null,null,null,null,null,null,null,null,null,null,null,null,null,null,219,{"$f":"'Voc 4'!C222","v":0},{"$f":"'Voc 4'!D222","v":0},{"$f":"'Voc 4'!E222","v":0}]
[null,null,null,null,null,null,null,null,null,null,null,null,null,null,null,null,220,{"$f":"'Voc 4'!C223","v":0},{"$f":"'Voc 4'!D223","v":0},{"$f":"'Voc 4'!E223","v":0}]
[null,null,null,null,null,null,null,null,null,null,null,null,null,null,null,null,221,{"$f":"'Voc 4'!C224","v":0},{"$f":"'Voc 4'!D224","v":0},{"$f":"'Voc 4'!E224","v":0}]
[null,null,null,null,null,null,null,null,null,null,null,null,null,null,null,null,222,{"$f":"'Voc 4'!C225","v":0},{"$f":"'Voc 4'!D225","v":0},{"$f":"'Voc 4'!E225","v":0}]
[null,null,null,null,null,null,null,null,null,null,null,null,null,null,null,null,223,{"$f":"'Voc 4'!C226","v":0},{"$f":"'Voc 4'!D226","v":0},{"$f":"'Voc 4'!E226","v":0}]
[null,null,null,null,null,null,null,null,null,null,null,null,null,null,null,null,224,{"$f":"'Voc 4'!C227","v":0},{"$f":"'Voc 4'!D227","v":0},{"$f":"'Voc 4'!E227","v":0}]
[null,null,null,null,null,null,null,null,null,null,null,null,null,null,null,null,225,{"$f":"'Voc 4'!C228","v":0},{"$f":"'Voc 4'!D228","v":0},{"$f":"'Voc 4'!E228","v":0}]
[null,null,null,null,null,null,null,null,null,null,null,null,null,null,null,null,226,{"$f":"'Voc 4'!C229","v":0},{"$f":"'Voc 4'!D229","v":0},{"$f":"'Voc 4'!E229","v":0}]
[null,null,null,null,null,null,null,null,null,null,null,null,null,null,null,null,227,{"$f":"'Voc 4'!C230","v":0},{"$f":"'Voc 4'!D230","v":0},{"$f":"'Voc 4'!E230","v":0}]
[null,null,null,null,null,null,null,null,null,null,null,null,null,null,null,null,228,{"$f":"'Voc 4'!C231","v":0},{"$f":"'Voc 4'!D231","v":0},{"$f":"'Voc 4'!E231","v":0}]
[null,null,null,null,null,null,null,null,null,null,null,null,null,null,null,null,229,{"$f":"'Voc 4'!C232","v":0},{"$f":"'Voc 4'!D232","v":0},{"$f":"'Voc 4'!E232","v":0}]
[null,null,null,null,null,null,null,null,null,null,null,null,null,null,null,null,230,{"$f":"'Voc 4'!C233","v":0},{"$f":"'Voc 4'!D233","v":0},{"$f":"'Voc 4'!E233","v":0}]
[null,null,null,null,null,null,null,null,null,null,null,null,null,null,null,null,231,{"$f":"'Voc 4'!C234","v":0},{"$f":"'Voc 4'!D234","v":0},{"$f":"'Voc 4'!E234","v":0}]
[null,null,null,null,null,null,null,null,null,null,null,null,null,null,null,null,232,{"$f":"'Voc 4'!C235","v":0},{"$f":"'Voc 4'!D235","v":0},{"$f":"'Voc 4'!E235","v":0}]
[null,null,null,null,null,null,null,null,null,null,null,null,null,null,null,null,233,{"$f":"'Voc 4'!C236","v":0},{"$f":"'Voc 4'!D236","v":0},{"$f":"'Voc 4'!E236","v":0}]
[null,null,null,null,null,null,null,null,null,null,null,null,null,null,null,null,234,{"$f":"'Voc 4'!C237","v":0},{"$f":"'Voc 4'!D237","v":0},{"$f":"'Voc 4'!E237","v":0}]
[null,null,null,null,null,null,null,null,null,null,null,null,null,null,null,null,235,{"$f":"'Voc 4'!C238","v":0},{"$f":"'Voc 4'!D238","v":0},{"$f":"'Voc 4'!E238","v":0}]
[null,null,null,null,null,null,null,null,null,null,null,null,null,null,null,null,236,{"$f":"'Voc 4'!C239","v":0},{"$f":"'Voc 4'!D239","v":0},{"$f":"'Voc 4'!E239","v":0}]
[null,null,null,null,null,null,null,null,null,null,null,null,null,null,null,null,237,{"$f":"'Voc 4'!C240","v":0},{"$f":"'Voc 4'!D240","v":0},{"$f":"'Voc 4'!E240","v":0}]
[null,null,null,null,null,null,null,null,null,null,null,null,null,null,null,null,238,{"$f":"'Voc 4'!C241","v":0},{"$f":"'Voc 4'!D241","v":0},{"$f":"'Voc 4'!E241","v":0}]
[null,null,null,null,null,null,null,null,null,null,null,null,null,null,null,null,239,{"$f":"'Voc 4'!C242","v":0},{"$f":"'Voc 4'!D242","v":0},{"$f":"'Voc 4'!E242","v":0}]
[null,null,null,null,null,null,null,null,null,null,null,null,null,null,null,null,240,{"$f":"'Voc 4'!C243","v":0},{"$f":"'Voc 4'!D243","v":0},{"$f":"'Voc 4'!E243","v":0}]
[null,null,null,null,null,null,null,null,null,null,null,null,null,null,null,null,241,{"$f":"'Voc 4'!C244","v":0},{"$f":"'Voc 4'!D244","v":0},{"$f":"'Voc 4'!E244","v":0}]
[null,null,null,null,null,null,null,null,null,null,null,null,null,null,null,null,242,{"$f":"'Voc 4'!C245","v":0},{"$f":"'Voc 4'!D245","v":0},{"$f":"'Voc 4'!E245","v":0}]
[null,null,null,null,null,null,null,null,null,null,null,null,null,null,null,null,243,{"$f":"'Voc 4'!C246","v":0},{"$f":"'Voc 4'!D246","v":0},{"$f":"'Voc 4'!E246","v":0}]
[null,null,null,null,null,null,null,null,null,null,null,null,null,null,null,null,244,{"$f":"'Voc 4'!C247","v":0},{"$f":"'Voc 4'!D247","v":0},{"$f":"'Voc 4'!E247","v":0}]
[null,null,null,null,null,null,null,null,null,null,null,null,null,null,null,null,245,{"$f":"'Voc 4'!C248","v":0},{"$f":"'Voc 4'!D248","v":0},{"$f":"'Voc 4'!E248","v":0}]
[null,null,null,null,null,null,null,null,null,null,null,null,null,null,null,null,246,{"$f":"'Voc 4'!C249","v":0},{"$f":"'Voc 4'!D249","v":0},{"$f":"'Voc 4'!E249","v":0}]
[null,null,null,null,null,null,null,null,null,null,null,null,null,null,null,null,247,{"$f":"'Voc 4'!C250","v":0},{"$f":"'Voc 4'!D250","v":0},{"$f":"'Voc 4'!E250","v":0}]
[null,null,null,null,null,null,null,null,null,null,null,null,null,null,null,null,248,{"$f":"'Voc 4'!C251","v":0},{"$f":"'Voc 4'!D251","v":0},{"$f":"'Voc 4'!E251","v":0}]
[null,null,null,null,null,null,null,null,null,null,null,null,null,null,null,null,249,{"$f":"'Voc 4'!C252","v":0},{"$f":"'Voc 4'!D252","v":0},{"$f":"'Voc 4'!E252","v":0}]
[null,null,null,null,null,null,null,null,null,null,null,null,null,null,null,null,250,{"$f":"'Voc 4'!C253","v":0},{"$f":"'Voc 4'!D253","v":0},{"$f":"'Voc 4'!E253","v":0}]
[null,null,null,null,null,null,null,null,null,null,null,null,null,null,null,null,251,{"$f":"'Voc 4'!C254","v":0},{"$f":"'Voc 4'!D254","v":0},{"$f":"'Voc 4'!E254","v":0}]
[null,null,null,null,null,null,null,null,null,null,null,null,null,null,null,null,252,{"$f":"'Voc 4'!C255","v":0},{"$f":"'Voc 4'!D255","v":0},{"$f":"'Voc 4'!E255","v":0}]
[null,null,null,null,null,null,null,null,null,null,null,null,null,null,null,null,253,{"$f":"'Voc 4'!C256","v":0},{"$f":"'Voc 4'!D256","v":0},{"$f":"'Voc 4'!E256","v":0}]
[null,null,null,null,null,null,null,null,null,null,null,null,null,null,null,null,254,{"$f":"'Voc 4'!C257","v":0},{"$f":"'Voc 4'!D257","v":0},{"$f":"'Voc 4'!E257","v":0}]
[null,null,null,null,null,null,null,null,null,null,null,null,null,null,null,null,255,{"$f":"'Voc 4'!C258","v":0},{"$f":"'Voc 4'!D258","v":0},{"$f":"'Voc 4'!E258","v":0}]
[null,null,null,null,null,null,null,null,null,null,null,null,null,null,null,null,256,{"$f":"'Voc 4'!C259","v":0},{"$f":"'Voc 4'!D259","v":0},{"$f":"'Voc 4'!E259","v":0}]
[null,null,null,null,null,null,null,null,null,null,null,null,null,null,null,null,257,{"$f":"'Voc 4'!C260","v":0},{"$f":"'Voc 4'!D260","v":0},{"$f":"'Voc 4'!E260","v":0}]
[null,null,null,null,null,null,null,null,null,null,null,null,null,null,null,null,258,{"$f":"'Voc 4'!C261","v":0},{"$f":"'Voc 4'!D261","v":0},{"$f":"'Voc 4'!E261","v":0}]
[null,null,null,null,null,null,null,null,null,null,null,null,null,null,null,null,259,{"$f":"'Voc 4'!C262","v":0},{"$f":"'Voc 4'!D262","v":0},{"$f":"'Voc 4'!E262","v":0}]
[null,null,null,null,null,null,null,null,null,null,null,null,null,null,null,null,260,{"$f":"'Voc 4'!C263","v":0},{"$f":"'Voc 4'!D263","v":0},{"$f":"'Voc 4'!E263","v":0}]
[null,null,null,null,null,null,null,null,null,null,null,null,null,null,null,null,261,{"$f":"'Voc 4'!C264","v":0},{"$f":"'Voc 4'!D264","v":0},{"$f":"'Voc 4'!E264","v":0}]
[null,null,null,null,null,null,null,null,null,null,null,null,null,null,null,null,262,{"$f":"'Voc 4'!C265","v":0},{"$f":"'Voc 4'!D265","v":0},{"$f":"'Voc 4'!E265","v":0}]
[null,null,null,null,null,null,null,null,null,null,null,null,null,null,null,null,263,{"$f":"'Voc 4'!C266","v":0},{"$f":"'Voc 4'!D266","v":0},{"$f":"'Voc 4'!E266","v":0}]
[null,null,null,null,null,null,null,null,null,null,null,null,null,null,null,null,264,{"$f":"'Voc 4'!C267","v":0},{"$f":"'Voc 4'!D267","v":0},{"$f":"'Voc 4'!E267","v":0}]
[null,null,null,null,null,null,null,null,null,null,null,null,null,null,null,null,265,{"$f":"'Voc 4'!C268","v":0},{"$f":"'Voc 4'!D268","v":0},{"$f":"'Voc 4'!E268","v":0}]
[null,null,null,null,null,null,null,null,null,null,null,null,null,null,null,null,266,{"$f":"'Voc 4'!C269","v":0},{"$f":"'Voc 4'!D269","v":0},{"$f":"'Voc 4'!E269","v":0}]
[null,null,null,null,null,null,null,null,null,null,null,null,null,null,null,null,267,{"$f":"'Voc 4'!C270","v":0},{"$f":"'Voc 4'!D270","v":0},{"$f":"'Voc 4'!E270","v":0}]
[null,null,null,null,null,null,null,null,null,null,null,null,null,null,null,null,268,{"$f":"'Voc 4'!C271","v":0},{"$f":"'Voc 4'!D271","v":0},{"$f":"'Voc 4'!E271","v":0}]
[null,null,null,null,null,null,null,null,null,null,null,null,null,null,null,null,269,{"$f":"'Voc 4'!C272","v":0},{"$f":"'Voc 4'!D272","v":0},{"$f":"'Voc 4'!E272","v":0}]
[null,null,null,null,null,null,null,null,null,null,null,null,null,null,null,null,270,{"$f":"'Voc 4'!C273","v":0},{"$f":"'Voc 4'!D273","v":0},{"$f":"'Voc 4'!E273","v":0}]
[null,null,null,null,null,null,null,null,null,null,null,null,null,null,null,null,271,{"$f":"'Voc 4'!C274","v":0},{"$f":"'Voc 4'!D274","v":0},{"$f":"'Voc 4'!E274","v":0}]
[null,null,null,null,null,null,null,null,null,null,null,null,null,null,null,null,272,{"$f":"'Voc 4'!C275","v":0},{"$f":"'Voc 4'!D275","v":0},{"$f":"'Voc 4'!E275","v":0}]
[null,null,null,null,null,null,null,null,null,null,null,null,null,null,null,null,273,{"$f":"'Voc 4'!C276","v":0},{"$f":"'Voc 4'!D276","v":0},{"$f":"'Voc 4'!E276","v":0}]
[null,null,null,null,null,null,null,null,null,null,null,null,null,null,null,null,274,{"$f":"'Voc 4'!C277","v":0},{"$f":"'Voc 4'!D277","v":0},{"$f":"'Voc 4'!E277","v":0}]
[null,null,null,null,null,null,null,null,null,null,null,null,null,null,null,null,275,{"$f":"'Voc 4'!C278","v":0},{"$f":"'Voc 4'!D278","v":0},{"$f":"'Voc 4'!E278","v":0}]
[null,null,null,null,null,null,null,null,null,null,null,null,null,null,null,null,276,{"$f":"'Voc 4'!C279","v":0},{"$f":"'Voc 4'!D279","v":0},{"$f":"'Voc 4'!E279","v":0}]
[null,null,null,null,null,null,null,null,null,null,null,null,null,null,null,null,277,{"$f":"'Voc 4'!C280","v":0},{"$f":"'Voc 4'!D280","v":0},{"$f":"'Voc 4'!E280","v":0}]
[null,null,null,null,null,null,null,null,null,null,null,null,null,null,null,null,278,{"$f":"'Voc 4'!C281","v":0},{"$f":"'Voc 4'!D281","v":0},{"$f":"'Voc 4'!E281","v":0}]
[null,null,null,null,null,null,null,null,null,null,null,null,null,null,null,null,279,{"$f":"'Voc 4'!C282","v":0},{"$f":"'Voc 4'!D282","v":0},{"$f":"'Voc 4'!E282","v":0}]
[null,null,null,null,null,null,null,null,null,null,null,null,null,null,null,null,280,{"$f":"'Voc 4'!C283","v":0},{"$f":"'Voc 4'!D283","v":0},{"$f":"'Voc 4'!E283","v":0}]
[null,null,null,null,null,null,null,null,null,null,null,null,null,null,null,null,281,{"$f":"'Voc 4'!C284","v":0},{"$f":"'Voc 4'!D284","v":0},{"$f":"'Voc 4'!E284","v":0}]
[null,null,null,null,null,null,null,null,null,null,null,null,null,null,null,null,282,{"$f":"'Voc 4'!C285","v":0},{"$f":"'Voc 4'!D285","v":0},{"$f":"'Voc 4'!E285","v":0}]
[null,null,null,null,null,null,null,null,null,null,null,null,null,null,null,null,283,{"$f":"'Voc 4'!C286","v":0},{"$f":"'Voc 4'!D286","v":0},{"$f":"'Voc 4'!E286","v":0}]
[null,null,null,null,null,null,null,null,null,null,null,null,null,null,null,null,284,{"$f":"'Voc 4'!C287","v":0},{"$f":"'Voc 4'!D287","v":0},{"$f":"'Voc 4'!E287","v":0}]
[null,null,null,null,null,null,null,null,null,null,null,null,null,null,null,null,285,{"$f":"'Voc 4'!C288","v":0},{"$f":"'Voc 4'!D288","v":0},{"$f":"'Voc 4'!E288","v":0}]
[null,null,null,null,null,null,null,null,null,null,null,null,null,null,null,null,286,{"$f":"'Voc 4'!C289","v":0},{"$f":"'Voc 4'!D289","v":0},{"$f":"'Voc 4'!E289","v":0}]
[null,null,null,null,null,null,null,null,null,null,null,null,null,null,null,null,287,{"$f":"'Voc 4'!C290","v":0},{"$f":"'Voc 4'!D290","v":0},{"$f":"'Voc 4'!E290","v":0}]
[null,null,null,null,null,null,null,null,null,null,null,null,null,null,null,null,288,{"$f":"'Voc 4'!C291","v":0},{"$f":"'Voc 4'!D291","v":0},{"$f":"'Voc 4'!E291","v":0}]
[null,null,null,null,null,null,null,null,null,null,null,null,null,null,null,null,289,{"$f":"'Voc 4'!C292","v":0},{"$f":"'Voc 4'!D292","v":0},{"$f":"'Voc 4'!E292","v":0}]
[null,null,null,null,null,null,null,null,null,null,null,null,null,null,null,null,290,{"$f":"'Voc 4'!C293","v":0},{"$f":"'Voc 4'!D293","v":0},{"$f":"'Voc 4'!E293","v":0}]
[null,null,null,null,null,null,null,null,null,null,null,null,null,null,null,null,291,{"$f":"'Voc 4'!C294","v":0},{"$f":"'Voc 4'!D294","v":0},{"$f":"'Voc 4'!E294","v":0}]
[null,null,null,null,null,null,null,null,null,null,null,null,null,null,null,null,292,{"$f":"'Voc 4'!C295","v":0},{"$f":"'Voc 4'!D295","v":0},{"$f":"'Voc 4'!E295","v":0}]
[null,null,null,null,null,null,null,null,null,null,null,null,null,null,null,null,293,{"$f":"'Voc 4'!C296","v":0},{"$f":"'Voc 4'!D296","v":0},{"$f":"'Voc 4'!E296","v":0}]
[null,null,null,null,null,null,null,null,null,null,null,null,null,null,null,null,294,{"$f":"'Voc 4'!C297","v":0},{"$f":"'Voc 4'!D297","v":0},{"$f":"'Voc 4'!E297","v":0}]
[null,null,null,null,null,null,null,null,null,null,null,null,null,null,null,null,295,{"$f":"'Voc 4'!C298","v":0},{"$f":"'Voc 4'!D298","v":0},{"$f":"'Voc 4'!E298","v":0}]
[null,null,null,null,null,null,null,null,null,null,null,null,null,null,null,null,296,{"$f":"'Voc 4'!C299","v":0},{"$f":"'Voc 4'!D299","v":0},{"$f":"'Voc 4'!E299","v":0}]
[null,null,null,null,null,null,null,null,null,null,null,null,null,null,null,null,297,{"$f":"'Voc 4'!C300","v":0},{"$f":"'Voc 4'!D300","v":0},{"$f":"'Voc 4'!E300","v":0}]
[null,null,null,null,null,null,null,null,null,null,null,null,null,null,null,null,298,{"$f":"'Voc 4'!C301","v":0},{"$f":"'Voc 4'!D301","v":0},{"$f":"'Voc 4'!E301","v":0}]
[null,null,null,null,null,null,null,null,null,null,null,null,null,null,null,null,299,{"$f":"'Voc 4'!C302","v":0},{"$f":"'Voc 4'!D302","v":0},{"$f":"'Voc 4'!E302","v":0}]
[null,null,null,null,null,null,null,null,null,null,null,null,null,null,null,null,300,{"$f":"'Voc 4'!C303","v":0},{"$f":"'Voc 4'!D303","v":0},{"$f":"'Voc 4'!E303","v":0}]
[null,null,null,null,null,null,null,null,null,null,null,null,null,null,null,null,301,{"$f":"'Voc 4'!C304","v":0},{"$f":"'Voc 4'!D304","v":0},{"$f":"'Voc 4'!E304","v":0}]
[null,null,null,null,null,null,null,null,null,null,null,null,null,null,null,null,302,{"$f":"'Voc 4'!C305","v":0},{"$f":"'Voc 4'!D305","v":0},{"$f":"'Voc 4'!E305","v":0}]
[null,null,null,null,null,null,null,null,null,null,null,null,null,null,null,null,303,{"$f":"'Voc 4'!C306","v":0},{"$f":"'Voc 4'!D306","v":0},{"$f":"'Voc 4'!E306","v":0}]
[null,null,null,null,null,null,null,null,null,null,null,null,null,null,null,null,304,{"$f":"'Voc 4'!C307","v":0},{"$f":"'Voc 4'!D307","v":0},{"$f":"'Voc 4'!E307","v":0}]
[null,null,null,null,null,null,null,null,null,null,null,null,null,null,null,null,305,{"$f":"'Voc 4'!C308","v":0},{"$f":"'Voc 4'!D308","v":0},{"$f":"'Voc 4'!E308","v":0}]
[null,null,null,null,null,null,null,null,null,null,null,null,null,null,null,null,306,{"$f":"'Voc 4'!C309","v":0},{"$f":"'Voc 4'!D309","v":0},{"$f":"'Voc 4'!E309","v":0}]
[null,null,null,null,null,null,null,null,null,null,null,null,null,null,null,null,307,{"$f":"'Voc 4'!C310","v":0},{"$f":"'Voc 4'!D310","v":0},{"$f":"'Voc 4'!E310","v":0}]
[null,null,null,null,null,null,null,null,null,null,null,null,null,null,null,null,308,{"$f":"'Voc 4'!C311","v":0},{"$f":"'Voc 4'!D311","v":0},{"$f":"'Voc 4'!E311","v":0}]
[null,null,null,null,null,null,null,null,null,null,null,null,null,null,null,null,309,{"$f":"'Voc 4'!C312","v":0},{"$f":"'Voc 4'!D312","v":0},{"$f":"'Voc 4'!E312","v":0}]
[null,null,null,null,null,null,null,null,null,null,null,null,null,null,null,null,310,{"$f":"'Voc 4'!C313","v":0},{"$f":"'Voc 4'!D313","v":0},{"$f":"'Voc 4'!E313","v":0}]
[null,null,null,null,null,null,null,null,null,null,null,null,null,null,null,null,311,{"$f":"'Voc 4'!C314","v":0},{"$f":"'Voc 4'!D314","v":0},{"$f":"'Voc 4'!E314","v":0}]
[null,null,null,null,null,null,null,null,null,null,null,null,null,null,null,null,312,{"$f":"'Voc 4'!C315","v":0},{"$f":"'Voc 4'!D315","v":0},{"$f":"'Voc 4'!E315","v":0}]
[null,null,null,null,null,null,null,null,null,null,null,null,null,null,null,null,313,{"$f":"'Voc 4'!C316","v":0},{"$f":"'Voc 4'!D316","v":0},{"$f":"'Voc 4'!E316","v":0}]
[null,null,null,null,null,null,null,null,null,null,null,null,null,null,null,null,314,{"$f":"'Voc 4'!C317","v":0},{"$f":"'Voc 4'!D317","v":0},{"$f":"'Voc 4'!E317","v":0}]
[null,null,null,null,null,null,null,null,null,null,null,null,null,null,null,null,315,{"$f":"'Voc 4'!C318","v":0},{"$f":"'Voc 4'!D318","v":0},{"$f":"'Voc 4'!E318","v":0}]
[null,null,null,null,null,null,null,null,null,null,null,null,null,null,null,null,316,{"$f":"'Voc 4'!C319","v":0},{"$f":"'Voc 4'!D319","v":0},{"$f":"'Voc 4'!E319","v":0}]
[null,null,null,null,null,null,null,null,null,null,null,null,null,null,null,null,317,{"$f":"'Voc 4'!C320","v":0},{"$f":"'Voc 4'!D320","v":0},{"$f":"'Voc 4'!E320","v":0}]
[null,null,null,null,null,null,null,null,null,null,null,null,null,null,null,null,318,{"$f":"'Voc 4'!C321","v":0},{"$f":"'Voc 4'!D321","v":0},{"$f":"'Voc 4'!E321","v":0}]
[null,null,null,null,null,null,null,null,null,null,null,null,null,null,null,null,319,{"$f":"'Voc 4'!C322","v":0},{"$f":"'Voc 4'!D322","v":0},{"$f":"'Voc 4'!E322","v":0}]
[null,null,null,null,null,null,null,null,null,null,null,null,null,null,null,null,320,{"$f":"'Voc 4'!C323","v":0},{"$f":"'Voc 4'!D323","v":0},{"$f":"'Voc 4'!E323","v":0}]
[null,null,null,null,null,null,null,null,null,null,null,null,null,null,null,null,321,{"$f":"'Voc 4'!C324","v":0},{"$f":"'Voc 4'!D324","v":0},{"$f":"'Voc 4'!E324","v":0}]
[null,null,null,null,null,null,null,null,null,null,null,null,null,null,null,null,322,{"$f":"'Voc 4'!C325","v":0},{"$f":"'Voc 4'!D325","v":0},{"$f":"'Voc 4'!E325","v":0}]
[null,null,null,null,null,null,null,null,null,null,null,null,null,null,null,null,323,{"$f":"'Voc 4'!C326","v":0},{"$f":"'Voc 4'!D326","v":0},{"$f":"'Voc 4'!E326","v":0}]
[null,null,null,null,null,null,null,null,null,null,null,null,null,null,null,null,324,{"$f":"'Voc 4'!C327","v":0},{"$f":"'Voc 4'!D327","v":0},{"$f":"'Voc 4'!E327","v":0}]
[null,null,null,null,null,null,null,null,null,null,null,null,null,null,null,null,325,{"$f":"'Voc 4'!C328","v":0},{"$f":"'Voc 4'!D328","v":0},{"$f":"'Voc 4'!E328","v":0}]
[null,null,null,null,null,null,null,null,null,null,null,null,null,null,null,null,326,{"$f":"'Voc 4'!C329","v":0},{"$f":"'Voc 4'!D329","v":0},{"$f":"'Voc 4'!E329","v":0}]
[null,null,null,null,null,null,null,null,null,null,null,null,null,null,null,null,327,{"$f":"'Voc 4'!C330","v":0},{"$f":"'Voc 4'!D330","v":0},{"$f":"'Voc 4'!E330","v":0}]
[null,null,null,null,null,null,null,null,null,null,null,null,null,null,null,null,328,{"$f":"'Voc 4'!C331","v":0},{"$f":"'Voc 4'!D331","v":0},{"$f":"'Voc 4'!E331","v":0}]
[null,null,null,null,null,null,null,null,null,null,null,null,null,null,null,null,329,{"$f":"'Voc 4'!C332","v":0},{"$f":"'Voc 4'!D332","v":0},{"$f":"'Voc 4'!E332","v":0}]
[null,null,null,null,null,null,null,null,null,null,null,null,null,null,null,null,330,{"$f":"'Voc 4'!C333","v":0},{"$f":"'Voc 4'!D333","v":0},{"$f":"'Voc 4'!E333","v":0}]
[null,null,null,null,null,null,null,null,null,null,null,null,null,null,null,null,331,{"$f":"'Voc 4'!C334","v":0},{"$f":"'Voc 4'!D334","v":0},{"$f":"'Voc 4'!E334","v":0}]
[null,null,null,null,null,null,null,null,null,null,null,null,null,null,null,null,332,{"$f":"'Voc 4'!C335","v":0},{"$f":"'Voc 4'!D335","v":0},{"$f":"'Voc 4'!E335","v":0}]
[null,null,null,null,null,null,null,null,null,null,null,null,null,null,null,null,333,{"$f":"'Voc 4'!C336","v":0},{"$f":"'Voc 4'!D336","v":0},{"$f":"'Voc 4'!E336","v":0}]
[null,null,null,null,null,null,null,null,null,null,null,null,null,null,null,null,334,{"$f":"'Voc 4'!C337","v":0},{"$f":"'Voc 4'!D337","v":0},{"$f":"'Voc 4'!E337","v":0}]
[null,null,null,null,null,null,null,null,null,null,null,null,null,null,null,null,335,{"$f":"'Voc 4'!C338","v":0},{"$f":"'Voc 4'!D338","v":0},{"$f":"'Voc 4'!E338","v":0}]
[null,null,null,null,null,null,null,null,null,null,null,null,null,null,null,null,336,{"$f":"'Voc 4'!C339","v":0},{"$f":"'Voc 4'!D339","v":0},{"$f":"'Voc 4'!E339","v":0}]
[null,null,null,null,null,null,null,null,null,null,null,null,null,null,null,null,337,{"$f":"'Voc 4'!C340","v":0},{"$f":"'Voc 4'!D340","v":0},{"$f":"'Voc 4'!E340","v":0}]
[null,null,null,null,null,null,null,null,null,null,null,null,null,null,null,null,338,{"$f":"'Voc 4'!C341","v":0},{"$f":"'Voc 4'!D341","v":0},{"$f":"'Voc 4'!E341","v":0}]
[null,null,null,null,null,null,null,null,null,null,null,null,null,null,null,null,339,{"$f":"'Voc 4'!C342","v":0},{"$f":"'Voc 4'!D342","v":0},{"$f":"'Voc 4'!E342","v":0}]
[null,null,null,null,null,null,null,null,null,null,null,null,null,null,null,null,340,{"$f":"'Voc 4'!C343","v":0},{"$f":"'Voc 4'!D343","v":0},{"$f":"'Voc 4'!E343","v":0}]
[null,null,null,null,null,null,null,null,null,null,null,null,null,null,null,null,341,{"$f":"'Voc 4'!C344","v":0},{"$f":"'Voc 4'!D344","v":0},{"$f":"'Voc 4'!E344","v":0}]
[null,null,null,null,null,null,null,null,null,null,null,null,null,null,null,null,342,{"$f":"'Voc 4'!C345","v":0},{"$f":"'Voc 4'!D345","v":0},{"$f":"'Voc 4'!E345","v":0}]
[null,null,null,null,null,null,null,null,null,null,null,null,null,null,null,null,343,{"$f":"'Voc 4'!C346","v":0},{"$f":"'Voc 4'!D346","v":0},{"$f":"'Voc 4'!E346","v":0}]
[null,null,null,null,null,null,null,null,null,null,null,null,null,null,null,null,344,{"$f":"'Voc 4'!C347","v":0},{"$f":"'Voc 4'!D347","v":0},{"$f":"'Voc 4'!E347","v":0}]
[null,null,null,null,null,null,null,null,null,null,null,null,null,null,null,null,345,{"$f":"'Voc 4'!C348","v":0},{"$f":"'Voc 4'!D348","v":0},{"$f":"'Voc 4'!E348","v":0}]
[null,null,null,null,null,null,null,null,null,null,null,null,null,null,null,null,346,{"$f":"'Voc 4'!C349","v":0},{"$f":"'Voc 4'!D349","v":0},{"$f":"'Voc 4'!E349","v":0}]
[null,null,null,null,null,null,null,null,null,null,null,null,null,null,null,null,347,{"$f":"'Voc 4'!C350","v":0},{"$f":"'Voc 4'!D350","v":0},{"$f":"'Voc 4'!E350","v":0}]
[null,null,null,null,null,null,null,null,null,null,null,null,null,null,null,null,348,{"$f":"'Voc 4'!C351","v":0},{"$f":"'Voc 4'!D351","v":0},{"$f":"'Voc 4'!E351","v":0}]
[null,null,null,null,null,null,null,null,null,null,null,null,null,null,null,null,349,{"$f":"'Voc 4'!C352","v":0},{"$f":"'Voc 4'!D352","v":0},{"$f":"'Voc 4'!E352","v":0}]
[null,null,null,null,null,null,null,null,null,null,null,null,null,null,null,null,350,{"$f":"'Voc 4'!C353","v":0},{"$f":"'Voc 4'!D353","v":0},{"$f":"'Voc 4'!E353","v":0}]
[null,null,null,null,null,null,null,null,null,null,null,null,null,null,null,null,351,{"$f":"'Voc 4'!C354","v":0},{"$f":"'Voc 4'!D354","v":0},{"$f":"'Voc 4'!E354","v":0}]
[null,null,null,null,null,null,null,null,null,null,null,null,null,null,null,null,352,{"$f":"'Voc 4'!C355","v":0},{"$f":"'Voc 4'!D355","v":0},{"$f":"'Voc 4'!E355","v":0}]
[null,null,null,null,null,null,null,null,null,null,null,null,null,null,null,null,353,{"$f":"'Voc 4'!C356","v":0},{"$f":"'Voc 4'!D356","v":0},{"$f":"'Voc 4'!E356","v":0}]
[null,null,null,null,null,null,null,null,null,null,null,null,null,null,null,null,354,{"$f":"'Voc 4'!C357","v":0},{"$f":"'Voc 4'!D357","v":0},{"$f":"'Voc 4'!E357","v":0}]
[null,null,null,null,null,null,null,null,null,null,null,null,null,null,null,null,355,{"$f":"'Voc 4'!C358","v":0},{"$f":"'Voc 4'!D358","v":0},{"$f":"'Voc 4'!E358","v":0}]
[null,null,null,null,null,null,null,null,null,null,null,null,null,null,null,null,356,{"$f":"'Voc 4'!C359","v":0},{"$f":"'Voc 4'!D359","v":0},{"$f":"'Voc 4'!E359","v":0}]
[null,null,null,null,null,null,null,null,null,null,null,null,null,null,null,null,357,{"$f":"'Voc 4'!C360","v":0},{"$f":"'Voc 4'!D360","v":0},{"$f":"'Voc 4'!E360","v":0}]
[null,null,null,null,null,null,null,null,null,null,null,null,null,null,null,null,358,{"$f":"'Voc 4'!C361","v":0},{"$f":"'Voc 4'!D361","v":0},{"$f":"'Voc 4'!E361","v":0}]
[null,null,null,null,null,null,null,null,null,null,null,null,null,null,null,null,359,{"$f":"'Voc 4'!C362","v":0},{"$f":"'Voc 4'!D362","v":0},{"$f":"'Voc 4'!E362","v":0}]
[null,null,null,null,null,null,null,null,null,null,null,null,null,null,null,null,360,{"$f":"'Voc 4'!C363","v":0},{"$f":"'Voc 4'!D363","v":0},{"$f":"'Voc 4'!E363","v":0}]
[null,null,null,null,null,null,null,null,null,null,null,null,null,null,null,null,361,{"$f":"'Voc 4'!C364","v":0},{"$f":"'Voc 4'!D364","v":0},{"$f":"'Voc 4'!E364","v":0}]
[null,null,null,null,null,null,null,null,null,null,null,null,null,null,null,null,362,{"$f":"'Voc 4'!C365","v":0},{"$f":"'Voc 4'!D365","v":0},{"$f":"'Voc 4'!E365","v":0}]
[null,null,null,null,null,null,null,null,null,null,null,null,null,null,null,null,363,{"$f":"'Voc 4'!C366","v":0},{"$f":"'Voc 4'!D366","v":0},{"$f":"'Voc 4'!E366","v":0}]
[null,null,null,null,null,null,null,null,null,null,null,null,null,null,null,null,364,{"$f":"'Voc 4'!C367","v":0},{"$f":"'Voc 4'!D367","v":0},{"$f":"'Voc 4'!E367","v":0}]
[null,null,null,null,null,null,null,null,null,null,null,null,null,null,null,null,365,{"$f":"'Voc 4'!C368","v":0},{"$f":"'Voc 4'!D368","v":0},{"$f":"'Voc 4'!E368","v":0}]
[null,null,null,null,null,null,null,null,null,null,null,null,null,null,null,null,366,{"$f":"'Voc 4'!C369","v":0},{"$f":"'Voc 4'!D369","v":0},{"$f":"'Voc 4'!E369","v":0}]
[null,null,null,null,null,null,null,null,null,null,null,null,null,null,null,null,367,{"$f":"'Voc 4'!C370","v":0},{"$f":"'Voc 4'!D370","v":0},{"$f":"'Voc 4'!E370","v":0}]
[null,null,null,null,null,null,null,null,null,null,null,null,null,null,null,null,368,{"$f":"'Voc 4'!C371","v":0},{"$f":"'Voc 4'!D371","v":0},{"$f":"'Voc 4'!E371","v":0}]
[null,null,null,null,null,null,null,null,null,null,null,null,null,null,null,null,369,{"$f":"'Voc 4'!C372","v":0},{"$f":"'Voc 4'!D372","v":0},{"$f":"'Voc 4'!E372","v":0}]
[null,null,null,null,null,null,null,null,null,null,null,null,null,null,null,null,370,{"$f":"'Voc 4'!C373","v":0},{"$f":"'Voc 4'!D373","v":0},{"$f":"'Voc 4'!E373","v":0}]
[null,null,null,null,null,null,null,null,null,null,null,null,null,null,null,null,371,{"$f":"'Voc 4'!C374","v":0},{"$f":"'Voc 4'!D374","v":0},{"$f":"'Voc 4'!E374","v":0}]
[null,null,null,null,null,null,null,null,null,null,null,null,null,null,null,null,372,{"$f":"'Voc 4'!C375","v":0},{"$f":"'Voc 4'!D375","v":0},{"$f":"'Voc 4'!E375","v":0}]
[null,null,null,null,null,null,null,null,null,null,null,null,null,null,null,null,373,{"$f":"'Voc 4'!C376","v":0},{"$f":"'Voc 4'!D376","v":0},{"$f":"'Voc 4'!E376","v":0}]
[null,null,null,null,null,null,null,null,null,null,null,null,null,null,null,null,374,{"$f":"'Voc 4'!C377","v":0},{"$f":"'Voc 4'!D377","v":0},{"$f":"'Voc 4'!E377","v":0}]
[null,null,null,null,null,null,null,null,null,null,null,null,null,null,null,null,375,{"$f":"'Voc 4'!C378","v":0},{"$f":"'Voc 4'!D378","v":0},{"$f":"'Voc 4'!E378","v":0}]
[null,null,null,null,null,null,null,null,null,null,null,null,null,null,null,null,376,{"$f":"'Voc 4'!C379","v":0},{"$f":"'Voc 4'!D379","v":0},{"$f":"'Voc 4'!E379","v":0}]
[null,null,null,null,null,null,null,null,null,null,null,null,null,null,null,null,377,{"$f":"'Voc 4'!C380","v":0},{"$f":"'Voc 4'!D380","v":0},{"$f":"'Voc 4'!E380","v":0}]
[null,null,null,null,null,null,null,null,null,null,null,null,null,null,null,null,378,{"$f":"'Voc 4'!C381","v":0},{"$f":"'Voc 4'!D381","v":0},{"$f":"'Voc 4'!E381","v":0}]
[null,null,null,null,null,null,null,null,null,null,null,null,null,null,null,null,379,{"$f":"'Voc 4'!C382","v":0},{"$f":"'Voc 4'!D382","v":0},{"$f":"'Voc 4'!E382","v":0}]
[null,null,null,null,null,null,null,null,null,null,null,null,null,null,null,null,380,{"$f":"'Voc 4'!C383","v":0},{"$f":"'Voc 4'!D383","v":0},{"$f":"'Voc 4'!E383","v":0}]
[null,null,null,null,null,null,null,null,null,null,null,null,null,null,null,null,381,{"$f":"'Voc 4'!C384","v":0},{"$f":"'Voc 4'!D384","v":0},{"$f":"'Voc 4'!E384","v":0}]
[null,null,null,null,null,null,null,null,null,null,null,null,null,null,null,null,382,{"$f":"'Voc 4'!C385","v":0},{"$f":"'Voc 4'!D385","v":0},{"$f":"'Voc 4'!E385","v":0}]
[null,null,null,null,null,null,null,null,null,null,null,null,null,null,null,null,383,{"$f":"'Voc 4'!C386","v":0},{"$f":"'Voc 4'!D386","v":0},{"$f":"'Voc 4'!E386","v":0}]
[null,null,null,null,null,null,null,null,null,null,null,null,null,null,null,null,384,{"$f":"'Voc 4'!C387","v":0},{"$f":"'Voc 4'!D387","v":0},{"$f":"'Voc 4'!E387","v":0}]
[null,null,null,null,null,null,null,null,null,null,null,null,null,null,null,null,385,{"$f":"'Voc 4'!C388","v":0},{"$f":"'Voc 4'!D388","v":0},{"$f":"'Voc 4'!E388","v":0}]
[null,null,null,null,null,null,null,null,null,null,null,null,null,null,null,null,386,{"$f":"'Voc 4'!C389","v":0},{"$f":"'Voc 4'!D389","v":0},{"$f":"'Voc 4'!E389","v":0}]
[null,null,null,null,null,null,null,null,null,null,null,null,null,null,null,null,387,{"$f":"'Voc 4'!C390","v":0},{"$f":"'Voc 4'!D390","v":0},{"$f":"'Voc 4'!E390","v":0}]
[null,null,null,null,null,null,null,null,null,null,null,null,null,null,null,null,388,{"$f":"'Voc 4'!C391","v":0},{"$f":"'Voc 4'!D391","v":0},{"$f":"'Voc 4'!E391","v":0}]
[null,null,null,null,null,null,null,null,null,null,null,null,null,null,null,null,389,{"$f":"'Voc 4'!C392","v":0},{"$f":"'Voc 4'!D392","v":0},{"$f":"'Voc 4'!E392","v":0}]
[null,null,null,null,null,null,null,null,null,null,null,null,null,null,null,null,390,{"$f":"'Voc 4'!C393","v":0},{"$f":"'Voc 4'!D393","v":0},{"$f":"'Voc 4'!E393","v":0}]
[null,null,null,null,null,null,null,null,null,null,null,null,null,null,null,null,391,{"$f":"'Voc 4'!C394","v":0},{"$f":"'Voc 4'!D394","v":0},{"$f":"'Voc 4'!E394","v":0}]
[null,null,null,null,null,null,null,null,null,null,null,null,null,null,null,null,392,{"$f":"'Voc 4'!C395","v":0},{"$f":"'Voc 4'!D395","v":0},{"$f":"'Voc 4'!E395","v":0}]
[null,null,null,null,null,null,null,null,null,null,null,null,null,null,null,null,393,{"$f":"'Voc 4'!C396","v":0},{"$f":"'Voc 4'!D396","v":0},{"$f":"'Voc 4'!E396","v":0}]
[null,null,null,null,null,null,null,null,null,null,null,null,null,null,null,null,394,{"$f":"'Voc 4'!C397","v":0},{"$f":"'Voc 4'!D397","v":0},{"$f":"'Voc 4'!E397","v":0}]
[null,null,null,null,null,null,null,null,null,null,null,null,null,null,null,null,395,{"$f":"'Voc 4'!C398","v":0},{"$f":"'Voc 4'!D398","v":0},{"$f":"'Voc 4'!E398","v":0}]
[null,null,null,null,null,null,null,null,null,null,null,null,null,null,null,null,396,{"$f":"'Voc 4'!C399","v":0},{"$f":"'Voc 4'!D399","v":0},{"$f":"'Voc 4'!E399","v":0}]
[null,null,null,null,null,null,null,null,null,null,null,null,null,null,null,null,397,{"$f":"'Voc 4'!C400","v":0},{"$f":"'Voc 4'!D400","v":0},{"$f":"'Voc 4'!E400","v":0}]
[null,null,null,null,null,null,null,null,null,null,null,null,null,null,null,null,398,{"$f":"'Voc 4'!C401","v":0},{"$f":"'Voc 4'!D401","v":0},{"$f":"'Voc 4'!E401","v":0}]
[null,null,null,null,null,null,null,null,null,null,null,null,null,null,null,null,399,{"$f":"'Voc 4'!C402","v":0},{"$f":"'Voc 4'!D402","v":0},{"$f":"'Voc 4'!E402","v":0}]
[null,null,null,null,null,null,null,null,null,null,null,null,null,null,null,null,400,{"$f":"'Voc 4'!C403","v":0},{"$f":"'Voc 4'!D403","v":0},{"$f":"'Voc 4'!E403","v":0}]
[null,null,null,null,null,null,null,null,null,null,null,null,null,null,null,null,401,{"$f":"'Voc 4'!C404","v":0},{"$f":"'Voc 4'!D404","v":0},{"$f":"'Voc 4'!E404","v":0}]
[null,null,null,null,null,null,null,null,null,null,null,null,null,null,null,null,402,{"$f":"'Voc 4'!C405","v":0},{"$f":"'Voc 4'!D405","v":0},{"$f":"'Voc 4'!E405","v":0}]
[null,null,null,null,null,null,null,null,null,null,null,null,null,null,null,null,403,{"$f":"'Voc 4'!C406","v":0},{"$f":"'Voc 4'!D406","v":0},{"$f":"'Voc 4'!E406","v":0}]
[null,null,null,null,null,null,null,null,null,null,null,null,null,null,null,null,404,{"$f":"'Voc 4'!C407","v":0},{"$f":"'Voc 4'!D407","v":0},{"$f":"'Voc 4'!E407","v":0}]
[null,null,null,null,null,null,null,null,null,null,null,null,null,null,null,null,405,{"$f":"'Voc 4'!C408","v":0},{"$f":"'Voc 4'!D408","v":0},{"$f":"'Voc 4'!E408","v":0}]
[null,null,null,null,null,null,null,null,null,null,null,null,null,null,null,null,406,{"$f":"'Voc 4'!C409","v":0},{"$f":"'Voc 4'!D409","v":0},{"$f":"'Voc 4'!E409","v":0}]
[null,null,null,null,null,null,null,null,null,null,null,null,null,null,null,null,407,{"$f":"'Voc 4'!C410","v":0},{"$f":"'Voc 4'!D410","v":0},{"$f":"'Voc 4'!E410","v":0}]
[null,null,null,null,null,null,null,null,null,null,null,null,null,null,null,null,408,{"$f":"'Voc 4'!C411","v":0},{"$f":"'Voc 4'!D411","v":0},{"$f":"'Voc 4'!E411","v":0}]
[null,null,null,null,null,null,null,null,null,null,null,null,null,null,null,null,409,{"$f":"'Voc 4'!C412","v":0},{"$f":"'Voc 4'!D412","v":0},{"$f":"'Voc 4'!E412","v":0}]
[null,null,null,null,null,null,null,null,null,null,null,null,null,null,null,null,410,{"$f":"'Voc 4'!C413","v":0},{"$f":"'Voc 4'!D413","v":0},{"$f":"'Voc 4'!E413","v":0}]
[null,null,null,null,null,null,null,null,null,null,null,null,null,null,null,null,411,{"$f":"'Voc 4'!C414","v":0},{"$f":"'Voc 4'!D414","v":0},{"$f":"'Voc 4'!E414","v":0}]
[null,null,null,null,null,null,null,null,null,null,null,null,null,null,null,null,412,{"$f":"'Voc 4'!C415","v":0},{"$f":"'Voc 4'!D415","v":0},{"$f":"'Voc 4'!E415","v":0}]
[null,null,null,null,null,null,null,null,null,null,null,null,null,null,null,null,413,{"$f":"'Voc 4'!C416","v":0},{"$f":"'Voc 4'!D416","v":0},{"$f":"'Voc 4'!E416","v":0}]
[null,null,null,null,null,null,null,null,null,null,null,null,null,null,null,null,414,{"$f":"'Voc 4'!C417","v":0},{"$f":"'Voc 4'!D417","v":0},{"$f":"'Voc 4'!E417","v":0}]
[null,null,null,null,null,null,null,null,null,null,null,null,null,null,null,null,415,{"$f":"'Voc 4'!C418","v":0},{"$f":"'Voc 4'!D418","v":0},{"$f":"'Voc 4'!E418","v":0}]
[null,null,null,null,null,null,null,null,null,null,null,null,null,null,null,null,416,{"$f":"'Voc 4'!C419","v":0},{"$f":"'Voc 4'!D419","v":0},{"$f":"'Voc 4'!E419","v":0}]
[null,null,null,null,null,null,null,null,null,null,null,null,null,null,null,null,417,{"$f":"'Voc 4'!C420","v":0},{"$f":"'Voc 4'!D420","v":0},{"$f":"'Voc 4'!E420","v":0}]
[null,null,null,null,null,null,null,null,null,null,null,null,null,null,null,null,418,{"$f":"'Voc 4'!C421","v":0},{"$f":"'Voc 4'!D421","v":0},{"$f":"'Voc 4'!E421","v":0}]
[null,null,null,null,null,null,null,null,null,null,null,null,null,null,null,null,419,{"$f":"'Voc 4'!C422","v":0},{"$f":"'Voc 4'!D422","v":0},{"$f":"'Voc 4'!E422","v":0}]
[null,null,null,null,null,null,null,null,null,null,null,null,null,null,null,null,420,{"$f":"'Voc 4'!C423","v":0},{"$f":"'Voc 4'!D423","v":0},{"$f":"'Voc 4'!E423","v":0}]
[null,null,null,null,null,null,null,null,null,null,null,null,null,null,null,null,421,{"$f":"'Voc 4'!C424","v":0},{"$f":"'Voc 4'!D424","v":0},{"$f":"'Voc 4'!E424","v":0}]
[null,null,null,null,null,null,null,null,null,null,null,null,null,null,null,null,422,{"$f":"'Voc 4'!C425","v":0},{"$f":"'Voc 4'!D425","v":0},{"$f":"'Voc 4'!E425","v":0}]
[null,null,null,null,null,null,null,null,null,null,null,null,null,null,null,null,423,{"$f":"'Voc 4'!C426","v":0},{"$f":"'Voc 4'!D426","v":0},{"$f":"'Voc 4'!E426","v":0}]
[null,null,null,null,null,null,null,null,null,null,null,null,null,null,null,null,424,{"$f":"'Voc 4'!C427","v":0},{"$f":"'Voc 4'!D427","v":0},{"$f":"'Voc 4'!E427","v":0}]
[null,null,null,null,null,null,null,null,null,null,null,null,null,null,null,null,425,{"$f":"'Voc 4'!C428","v":0},{"$f":"'Voc 4'!D428","v":0},{"$f":"'Voc 4'!E428","v":0}]
[null,null,null,null,null,null,null,null,null,null,null,null,null,null,null,null,426,{"$f":"'Voc 4'!C429","v":0},{"$f":"'Voc 4'!D429","v":0},{"$f":"'Voc 4'!E429","v":0}]
[null,null,null,null,null,null,null,null,null,null,null,null,null,null,null,null,427,{"$f":"'Voc 4'!C430","v":0},{"$f":"'Voc 4'!D430","v":0},{"$f":"'Voc 4'!E430","v":0}]
[null,null,null,null,null,null,null,null,null,null,null,null,null,null,null,null,428,{"$f":"'Voc 4'!C431","v":0},{"$f":"'Voc 4'!D431","v":0},{"$f":"'Voc 4'!E431","v":0}]
[null,null,null,null,null,null,null,null,null,null,null,null,null,null,null,null,429,{"$f":"'Voc 4'!C432","v":0},{"$f":"'Voc 4'!D432","v":0},{"$f":"'Voc 4'!E432","v":0}]
[null,null,null,null,null,null,null,null,null,null,null,null,null,null,null,null,430,{"$f":"'Voc 4'!C433","v":0},{"$f":"'Voc 4'!D433","v":0},{"$f":"'Voc 4'!E433","v":0}]
[null,null,null,null,null,null,null,null,null,null,null,null,null,null,null,null,431,{"$f":"'Voc 4'!C434","v":0},{"$f":"'Voc 4'!D434","v":0},{"$f":"'Voc 4'!E434","v":0}]
[null,null,null,null,null,null,null,null,null,null,null,null,null,null,null,null,432,{"$f":"'Voc 4'!C435","v":0},{"$f":"'Voc 4'!D435","v":0},{"$f":"'Voc 4'!E435","v":0}]
[null,null,null,null,null,null,null,null,null,null,null,null,null,null,null,null,433,{"$f":"'Voc 4'!C436","v":0},{"$f":"'Voc 4'!D436","v":0},{"$f":"'Voc 4'!E436","v":0}]
[null,null,null,null,null,null,null,null,null,null,null,null,null,null,null,null,434,{"$f":"'Voc 4'!C437","v":0},{"$f":"'Voc 4'!D437","v":0},{"$f":"'Voc 4'!E437","v":0}]
[null,null,null,null,null,null,null,null,null,null,null,null,null,null,null,null,435,{"$f":"'Voc 4'!C438","v":0},{"$f":"'Voc 4'!D438","v":0},{"$f":"'Voc 4'!E438","v":0}]
[null,null,null,null,null,null,null,null,null,null,null,null,null,null,null,null,436,{"$f":"'Voc 4'!C439","v":0},{"$f":"'Voc 4'!D439","v":0},{"$f":"'Voc 4'!E439","v":0}]
[null,null,null,null,null,null,null,null,null,null,null,null,null,null,null,null,437,{"$f":"'Voc 4'!C440","v":0},{"$f":"'Voc 4'!D440","v":0},{"$f":"'Voc 4'!E440","v":0}]
[null,null,null,null,null,null,null,null,null,null,null,null,null,null,null,null,438,{"$f":"'Voc 4'!C441","v":0},{"$f":"'Voc 4'!D441","v":0},{"$f":"'Voc 4'!E441","v":0}]
[null,null,null,null,null,null,null,null,null,null,null,null,null,null,null,null,439,{"$f":"'Voc 4'!C442","v":0},{"$f":"'Voc 4'!D442","v":0},{"$f":"'Voc 4'!E442","v":0}]
[null,null,null,null,null,null,null,null,null,null,null,null,null,null,null,null,440,{"$f":"'Voc 4'!C443","v":0},{"$f":"'Voc 4'!D443","v":0},{"$f":"'Voc 4'!E443","v":0}]
[null,null,null,null,null,null,null,null,null,null,null,null,null,null,null,null,441,{"$f":"'Voc 4'!C444","v":0},{"$f":"'Voc 4'!D444","v":0},{"$f":"'Voc 4'!E444","v":0}]
[null,null,null,null,null,null,null,null,null,null,null,null,null,null,null,null,442,{"$f":"'Voc 4'!C445","v":0},{"$f":"'Voc 4'!D445","v":0},{"$f":"'Voc 4'!E445","v":0}]
[null,null,null,null,null,null,null,null,null,null,null,null,null,null,null,null,443,{"$f":"'Voc 4'!C446","v":0},{"$f":"'Voc 4'!D446","v":0},{"$f":"'Voc 4'!E446","v":0}]
[null,null,null,null,null,null,null,null,null,null,null,null,null,null,null,null,444,{"$f":"'Voc 4'!C447","v":0},{"$f":"'Voc 4'!D447","v":0},{"$f":"'Voc 4'!E447","v":0}]
[null,null,null,null,null,null,null,null,null,null,null,null,null,null,null,null,445,{"$f":"'Voc 4'!C448","v":0},{"$f":"'Voc 4'!D448","v":0},{"$f":"'Voc 4'!E448","v":0}]
[null,null,null,null,null,null,null,null,null,null,null,null,null,null,null,null,446,{"$f":"'Voc 4'!C449","v":0},{"$f":"'Voc 4'!D449","v":0},{"$f":"'Voc 4'!E449","v":0}]
[null,null,null,null,null,null,null,null,null,null,null,null,null,null,null,null,447,{"$f":"'Voc 4'!C450","v":0},{"$f":"'Voc 4'!D450","v":0},{"$f":"'Voc 4'!E450","v":0}]
[null,null,null,null,null,null,null,null,null,null,null,null,null,null,null,null,448,{"$f":"'Voc 4'!C451","v":0},{"$f":"'Voc 4'!D451","v":0},{"$f":"'Voc 4'!E451","v":0}]
[null,null,null,null,null,null,null,null,null,null,null,null,null,null,null,null,449,{"$f":"'Voc 4'!C452","v":0},{"$f":"'Voc 4'!D452","v":0},{"$f":"'Voc 4'!E452","v":0}]
[null,null,null,null,null,null,null,null,null,null,null,null,null,null,null,null,450,{"$f":"'Voc 4'!C453","v":0},{"$f":"'Voc 4'!D453","v":0},{"$f":"'Voc 4'!E453","v":0}]
[null,null,null,null,null,null,null,null,null,null,null,null,null,null,null,null,451,{"$f":"'Voc 4'!C454","v":0},{"$f":"'Voc 4'!D454","v":0},{"$f":"'Voc 4'!E454","v":0}]
[null,null,null,null,null,null,null,null,null,null,null,null,null,null,null,null,452,{"$f":"'Voc 4'!C455","v":0},{"$f":"'Voc 4'!D455","v":0},{"$f":"'Voc 4'!E455","v":0}]
[null,null,null,null,null,null,null,null,null,null,null,null,null,null,null,null,453,{"$f":"'Voc 4'!C456","v":0},{"$f":"'Voc 4'!D456","v":0},{"$f":"'Voc 4'!E456","v":0}]
[null,null,null,null,null,null,null,null,null,null,null,null,null,null,null,null,454,{"$f":"'Voc 4'!C457","v":0},{"$f":"'Voc 4'!D457","v":0},{"$f":"'Voc 4'!E457","v":0}]
[null,null,null,null,null,null,null,null,null,null,null,null,null,null,null,null,455,{"$f":"'Voc 4'!C458","v":0},{"$f":"'Voc 4'!D458","v":0},{"$f":"'Voc 4'!E458","v":0}]
[null,null,null,null,null,null,null,null,null,null,null,null,null,null,null,null,456,{"$f":"'Voc 4'!C459","v":0},{"$f":"'Voc 4'!D459","v":0},{"$f":"'Voc 4'!E459","v":0}]
[null,null,null,null,null,null,null,null,null,null,null,null,null,null,null,null,457,{"$f":"'Voc 4'!C460","v":0},{"$f":"'Voc 4'!D460","v":0},{"$f":"'Voc 4'!E460","v":0}]
[null,null,null,null,null,null,null,null,null,null,null,null,null,null,null,null,458,{"$f":"'Voc 4'!C461","v":0},{"$f":"'Voc 4'!D461","v":0},{"$f":"'Voc 4'!E461","v":0}]
[null,null,null,null,null,null,null,null,null,null,null,null,null,null,null,null,459,{"$f":"'Voc 4'!C462","v":0},{"$f":"'Voc 4'!D462","v":0},{"$f":"'Voc 4'!E462","v":0}]
[null,null,null,null,null,null,null,null,null,null,null,null,null,null,null,null,460,{"$f":"'Voc 4'!C463","v":0},{"$f":"'Voc 4'!D463","v":0},{"$f":"'Voc 4'!E463","v":0}]
[null,null,null,null,null,null,null,null,null,null,null,null,null,null,null,null,461,{"$f":"'Voc 4'!C464","v":0},{"$f":"'Voc 4'!D464","v":0},{"$f":"'Voc 4'!E464","v":0}]
[null,null,null,null,null,null,null,null,null,null,null,null,null,null,null,null,462,{"$f":"'Voc 4'!C465","v":0},{"$f":"'Voc 4'!D465","v":0},{"$f":"'Voc 4'!E465","v":0}]
[null,null,null,null,null,null,null,null,null,null,null,null,null,null,null,null,463,{"$f":"'Voc 4'!C466","v":0},{"$f":"'Voc 4'!D466","v":0},{"$f":"'Voc 4'!E466","v":0}]
[null,null,null,null,null,null,null,null,null,null,null,null,null,null,null,null,464,{"$f":"'Voc 4'!C467","v":0},{"$f":"'Voc 4'!D467","v":0},{"$f":"'Voc 4'!E467","v":0}]
[null,null,null,null,null,null,null,null,null,null,null,null,null,null,null,null,465,{"$f":"'Voc 4'!C468","v":0},{"$f":"'Voc 4'!D468","v":0},{"$f":"'Voc 4'!E468","v":0}]
[null,null,null,null,null,null,null,null,null,null,null,null,null,null,null,null,466,{"$f":"'Voc 4'!C469","v":0},{"$f":"'Voc 4'!D469","v":0},{"$f":"'Voc 4'!E469","v":0}]
[null,null,null,null,null,null,null,null,null,null,null,null,null,null,null,null,467,{"$f":"'Voc 4'!C470","v":0},{"$f":"'Voc 4'!D470","v":0},{"$f":"'Voc 4'!E470","v":0}]
[null,null,null,null,null,null,null,null,null,null,null,null,null,null,null,null,468,{"$f":"'Voc 4'!C471","v":0},{"$f":"'Voc 4'!D471","v":0},{"$f":"'Voc 4'!E471","v":0}]
[null,null,null,null,null,null,null,null,null,null,null,null,null,null,null,null,469,{"$f":"'Voc 4'!C472","v":0},{"$f":"'Voc 4'!D472","v":0},{"$f":"'Voc 4'!E472","v":0}]
[null,null,null,null,null,null,null,null,null,null,null,null,null,null,null,null,470,{"$f":"'Voc 4'!C473","v":0},{"$f":"'Voc 4'!D473","v":0},{"$f":"'Voc 4'!E473","v":0}]
[null,null,null,null,null,null,null,null,null,null,null,null,null,null,null,null,471,{"$f":"'Voc 4'!C474","v":0},{"$f":"'Voc 4'!D474","v":0},{"$f":"'Voc 4'!E474","v":0}]
[null,null,null,null,null,null,null,null,null,null,null,null,null,null,null,null,472,{"$f":"'Voc 4'!C475","v":0},{"$f":"'Voc 4'!D475","v":0},{"$f":"'Voc 4'!E475","v":0}]
[null,null,null,null,null,null,null,null,null,null,null,null,null,null,null,null,473,{"$f":"'Voc 4'!C476","v":0},{"$f":"'Voc 4'!D476","v":0},{"$f":"'Voc 4'!E476","v":0}]
[null,null,null,null,null,null,null,null,null,null,null,null,null,null,null,null,474,{"$f":"'Voc 4'!C477","v":0},{"$f":"'Voc 4'!D477","v":0},{"$f":"'Voc 4'!E477","v":0}]
[null,null,null,null,null,null,null,null,null,null,null,null,null,null,null,null,475,{"$f":"'Voc 4'!C478","v":0},{"$f":"'Voc 4'!D478","v":0},{"$f":"'Voc 4'!E478","v":0}]
[null,null,null,null,null,null,null,null,null,null,null,null,null,null,null,null,476,{"$f":"'Voc 4'!C479","v":0},{"$f":"'Voc 4'!D479","v":0},{"$f":"'Voc 4'!E479","v":0}]
[null,null,null,null,null,null,null,null,null,null,null,null,null,null,null,null,477,{"$f":"'Voc 4'!C480","v":0},{"$f":"'Voc 4'!D480","v":0},{"$f":"'Voc 4'!E480","v":0}]
[null,null,null,null,null,null,null,null,null,null,null,null,null,null,null,null,478,{"$f":"'Voc 4'!C481","v":0},{"$f":"'Voc 4'!D481","v":0},{"$f":"'Voc 4'!E481","v":0}]
[null,null,null,null,null,null,null,null,null,null,null,null,null,null,null,null,479,{"$f":"'Voc 4'!C482","v":0},{"$f":"'Voc 4'!D482","v":0},{"$f":"'Voc 4'!E482","v":0}]
[null,null,null,null,null,null,null,null,null,null,null,null,null,null,null,null,480,{"$f":"'Voc 4'!C483","v":0},{"$f":"'Voc 4'!D483","v":0},{"$f":"'Voc 4'!E483","v":0}]
[null,null,null,null,null,null,null,null,null,null,null,null,null,null,null,null,481,{"$f":"'Voc 4'!C484","v":0},{"$f":"'Voc 4'!D484","v":0},{"$f":"'Voc 4'!E484","v":0}]
[null,null,null,null,null,null,null,null,null,null,null,null,null,null,null,null,482,{"$f":"'Voc 4'!C485","v":0},{"$f":"'Voc 4'!D485","v":0},{"$f":"'Voc 4'!E485","v":0}]
[null,null,null,null,null,null,null,null,null,null,null,null,null,null,null,null,483,{"$f":"'Voc 4'!C486","v":0},{"$f":"'Voc 4'!D486","v":0},{"$f":"'Voc 4'!E486","v":0}]
[null,null,null,null,null,null,null,null,null,null,null,null,null,null,null,null,484,{"$f":"'Voc 4'!C487","v":0},{"$f":"'Voc 4'!D487","v":0},{"$f":"'Voc 4'!E487","v":0}]
[null,null,null,null,null,null,null,null,null,null,null,null,null,null,null,null,485,{"$f":"'Voc 4'!C488","v":0},{"$f":"'Voc 4'!D488","v":0},{"$f":"'Voc 4'!E488","v":0}]
[null,null,null,null,null,null,null,null,null,null,null,null,null,null,null,null,486,{"$f":"'Voc 4'!C489","v":0},{"$f":"'Voc 4'!D489","v":0},{"$f":"'Voc 4'!E489","v":0}]
[null,null,null,null,null,null,null,null,null,null,null,null,null,null,null,null,487,{"$f":"'Voc 4'!C490","v":0},{"$f":"'Voc 4'!D490","v":0},{"$f":"'Voc 4'!E490","v":0}]
[null,null,null,null,null,null,null,null,null,null,null,null,null,null,null,null,488,{"$f":"'Voc 4'!C491","v":0},{"$f":"'Voc 4'!D491","v":0},{"$f":"'Voc 4'!E491","v":0}]
[null,null,null,null,null,null,null,null,null,null,null,null,null,null,null,null,489,{"$f":"'Voc 4'!C492","v":0},{"$f":"'Voc 4'!D492","v":0},{"$f":"'Voc 4'!E492","v":0}]
[null,null,null,null,null,null,null,null,null,null,null,null,null,null,null,null,490,{"$f":"'Voc 4'!C493","v":0},{"$f":"'Voc 4'!D493","v":0},{"$f":"'Voc 4'!E493","v":0}]
[null,null,null,null,null,null,null,null,null,null,null,null,null,null,null,null,491,{"$f":"'Voc 4'!C494","v":0},{"$f":"'Voc 4'!D494","v":0},{"$f":"'Voc 4'!E494","v":0}]
[null,null,null,null,null,null,null,null,null,null,null,null,null,null,null,null,492,{"$f":"'Voc 4'!C495","v":0},{"$f":"'Voc 4'!D495","v":0},{"$f":"'Voc 4'!E495","v":0}]
[null,null,null,null,null,null,null,null,null,null,null,null,null,null,null,null,493,{"$f":"'Voc 4'!C496","v":0},{"$f":"'Voc 4'!D496","v":0},{"$f":"'Voc 4'!E496","v":0}]
[null,null,null,null,null,null,null,null,null,null,null,null,null,null,null,null,494,{"$f":"'Voc 4'!C497","v":0},{"$f":"'Voc 4'!D497","v":0},{"$f":"'Voc 4'!E497","v":0}]
[null,null,null,null,null,null,null,null,null,null,null,null,null,null,null,null,495,{"$f":"'Voc 4'!C498","v":0},{"$f":"'Voc 4'!D498","v":0},{"$f":"'Voc 4'!E498","v":0}]
[null,null,null,null,null,null,null,null,null,null,null,null,null,null,null,null,496,{"$f":"'Voc 4'!C499","v":0},{"$f":"'Voc 4'!D499","v":0},{"$f":"'Voc 4'!E499","v":0}]
[null,null,null,null,null,null,null,null,null,null,null,null,null,null,null,null,497,{"$f":"'Voc 4'!C500","v":0},{"$f":"'Voc 4'!D500","v":0},{"$f":"'Voc 4'!E500","v":0}]
[null,null,null,null,null,null,null,null,null,null,null,null,null,null,null,null,498,{"$f":"'Voc 4'!C501","v":0},{"$f":"'Voc 4'!D501","v":0},{"$f":"'Voc 4'!E501","v":0}]
[null,null,null,null,null,null,null,null,null,null,null,null,null,null,null,null,499,{"$f":"'Voc 4'!C502","v":0},{"$f":"'Voc 4'!D502","v":0},{"$f":"'Voc 4'!E502","v":0}]
[null,null,null,null,null,null,null,null,null,null,null,null,null,null,null,null,500,{"$f":"'Voc 4'!C503","v":0},{"$f":"'Voc 4'!D503","v":0},{"$f":"'Voc 4'!E503","v":0}]
[null,null,null,null,null,null,null,null,null,null,null,null,null,null,null,null,501]

{"sheet":"Chercher la définition","index":3,"n_rows":512,"n_cols":27,"rows_kept":512,"cut":false,"hidden":false,"merged":[[24,22,24,24],[18,22,18,24],[19,22,19,24],[20,22,20,24],[21,22,21,24],[23,22,23,24],[14,22,14,24],[15,22,15,24],[16,22,16,24],[17,22,17,24],[22,22,22,24],[38,10,38,11],[38,0,38,2],[31,8,31,9],[9,2,9,10],[14,2,14,10],[16,0,16,2],[24,5,25,9]]}
[]
[]
[]
[]
[null,null,null,null,null,null,null,null,null,null,null,null,null,null,null,{"$f":"INDEX(P16:P25,P7)","v":"Voc 7"},"Nombre de question :",null,{"$f":"500-COUNTIF(R8:R508,\"=0\")","v":185},0]
[null,null,null,null,null,null,null,null,null,null,null,null,null,null,null,null,null,null,null,null,null,{"$f":"COUNTIF(V9:V508,\"=1\")","v":0},"total juste"]
[null,null,null,null,null,null,null,null,null,null,null,null,null,null,null,7,"no","Questions","Réponses","Réponses pour test",null,"juste = 1",null,null,"Test réponse"]
[null,null,null,null,null,null,null,null,null,null,null,null,null,null,null,"Cellule liée",0,{"$f":"'Voc 7'!C3","v":"Anglais de base"},{"$f":"R8","v":"Anglais de base"},{"$f":"'Voc 7'!E3","v":0}]
[null,null,"Question :",null,null,null,null,null,null,null,null,null,null,null,null,null,1,{"$f":"'Voc 7'!C4","v":"à la gare"},{"$f":"'Voc 7'!D4","v":"at the station"},{"$f":"'Voc 7'!E4","v":"at the station"},"  ",null,null,null,"Réponse E","contenu"]
[null,0,{"$f":"VLOOKUP(B10,Q8:T508,3)","v":"Anglais de base"},null,null,null,null,null,null,null,null,null,null,null,null,null,2,{"$f":"'Voc 7'!C5","v":"le train"},{"$f":"'Voc 7'!D5","v":"the train"},{"$f":"'Voc 7'!E5","v":"the train"},null,null,null,null,{"$f":"F25","v":0},{"$f":"SEARCH(VLOOKUP(B10,Q8:T508,4),Y10)","v":1},{"$f":"IF(ISERR(Z10)=TRUE,0,1)","v":1}]
[null,null,null,null,null,null,null,null,null,null,null,null,null,null,null,null,3,{"$f":"'Voc 7'!C6","v":"le train se trouve au quai"},{"$f":"'Voc 7'!D6","v":"the train is standing at platform"},{"$f":"'Voc 7'!E6","v":"the train is standing at platform"}]
[null,null,null,null,null,null,null,null,null,null,null,null,null,null,null,null,4,{"$f":"'Voc 7'!C7","v":"il y a quelques passagers là bas"},{"$f":"'Voc 7'!D7","v":"there are some passengers there"},{"$f":"'Voc 7'!E7","v":"there are some passengers there"},null,null,null,null,{"$f":"B10","v":0}]
[null,null,null,null,null,null,null,null,null,null,null,null,null,null,null,null,5,{"$f":"'Voc 7'!C8","v":"une dame parle à un porteur"},{"$f":"'Voc 7'!D8","v":"a lady is talking to a porter"},{"$f":"'Voc 7'!E8","v":"a lady is talking to a porter"}]
[null,null,"Définition à trouver oralement :",null,null,null,null,null,null,null,null,null,null,null,null,null,6,{"$f":"'Voc 7'!C9","v":"oui, madame"},{"$f":"'Voc 7'!D9","v":"yes, madam"},{"$f":"'Voc 7'!E9","v":"yes, madam"}]
[null,163,{"$f":"VLOOKUP(B15,Q8:T508,2)","v":"a l'arrivée les passagers prennent leurs sacs"},null,null,null,null,null,null,null,null,null,null,null,null,"Nom des onglets",7,{"$f":"'Voc 7'!C10","v":"comment puis-je aller d'ici à la gare"},{"$f":"'Voc 7'!D10","v":"how can I get from here to the station"},{"$f":"'Voc 7'!E10","v":"how can I get from here to the station"},null,null,"Nom des voc"]
[null,null,null,null,null,null,null,null,null,null,null,null,null,null,null,"Voc 1",8,{"$f":"'Voc 7'!C11","v":"en Métro"},{"$f":"'Voc 7'!D11","v":"by Underground"},{"$f":"'Voc 7'!E11","v":"by Underground"},null,null,{"$f":"'Voc 1'!$C$3","v":"Vocabulaire économique"}]
["      Question suivante     ",null,null,null,null,null,null,null,null,null,"Nombre de tirages :",null,null,null,null,"Voc 2",9,{"$f":"'Voc 7'!C12","v":"il y a une file au guichet"},{"$f":"'Voc 7'!D12","v":"there is a queue in the ticket office"},{"$f":"'Voc 7'!E12","v":"there is a queue in the ticket office"},null,null,{"$f":"'Voc 2'!$C$3","v":"Voc. abscons !"}]
[" +",null,null,null,null,null,null,null,null,null,{"$f":"V6","v":0},null,null,null,null,"Voc 3",10,{"$f":"'Voc 7'!C13","v":"employé du guichet de réservation"},{"$f":"'Voc 7'!D13","v":"ticket clerk"},{"$f":"'Voc 7'!E13","v":"ticket clerk"},null,null,{"$f":"'Voc 3'!$C$3","v":"Voc Louis"}]
[null,1,null,null,null,null,null,null,null,null,null,null,null,null,null,"Voc 4",11,{"$f":"'Voc 7'!C14","v":"deuxième classe"},{"$f":"'Voc 7'!D14","v":"second class"},{"$f":"'Voc 7'!E14","v":"second class"},null,null,{"$f":"'Voc 4'!$C$3","v":"Cris des animaux"}]
[null,null,null,null,null,null,null,null,null,null,null,null,null,null,null,"Voc 5",12,{"$f":"'Voc 7'!C15","v":"aller simple ou aller et retour"},{"$f":"'Voc 7'!D15","v":"single or return"},{"$f":"'Voc 7'!E15","v":"single or return"},null,null,{"$f":"'Voc 5'!$C$3","v":"Hommes et femmes "}]
[" -",null,null,null,null,null,null,null,null,null,null,null,null,null,null,"Voc 6",13,{"$f":"'Voc 7'!C16","v":"monsieur"},{"$f":"'Voc 7'!D16","v":"sir"},{"$f":"'Voc 7'!E16","v":"sir"},null,null,{"$f":"'Voc 6'!$C$3","v":"Architecture"}]
[null,null,null,null,null,null,null,null,null,null,null,null,null,null,null,"Voc 7",14,{"$f":"'Voc 7'!C17","v":"semaine"},{"$f":"'Voc 7'!D17","v":"week"},{"$f":"'Voc 7'!E17","v":"week"},null,null,{"$f":"'Voc 7'!$C$3","v":"Anglais de base"}]
[null,null,null,null,null,null,null,null,null,null,null,null,null,null,null,"Voc 8",15,{"$f":"'Voc 7'!C18","v":"bon marché"},{"$f":"'Voc 7'!D18","v":"cheap"},{"$f":"'Voc 7'!E18","v":"cheap"},null,null,{"$f":"'Voc 8'!$C$3","v":"Anglais commercial"}]
[null,null,null,null,null,null,null,null,null,null,null,null,null,null,null,"Voc 9",16,{"$f":"'Voc 7'!C19","v":"Est-ce qu'il y a un billet de retour bon marché pour le weekend"},{"$f":"'Voc 7'!D19","v":"is there a cheap weekend return"},{"$f":"'Voc 7'!E19","v":"is there a cheap weekend return"},null,null,{"$f":"'Voc 9'!$C$3","v":"Vide"}]
[null,null,null,null,null,null,null,null,null,null,null,null,null,null,null,"Voc 10",17,{"$f":"'Voc 7'!C20","v":"Sois de retour lundi"},{"$f":"'Voc 7'!D20","v":"be back on Monday"},{"$f":"'Voc 7'!E20","v":"be back on Monday"},null,null,{"$f":"'Voc 10'!$C$3","v":"Vide"}]
[null,null,null,null,null,null,null,null,null,null,null,null,null,null,null,null,18,{"$f":"'Voc 7'!C21","v":"quand"},{"$f":"'Voc 7'!D21","v":"when"},{"$f":"'Voc 7'!E21","v":"when"}]
[null,null,null,null,null,null,null,null,null,null,null,null,null,null,null,null,19,{"$f":"'Voc 7'!C22","v":"le prochain train"},{"$f":"'Voc 7'!D22","v":"the next train"},{"$f":"'Voc 7'!E22","v":"the next train"}]
[null,null,null,null,null,null,null,null,null,null,null,null,null,null,null,null,20,{"$f":"'Voc 7'!C23","v":"nous voulons acheter un billet"},{"$f":"'Voc 7'!D23","v":"we want to buy a ticket"},{"$f":"'Voc 7'!E23","v":"we want to buy a ticket"}]
[null,null,null,null,null,null,null,null,null,null,null,null,null,null,null,null,21,{"$f":"'Voc 7'!C24","v":"samedi"},{"$f":"'Voc 7'!D24","v":"Saturday"},{"$f":"'Voc 7'!E24","v":"Saturday"}]
[null,null,null,null,null,null,null,null,null,null,null,null,null,null,null,null,22,{"$f":"'Voc 7'!C25","v":"c'est tout juste, chérie"},{"$f":"'Voc 7'!D25","v":"it's all right, dear"},{"$f":"'Voc 7'!E25","v":"it's all right, dear"}]
[null,null,null,null,null,null,null,null,null,null,"   Remettre dans le tirage",null,null,null,null,null,23,{"$f":"'Voc 7'!C26","v":"encore"},{"$f":"'Voc 7'!D26","v":"again"},{"$f":"'Voc 7'!E26","v":"again"}]
[null,null,"Ctrl s = voir solution",null,null,null,null,null,"Tirage au sort ",null,"   la question  no :",null,null,null,null,null,24,{"$f":"'Voc 7'!C27","v":"aux feux de signalisation routière"},{"$f":"'Voc 7'!D27","v":"at the traffic-lights"},{"$f":"'Voc 7'!E27","v":"at the traffic-lights"}]
[null,null,"Ctrl w = cacher la zone solution",null,null,"Zoom",null,null,"entre :",1,{"$f":"B10","v":0},null,null,null,null,null,25,{"$f":"'Voc 7'!C28","v":"il conduit sa voiture"},{"$f":"'Voc 7'!D28","v":"he is driving his car"},{"$f":"'Voc 7'!E28","v":"he is driving his car"}]
[null,null,"Ctrl  r = tirage au sort",null,null,null,null,null,"et :",{"$f":"J35","v":185},null,null,null,null,null,null,26,{"$f":"'Voc 7'!C29","v":"à travers"},{"$f":"'Voc 7'!D29","v":"through"},{"$f":"'Voc 7'!E29","v":"through"}]
[null,null,{"$f":"IF(B10=40,\"Fini de rigoler… maintenant, à vous de créer un quiz !\",\"\")","v":""},null,null,100,null,null,"maximum :",{"$f":"S5","v":185},null,null,null,null,null,null,27,{"$f":"'Voc 7'!C30","v":"il y a un taxi ici"},{"$f":"'Voc 7'!D30","v":"there is a taxi here"},{"$f":"'Voc 7'!E30","v":"there is a taxi here"}]
[null,null,null,null,null,null,null,null,null,null,null,null,null,null,null,null,28,{"$f":"'Voc 7'!C31","v":"il est sur sa bicyclette"},{"$f":"'Voc 7'!D31","v":"he is on his bike"},{"$f":"'Voc 7'!E31","v":"he is on his bike"}]
[null,null,null,null,null,null,null,null,null,null,null,null,null,null,null,null,29,{"$f":"'Voc 7'!C32","v":"le centre de"},{"$f":"'Voc 7'!D32","v":"the centre of"},{"$f":"'Voc 7'!E32","v":"the centre of"}]
[null,null,null,null,null,null,null,null,null,null,null,null,null,null,null,null,30,{"$f":"'Voc 7'!C33","v":"ils traversent les feux"},{"$f":"'Voc 7'!D33","v":"they are going through the lights"},{"$f":"'Voc 7'!E33","v":"they are going through the lights"}]
[{"$f":"Entrée!I42","v":"        Version 28.11.02/27.11.14"},null,null,null,null,null,null,null,null,null,"© Y. Péguiron  ",null,null,null,null,null,31,{"$f":"'Voc 7'!C34","v":"les feux sont au fer"},{"$f":"'Voc 7'!D34","v":"the lights are green"},{"$f":"'Voc 7'!E34","v":"the lights are green"}]
[null,null,null,null,null,null,null,null,null,null,null,null,null,null,null,null,32,{"$f":"'Voc 7'!C35","v":"les feux sont au rouge"},{"$f":"'Voc 7'!D35","v":"the lights are red"},{"$f":"'Voc 7'!E35","v":"the lights are red"}]
[null,null,null,null,null,null,null,null,null,null,null,null,null,null,null,null,33,{"$f":"'Voc 7'!C36","v":"ballon"},{"$f":"'Voc 7'!D36","v":"ball"},{"$f":"'Voc 7'!E36","v":"ball"}]
[null,null,null,null,null,null,null,null,null,null,null,null,null,null,null,null,34,{"$f":"'Voc 7'!C37","v":"il est footballeur"},{"$f":"'Voc 7'!D37","v":"he is a football player"},{"$f":"'Voc 7'!E37","v":"he is a football player"}]
[null,null,null,null,null,null,null,null,null,null,null,null,null,null,null,null,35,{"$f":"'Voc 7'!C38","v":"il a un match important"},{"$f":"'Voc 7'!D38","v":"he has got an important match"},{"$f":"'Voc 7'!E38","v":"he has got an important match"}]
[null,null,null,null,null,null,null,null,null,null,null,null,null,null,null,null,36,{"$f":"'Voc 7'!C39","v":"joueur de foot à Arsenal"},{"$f":"'Voc 7'!D39","v":"football player for Arsenal"},{"$f":"'Voc 7'!E39","v":"football player for Arsenal"}]
[null,null,null,null,null,null,null,null,null,null,null,null,null,null,null,null,37,{"$f":"'Voc 7'!C40","v":"il n'y a pas de collision"},{"$f":"'Voc 7'!D40","v":"there is no crash"},{"$f":"'Voc 7'!E40","v":"there is no crash"}]
[null,null,null,null,null,null,null,null,null,null,null,null,null,null,null,null,38,{"$f":"'Voc 7'!C41","v":"elle fait signe à M. Blake de s'arrêter"},{"$f":"'Voc 7'!D41","v":"she is signaling Mr Blake to stop"},{"$f":"'Voc 7'!E41","v":"she is signaling Mr Blake to stop"}]
[null,null,null,null,null,null,null,null,null,null,null,null,null,null,null,null,39,{"$f":"'Voc 7'!C42","v":"elle emporte son carnet"},{"$f":"'Voc 7'!D42","v":"she is taking out her notebook"},{"$f":"'Voc 7'!E42","v":"she is taking out her notebook"}]
[null,null,null,null,null,null,null,null,null,null,null,null,null,null,null,null,40,{"$f":"'Voc 7'!C43","v":"qu'elle est votre adresse"},{"$f":"'Voc 7'!D43","v":"what's your address"},{"$f":"'Voc 7'!E43","v":"what's your address"}]
[null,null,null,null,null,null,null,null,null,null,null,null,null,null,null,null,41,{"$f":"'Voc 7'!C44","v":"juste pour aujourd'hui"},{"$f":"'Voc 7'!D44","v":"just for today"},{"$f":"'Voc 7'!E44","v":"just for today"}]
[null,null,null,null,null,null,null,null,null,null,null,null,null,null,null,null,42,{"$f":"'Voc 7'!C45","v":"ne peux-tu l'oublier"},{"$f":"'Voc 7'!D45","v":"can't you forget it"},{"$f":"'Voc 7'!E45","v":"can't you forget it"}]
[null,null,null,null,null,null,null,null,null,null,null,null,null,null,null,null,43,{"$f":"'Voc 7'!C46","v":"tu ne dois pas passer aux feux"},{"$f":"'Voc 7'!D46","v":"°"},{"$f":"'Voc 7'!E46","v":"you must'nt drive through the lights"}]
[null,null,null,null,null,null,null,null,null,null,null,null,null,null,null,null,44,{"$f":"'Voc 7'!C47","v":"c'est très dangereux"},{"$f":"'Voc 7'!D47","v":"it's very dangerous"},{"$f":"'Voc 7'!E47","v":"it's very dangerous"}]
[null,null,null,null,null,null,null,null,null,null,null,null,null,null,null,null,45,{"$f":"'Voc 7'!C48","v":"puis-je voir votre permis de conduire"},{"$f":"'Voc 7'!D48","v":"can I see your driving licence"},{"$f":"'Voc 7'!E48","v":"can I see your driving licence"}]
[null,null,null,null,null,null,null,null,null,null,null,null,null,null,null,null,46,{"$f":"'Voc 7'!C49","v":"vous n'avez pas besoin de faire un rapport"},{"$f":"'Voc 7'!D49","v":"you needn't report it"},{"$f":"'Voc 7'!E49","v":"you needn't report it"}]
[null,null,null,null,null,null,null,null,null,null,null,null,null,null,null,null,47,{"$f":"'Voc 7'!C50","v":"je suis désolé"},{"$f":"'Voc 7'!D50","v":"I'm sorry"},{"$f":"'Voc 7'!E50","v":"I'm sorry"}]
[null,null,null,null,null,null,null,null,null,null,null,null,null,null,null,null,48,{"$f":"'Voc 7'!C51","v":"il est supporter"},{"$f":"'Voc 7'!D51","v":"he's a fan"},{"$f":"'Voc 7'!E51","v":"he's a fan"}]
[null,null,null,null,null,null,null,null,null,null,null,null,null,null,null,null,49,{"$f":"'Voc 7'!C52","v":"moi-même"},{"$f":"'Voc 7'!D52","v":"myself"},{"$f":"'Voc 7'!E52","v":"myself"}]
[null,null,null,null,null,null,null,null,null,null,null,null,null,null,null,null,50,{"$f":"'Voc 7'!C53","v":"puis-je continuer maintenant"},{"$f":"'Voc 7'!D53","v":"can I drive on noy"},{"$f":"'Voc 7'!E53","v":"can I drive on noy"}]
[null,null,null,null,null,null,null,null,null,null,null,null,null,null,null,null,51,{"$f":"'Voc 7'!C54","v":"bonne chance"},{"$f":"'Voc 7'!D54","v":"good luck"},{"$f":"'Voc 7'!E54","v":"good luck"}]
[null,null,null,null,null,null,null,null,null,null,null,null,null,null,null,null,52,{"$f":"'Voc 7'!C55","v":"le conducteur doit s'arrêter"},{"$f":"'Voc 7'!D55","v":"the driver must stop"},{"$f":"'Voc 7'!E55","v":"the driver must stop"}]
[null,null,null,null,null,null,null,null,null,null,null,null,null,null,null,null,53,{"$f":"'Voc 7'!C56","v":"on sonne à la porte"},{"$f":"'Voc 7'!D56","v":"the door-bell is ringing"},{"$f":"'Voc 7'!E56","v":"the door-bell is ringing"}]
[null,null,null,null,null,null,null,null,null,null,null,null,null,null,null,null,54,{"$f":"'Voc 7'!C57","v":"un magasin"},{"$f":"'Voc 7'!D57","v":"a shop"},{"$f":"'Voc 7'!E57","v":"a shop"}]
[null,null,null,null,null,null,null,null,null,null,null,null,null,null,null,null,55,{"$f":"'Voc 7'!C58","v":"le réveil sonne"},{"$f":"'Voc 7'!D58","v":"the alarm clock is ringing"},{"$f":"'Voc 7'!E58","v":"the alarm clock is ringing"}]
[null,null,null,null,null,null,null,null,null,null,null,null,null,null,null,null,56,{"$f":"'Voc 7'!C59","v":"c'est pourquoi il doit se lever tôt"},{"$f":"'Voc 7'!D59","v":"so he must get up early"},{"$f":"'Voc 7'!E59","v":"so he must get up early"}]
[null,null,null,null,null,null,null,null,null,null,null,null,null,null,null,null,57,{"$f":"'Voc 7'!C60","v":"son équipe est Arsenal"},{"$f":"'Voc 7'!D60","v":"his team is Arsenal"},{"$f":"'Voc 7'!E60","v":"his team is Arsenal"}]
[null,null,null,null,null,null,null,null,null,null,null,null,null,null,null,null,58,{"$f":"'Voc 7'!C61","v":"Liverpool contre Arsenal"},{"$f":"'Voc 7'!D61","v":"Liverpool against Arsenal"},{"$f":"'Voc 7'!E61","v":"Liverpool against Arsenal"}]
[null,null,null,null,null,null,null,null,null,null,null,null,null,null,null,null,59,{"$f":"'Voc 7'!C62","v":"bientôt"},{"$f":"'Voc 7'!D62","v":"soon"},{"$f":"'Voc 7'!E62","v":"soon"}]
[null,null,null,null,null,null,null,null,null,null,null,null,null,null,null,null,60,{"$f":"'Voc 7'!C63","v":"peu après neuf heures"},{"$f":"'Voc 7'!D63","v":"soon after nine o'clock"},{"$f":"'Voc 7'!E63","v":"soon after nine o'clock"}]
[null,null,null,null,null,null,null,null,null,null,null,null,null,null,null,null,61,{"$f":"'Voc 7'!C64","v":"il doit se dépêcher parce qu'il est huit heure"},{"$f":"'Voc 7'!D64","v":"he must hurry because it is eight o'clock"},{"$f":"'Voc 7'!E64","v":"he must hurry because it is eight o'clock"}]
[null,null,null,null,null,null,null,null,null,null,null,null,null,null,null,null,62,{"$f":"'Voc 7'!C65","v":"Alan saute du bus"},{"$f":"'Voc 7'!D65","v":"Alan is jumping off the bus"},{"$f":"'Voc 7'!E65","v":"Alan is jumping off the bus"}]
[null,null,null,null,null,null,null,null,null,null,null,null,null,null,null,null,63,{"$f":"'Voc 7'!C66","v":"le métro est très plein"},{"$f":"'Voc 7'!D66","v":"the Underground is very full"},{"$f":"'Voc 7'!E66","v":"the Underground is very full"}]
[null,null,null,null,null,null,null,null,null,null,null,null,null,null,null,null,64,{"$f":"'Voc 7'!C67","v":"Alan doit vraiment se dépêcher maintenant"},{"$f":"'Voc 7'!D67","v":"Alan really must hurry now"},{"$f":"'Voc 7'!E67","v":"Alan really must hurry now"}]
[null,null,null,null,null,null,null,null,null,null,null,null,null,null,null,null,65,{"$f":"'Voc 7'!C68","v":"Alan doit courir"},{"$f":"'Voc 7'!D68","v":"Alan must run"},{"$f":"'Voc 7'!E68","v":"Alan must run"}]
[null,null,null,null,null,null,null,null,null,null,null,null,null,null,null,null,66,{"$f":"'Voc 7'!C69","v":"pauvre Alan"},{"$f":"'Voc 7'!D69","v":"poor Alan"},{"$f":"'Voc 7'!E69","v":"poor Alan"}]
[null,null,null,null,null,null,null,null,null,null,null,null,null,null,null,null,67,{"$f":"'Voc 7'!C70","v":"il doit aller à la maison"},{"$f":"'Voc 7'!D70","v":"he must go home"},{"$f":"'Voc 7'!E70","v":"he must go home"}]
[null,null,null,null,null,null,null,null,null,null,null,null,null,null,null,null,68,{"$f":"'Voc 7'!C71","v":"il y a un match surprise à la radio"},{"$f":"'Voc 7'!D71","v":"there is a surprise match on the radio"},{"$f":"'Voc 7'!E71","v":"there is a surprise match on the radio"}]
[null,null,null,null,null,null,null,null,null,null,null,null,null,null,null,null,69,{"$f":"'Voc 7'!C72","v":"il est entrain de brancher la radio"},{"$f":"'Voc 7'!D72","v":"he is switching on the radio"},{"$f":"'Voc 7'!E72","v":"he is switching on the radio"}]
[null,null,null,null,null,null,null,null,null,null,null,null,null,null,null,null,70,{"$f":"'Voc 7'!C73","v":"le match commence"},{"$f":"'Voc 7'!D73","v":"the match is beginning"},{"$f":"'Voc 7'!E73","v":"the match is beginning"}]
[null,null,null,null,null,null,null,null,null,null,null,null,null,null,null,null,71,{"$f":"'Voc 7'!C74","v":"où doit-il aller"},{"$f":"'Voc 7'!D74","v":"where must he go"},{"$f":"'Voc 7'!E74","v":"where must he go"}]
[null,null,null,null,null,null,null,null,null,null,null,null,null,null,null,null,72,{"$f":"'Voc 7'!C75","v":"la bouteille est ouverte"},{"$f":"'Voc 7'!D75","v":"the bottle is open"},{"$f":"'Voc 7'!E75","v":"the bottle is open"}]
[null,null,null,null,null,null,null,null,null,null,null,null,null,null,null,null,73,{"$f":"'Voc 7'!C76","v":"le café est très chaud"},{"$f":"'Voc 7'!D76","v":"the coffee is very hot"},{"$f":"'Voc 7'!E76","v":"the coffee is very hot"}]
[null,null,null,null,null,null,null,null,null,null,null,null,null,null,null,null,74,{"$f":"'Voc 7'!C77","v":"la boîte est très grosse"},{"$f":"'Voc 7'!D77","v":"the box is very big"},{"$f":"'Voc 7'!E77","v":"the box is very big"}]
[null,null,null,null,null,null,null,null,null,null,null,null,null,null,null,null,75,{"$f":"'Voc 7'!C78","v":"lent"},{"$f":"'Voc 7'!D78","v":"slow"},{"$f":"'Voc 7'!E78","v":"slow"}]
[null,null,null,null,null,null,null,null,null,null,null,null,null,null,null,null,76,{"$f":"'Voc 7'!C79","v":"ils vont tous voir un film"},{"$f":"'Voc 7'!D79","v":"they are all going to see a film"},{"$f":"'Voc 7'!E79","v":"they are all going to see a film"}]
[null,null,null,null,null,null,null,null,null,null,null,null,null,null,null,null,77,{"$f":"'Voc 7'!C80","v":"ce sont les lunettes de Mme Mason"},{"$f":"'Voc 7'!D80","v":"where are Mrs Mason's glasses"},{"$f":"'Voc 7'!E80","v":"where are Mrs Mason's glasses"}]
[null,null,null,null,null,null,null,null,null,null,null,null,null,null,null,null,78,{"$f":"'Voc 7'!C81","v":"une fois c'est assez"},{"$f":"'Voc 7'!D81","v":"one is enough"},{"$f":"'Voc 7'!E81","v":"one is enough"}]
[null,null,null,null,null,null,null,null,null,null,null,null,null,null,null,null,79,{"$f":"'Voc 7'!C82","v":"c'est une voiture rapide"},{"$f":"'Voc 7'!D82","v":"that's a fast car"},{"$f":"'Voc 7'!E82","v":"that's a fast car"}]
[null,null,null,null,null,null,null,null,null,null,null,null,null,null,null,null,80,{"$f":"'Voc 7'!C83","v":"faible"},{"$f":"'Voc 7'!D83","v":"weak"},{"$f":"'Voc 7'!E83","v":"weak"}]
[null,null,null,null,null,null,null,null,null,null,null,null,null,null,null,null,81,{"$f":"'Voc 7'!C84","v":"formes accentuées"},{"$f":"'Voc 7'!D84","v":"strong forms"},{"$f":"'Voc 7'!E84","v":"strong forms"}]
[null,null,null,null,null,null,null,null,null,null,null,null,null,null,null,null,82,{"$f":"'Voc 7'!C85","v":"réponds à la question"},{"$f":"'Voc 7'!D85","v":"answer the question"},{"$f":"'Voc 7'!E85","v":"answer the question"}]
[null,null,null,null,null,null,null,null,null,null,null,null,null,null,null,null,83,{"$f":"'Voc 7'!C86","v":"Je vais bien, merci"},{"$f":"'Voc 7'!D86","v":"I'm fine, thanks"},{"$f":"'Voc 7'!E86","v":"I'm fine, thanks"}]
[null,null,null,null,null,null,null,null,null,null,null,null,null,null,null,null,84,{"$f":"'Voc 7'!C87","v":"au revoir"},{"$f":"'Voc 7'!D87","v":"good-bye"},{"$f":"'Voc 7'!E87","v":"good-bye"}]
[null,null,null,null,null,null,null,null,null,null,null,null,null,null,null,null,85,{"$f":"'Voc 7'!C88","v":"nouvelles du soir"},{"$f":"'Voc 7'!D88","v":"evening news"},{"$f":"'Voc 7'!E88","v":"evening news"}]
[null,null,null,null,null,null,null,null,null,null,null,null,null,null,null,null,86,{"$f":"'Voc 7'!C89","v":"décris l'image"},{"$f":"'Voc 7'!D89","v":"describe the picture"},{"$f":"'Voc 7'!E89","v":"describe the picture"}]
[null,null,null,null,null,null,null,null,null,null,null,null,null,null,null,null,87,{"$f":"'Voc 7'!C90","v":"pour la première fois"},{"$f":"'Voc 7'!D90","v":"for the first time"},{"$f":"'Voc 7'!E90","v":"for the first time"}]
[null,null,null,null,null,null,null,null,null,null,null,null,null,null,null,null,88,{"$f":"'Voc 7'!C91","v":"une femme"},{"$f":"'Voc 7'!D91","v":"a woman"},{"$f":"'Voc 7'!E91","v":"a woman"}]
[null,null,null,null,null,null,null,null,null,null,null,null,null,null,null,null,89,{"$f":"'Voc 7'!C92","v":"juste devant la gare"},{"$f":"'Voc 7'!D92","v":"just in front of the station"},{"$f":"'Voc 7'!E92","v":"just in front of the station"}]
[null,null,null,null,null,null,null,null,null,null,null,null,null,null,null,null,90,{"$f":"'Voc 7'!C93","v":"la vedette de tennis"},{"$f":"'Voc 7'!D93","v":"the tennis star"},{"$f":"'Voc 7'!E93","v":"the tennis star"}]
[null,null,null,null,null,null,null,null,null,null,null,null,null,null,null,null,91,{"$f":"'Voc 7'!C94","v":"ordre"},{"$f":"'Voc 7'!D94","v":"order"},{"$f":"'Voc 7'!E94","v":"order"}]
[null,null,null,null,null,null,null,null,null,null,null,null,null,null,null,null,92,{"$f":"'Voc 7'!C95","v":"racontez l'histoire avec vos propres mots"},{"$f":"'Voc 7'!D95","v":"tell the story in your own words"},{"$f":"'Voc 7'!E95","v":"tell the story in your own words"}]
[null,null,null,null,null,null,null,null,null,null,null,null,null,null,null,null,93,{"$f":"'Voc 7'!C96","v":"il porte du sac de tennis"},{"$f":"'Voc 7'!D96","v":"he's carrying a tennis bag"},{"$f":"'Voc 7'!E96","v":"he's carrying a tennis bag"}]
[null,null,null,null,null,null,null,null,null,null,null,null,null,null,null,null,94,{"$f":"'Voc 7'!C97","v":"ça ne fait rien (tant pis)"},{"$f":"'Voc 7'!D97","v":"never mind"},{"$f":"'Voc 7'!E97","v":"never mind"}]
[null,null,null,null,null,null,null,null,null,null,null,null,null,null,null,null,95,{"$f":"'Voc 7'!C98","v":"viens"},{"$f":"'Voc 7'!D98","v":"come on"},{"$f":"'Voc 7'!E98","v":"come on"}]
[null,null,null,null,null,null,null,null,null,null,null,null,null,null,null,null,96,{"$f":"'Voc 7'!C99","v":"le ramasseur de balles"},{"$f":"'Voc 7'!D99","v":"the ball-boy"},{"$f":"'Voc 7'!E99","v":"the ball-boy"}]
[null,null,null,null,null,null,null,null,null,null,null,null,null,null,null,null,97,{"$f":"'Voc 7'!C100","v":"ils sont à l'aéroport"},{"$f":"'Voc 7'!D100","v":"they are at the airport"},{"$f":"'Voc 7'!E100","v":"they are at the airport"}]
[null,null,null,null,null,null,null,null,null,null,null,null,null,null,null,null,98,{"$f":"'Voc 7'!C101","v":"ils sont debout dans le hall"},{"$f":"'Voc 7'!D101","v":"they are standing in the hall"},{"$f":"'Voc 7'!E101","v":"they are standing in the hall"}]
[null,null,null,null,null,null,null,null,null,null,null,null,null,null,null,null,99,{"$f":"'Voc 7'!C102","v":"regarde le tableau des arrivées"},{"$f":"'Voc 7'!D102","v":"look at the arrival board"},{"$f":"'Voc 7'!E102","v":"look at the arrival board"}]
[null,null,null,null,null,null,null,null,null,null,null,null,null,null,null,null,100,{"$f":"'Voc 7'!C103","v":"regarde les tableaux de départs"},{"$f":"'Voc 7'!D103","v":"look at the departure boards"},{"$f":"'Voc 7'!E103","v":"look at the departure boards"}]
[null,null,null,null,null,null,null,null,null,null,null,null,null,null,null,null,101,{"$f":"'Voc 7'!C104","v":"voilà un avion de la TWA"},{"$f":"'Voc 7'!D104","v":"There is a TWA plane"},{"$f":"'Voc 7'!E104","v":"There is a TWA plane"}]
[null,null,null,null,null,null,null,null,null,null,null,null,null,null,null,null,102,{"$f":"'Voc 7'!C105","v":"la TWA n'est-elle pas une compagnie Améciraine"},{"$f":"'Voc 7'!D105","v":"Isn't TWA an Amecian airline ?"},{"$f":"'Voc 7'!E105","v":"Isn't TWA an Amecian airline ?"}]
[null,null,null,null,null,null,null,null,null,null,null,null,null,null,null,null,103,{"$f":"'Voc 7'!C106","v":"un vol pour Glasgow"},{"$f":"'Voc 7'!D106","v":"a flight to Glasgow"},{"$f":"'Voc 7'!E106","v":"a flight to Glasgow"}]
[null,null,null,null,null,null,null,null,null,null,null,null,null,null,null,null,104,{"$f":"'Voc 7'!C107","v":"un Gros Avion à réaction"},{"$f":"'Voc 7'!D107","v":"a Jumbo Jet"},{"$f":"'Voc 7'!E107","v":"a Jumbo Jet"}]
[null,null,null,null,null,null,null,null,null,null,null,null,null,null,null,null,105,{"$f":"'Voc 7'!C108","v":"le Jumbo est en train d'atterrir"},{"$f":"'Voc 7'!D108","v":"the Jumbo Jet is landing"},{"$f":"'Voc 7'!E108","v":"the Jumbo Jet is landing"}]
[null,null,null,null,null,null,null,null,null,null,null,null,null,null,null,null,106,{"$f":"'Voc 7'!C109","v":"les passagers sont en train de sortir"},{"$f":"'Voc 7'!D109","v":"the passengers are getting off"},{"$f":"'Voc 7'!E109","v":"the passengers are getting off"}]
[null,null,null,null,null,null,null,null,null,null,null,null,null,null,null,null,107,{"$f":"'Voc 7'!C110","v":"ils sont en train de traverser la passerelle"},{"$f":"'Voc 7'!D110","v":"they are going through the gangway"},{"$f":"'Voc 7'!E110","v":"they are going through the gangway"}]
[null,null,null,null,null,null,null,null,null,null,null,null,null,null,null,null,108,{"$f":"'Voc 7'!C111","v":"ils entrent dans le bâtiment"},{"$f":"'Voc 7'!D111","v":"they are going into the building"},{"$f":"'Voc 7'!E111","v":"they are going into the building"}]
[null,null,null,null,null,null,null,null,null,null,null,null,null,null,null,null,109,{"$f":"'Voc 7'!C112","v":"l'avion est prêt"},{"$f":"'Voc 7'!D112","v":"the plane is ready"},{"$f":"'Voc 7'!E112","v":"the plane is ready"}]
[null,null,null,null,null,null,null,null,null,null,null,null,null,null,null,null,110,{"$f":"'Voc 7'!C113","v":"il est entrain de décoller maintenant"},{"$f":"'Voc 7'!D113","v":"it's taking off now"},{"$f":"'Voc 7'!E113","v":"it's taking off now"}]
[null,null,null,null,null,null,null,null,null,null,null,null,null,null,null,null,111,{"$f":"'Voc 7'!C114","v":"le haut-parleur"},{"$f":"'Voc 7'!D114","v":"the loudspeaker"},{"$f":"'Voc 7'!E114","v":"the loudspeaker"}]
[null,null,null,null,null,null,null,null,null,null,null,null,null,null,null,null,112,{"$f":"'Voc 7'!C115","v":"c'est le dernier appel pour Paris"},{"$f":"'Voc 7'!D115","v":"this is the last call to Paris"},{"$f":"'Voc 7'!E115","v":"this is the last call to Paris"}]
[null,null,null,null,null,null,null,null,null,null,null,null,null,null,null,null,113,{"$f":"'Voc 7'!C116","v":"la porte(de sortie)"},{"$f":"'Voc 7'!D116","v":"the gate"},{"$f":"'Voc 7'!E116","v":"the gate"}]
[null,null,null,null,null,null,null,null,null,null,null,null,null,null,null,null,114,{"$f":"'Voc 7'!C117","v":"de l'autre côté"},{"$f":"'Voc 7'!D117","v":"on the other side"},{"$f":"'Voc 7'!E117","v":"on the other side"}]
[null,null,null,null,null,null,null,null,null,null,null,null,null,null,null,null,115,{"$f":"'Voc 7'!C118","v":"les passagers sont entrain d'entrer"},{"$f":"'Voc 7'!D118","v":"the passengers are getting on"},{"$f":"'Voc 7'!E118","v":"the passengers are getting on"}]
[null,null,null,null,null,null,null,null,null,null,null,null,null,null,null,null,116,{"$f":"'Voc 7'!C119","v":"la valise est dans l'avion"},{"$f":"'Voc 7'!D119","v":"the suitcase is in the plane"},{"$f":"'Voc 7'!E119","v":"the suitcase is in the plane"}]
[null,null,null,null,null,null,null,null,null,null,null,null,null,null,null,null,117,{"$f":"'Voc 7'!C120","v":"l'avion vole vers Paris"},{"$f":"'Voc 7'!D120","v":"the plane is flying to Paris"},{"$f":"'Voc 7'!E120","v":"the plane is flying to Paris"}]
[null,null,null,null,null,null,null,null,null,null,null,null,null,null,null,null,118,{"$f":"'Voc 7'!C121","v":"France"},{"$f":"'Voc 7'!D121","v":"France"},{"$f":"'Voc 7'!E121","v":"France"}]
[null,null,null,null,null,null,null,null,null,null,null,null,null,null,null,null,119,{"$f":"'Voc 7'!C122","v":"Ecosse"},{"$f":"'Voc 7'!D122","v":"Scotland"},{"$f":"'Voc 7'!E122","v":"Scotland"}]
[null,null,null,null,null,null,null,null,null,null,null,null,null,null,null,null,120,{"$f":"'Voc 7'!C123","v":"pilote"},{"$f":"'Voc 7'!D123","v":"pilot"},{"$f":"'Voc 7'!E123","v":"pilot"}]
[null,null,null,null,null,null,null,null,null,null,null,null,null,null,null,null,121,{"$f":"'Voc 7'!C124","v":"elle descend du taxi"},{"$f":"'Voc 7'!D124","v":"she is getting out of the taxi"},{"$f":"'Voc 7'!E124","v":"she is getting out of the taxi"}]
[null,null,null,null,null,null,null,null,null,null,null,null,null,null,null,null,122,{"$f":"'Voc 7'!C125","v":"elle monte dans le taxi"},{"$f":"'Voc 7'!D125","v":"she is getting into the taxi"},{"$f":"'Voc 7'!E125","v":"she is getting into the taxi"}]
[null,null,null,null,null,null,null,null,null,null,null,null,null,null,null,null,123,{"$f":"'Voc 7'!C126","v":"l'alphabet"},{"$f":"'Voc 7'!D126","v":"the alphabet"},{"$f":"'Voc 7'!E126","v":"the alphabet"}]
[null,null,null,null,null,null,null,null,null,null,null,null,null,null,null,null,124,{"$f":"'Voc 7'!C127","v":"E est une lettre majuscule"},{"$f":"'Voc 7'!D127","v":"E is a capital letter"},{"$f":"'Voc 7'!E127","v":"E is a capital letter"}]
[null,null,null,null,null,null,null,null,null,null,null,null,null,null,null,null,125,{"$f":"'Voc 7'!C128","v":"e est une lettre minuscule"},{"$f":"'Voc 7'!D128","v":"e is a small letter"},{"$f":"'Voc 7'!E128","v":"e is a small letter"}]
[null,null,null,null,null,null,null,null,null,null,null,null,null,null,null,null,126,{"$f":"'Voc 7'!C129","v":"double"},{"$f":"'Voc 7'!D129","v":"double"},{"$f":"'Voc 7'!E129","v":"double"}]
[null,null,null,null,null,null,null,null,null,null,null,null,null,null,null,null,127,{"$f":"'Voc 7'!C130","v":"lis et épelle"},{"$f":"'Voc 7'!D130","v":"read and spell"},{"$f":"'Voc 7'!E130","v":"read and spell"}]
[null,null,null,null,null,null,null,null,null,null,null,null,null,null,null,null,128,{"$f":"'Voc 7'!C131","v":"douane"},{"$f":"'Voc 7'!D131","v":"customs"},{"$f":"'Voc 7'!E131","v":"customs"}]
[null,null,null,null,null,null,null,null,null,null,null,null,null,null,null,null,129,{"$f":"'Voc 7'!C132","v":"rien"},{"$f":"'Voc 7'!D132","v":"nothing"},{"$f":"'Voc 7'!E132","v":"nothing"}]
[null,null,null,null,null,null,null,null,null,null,null,null,null,null,null,null,130,{"$f":"'Voc 7'!C133","v":"rien à déclarer"},{"$f":"'Voc 7'!D133","v":"nothing to declare"},{"$f":"'Voc 7'!E133","v":"nothing to declare"}]
[null,null,null,null,null,null,null,null,null,null,null,null,null,null,null,null,131,{"$f":"'Voc 7'!C134","v":"elle est hôtesse de l'air"},{"$f":"'Voc 7'!D134","v":"she is a stewardess"},{"$f":"'Voc 7'!E134","v":"she is a stewardess"}]
[null,null,null,null,null,null,null,null,null,null,null,null,null,null,null,null,132,{"$f":"'Voc 7'!C135","v":"elle travail pour BA"},{"$f":"'Voc 7'!D135","v":"she works for BA"},{"$f":"'Voc 7'!E135","v":"she works for BA"}]
[null,null,null,null,null,null,null,null,null,null,null,null,null,null,null,null,133,{"$f":"'Voc 7'!C136","v":"elle vole souvent vers Berlin"},{"$f":"'Voc 7'!D136","v":"she often flies to Berlin"},{"$f":"'Voc 7'!E136","v":"she often flies to Berlin"}]
[null,null,null,null,null,null,null,null,null,null,null,null,null,null,null,null,134,{"$f":"'Voc 7'!C137","v":"elle habite (vit) à Wembley"},{"$f":"'Voc 7'!D137","v":"she lives in Wembley"},{"$f":"'Voc 7'!E137","v":"she lives in Wembley"}]
[null,null,null,null,null,null,null,null,null,null,null,null,null,null,null,null,135,{"$f":"'Voc 7'!C138","v":"chaque jour elle va(conduit) à Londre"},{"$f":"'Voc 7'!D138","v":"every day she drives to London"},{"$f":"'Voc 7'!E138","v":"every day she drives to London"}]
[null,null,null,null,null,null,null,null,null,null,null,null,null,null,null,null,136,{"$f":"'Voc 7'!C139","v":"c'est ce qu'elle fait avant chaque vol"},{"$f":"'Voc 7'!D139","v":"this is what she does before every flight"},{"$f":"'Voc 7'!E139","v":"this is what she does before every flight"}]
[null,null,null,null,null,null,null,null,null,null,null,null,null,null,null,null,137,{"$f":"'Voc 7'!C140","v":"elle est entrain d'accueillir les passagers"},{"$f":"'Voc 7'!D140","v":"she is welcoming the passengers"},{"$f":"'Voc 7'!E140","v":"she is welcoming the passengers"}]
[null,null,null,null,null,null,null,null,null,null,null,null,null,null,null,null,138,{"$f":"'Voc 7'!C141","v":"elle lui montre son siège"},{"$f":"'Voc 7'!D141","v":"she is showing him his seat"},{"$f":"'Voc 7'!E141","v":"she is showing him his seat"}]
[null,null,null,null,null,null,null,null,null,null,null,null,null,null,null,null,139,{"$f":"'Voc 7'!C142","v":"un monsieur"},{"$f":"'Voc 7'!D142","v":"a gentleman"},{"$f":"'Voc 7'!E142","v":"a gentleman"}]
[null,null,null,null,null,null,null,null,null,null,null,null,null,null,null,null,140,{"$f":"'Voc 7'!C143","v":"bonjour mesdames et messieurs"},{"$f":"'Voc 7'!D143","v":"good morning ladies and gentlemen"},{"$f":"'Voc 7'!E143","v":"good morning ladies and gentlemen"}]
[null,null,null,null,null,null,null,null,null,null,null,null,null,null,null,null,141,{"$f":"'Voc 7'!C144","v":"elle fume"},{"$f":"'Voc 7'!D144","v":"she is smoking"},{"$f":"'Voc 7'!E144","v":"she is smoking"}]
[null,null,null,null,null,null,null,null,null,null,null,null,null,null,null,null,142,{"$f":"'Voc 7'!C145","v":"attachez vos ceintures"},{"$f":"'Voc 7'!D145","v":"fasten your seat-belts"},{"$f":"'Voc 7'!E145","v":"fasten your seat-belts"}]
[null,null,null,null,null,null,null,null,null,null,null,null,null,null,null,null,143,{"$f":"'Voc 7'!C146","v":"décollage"},{"$f":"'Voc 7'!D146","v":"take-off"},{"$f":"'Voc 7'!E146","v":"take-off"}]
[null,null,null,null,null,null,null,null,null,null,null,null,null,null,null,null,144,{"$f":"'Voc 7'!C147","v":"Genève"},{"$f":"'Voc 7'!D147","v":"Geneva"},{"$f":"'Voc 7'!E147","v":"Geneva"}]
[null,null,null,null,null,null,null,null,null,null,null,null,null,null,null,null,145,{"$f":"'Voc 7'!C148","v":"Betty lave souvent le chien"},{"$f":"'Voc 7'!D148","v":"Betty often washes the dog"},{"$f":"'Voc 7'!E148","v":"Betty often washes the dog"}]
[null,null,null,null,null,null,null,null,null,null,null,null,null,null,null,null,146,{"$f":"'Voc 7'!C149","v":"chaque samedi il travaille au jardin"},{"$f":"'Voc 7'!D149","v":"every Saturday he works in the garden"},{"$f":"'Voc 7'!E149","v":"every Saturday he works in the garden"}]
[null,null,null,null,null,null,null,null,null,null,null,null,null,null,null,null,147,{"$f":"'Voc 7'!C150","v":"jour de congé"},{"$f":"'Voc 7'!D150","v":"free day"},{"$f":"'Voc 7'!E150","v":"free day"}]
[null,null,null,null,null,null,null,null,null,null,null,null,null,null,null,null,148,{"$f":"'Voc 7'!C151","v":"Betty est entrain de nager"},{"$f":"'Voc 7'!D151","v":"betty is swimming"},{"$f":"'Voc 7'!E151","v":"betty is swimming"}]
[null,null,null,null,null,null,null,null,null,null,null,null,null,null,null,null,149,{"$f":"'Voc 7'!C152","v":"elle va nager"},{"$f":"'Voc 7'!D152","v":"she goes for a swim"},{"$f":"'Voc 7'!E152","v":"she goes for a swim"}]
[null,null,null,null,null,null,null,null,null,null,null,null,null,null,null,null,150,{"$f":"'Voc 7'!C153","v":"je joue de la guitare"},{"$f":"'Voc 7'!D153","v":"I'm playing the guitar"},{"$f":"'Voc 7'!E153","v":"I'm playing the guitar"}]
[null,null,null,null,null,null,null,null,null,null,null,null,null,null,null,null,151,{"$f":"'Voc 7'!C154","v":"je fais la liaison entre les mots"},{"$f":"'Voc 7'!D154","v":"I'm linking the words"},{"$f":"'Voc 7'!E154","v":"I'm linking the words"}]
[null,null,null,null,null,null,null,null,null,null,null,null,null,null,null,null,152,{"$f":"'Voc 7'!C155","v":"Alain et Pierre ont faim"},{"$f":"'Voc 7'!D155","v":"Alan and Peter are hungry"},{"$f":"'Voc 7'!E155","v":"Alan and Peter are hungry"}]
[null,null,null,null,null,null,null,null,null,null,null,null,null,null,null,null,153,{"$f":"'Voc 7'!C156","v":"Pierre a soif"},{"$f":"'Voc 7'!D156","v":"Peter is thirsty"},{"$f":"'Voc 7'!E156","v":"Peter is thirsty"}]
[null,null,null,null,null,null,null,null,null,null,null,null,null,null,null,null,154,{"$f":"'Voc 7'!C157","v":"à libre service"},{"$f":"'Voc 7'!D157","v":"self-service"},{"$f":"'Voc 7'!E157","v":"self-service"}]
[null,null,null,null,null,null,null,null,null,null,null,null,null,null,null,null,155,{"$f":"'Voc 7'!C158","v":"d'abord ils marchent (traversent) le snack-bar"},{"$f":"'Voc 7'!D158","v":"first they walk through the snack-bar"},{"$f":"'Voc 7'!E158","v":"first they walk through the snack-bar"}]
[null,null,null,null,null,null,null,null,null,null,null,null,null,null,null,null,156,{"$f":"'Voc 7'!C159","v":"ils marchent jusqu'au comptoir"},{"$f":"'Voc 7'!D159","v":"they walk to the counter"},{"$f":"'Voc 7'!E159","v":"they walk to the counter"}]
[null,null,null,null,null,null,null,null,null,null,null,null,null,null,null,null,157,{"$f":"'Voc 7'!C160","v":"les garçons prennent un plateau"},{"$f":"'Voc 7'!D160","v":"the boys take a tray"},{"$f":"'Voc 7'!E160","v":"the boys take a tray"}]
[null,null,null,null,null,null,null,null,null,null,null,null,null,null,null,null,158,{"$f":"'Voc 7'!C161","v":"une pomme"},{"$f":"'Voc 7'!D161","v":"an apple"},{"$f":"'Voc 7'!E161","v":"an apple"}]
[null,null,null,null,null,null,null,null,null,null,null,null,null,null,null,null,159,{"$f":"'Voc 7'!C162","v":"Alain prend une banane"},{"$f":"'Voc 7'!D162","v":"Alan takes a banana"},{"$f":"'Voc 7'!E162","v":"Alan takes a banana"}]
[null,null,null,null,null,null,null,null,null,null,null,null,null,null,null,null,160,{"$f":"'Voc 7'!C163","v":"ensuite ils payent à la caisse"},{"$f":"'Voc 7'!D163","v":"then they pay at the cash desk"},{"$f":"'Voc 7'!E163","v":"then they pay at the cash desk"}]
[null,null,null,null,null,null,null,null,null,null,null,null,null,null,null,null,161,{"$f":"'Voc 7'!C164","v":"après cela, ils cherchent une table"},{"$f":"'Voc 7'!D164","v":"after that they look for a table"},{"$f":"'Voc 7'!E164","v":"after that they look for a table"}]
[null,null,null,null,null,null,null,null,null,null,null,null,null,null,null,null,162,{"$f":"'Voc 7'!C165","v":"le chauffeur de bus entre dans le snack-bar"},{"$f":"'Voc 7'!D165","v":"the bus driver comes into the snack-bar"},{"$f":"'Voc 7'!E165","v":"the bus driver comes into the snack-bar"}]
[null,null,null,null,null,null,null,null,null,null,null,null,null,null,null,null,163,{"$f":"'Voc 7'!C166","v":"a l'arrivée les passagers prennent leurs sacs"},{"$f":"'Voc 7'!D166","v":"on arrival the passengers take their bags"},{"$f":"'Voc 7'!E166","v":"on arrival the passengers take their bags"}]
[null,null,null,null,null,null,null,null,null,null,null,null,null,null,null,null,164,{"$f":"'Voc 7'!C167","v":"ils vont le long de la passerelle"},{"$f":"'Voc 7'!D167","v":"they go along the gangway"},{"$f":"'Voc 7'!E167","v":"they go along the gangway"}]
[null,null,null,null,null,null,null,null,null,null,null,null,null,null,null,null,165,{"$f":"'Voc 7'!C168","v":"maintenant ils sont dans le local de douane"},{"$f":"'Voc 7'!D168","v":"now they are in the customs hall"},{"$f":"'Voc 7'!E168","v":"now they are in the customs hall"}]
[null,null,null,null,null,null,null,null,null,null,null,null,null,null,null,null,166,{"$f":"'Voc 7'!C169","v":"les douaniers"},{"$f":"'Voc 7'!D169","v":"the customs officers"},{"$f":"'Voc 7'!E169","v":"the customs officers"}]
[null,null,null,null,null,null,null,null,null,null,null,null,null,null,null,null,167,{"$f":"'Voc 7'!C170","v":"les trois hommes ont mis des chapeaux noirs"},{"$f":"'Voc 7'!D170","v":"the three man have black hats on"},{"$f":"'Voc 7'!E170","v":"the three man have black hats on"}]
[null,null,null,null,null,null,null,null,null,null,null,null,null,null,null,null,168,{"$f":"'Voc 7'!C171","v":"est-ce du whisky"},{"$f":"'Voc 7'!D171","v":"is it whisky"},{"$f":"'Voc 7'!E171","v":"is it whisky"}]
[null,null,null,null,null,null,null,null,null,null,null,null,null,null,null,null,169,{"$f":"'Voc 7'!C172","v":"est-ce de l'or"},{"$f":"'Voc 7'!D172","v":"is it gold"},{"$f":"'Voc 7'!E172","v":"is it gold"}]
[null,null,null,null,null,null,null,null,null,null,null,null,null,null,null,null,170,{"$f":"'Voc 7'!C173","v":"est-ce que l'homme est un contrebandier"},{"$f":"'Voc 7'!D173","v":"is the man a smuggler"},{"$f":"'Voc 7'!E173","v":"is the man a smuggler"}]
[null,null,null,null,null,null,null,null,null,null,null,null,null,null,null,null,171,{"$f":"'Voc 7'!C174","v":"les officier en connaissent long"},{"$f":"'Voc 7'!D174","v":"the officers know a lot"},{"$f":"'Voc 7'!E174","v":"the officers know a lot"}]
[null,null,null,null,null,null,null,null,null,null,null,null,null,null,null,null,172,{"$f":"'Voc 7'!C175","v":"la jeune dame a ... une valise blanche"},{"$f":"'Voc 7'!D175","v":"the young lady has got a white suitcase"},{"$f":"'Voc 7'!E175","v":"the young lady has got a white suitcase"}]
[null,null,null,null,null,null,null,null,null,null,null,null,null,null,null,null,173,{"$f":"'Voc 7'!C176","v":"avez-vous quelque chose à déclarer"},{"$f":"'Voc 7'!D176","v":"have you anything to declare"},{"$f":"'Voc 7'!E176","v":"have you anything to declare"}]
[null,null,null,null,null,null,null,null,null,null,null,null,null,null,null,null,174,{"$f":"'Voc 7'!C177","v":"elle doit aller au commissariat"},{"$f":"'Voc 7'!D177","v":"she must go to the police station"},{"$f":"'Voc 7'!E177","v":"she must go to the police station"}]
[null,null,null,null,null,null,null,null,null,null,null,null,null,null,null,null,175,{"$f":"'Voc 7'!C178","v":"le deuxième homme sort une trompette"},{"$f":"'Voc 7'!D178","v":"the second man takes out a trumpet"},{"$f":"'Voc 7'!E178","v":"the second man takes out a trumpet"}]
[null,null,null,null,null,null,null,null,null,null,null,null,null,null,null,null,176,{"$f":"'Voc 7'!C179","v":"le troisième homme sort un saxophone"},{"$f":"'Voc 7'!D179","v":"the third man takes out a saxophone"},{"$f":"'Voc 7'!E179","v":"the third man takes out a saxophone"}]
[null,null,null,null,null,null,null,null,null,null,null,null,null,null,null,null,177,{"$f":"'Voc 7'!C180","v":"ils sont un petit orchestre de jazz"},{"$f":"'Voc 7'!D180","v":"the are a jazz group"},{"$f":"'Voc 7'!E180","v":"the are a jazz group"}]
[null,null,null,null,null,null,null,null,null,null,null,null,null,null,null,null,178,{"$f":"'Voc 7'!C181","v":"un journaliste"},{"$f":"'Voc 7'!D181","v":"a reporter"},{"$f":"'Voc 7'!E181","v":"a reporter"}]
[null,null,null,null,null,null,null,null,null,null,null,null,null,null,null,null,179,{"$f":"'Voc 7'!C182","v":"êtes-vous un buveur de thé"},{"$f":"'Voc 7'!D182","v":"are you a tea-drinker"},{"$f":"'Voc 7'!E182","v":"are you a tea-drinker"}]
[null,null,null,null,null,null,null,null,null,null,null,null,null,null,null,null,180,{"$f":"'Voc 7'!C183","v":"vous êtes entré trop bas"},{"$f":"'Voc 7'!D183","v":"you're coming in too low"},{"$f":"'Voc 7'!E183","v":"you're coming in too low"}]
[null,null,null,null,null,null,null,null,null,null,null,null,null,null,null,null,181,{"$f":"'Voc 7'!C184","v":"Alain téléphone à Pierre"},{"$f":"'Voc 7'!D184","v":"Alan is telephoning Peter"},{"$f":"'Voc 7'!E184","v":"Alan is telephoning Peter"}]
[null,null,null,null,null,null,null,null,null,null,null,null,null,null,null,null,182,{"$f":"'Voc 7'!C185","v":"il (chose) quitte Euston bientôt"},{"$f":"'Voc 7'!D185","v":"it leaves Euston soon"},{"$f":"'Voc 7'!E185","v":"it leaves Euston soon"}]
[null,null,null,null,null,null,null,null,null,null,null,null,null,null,null,null,183,{"$f":"'Voc 7'!C186","v":"il (chose) arrive à Londres"},{"$f":"'Voc 7'!D186","v":"it arrives in London"},{"$f":"'Voc 7'!E186","v":"it arrives in London"}]
[null,null,null,null,null,null,null,null,null,null,null,null,null,null,null,null,184,{"$f":"'Voc 7'!C187","v":"ils peuvent aider"},{"$f":"'Voc 7'!D187","v":"they can help"},{"$f":"'Voc 7'!E187","v":"they can help"}]
[null,null,null,null,null,null,null,null,null,null,null,null,null,null,null,null,185,{"$f":"'Voc 7'!C188","v":"le bateau est par labas"},{"$f":"'Voc 7'!D188","v":"the boat is over there"},{"$f":"'Voc 7'!E188","v":"the boat is over there"}]
[null,null,null,null,null,null,null,null,null,null,null,null,null,null,null,null,186,{"$f":"'Voc 7'!C189","v":0},{"$f":"'Voc 7'!D189","v":0},{"$f":"'Voc 7'!E189","v":0}]
[null,null,null,null,null,null,null,null,null,null,null,null,null,null,null,null,187,{"$f":"'Voc 7'!C190","v":0},{"$f":"'Voc 7'!D190","v":0},{"$f":"'Voc 7'!E190","v":0}]
[null,null,null,null,null,null,null,null,null,null,null,null,null,null,null,null,188,{"$f":"'Voc 7'!C191","v":0},{"$f":"'Voc 7'!D191","v":0},{"$f":"'Voc 7'!E191","v":0}]
[null,null,null,null,null,null,null,null,null,null,null,null,null,null,null,null,189,{"$f":"'Voc 7'!C192","v":0},{"$f":"'Voc 7'!D192","v":0},{"$f":"'Voc 7'!E192","v":0}]
[null,null,null,null,null,null,null,null,null,null,null,null,null,null,null,null,190,{"$f":"'Voc 7'!C193","v":0},{"$f":"'Voc 7'!D193","v":0},{"$f":"'Voc 7'!E193","v":0}]
[null,null,null,null,null,null,null,null,null,null,null,null,null,null,null,null,191,{"$f":"'Voc 7'!C194","v":0},{"$f":"'Voc 7'!D194","v":0},{"$f":"'Voc 7'!E194","v":0}]
[null,null,null,null,null,null,null,null,null,null,null,null,null,null,null,null,192,{"$f":"'Voc 7'!C195","v":0},{"$f":"'Voc 7'!D195","v":0},{"$f":"'Voc 7'!E195","v":0}]
[null,null,null,null,null,null,null,null,null,null,null,null,null,null,null,null,193,{"$f":"'Voc 7'!C196","v":0},{"$f":"'Voc 7'!D196","v":0},{"$f":"'Voc 7'!E196","v":0}]
[null,null,null,null,null,null,null,null,null,null,null,null,null,null,null,null,194,{"$f":"'Voc 7'!C197","v":0},{"$f":"'Voc 7'!D197","v":0},{"$f":"'Voc 7'!E197","v":0}]
[null,null,null,null,null,null,null,null,null,null,null,null,null,null,null,null,195,{"$f":"'Voc 7'!C198","v":0},{"$f":"'Voc 7'!D198","v":0},{"$f":"'Voc 7'!E198","v":0}]
[null,null,null,null,null,null,null,null,null,null,null,null,null,null,null,null,196,{"$f":"'Voc 7'!C199","v":0},{"$f":"'Voc 7'!D199","v":0},{"$f":"'Voc 7'!E199","v":0}]
[null,null,null,null,null,null,null,null,null,null,null,null,null,null,null,null,197,{"$f":"'Voc 7'!C200","v":0},{"$f":"'Voc 7'!D200","v":0},{"$f":"'Voc 7'!E200","v":0}]
[null,null,null,null,null,null,null,null,null,null,null,null,null,null,null,null,198,{"$f":"'Voc 7'!C201","v":0},{"$f":"'Voc 7'!D201","v":0},{"$f":"'Voc 7'!E201","v":0}]
[null,null,null,null,null,null,null,null,null,null,null,null,null,null,null,null,199,{"$f":"'Voc 7'!C202","v":0},{"$f":"'Voc 7'!D202","v":0},{"$f":"'Voc 7'!E202","v":0}]
[null,null,null,null,null,null,null,null,null,null,null,null,null,null,null,null,200,{"$f":"'Voc 7'!C203","v":0},{"$f":"'Voc 7'!D203","v":0},{"$f":"'Voc 7'!E203","v":0}]
[null,null,null,null,null,null,null,null,null,null,null,null,null,null,null,null,201,{"$f":"'Voc 7'!C204","v":0},{"$f":"'Voc 7'!D204","v":0},{"$f":"'Voc 7'!E204","v":0}]
[null,null,null,null,null,null,null,null,null,null,null,null,null,null,null,null,202,{"$f":"'Voc 7'!C205","v":0},{"$f":"'Voc 7'!D205","v":0},{"$f":"'Voc 7'!E205","v":0}]
[null,null,null,null,null,null,null,null,null,null,null,null,null,null,null,null,203,{"$f":"'Voc 7'!C206","v":0},{"$f":"'Voc 7'!D206","v":0},{"$f":"'Voc 7'!E206","v":0}]
[null,null,null,null,null,null,null,null,null,null,null,null,null,null,null,null,204,{"$f":"'Voc 7'!C207","v":0},{"$f":"'Voc 7'!D207","v":0},{"$f":"'Voc 7'!E207","v":0}]
[null,null,null,null,null,null,null,null,null,null,null,null,null,null,null,null,205,{"$f":"'Voc 7'!C208","v":0},{"$f":"'Voc 7'!D208","v":0},{"$f":"'Voc 7'!E208","v":0}]
[null,null,null,null,null,null,null,null,null,null,null,null,null,null,null,null,206,{"$f":"'Voc 7'!C209","v":0},{"$f":"'Voc 7'!D209","v":0},{"$f":"'Voc 7'!E209","v":0}]
[null,null,null,null,null,null,null,null,null,null,null,null,null,null,null,null,207,{"$f":"'Voc 7'!C210","v":0},{"$f":"'Voc 7'!D210","v":0},{"$f":"'Voc 7'!E210","v":0}]
[null,null,null,null,null,null,null,null,null,null,null,null,null,null,null,null,208,{"$f":"'Voc 7'!C211","v":0},{"$f":"'Voc 7'!D211","v":0},{"$f":"'Voc 7'!E211","v":0}]
[null,null,null,null,null,null,null,null,null,null,null,null,null,null,null,null,209,{"$f":"'Voc 7'!C212","v":0},{"$f":"'Voc 7'!D212","v":0},{"$f":"'Voc 7'!E212","v":0}]
[null,null,null,null,null,null,null,null,null,null,null,null,null,null,null,null,210,{"$f":"'Voc 7'!C213","v":0},{"$f":"'Voc 7'!D213","v":0},{"$f":"'Voc 7'!E213","v":0}]
[null,null,null,null,null,null,null,null,null,null,null,null,null,null,null,null,211,{"$f":"'Voc 7'!C214","v":0},{"$f":"'Voc 7'!D214","v":0},{"$f":"'Voc 7'!E214","v":0}]
[null,null,null,null,null,null,null,null,null,null,null,null,null,null,null,null,212,{"$f":"'Voc 7'!C215","v":0},{"$f":"'Voc 7'!D215","v":0},{"$f":"'Voc 7'!E215","v":0}]
[null,null,null,null,null,null,null,null,null,null,null,null,null,null,null,null,213,{"$f":"'Voc 7'!C216","v":0},{"$f":"'Voc 7'!D216","v":0},{"$f":"'Voc 7'!E216","v":0}]
[null,null,null,null,null,null,null,null,null,null,null,null,null,null,null,null,214,{"$f":"'Voc 7'!C217","v":0},{"$f":"'Voc 7'!D217","v":0},{"$f":"'Voc 7'!E217","v":0}]
[null,null,null,null,null,null,null,null,null,null,null,null,null,null,null,null,215,{"$f":"'Voc 7'!C218","v":0},{"$f":"'Voc 7'!D218","v":0},{"$f":"'Voc 7'!E218","v":0}]
[null,null,null,null,null,null,null,null,null,null,null,null,null,null,null,null,216,{"$f":"'Voc 7'!C219","v":0},{"$f":"'Voc 7'!D219","v":0},{"$f":"'Voc 7'!E219","v":0}]
[null,null,null,null,null,null,null,null,null,null,null,null,null,null,null,null,217,{"$f":"'Voc 7'!C220","v":0},{"$f":"'Voc 7'!D220","v":0},{"$f":"'Voc 7'!E220","v":0}]
[null,null,null,null,null,null,null,null,null,null,null,null,null,null,null,null,218,{"$f":"'Voc 7'!C221","v":0},{"$f":"'Voc 7'!D221","v":0},{"$f":"'Voc 7'!E221","v":0}]
[null,null,null,null,null,null,null,null,null,null,null,null,null,null,null,null,219,{"$f":"'Voc 7'!C222","v":0},{"$f":"'Voc 7'!D222","v":0},{"$f":"'Voc 7'!E222","v":0}]
[null,null,null,null,null,null,null,null,null,null,null,null,null,null,null,null,220,{"$f":"'Voc 7'!C223","v":0},{"$f":"'Voc 7'!D223","v":0},{"$f":"'Voc 7'!E223","v":0}]
[null,null,null,null,null,null,null,null,null,null,null,null,null,null,null,null,221,{"$f":"'Voc 7'!C224","v":0},{"$f":"'Voc 7'!D224","v":0},{"$f":"'Voc 7'!E224","v":0}]
[null,null,null,null,null,null,null,null,null,null,null,null,null,null,null,null,222,{"$f":"'Voc 7'!C225","v":0},{"$f":"'Voc 7'!D225","v":0},{"$f":"'Voc 7'!E225","v":0}]
[null,null,null,null,null,null,null,null,null,null,null,null,null,null,null,null,223,{"$f":"'Voc 7'!C226","v":0},{"$f":"'Voc 7'!D226","v":0},{"$f":"'Voc 7'!E226","v":0}]
[null,null,null,null,null,null,null,null,null,null,null,null,null,null,null,null,224,{"$f":"'Voc 7'!C227","v":0},{"$f":"'Voc 7'!D227","v":0},{"$f":"'Voc 7'!E227","v":0}]
[null,null,null,null,null,null,null,null,null,null,null,null,null,null,null,null,225,{"$f":"'Voc 7'!C228","v":0},{"$f":"'Voc 7'!D228","v":0},{"$f":"'Voc 7'!E228","v":0}]
[null,null,null,null,null,null,null,null,null,null,null,null,null,null,null,null,226,{"$f":"'Voc 7'!C229","v":0},{"$f":"'Voc 7'!D229","v":0},{"$f":"'Voc 7'!E229","v":0}]
[null,null,null,null,null,null,null,null,null,null,null,null,null,null,null,null,227,{"$f":"'Voc 7'!C230","v":0},{"$f":"'Voc 7'!D230","v":0},{"$f":"'Voc 7'!E230","v":0}]
[null,null,null,null,null,null,null,null,null,null,null,null,null,null,null,null,228,{"$f":"'Voc 7'!C231","v":0},{"$f":"'Voc 7'!D231","v":0},{"$f":"'Voc 7'!E231","v":0}]
[null,null,null,null,null,null,null,null,null,null,null,null,null,null,null,null,229,{"$f":"'Voc 7'!C232","v":0},{"$f":"'Voc 7'!D232","v":0},{"$f":"'Voc 7'!E232","v":0}]
[null,null,null,null,null,null,null,null,null,null,null,null,null,null,null,null,230,{"$f":"'Voc 7'!C233","v":0},{"$f":"'Voc 7'!D233","v":0},{"$f":"'Voc 7'!E233","v":0}]
[null,null,null,null,null,null,null,null,null,null,null,null,null,null,null,null,231,{"$f":"'Voc 7'!C234","v":0},{"$f":"'Voc 7'!D234","v":0},{"$f":"'Voc 7'!E234","v":0}]
[null,null,null,null,null,null,null,null,null,null,null,null,null,null,null,null,232,{"$f":"'Voc 7'!C235","v":0},{"$f":"'Voc 7'!D235","v":0},{"$f":"'Voc 7'!E235","v":0}]
[null,null,null,null,null,null,null,null,null,null,null,null,null,null,null,null,233,{"$f":"'Voc 7'!C236","v":0},{"$f":"'Voc 7'!D236","v":0},{"$f":"'Voc 7'!E236","v":0}]
[null,null,null,null,null,null,null,null,null,null,null,null,null,null,null,null,234,{"$f":"'Voc 7'!C237","v":0},{"$f":"'Voc 7'!D237","v":0},{"$f":"'Voc 7'!E237","v":0}]
[null,null,null,null,null,null,null,null,null,null,null,null,null,null,null,null,235,{"$f":"'Voc 7'!C238","v":0},{"$f":"'Voc 7'!D238","v":0},{"$f":"'Voc 7'!E238","v":0}]
[null,null,null,null,null,null,null,null,null,null,null,null,null,null,null,null,236,{"$f":"'Voc 7'!C239","v":0},{"$f":"'Voc 7'!D239","v":0},{"$f":"'Voc 7'!E239","v":0}]
[null,null,null,null,null,null,null,null,null,null,null,null,null,null,null,null,237,{"$f":"'Voc 7'!C240","v":0},{"$f":"'Voc 7'!D240","v":0},{"$f":"'Voc 7'!E240","v":0}]
[null,null,null,null,null,null,null,null,null,null,null,null,null,null,null,null,238,{"$f":"'Voc 7'!C241","v":0},{"$f":"'Voc 7'!D241","v":0},{"$f":"'Voc 7'!E241","v":0}]
[null,null,null,null,null,null,null,null,null,null,null,null,null,null,null,null,239,{"$f":"'Voc 7'!C242","v":0},{"$f":"'Voc 7'!D242","v":0},{"$f":"'Voc 7'!E242","v":0}]
[null,null,null,null,null,null,null,null,null,null,null,null,null,null,null,null,240,{"$f":"'Voc 7'!C243","v":0},{"$f":"'Voc 7'!D243","v":0},{"$f":"'Voc 7'!E243","v":0}]
[null,null,null,null,null,null,null,null,null,null,null,null,null,null,null,null,241,{"$f":"'Voc 7'!C244","v":0},{"$f":"'Voc 7'!D244","v":0},{"$f":"'Voc 7'!E244","v":0}]
[null,null,null,null,null,null,null,null,null,null,null,null,null,null,null,null,242,{"$f":"'Voc 7'!C245","v":0},{"$f":"'Voc 7'!D245","v":0},{"$f":"'Voc 7'!E245","v":0}]
[null,null,null,null,null,null,null,null,null,null,null,null,null,null,null,null,243,{"$f":"'Voc 7'!C246","v":0},{"$f":"'Voc 7'!D246","v":0},{"$f":"'Voc 7'!E246","v":0}]
[null,null,null,null,null,null,null,null,null,null,null,null,null,null,null,null,244,{"$f":"'Voc 7'!C247","v":0},{"$f":"'Voc 7'!D247","v":0},{"$f":"'Voc 7'!E247","v":0}]
[null,null,null,null,null,null,null,null,null,null,null,null,null,null,null,null,245,{"$f":"'Voc 7'!C248","v":0},{"$f":"'Voc 7'!D248","v":0},{"$f":"'Voc 7'!E248","v":0}]
[null,null,null,null,null,null,null,null,null,null,null,null,null,null,null,null,246,{"$f":"'Voc 7'!C249","v":0},{"$f":"'Voc 7'!D249","v":0},{"$f":"'Voc 7'!E249","v":0}]
[null,null,null,null,null,null,null,null,null,null,null,null,null,null,null,null,247,{"$f":"'Voc 7'!C250","v":0},{"$f":"'Voc 7'!D250","v":0},{"$f":"'Voc 7'!E250","v":0}]
[null,null,null,null,null,null,null,null,null,null,null,null,null,null,null,null,248,{"$f":"'Voc 7'!C251","v":0},{"$f":"'Voc 7'!D251","v":0},{"$f":"'Voc 7'!E251","v":0}]
[null,null,null,null,null,null,null,null,null,null,null,null,null,null,null,null,249,{"$f":"'Voc 7'!C252","v":0},{"$f":"'Voc 7'!D252","v":0},{"$f":"'Voc 7'!E252","v":0}]
[null,null,null,null,null,null,null,null,null,null,null,null,null,null,null,null,250,{"$f":"'Voc 7'!C253","v":0},{"$f":"'Voc 7'!D253","v":0},{"$f":"'Voc 7'!E253","v":0}]
[null,null,null,null,null,null,null,null,null,null,null,null,null,null,null,null,251,{"$f":"'Voc 7'!C254","v":0},{"$f":"'Voc 7'!D254","v":0},{"$f":"'Voc 7'!E254","v":0}]
[null,null,null,null,null,null,null,null,null,null,null,null,null,null,null,null,252,{"$f":"'Voc 7'!C255","v":0},{"$f":"'Voc 7'!D255","v":0},{"$f":"'Voc 7'!E255","v":0}]
[null,null,null,null,null,null,null,null,null,null,null,null,null,null,null,null,253,{"$f":"'Voc 7'!C256","v":0},{"$f":"'Voc 7'!D256","v":0},{"$f":"'Voc 7'!E256","v":0}]
[null,null,null,null,null,null,null,null,null,null,null,null,null,null,null,null,254,{"$f":"'Voc 7'!C257","v":0},{"$f":"'Voc 7'!D257","v":0},{"$f":"'Voc 7'!E257","v":0}]
[null,null,null,null,null,null,null,null,null,null,null,null,null,null,null,null,255,{"$f":"'Voc 7'!C258","v":0},{"$f":"'Voc 7'!D258","v":0},{"$f":"'Voc 7'!E258","v":0}]
[null,null,null,null,null,null,null,null,null,null,null,null,null,null,null,null,256,{"$f":"'Voc 7'!C259","v":0},{"$f":"'Voc 7'!D259","v":0},{"$f":"'Voc 7'!E259","v":0}]
[null,null,null,null,null,null,null,null,null,null,null,null,null,null,null,null,257,{"$f":"'Voc 7'!C260","v":0},{"$f":"'Voc 7'!D260","v":0},{"$f":"'Voc 7'!E260","v":0}]
[null,null,null,null,null,null,null,null,null,null,null,null,null,null,null,null,258,{"$f":"'Voc 7'!C261","v":0},{"$f":"'Voc 7'!D261","v":0},{"$f":"'Voc 7'!E261","v":0}]
[null,null,null,null,null,null,null,null,null,null,null,null,null,null,null,null,259,{"$f":"'Voc 7'!C262","v":0},{"$f":"'Voc 7'!D262","v":0},{"$f":"'Voc 7'!E262","v":0}]
[null,null,null,null,null,null,null,null,null,null,null,null,null,null,null,null,260,{"$f":"'Voc 7'!C263","v":0},{"$f":"'Voc 7'!D263","v":0},{"$f":"'Voc 7'!E263","v":0}]
[null,null,null,null,null,null,null,null,null,null,null,null,null,null,null,null,261,{"$f":"'Voc 7'!C264","v":0},{"$f":"'Voc 7'!D264","v":0},{"$f":"'Voc 7'!E264","v":0}]
[null,null,null,null,null,null,null,null,null,null,null,null,null,null,null,null,262,{"$f":"'Voc 7'!C265","v":0},{"$f":"'Voc 7'!D265","v":0},{"$f":"'Voc 7'!E265","v":0}]
[null,null,null,null,null,null,null,null,null,null,null,null,null,null,null,null,263,{"$f":"'Voc 7'!C266","v":0},{"$f":"'Voc 7'!D266","v":0},{"$f":"'Voc 7'!E266","v":0}]
[null,null,null,null,null,null,null,null,null,null,null,null,null,null,null,null,264,{"$f":"'Voc 7'!C267","v":0},{"$f":"'Voc 7'!D267","v":0},{"$f":"'Voc 7'!E267","v":0}]
[null,null,null,null,null,null,null,null,null,null,null,null,null,null,null,null,265,{"$f":"'Voc 7'!C268","v":0},{"$f":"'Voc 7'!D268","v":0},{"$f":"'Voc 7'!E268","v":0}]
[null,null,null,null,null,null,null,null,null,null,null,null,null,null,null,null,266,{"$f":"'Voc 7'!C269","v":0},{"$f":"'Voc 7'!D269","v":0},{"$f":"'Voc 7'!E269","v":0}]
[null,null,null,null,null,null,null,null,null,null,null,null,null,null,null,null,267,{"$f":"'Voc 7'!C270","v":0},{"$f":"'Voc 7'!D270","v":0},{"$f":"'Voc 7'!E270","v":0}]
[null,null,null,null,null,null,null,null,null,null,null,null,null,null,null,null,268,{"$f":"'Voc 7'!C271","v":0},{"$f":"'Voc 7'!D271","v":0},{"$f":"'Voc 7'!E271","v":0}]
[null,null,null,null,null,null,null,null,null,null,null,null,null,null,null,null,269,{"$f":"'Voc 7'!C272","v":0},{"$f":"'Voc 7'!D272","v":0},{"$f":"'Voc 7'!E272","v":0}]
[null,null,null,null,null,null,null,null,null,null,null,null,null,null,null,null,270,{"$f":"'Voc 7'!C273","v":0},{"$f":"'Voc 7'!D273","v":0},{"$f":"'Voc 7'!E273","v":0}]
[null,null,null,null,null,null,null,null,null,null,null,null,null,null,null,null,271,{"$f":"'Voc 7'!C274","v":0},{"$f":"'Voc 7'!D274","v":0},{"$f":"'Voc 7'!E274","v":0}]
[null,null,null,null,null,null,null,null,null,null,null,null,null,null,null,null,272,{"$f":"'Voc 7'!C275","v":0},{"$f":"'Voc 7'!D275","v":0},{"$f":"'Voc 7'!E275","v":0}]
[null,null,null,null,null,null,null,null,null,null,null,null,null,null,null,null,273,{"$f":"'Voc 7'!C276","v":0},{"$f":"'Voc 7'!D276","v":0},{"$f":"'Voc 7'!E276","v":0}]
[null,null,null,null,null,null,null,null,null,null,null,null,null,null,null,null,274,{"$f":"'Voc 7'!C277","v":0},{"$f":"'Voc 7'!D277","v":0},{"$f":"'Voc 7'!E277","v":0}]
[null,null,null,null,null,null,null,null,null,null,null,null,null,null,null,null,275,{"$f":"'Voc 7'!C278","v":0},{"$f":"'Voc 7'!D278","v":0},{"$f":"'Voc 7'!E278","v":0}]
[null,null,null,null,null,null,null,null,null,null,null,null,null,null,null,null,276,{"$f":"'Voc 7'!C279","v":0},{"$f":"'Voc 7'!D279","v":0},{"$f":"'Voc 7'!E279","v":0}]
[null,null,null,null,null,null,null,null,null,null,null,null,null,null,null,null,277,{"$f":"'Voc 7'!C280","v":0},{"$f":"'Voc 7'!D280","v":0},{"$f":"'Voc 7'!E280","v":0}]
[null,null,null,null,null,null,null,null,null,null,null,null,null,null,null,null,278,{"$f":"'Voc 7'!C281","v":0},{"$f":"'Voc 7'!D281","v":0},{"$f":"'Voc 7'!E281","v":0}]
[null,null,null,null,null,null,null,null,null,null,null,null,null,null,null,null,279,{"$f":"'Voc 7'!C282","v":0},{"$f":"'Voc 7'!D282","v":0},{"$f":"'Voc 7'!E282","v":0}]
[null,null,null,null,null,null,null,null,null,null,null,null,null,null,null,null,280,{"$f":"'Voc 7'!C283","v":0},{"$f":"'Voc 7'!D283","v":0},{"$f":"'Voc 7'!E283","v":0}]
[null,null,null,null,null,null,null,null,null,null,null,null,null,null,null,null,281,{"$f":"'Voc 7'!C284","v":0},{"$f":"'Voc 7'!D284","v":0},{"$f":"'Voc 7'!E284","v":0}]
[null,null,null,null,null,null,null,null,null,null,null,null,null,null,null,null,282,{"$f":"'Voc 7'!C285","v":0},{"$f":"'Voc 7'!D285","v":0},{"$f":"'Voc 7'!E285","v":0}]
[null,null,null,null,null,null,null,null,null,null,null,null,null,null,null,null,283,{"$f":"'Voc 7'!C286","v":0},{"$f":"'Voc 7'!D286","v":0},{"$f":"'Voc 7'!E286","v":0}]
[null,null,null,null,null,null,null,null,null,null,null,null,null,null,null,null,284,{"$f":"'Voc 7'!C287","v":0},{"$f":"'Voc 7'!D287","v":0},{"$f":"'Voc 7'!E287","v":0}]
[null,null,null,null,null,null,null,null,null,null,null,null,null,null,null,null,285,{"$f":"'Voc 7'!C288","v":0},{"$f":"'Voc 7'!D288","v":0},{"$f":"'Voc 7'!E288","v":0}]
[null,null,null,null,null,null,null,null,null,null,null,null,null,null,null,null,286,{"$f":"'Voc 7'!C289","v":0},{"$f":"'Voc 7'!D289","v":0},{"$f":"'Voc 7'!E289","v":0}]
[null,null,null,null,null,null,null,null,null,null,null,null,null,null,null,null,287,{"$f":"'Voc 7'!C290","v":0},{"$f":"'Voc 7'!D290","v":0},{"$f":"'Voc 7'!E290","v":0}]
[null,null,null,null,null,null,null,null,null,null,null,null,null,null,null,null,288,{"$f":"'Voc 7'!C291","v":0},{"$f":"'Voc 7'!D291","v":0},{"$f":"'Voc 7'!E291","v":0}]
[null,null,null,null,null,null,null,null,null,null,null,null,null,null,null,null,289,{"$f":"'Voc 7'!C292","v":0},{"$f":"'Voc 7'!D292","v":0},{"$f":"'Voc 7'!E292","v":0}]
[null,null,null,null,null,null,null,null,null,null,null,null,null,null,null,null,290,{"$f":"'Voc 7'!C293","v":0},{"$f":"'Voc 7'!D293","v":0},{"$f":"'Voc 7'!E293","v":0}]
[null,null,null,null,null,null,null,null,null,null,null,null,null,null,null,null,291,{"$f":"'Voc 7'!C294","v":0},{"$f":"'Voc 7'!D294","v":0},{"$f":"'Voc 7'!E294","v":0}]
[null,null,null,null,null,null,null,null,null,null,null,null,null,null,null,null,292,{"$f":"'Voc 7'!C295","v":0},{"$f":"'Voc 7'!D295","v":0},{"$f":"'Voc 7'!E295","v":0}]
[null,null,null,null,null,null,null,null,null,null,null,null,null,null,null,null,293,{"$f":"'Voc 7'!C296","v":0},{"$f":"'Voc 7'!D296","v":0},{"$f":"'Voc 7'!E296","v":0}]
[null,null,null,null,null,null,null,null,null,null,null,null,null,null,null,null,294,{"$f":"'Voc 7'!C297","v":0},{"$f":"'Voc 7'!D297","v":0},{"$f":"'Voc 7'!E297","v":0}]
[null,null,null,null,null,null,null,null,null,null,null,null,null,null,null,null,295,{"$f":"'Voc 7'!C298","v":0},{"$f":"'Voc 7'!D298","v":0},{"$f":"'Voc 7'!E298","v":0}]
[null,null,null,null,null,null,null,null,null,null,null,null,null,null,null,null,296,{"$f":"'Voc 7'!C299","v":0},{"$f":"'Voc 7'!D299","v":0},{"$f":"'Voc 7'!E299","v":0}]
[null,null,null,null,null,null,null,null,null,null,null,null,null,null,null,null,297,{"$f":"'Voc 7'!C300","v":0},{"$f":"'Voc 7'!D300","v":0},{"$f":"'Voc 7'!E300","v":0}]
[null,null,null,null,null,null,null,null,null,null,null,null,null,null,null,null,298,{"$f":"'Voc 7'!C301","v":0},{"$f":"'Voc 7'!D301","v":0},{"$f":"'Voc 7'!E301","v":0}]
[null,null,null,null,null,null,null,null,null,null,null,null,null,null,null,null,299,{"$f":"'Voc 7'!C302","v":0},{"$f":"'Voc 7'!D302","v":0},{"$f":"'Voc 7'!E302","v":0}]
[null,null,null,null,null,null,null,null,null,null,null,null,null,null,null,null,300,{"$f":"'Voc 7'!C303","v":0},{"$f":"'Voc 7'!D303","v":0},{"$f":"'Voc 7'!E303","v":0}]
[null,null,null,null,null,null,null,null,null,null,null,null,null,null,null,null,301,{"$f":"'Voc 7'!C304","v":0},{"$f":"'Voc 7'!D304","v":0},{"$f":"'Voc 7'!E304","v":0}]
[null,null,null,null,null,null,null,null,null,null,null,null,null,null,null,null,302,{"$f":"'Voc 7'!C305","v":0},{"$f":"'Voc 7'!D305","v":0},{"$f":"'Voc 7'!E305","v":0}]
[null,null,null,null,null,null,null,null,null,null,null,null,null,null,null,null,303,{"$f":"'Voc 7'!C306","v":0},{"$f":"'Voc 7'!D306","v":0},{"$f":"'Voc 7'!E306","v":0}]
[null,null,null,null,null,null,null,null,null,null,null,null,null,null,null,null,304,{"$f":"'Voc 7'!C307","v":0},{"$f":"'Voc 7'!D307","v":0},{"$f":"'Voc 7'!E307","v":0}]
[null,null,null,null,null,null,null,null,null,null,null,null,null,null,null,null,305,{"$f":"'Voc 7'!C308","v":0},{"$f":"'Voc 7'!D308","v":0},{"$f":"'Voc 7'!E308","v":0}]
[null,null,null,null,null,null,null,null,null,null,null,null,null,null,null,null,306,{"$f":"'Voc 7'!C309","v":0},{"$f":"'Voc 7'!D309","v":0},{"$f":"'Voc 7'!E309","v":0}]
[null,null,null,null,null,null,null,null,null,null,null,null,null,null,null,null,307,{"$f":"'Voc 7'!C310","v":0},{"$f":"'Voc 7'!D310","v":0},{"$f":"'Voc 7'!E310","v":0}]
[null,null,null,null,null,null,null,null,null,null,null,null,null,null,null,null,308,{"$f":"'Voc 7'!C311","v":0},{"$f":"'Voc 7'!D311","v":0},{"$f":"'Voc 7'!E311","v":0}]
[null,null,null,null,null,null,null,null,null,null,null,null,null,null,null,null,309,{"$f":"'Voc 7'!C312","v":0},{"$f":"'Voc 7'!D312","v":0},{"$f":"'Voc 7'!E312","v":0}]
[null,null,null,null,null,null,null,null,null,null,null,null,null,null,null,null,310,{"$f":"'Voc 7'!C313","v":0},{"$f":"'Voc 7'!D313","v":0},{"$f":"'Voc 7'!E313","v":0}]
[null,null,null,null,null,null,null,null,null,null,null,null,null,null,null,null,311,{"$f":"'Voc 7'!C314","v":0},{"$f":"'Voc 7'!D314","v":0},{"$f":"'Voc 7'!E314","v":0}]
[null,null,null,null,null,null,null,null,null,null,null,null,null,null,null,null,312,{"$f":"'Voc 7'!C315","v":0},{"$f":"'Voc 7'!D315","v":0},{"$f":"'Voc 7'!E315","v":0}]
[null,null,null,null,null,null,null,null,null,null,null,null,null,null,null,null,313,{"$f":"'Voc 7'!C316","v":0},{"$f":"'Voc 7'!D316","v":0},{"$f":"'Voc 7'!E316","v":0}]
[null,null,null,null,null,null,null,null,null,null,null,null,null,null,null,null,314,{"$f":"'Voc 7'!C317","v":0},{"$f":"'Voc 7'!D317","v":0},{"$f":"'Voc 7'!E317","v":0}]
[null,null,null,null,null,null,null,null,null,null,null,null,null,null,null,null,315,{"$f":"'Voc 7'!C318","v":0},{"$f":"'Voc 7'!D318","v":0},{"$f":"'Voc 7'!E318","v":0}]
[null,null,null,null,null,null,null,null,null,null,null,null,null,null,null,null,316,{"$f":"'Voc 7'!C319","v":0},{"$f":"'Voc 7'!D319","v":0},{"$f":"'Voc 7'!E319","v":0}]
[null,null,null,null,null,null,null,null,null,null,null,null,null,null,null,null,317,{"$f":"'Voc 7'!C320","v":0},{"$f":"'Voc 7'!D320","v":0},{"$f":"'Voc 7'!E320","v":0}]
[null,null,null,null,null,null,null,null,null,null,null,null,null,null,null,null,318,{"$f":"'Voc 7'!C321","v":0},{"$f":"'Voc 7'!D321","v":0},{"$f":"'Voc 7'!E321","v":0}]
[null,null,null,null,null,null,null,null,null,null,null,null,null,null,null,null,319,{"$f":"'Voc 7'!C322","v":0},{"$f":"'Voc 7'!D322","v":0},{"$f":"'Voc 7'!E322","v":0}]
[null,null,null,null,null,null,null,null,null,null,null,null,null,null,null,null,320,{"$f":"'Voc 7'!C323","v":0},{"$f":"'Voc 7'!D323","v":0},{"$f":"'Voc 7'!E323","v":0}]
[null,null,null,null,null,null,null,null,null,null,null,null,null,null,null,null,321,{"$f":"'Voc 7'!C324","v":0},{"$f":"'Voc 7'!D324","v":0},{"$f":"'Voc 7'!E324","v":0}]
[null,null,null,null,null,null,null,null,null,null,null,null,null,null,null,null,322,{"$f":"'Voc 7'!C325","v":0},{"$f":"'Voc 7'!D325","v":0},{"$f":"'Voc 7'!E325","v":0}]
[null,null,null,null,null,null,null,null,null,null,null,null,null,null,null,null,323,{"$f":"'Voc 7'!C326","v":0},{"$f":"'Voc 7'!D326","v":0},{"$f":"'Voc 7'!E326","v":0}]
[null,null,null,null,null,null,null,null,null,null,null,null,null,null,null,null,324,{"$f":"'Voc 7'!C327","v":0},{"$f":"'Voc 7'!D327","v":0},{"$f":"'Voc 7'!E327","v":0}]
[null,null,null,null,null,null,null,null,null,null,null,null,null,null,null,null,325,{"$f":"'Voc 7'!C328","v":0},{"$f":"'Voc 7'!D328","v":0},{"$f":"'Voc 7'!E328","v":0}]
[null,null,null,null,null,null,null,null,null,null,null,null,null,null,null,null,326,{"$f":"'Voc 7'!C329","v":0},{"$f":"'Voc 7'!D329","v":0},{"$f":"'Voc 7'!E329","v":0}]
[null,null,null,null,null,null,null,null,null,null,null,null,null,null,null,null,327,{"$f":"'Voc 7'!C330","v":0},{"$f":"'Voc 7'!D330","v":0},{"$f":"'Voc 7'!E330","v":0}]
[null,null,null,null,null,null,null,null,null,null,null,null,null,null,null,null,328,{"$f":"'Voc 7'!C331","v":0},{"$f":"'Voc 7'!D331","v":0},{"$f":"'Voc 7'!E331","v":0}]
[null,null,null,null,null,null,null,null,null,null,null,null,null,null,null,null,329,{"$f":"'Voc 7'!C332","v":0},{"$f":"'Voc 7'!D332","v":0},{"$f":"'Voc 7'!E332","v":0}]
[null,null,null,null,null,null,null,null,null,null,null,null,null,null,null,null,330,{"$f":"'Voc 7'!C333","v":0},{"$f":"'Voc 7'!D333","v":0},{"$f":"'Voc 7'!E333","v":0}]
[null,null,null,null,null,null,null,null,null,null,null,null,null,null,null,null,331,{"$f":"'Voc 7'!C334","v":0},{"$f":"'Voc 7'!D334","v":0},{"$f":"'Voc 7'!E334","v":0}]
[null,null,null,null,null,null,null,null,null,null,null,null,null,null,null,null,332,{"$f":"'Voc 7'!C335","v":0},{"$f":"'Voc 7'!D335","v":0},{"$f":"'Voc 7'!E335","v":0}]
[null,null,null,null,null,null,null,null,null,null,null,null,null,null,null,null,333,{"$f":"'Voc 7'!C336","v":0},{"$f":"'Voc 7'!D336","v":0},{"$f":"'Voc 7'!E336","v":0}]
[null,null,null,null,null,null,null,null,null,null,null,null,null,null,null,null,334,{"$f":"'Voc 7'!C337","v":0},{"$f":"'Voc 7'!D337","v":0},{"$f":"'Voc 7'!E337","v":0}]
[null,null,null,null,null,null,null,null,null,null,null,null,null,null,null,null,335,{"$f":"'Voc 7'!C338","v":0},{"$f":"'Voc 7'!D338","v":0},{"$f":"'Voc 7'!E338","v":0}]
[null,null,null,null,null,null,null,null,null,null,null,null,null,null,null,null,336,{"$f":"'Voc 7'!C339","v":0},{"$f":"'Voc 7'!D339","v":0},{"$f":"'Voc 7'!E339","v":0}]
[null,null,null,null,null,null,null,null,null,null,null,null,null,null,null,null,337,{"$f":"'Voc 7'!C340","v":0},{"$f":"'Voc 7'!D340","v":0},{"$f":"'Voc 7'!E340","v":0}]
[null,null,null,null,null,null,null,null,null,null,null,null,null,null,null,null,338,{"$f":"'Voc 7'!C341","v":0},{"$f":"'Voc 7'!D341","v":0},{"$f":"'Voc 7'!E341","v":0}]
[null,null,null,null,null,null,null,null,null,null,null,null,null,null,null,null,339,{"$f":"'Voc 7'!C342","v":0},{"$f":"'Voc 7'!D342","v":0},{"$f":"'Voc 7'!E342","v":0}]
[null,null,null,null,null,null,null,null,null,null,null,null,null,null,null,null,340,{"$f":"'Voc 7'!C343","v":0},{"$f":"'Voc 7'!D343","v":0},{"$f":"'Voc 7'!E343","v":0}]
[null,null,null,null,null,null,null,null,null,null,null,null,null,null,null,null,341,{"$f":"'Voc 7'!C344","v":0},{"$f":"'Voc 7'!D344","v":0},{"$f":"'Voc 7'!E344","v":0}]
[null,null,null,null,null,null,null,null,null,null,null,null,null,null,null,null,342,{"$f":"'Voc 7'!C345","v":0},{"$f":"'Voc 7'!D345","v":0},{"$f":"'Voc 7'!E345","v":0}]
[null,null,null,null,null,null,null,null,null,null,null,null,null,null,null,null,343,{"$f":"'Voc 7'!C346","v":0},{"$f":"'Voc 7'!D346","v":0},{"$f":"'Voc 7'!E346","v":0}]
[null,null,null,null,null,null,null,null,null,null,null,null,null,null,null,null,344,{"$f":"'Voc 7'!C347","v":0},{"$f":"'Voc 7'!D347","v":0},{"$f":"'Voc 7'!E347","v":0}]
[null,null,null,null,null,null,null,null,null,null,null,null,null,null,null,null,345,{"$f":"'Voc 7'!C348","v":0},{"$f":"'Voc 7'!D348","v":0},{"$f":"'Voc 7'!E348","v":0}]
[null,null,null,null,null,null,null,null,null,null,null,null,null,null,null,null,346,{"$f":"'Voc 7'!C349","v":0},{"$f":"'Voc 7'!D349","v":0},{"$f":"'Voc 7'!E349","v":0}]
[null,null,null,null,null,null,null,null,null,null,null,null,null,null,null,null,347,{"$f":"'Voc 7'!C350","v":0},{"$f":"'Voc 7'!D350","v":0},{"$f":"'Voc 7'!E350","v":0}]
[null,null,null,null,null,null,null,null,null,null,null,null,null,null,null,null,348,{"$f":"'Voc 7'!C351","v":0},{"$f":"'Voc 7'!D351","v":0},{"$f":"'Voc 7'!E351","v":0}]
[null,null,null,null,null,null,null,null,null,null,null,null,null,null,null,null,349,{"$f":"'Voc 7'!C352","v":0},{"$f":"'Voc 7'!D352","v":0},{"$f":"'Voc 7'!E352","v":0}]
[null,null,null,null,null,null,null,null,null,null,null,null,null,null,null,null,350,{"$f":"'Voc 7'!C353","v":0},{"$f":"'Voc 7'!D353","v":0},{"$f":"'Voc 7'!E353","v":0}]
[null,null,null,null,null,null,null,null,null,null,null,null,null,null,null,null,351,{"$f":"'Voc 7'!C354","v":0},{"$f":"'Voc 7'!D354","v":0},{"$f":"'Voc 7'!E354","v":0}]
[null,null,null,null,null,null,null,null,null,null,null,null,null,null,null,null,352,{"$f":"'Voc 7'!C355","v":0},{"$f":"'Voc 7'!D355","v":0},{"$f":"'Voc 7'!E355","v":0}]
[null,null,null,null,null,null,null,null,null,null,null,null,null,null,null,null,353,{"$f":"'Voc 7'!C356","v":0},{"$f":"'Voc 7'!D356","v":0},{"$f":"'Voc 7'!E356","v":0}]
[null,null,null,null,null,null,null,null,null,null,null,null,null,null,null,null,354,{"$f":"'Voc 7'!C357","v":0},{"$f":"'Voc 7'!D357","v":0},{"$f":"'Voc 7'!E357","v":0}]
[null,null,null,null,null,null,null,null,null,null,null,null,null,null,null,null,355,{"$f":"'Voc 7'!C358","v":0},{"$f":"'Voc 7'!D358","v":0},{"$f":"'Voc 7'!E358","v":0}]
[null,null,null,null,null,null,null,null,null,null,null,null,null,null,null,null,356,{"$f":"'Voc 7'!C359","v":0},{"$f":"'Voc 7'!D359","v":0},{"$f":"'Voc 7'!E359","v":0}]
[null,null,null,null,null,null,null,null,null,null,null,null,null,null,null,null,357,{"$f":"'Voc 7'!C360","v":0},{"$f":"'Voc 7'!D360","v":0},{"$f":"'Voc 7'!E360","v":0}]
[null,null,null,null,null,null,null,null,null,null,null,null,null,null,null,null,358,{"$f":"'Voc 7'!C361","v":0},{"$f":"'Voc 7'!D361","v":0},{"$f":"'Voc 7'!E361","v":0}]
[null,null,null,null,null,null,null,null,null,null,null,null,null,null,null,null,359,{"$f":"'Voc 7'!C362","v":0},{"$f":"'Voc 7'!D362","v":0},{"$f":"'Voc 7'!E362","v":0}]
[null,null,null,null,null,null,null,null,null,null,null,null,null,null,null,null,360,{"$f":"'Voc 7'!C363","v":0},{"$f":"'Voc 7'!D363","v":0},{"$f":"'Voc 7'!E363","v":0}]
[null,null,null,null,null,null,null,null,null,null,null,null,null,null,null,null,361,{"$f":"'Voc 7'!C364","v":0},{"$f":"'Voc 7'!D364","v":0},{"$f":"'Voc 7'!E364","v":0}]
[null,null,null,null,null,null,null,null,null,null,null,null,null,null,null,null,362,{"$f":"'Voc 7'!C365","v":0},{"$f":"'Voc 7'!D365","v":0},{"$f":"'Voc 7'!E365","v":0}]
[null,null,null,null,null,null,null,null,null,null,null,null,null,null,null,null,363,{"$f":"'Voc 7'!C366","v":0},{"$f":"'Voc 7'!D366","v":0},{"$f":"'Voc 7'!E366","v":0}]
[null,null,null,null,null,null,null,null,null,null,null,null,null,null,null,null,364,{"$f":"'Voc 7'!C367","v":0},{"$f":"'Voc 7'!D367","v":0},{"$f":"'Voc 7'!E367","v":0}]
[null,null,null,null,null,null,null,null,null,null,null,null,null,null,null,null,365,{"$f":"'Voc 7'!C368","v":0},{"$f":"'Voc 7'!D368","v":0},{"$f":"'Voc 7'!E368","v":0}]
[null,null,null,null,null,null,null,null,null,null,null,null,null,null,null,null,366,{"$f":"'Voc 7'!C369","v":0},{"$f":"'Voc 7'!D369","v":0},{"$f":"'Voc 7'!E369","v":0}]
[null,null,null,null,null,null,null,null,null,null,null,null,null,null,null,null,367,{"$f":"'Voc 7'!C370","v":0},{"$f":"'Voc 7'!D370","v":0},{"$f":"'Voc 7'!E370","v":0}]
[null,null,null,null,null,null,null,null,null,null,null,null,null,null,null,null,368,{"$f":"'Voc 7'!C371","v":0},{"$f":"'Voc 7'!D371","v":0},{"$f":"'Voc 7'!E371","v":0}]
[null,null,null,null,null,null,null,null,null,null,null,null,null,null,null,null,369,{"$f":"'Voc 7'!C372","v":0},{"$f":"'Voc 7'!D372","v":0},{"$f":"'Voc 7'!E372","v":0}]
[null,null,null,null,null,null,null,null,null,null,null,null,null,null,null,null,370,{"$f":"'Voc 7'!C373","v":0},{"$f":"'Voc 7'!D373","v":0},{"$f":"'Voc 7'!E373","v":0}]
[null,null,null,null,null,null,null,null,null,null,null,null,null,null,null,null,371,{"$f":"'Voc 7'!C374","v":0},{"$f":"'Voc 7'!D374","v":0},{"$f":"'Voc 7'!E374","v":0}]
[null,null,null,null,null,null,null,null,null,null,null,null,null,null,null,null,372,{"$f":"'Voc 7'!C375","v":0},{"$f":"'Voc 7'!D375","v":0},{"$f":"'Voc 7'!E375","v":0}]
[null,null,null,null,null,null,null,null,null,null,null,null,null,null,null,null,373,{"$f":"'Voc 7'!C376","v":0},{"$f":"'Voc 7'!D376","v":0},{"$f":"'Voc 7'!E376","v":0}]
[null,null,null,null,null,null,null,null,null,null,null,null,null,null,null,null,374,{"$f":"'Voc 7'!C377","v":0},{"$f":"'Voc 7'!D377","v":0},{"$f":"'Voc 7'!E377","v":0}]
[null,null,null,null,null,null,null,null,null,null,null,null,null,null,null,null,375,{"$f":"'Voc 7'!C378","v":0},{"$f":"'Voc 7'!D378","v":0},{"$f":"'Voc 7'!E378","v":0}]
[null,null,null,null,null,null,null,null,null,null,null,null,null,null,null,null,376,{"$f":"'Voc 7'!C379","v":0},{"$f":"'Voc 7'!D379","v":0},{"$f":"'Voc 7'!E379","v":0}]
[null,null,null,null,null,null,null,null,null,null,null,null,null,null,null,null,377,{"$f":"'Voc 7'!C380","v":0},{"$f":"'Voc 7'!D380","v":0},{"$f":"'Voc 7'!E380","v":0}]
[null,null,null,null,null,null,null,null,null,null,null,null,null,null,null,null,378,{"$f":"'Voc 7'!C381","v":0},{"$f":"'Voc 7'!D381","v":0},{"$f":"'Voc 7'!E381","v":0}]
[null,null,null,null,null,null,null,null,null,null,null,null,null,null,null,null,379,{"$f":"'Voc 7'!C382","v":0},{"$f":"'Voc 7'!D382","v":0},{"$f":"'Voc 7'!E382","v":0}]
[null,null,null,null,null,null,null,null,null,null,null,null,null,null,null,null,380,{"$f":"'Voc 7'!C383","v":0},{"$f":"'Voc 7'!D383","v":0},{"$f":"'Voc 7'!E383","v":0}]
[null,null,null,null,null,null,null,null,null,null,null,null,null,null,null,null,381,{"$f":"'Voc 7'!C384","v":0},{"$f":"'Voc 7'!D384","v":0},{"$f":"'Voc 7'!E384","v":0}]
[null,null,null,null,null,null,null,null,null,null,null,null,null,null,null,null,382,{"$f":"'Voc 7'!C385","v":0},{"$f":"'Voc 7'!D385","v":0},{"$f":"'Voc 7'!E385","v":0}]
[null,null,null,null,null,null,null,null,null,null,null,null,null,null,null,null,383,{"$f":"'Voc 7'!C386","v":0},{"$f":"'Voc 7'!D386","v":0},{"$f":"'Voc 7'!E386","v":0}]
[null,null,null,null,null,null,null,null,null,null,null,null,null,null,null,null,384,{"$f":"'Voc 7'!C387","v":0},{"$f":"'Voc 7'!D387","v":0},{"$f":"'Voc 7'!E387","v":0}]
[null,null,null,null,null,null,null,null,null,null,null,null,null,null,null,null,385,{"$f":"'Voc 7'!C388","v":0},{"$f":"'Voc 7'!D388","v":0},{"$f":"'Voc 7'!E388","v":0}]
[null,null,null,null,null,null,null,null,null,null,null,null,null,null,null,null,386,{"$f":"'Voc 7'!C389","v":0},{"$f":"'Voc 7'!D389","v":0},{"$f":"'Voc 7'!E389","v":0}]
[null,null,null,null,null,null,null,null,null,null,null,null,null,null,null,null,387,{"$f":"'Voc 7'!C390","v":0},{"$f":"'Voc 7'!D390","v":0},{"$f":"'Voc 7'!E390","v":0}]
[null,null,null,null,null,null,null,null,null,null,null,null,null,null,null,null,388,{"$f":"'Voc 7'!C391","v":0},{"$f":"'Voc 7'!D391","v":0},{"$f":"'Voc 7'!E391","v":0}]
[null,null,null,null,null,null,null,null,null,null,null,null,null,null,null,null,389,{"$f":"'Voc 7'!C392","v":0},{"$f":"'Voc 7'!D392","v":0},{"$f":"'Voc 7'!E392","v":0}]
[null,null,null,null,null,null,null,null,null,null,null,null,null,null,null,null,390,{"$f":"'Voc 7'!C393","v":0},{"$f":"'Voc 7'!D393","v":0},{"$f":"'Voc 7'!E393","v":0}]
[null,null,null,null,null,null,null,null,null,null,null,null,null,null,null,null,391,{"$f":"'Voc 7'!C394","v":0},{"$f":"'Voc 7'!D394","v":0},{"$f":"'Voc 7'!E394","v":0}]
[null,null,null,null,null,null,null,null,null,null,null,null,null,null,null,null,392,{"$f":"'Voc 7'!C395","v":0},{"$f":"'Voc 7'!D395","v":0},{"$f":"'Voc 7'!E395","v":0}]
[null,null,null,null,null,null,null,null,null,null,null,null,null,null,null,null,393,{"$f":"'Voc 7'!C396","v":0},{"$f":"'Voc 7'!D396","v":0},{"$f":"'Voc 7'!E396","v":0}]
[null,null,null,null,null,null,null,null,null,null,null,null,null,null,null,null,394,{"$f":"'Voc 7'!C397","v":0},{"$f":"'Voc 7'!D397","v":0},{"$f":"'Voc 7'!E397","v":0}]
[null,null,null,null,null,null,null,null,null,null,null,null,null,null,null,null,395,{"$f":"'Voc 7'!C398","v":0},{"$f":"'Voc 7'!D398","v":0},{"$f":"'Voc 7'!E398","v":0}]
[null,null,null,null,null,null,null,null,null,null,null,null,null,null,null,null,396,{"$f":"'Voc 7'!C399","v":0},{"$f":"'Voc 7'!D399","v":0},{"$f":"'Voc 7'!E399","v":0}]
[null,null,null,null,null,null,null,null,null,null,null,null,null,null,null,null,397,{"$f":"'Voc 7'!C400","v":0},{"$f":"'Voc 7'!D400","v":0},{"$f":"'Voc 7'!E400","v":0}]
[null,null,null,null,null,null,null,null,null,null,null,null,null,null,null,null,398,{"$f":"'Voc 7'!C401","v":0},{"$f":"'Voc 7'!D401","v":0},{"$f":"'Voc 7'!E401","v":0}]
[null,null,null,null,null,null,null,null,null,null,null,null,null,null,null,null,399,{"$f":"'Voc 7'!C402","v":0},{"$f":"'Voc 7'!D402","v":0},{"$f":"'Voc 7'!E402","v":0}]
[null,null,null,null,null,null,null,null,null,null,null,null,null,null,null,null,400,{"$f":"'Voc 7'!C403","v":0},{"$f":"'Voc 7'!D403","v":0},{"$f":"'Voc 7'!E403","v":0}]
[null,null,null,null,null,null,null,null,null,null,null,null,null,null,null,null,401,{"$f":"'Voc 7'!C404","v":0},{"$f":"'Voc 7'!D404","v":0},{"$f":"'Voc 7'!E404","v":0}]
[null,null,null,null,null,null,null,null,null,null,null,null,null,null,null,null,402,{"$f":"'Voc 7'!C405","v":0},{"$f":"'Voc 7'!D405","v":0},{"$f":"'Voc 7'!E405","v":0}]
[null,null,null,null,null,null,null,null,null,null,null,null,null,null,null,null,403,{"$f":"'Voc 7'!C406","v":0},{"$f":"'Voc 7'!D406","v":0},{"$f":"'Voc 7'!E406","v":0}]
[null,null,null,null,null,null,null,null,null,null,null,null,null,null,null,null,404,{"$f":"'Voc 7'!C407","v":0},{"$f":"'Voc 7'!D407","v":0},{"$f":"'Voc 7'!E407","v":0}]
[null,null,null,null,null,null,null,null,null,null,null,null,null,null,null,null,405,{"$f":"'Voc 7'!C408","v":0},{"$f":"'Voc 7'!D408","v":0},{"$f":"'Voc 7'!E408","v":0}]
[null,null,null,null,null,null,null,null,null,null,null,null,null,null,null,null,406,{"$f":"'Voc 7'!C409","v":0},{"$f":"'Voc 7'!D409","v":0},{"$f":"'Voc 7'!E409","v":0}]
[null,null,null,null,null,null,null,null,null,null,null,null,null,null,null,null,407,{"$f":"'Voc 7'!C410","v":0},{"$f":"'Voc 7'!D410","v":0},{"$f":"'Voc 7'!E410","v":0}]
[null,null,null,null,null,null,null,null,null,null,null,null,null,null,null,null,408,{"$f":"'Voc 7'!C411","v":0},{"$f":"'Voc 7'!D411","v":0},{"$f":"'Voc 7'!E411","v":0}]
[null,null,null,null,null,null,null,null,null,null,null,null,null,null,null,null,409,{"$f":"'Voc 7'!C412","v":0},{"$f":"'Voc 7'!D412","v":0},{"$f":"'Voc 7'!E412","v":0}]
[null,null,null,null,null,null,null,null,null,null,null,null,null,null,null,null,410,{"$f":"'Voc 7'!C413","v":0},{"$f":"'Voc 7'!D413","v":0},{"$f":"'Voc 7'!E413","v":0}]
[null,null,null,null,null,null,null,null,null,null,null,null,null,null,null,null,411,{"$f":"'Voc 7'!C414","v":0},{"$f":"'Voc 7'!D414","v":0},{"$f":"'Voc 7'!E414","v":0}]
[null,null,null,null,null,null,null,null,null,null,null,null,null,null,null,null,412,{"$f":"'Voc 7'!C415","v":0},{"$f":"'Voc 7'!D415","v":0},{"$f":"'Voc 7'!E415","v":0}]
[null,null,null,null,null,null,null,null,null,null,null,null,null,null,null,null,413,{"$f":"'Voc 7'!C416","v":0},{"$f":"'Voc 7'!D416","v":0},{"$f":"'Voc 7'!E416","v":0}]
[null,null,null,null,null,null,null,null,null,null,null,null,null,null,null,null,414,{"$f":"'Voc 7'!C417","v":0},{"$f":"'Voc 7'!D417","v":0},{"$f":"'Voc 7'!E417","v":0}]
[null,null,null,null,null,null,null,null,null,null,null,null,null,null,null,null,415,{"$f":"'Voc 7'!C418","v":0},{"$f":"'Voc 7'!D418","v":0},{"$f":"'Voc 7'!E418","v":0}]
[null,null,null,null,null,null,null,null,null,null,null,null,null,null,null,null,416,{"$f":"'Voc 7'!C419","v":0},{"$f":"'Voc 7'!D419","v":0},{"$f":"'Voc 7'!E419","v":0}]
[null,null,null,null,null,null,null,null,null,null,null,null,null,null,null,null,417,{"$f":"'Voc 7'!C420","v":0},{"$f":"'Voc 7'!D420","v":0},{"$f":"'Voc 7'!E420","v":0}]
[null,null,null,null,null,null,null,null,null,null,null,null,null,null,null,null,418,{"$f":"'Voc 7'!C421","v":0},{"$f":"'Voc 7'!D421","v":0},{"$f":"'Voc 7'!E421","v":0}]
[null,null,null,null,null,null,null,null,null,null,null,null,null,null,null,null,419,{"$f":"'Voc 7'!C422","v":0},{"$f":"'Voc 7'!D422","v":0},{"$f":"'Voc 7'!E422","v":0}]
[null,null,null,null,null,null,null,null,null,null,null,null,null,null,null,null,420,{"$f":"'Voc 7'!C423","v":0},{"$f":"'Voc 7'!D423","v":0},{"$f":"'Voc 7'!E423","v":0}]
[null,null,null,null,null,null,null,null,null,null,null,null,null,null,null,null,421,{"$f":"'Voc 7'!C424","v":0},{"$f":"'Voc 7'!D424","v":0},{"$f":"'Voc 7'!E424","v":0}]
[null,null,null,null,null,null,null,null,null,null,null,null,null,null,null,null,422,{"$f":"'Voc 7'!C425","v":0},{"$f":"'Voc 7'!D425","v":0},{"$f":"'Voc 7'!E425","v":0}]
[null,null,null,null,null,null,null,null,null,null,null,null,null,null,null,null,423,{"$f":"'Voc 7'!C426","v":0},{"$f":"'Voc 7'!D426","v":0},{"$f":"'Voc 7'!E426","v":0}]
[null,null,null,null,null,null,null,null,null,null,null,null,null,null,null,null,424,{"$f":"'Voc 7'!C427","v":0},{"$f":"'Voc 7'!D427","v":0},{"$f":"'Voc 7'!E427","v":0}]
[null,null,null,null,null,null,null,null,null,null,null,null,null,null,null,null,425,{"$f":"'Voc 7'!C428","v":0},{"$f":"'Voc 7'!D428","v":0},{"$f":"'Voc 7'!E428","v":0}]
[null,null,null,null,null,null,null,null,null,null,null,null,null,null,null,null,426,{"$f":"'Voc 7'!C429","v":0},{"$f":"'Voc 7'!D429","v":0},{"$f":"'Voc 7'!E429","v":0}]
[null,null,null,null,null,null,null,null,null,null,null,null,null,null,null,null,427,{"$f":"'Voc 7'!C430","v":0},{"$f":"'Voc 7'!D430","v":0},{"$f":"'Voc 7'!E430","v":0}]
[null,null,null,null,null,null,null,null,null,null,null,null,null,null,null,null,428,{"$f":"'Voc 7'!C431","v":0},{"$f":"'Voc 7'!D431","v":0},{"$f":"'Voc 7'!E431","v":0}]
[null,null,null,null,null,null,null,null,null,null,null,null,null,null,null,null,429,{"$f":"'Voc 7'!C432","v":0},{"$f":"'Voc 7'!D432","v":0},{"$f":"'Voc 7'!E432","v":0}]
[null,null,null,null,null,null,null,null,null,null,null,null,null,null,null,null,430,{"$f":"'Voc 7'!C433","v":0},{"$f":"'Voc 7'!D433","v":0},{"$f":"'Voc 7'!E433","v":0}]
[null,null,null,null,null,null,null,null,null,null,null,null,null,null,null,null,431,{"$f":"'Voc 7'!C434","v":0},{"$f":"'Voc 7'!D434","v":0},{"$f":"'Voc 7'!E434","v":0}]
[null,null,null,null,null,null,null,null,null,null,null,null,null,null,null,null,432,{"$f":"'Voc 7'!C435","v":0},{"$f":"'Voc 7'!D435","v":0},{"$f":"'Voc 7'!E435","v":0}]
[null,null,null,null,null,null,null,null,null,null,null,null,null,null,null,null,433,{"$f":"'Voc 7'!C436","v":0},{"$f":"'Voc 7'!D436","v":0},{"$f":"'Voc 7'!E436","v":0}]
[null,null,null,null,null,null,null,null,null,null,null,null,null,null,null,null,434,{"$f":"'Voc 7'!C437","v":0},{"$f":"'Voc 7'!D437","v":0},{"$f":"'Voc 7'!E437","v":0}]
[null,null,null,null,null,null,null,null,null,null,null,null,null,null,null,null,435,{"$f":"'Voc 7'!C438","v":0},{"$f":"'Voc 7'!D438","v":0},{"$f":"'Voc 7'!E438","v":0}]
[null,null,null,null,null,null,null,null,null,null,null,null,null,null,null,null,436,{"$f":"'Voc 7'!C439","v":0},{"$f":"'Voc 7'!D439","v":0},{"$f":"'Voc 7'!E439","v":0}]
[null,null,null,null,null,null,null,null,null,null,null,null,null,null,null,null,437,{"$f":"'Voc 7'!C440","v":0},{"$f":"'Voc 7'!D440","v":0},{"$f":"'Voc 7'!E440","v":0}]
[null,null,null,null,null,null,null,null,null,null,null,null,null,null,null,null,438,{"$f":"'Voc 7'!C441","v":0},{"$f":"'Voc 7'!D441","v":0},{"$f":"'Voc 7'!E441","v":0}]
[null,null,null,null,null,null,null,null,null,null,null,null,null,null,null,null,439,{"$f":"'Voc 7'!C442","v":0},{"$f":"'Voc 7'!D442","v":0},{"$f":"'Voc 7'!E442","v":0}]
[null,null,null,null,null,null,null,null,null,null,null,null,null,null,null,null,440,{"$f":"'Voc 7'!C443","v":0},{"$f":"'Voc 7'!D443","v":0},{"$f":"'Voc 7'!E443","v":0}]
[null,null,null,null,null,null,null,null,null,null,null,null,null,null,null,null,441,{"$f":"'Voc 7'!C444","v":0},{"$f":"'Voc 7'!D444","v":0},{"$f":"'Voc 7'!E444","v":0}]
[null,null,null,null,null,null,null,null,null,null,null,null,null,null,null,null,442,{"$f":"'Voc 7'!C445","v":0},{"$f":"'Voc 7'!D445","v":0},{"$f":"'Voc 7'!E445","v":0}]
[null,null,null,null,null,null,null,null,null,null,null,null,null,null,null,null,443,{"$f":"'Voc 7'!C446","v":0},{"$f":"'Voc 7'!D446","v":0},{"$f":"'Voc 7'!E446","v":0}]
[null,null,null,null,null,null,null,null,null,null,null,null,null,null,null,null,444,{"$f":"'Voc 7'!C447","v":0},{"$f":"'Voc 7'!D447","v":0},{"$f":"'Voc 7'!E447","v":0}]
[null,null,null,null,null,null,null,null,null,null,null,null,null,null,null,null,445,{"$f":"'Voc 7'!C448","v":0},{"$f":"'Voc 7'!D448","v":0},{"$f":"'Voc 7'!E448","v":0}]
[null,null,null,null,null,null,null,null,null,null,null,null,null,null,null,null,446,{"$f":"'Voc 7'!C449","v":0},{"$f":"'Voc 7'!D449","v":0},{"$f":"'Voc 7'!E449","v":0}]
[null,null,null,null,null,null,null,null,null,null,null,null,null,null,null,null,447,{"$f":"'Voc 7'!C450","v":0},{"$f":"'Voc 7'!D450","v":0},{"$f":"'Voc 7'!E450","v":0}]
[null,null,null,null,null,null,null,null,null,null,null,null,null,null,null,null,448,{"$f":"'Voc 7'!C451","v":0},{"$f":"'Voc 7'!D451","v":0},{"$f":"'Voc 7'!E451","v":0}]
[null,null,null,null,null,null,null,null,null,null,null,null,null,null,null,null,449,{"$f":"'Voc 7'!C452","v":0},{"$f":"'Voc 7'!D452","v":0},{"$f":"'Voc 7'!E452","v":0}]
[null,null,null,null,null,null,null,null,null,null,null,null,null,null,null,null,450,{"$f":"'Voc 7'!C453","v":0},{"$f":"'Voc 7'!D453","v":0},{"$f":"'Voc 7'!E453","v":0}]
[null,null,null,null,null,null,null,null,null,null,null,null,null,null,null,null,451,{"$f":"'Voc 7'!C454","v":0},{"$f":"'Voc 7'!D454","v":0},{"$f":"'Voc 7'!E454","v":0}]
[null,null,null,null,null,null,null,null,null,null,null,null,null,null,null,null,452,{"$f":"'Voc 7'!C455","v":0},{"$f":"'Voc 7'!D455","v":0},{"$f":"'Voc 7'!E455","v":0}]
[null,null,null,null,null,null,null,null,null,null,null,null,null,null,null,null,453,{"$f":"'Voc 7'!C456","v":0},{"$f":"'Voc 7'!D456","v":0},{"$f":"'Voc 7'!E456","v":0}]
[null,null,null,null,null,null,null,null,null,null,null,null,null,null,null,null,454,{"$f":"'Voc 7'!C457","v":0},{"$f":"'Voc 7'!D457","v":0},{"$f":"'Voc 7'!E457","v":0}]
[null,null,null,null,null,null,null,null,null,null,null,null,null,null,null,null,455,{"$f":"'Voc 7'!C458","v":0},{"$f":"'Voc 7'!D458","v":0},{"$f":"'Voc 7'!E458","v":0}]
[null,null,null,null,null,null,null,null,null,null,null,null,null,null,null,null,456,{"$f":"'Voc 7'!C459","v":0},{"$f":"'Voc 7'!D459","v":0},{"$f":"'Voc 7'!E459","v":0}]
[null,null,null,null,null,null,null,null,null,null,null,null,null,null,null,null,457,{"$f":"'Voc 7'!C460","v":0},{"$f":"'Voc 7'!D460","v":0},{"$f":"'Voc 7'!E460","v":0}]
[null,null,null,null,null,null,null,null,null,null,null,null,null,null,null,null,458,{"$f":"'Voc 7'!C461","v":0},{"$f":"'Voc 7'!D461","v":0},{"$f":"'Voc 7'!E461","v":0}]
[null,null,null,null,null,null,null,null,null,null,null,null,null,null,null,null,459,{"$f":"'Voc 7'!C462","v":0},{"$f":"'Voc 7'!D462","v":0},{"$f":"'Voc 7'!E462","v":0}]
[null,null,null,null,null,null,null,null,null,null,null,null,null,null,null,null,460,{"$f":"'Voc 7'!C463","v":0},{"$f":"'Voc 7'!D463","v":0},{"$f":"'Voc 7'!E463","v":0}]
[null,null,null,null,null,null,null,null,null,null,null,null,null,null,null,null,461,{"$f":"'Voc 7'!C464","v":0},{"$f":"'Voc 7'!D464","v":0},{"$f":"'Voc 7'!E464","v":0}]
[null,null,null,null,null,null,null,null,null,null,null,null,null,null,null,null,462,{"$f":"'Voc 7'!C465","v":0},{"$f":"'Voc 7'!D465","v":0},{"$f":"'Voc 7'!E465","v":0}]
[null,null,null,null,null,null,null,null,null,null,null,null,null,null,null,null,463,{"$f":"'Voc 7'!C466","v":0},{"$f":"'Voc 7'!D466","v":0},{"$f":"'Voc 7'!E466","v":0}]
[null,null,null,null,null,null,null,null,null,null,null,null,null,null,null,null,464,{"$f":"'Voc 7'!C467","v":0},{"$f":"'Voc 7'!D467","v":0},{"$f":"'Voc 7'!E467","v":0}]
[null,null,null,null,null,null,null,null,null,null,null,null,null,null,null,null,465,{"$f":"'Voc 7'!C468","v":0},{"$f":"'Voc 7'!D468","v":0},{"$f":"'Voc 7'!E468","v":0}]
[null,null,null,null,null,null,null,null,null,null,null,null,null,null,null,null,466,{"$f":"'Voc 7'!C469","v":0},{"$f":"'Voc 7'!D469","v":0},{"$f":"'Voc 7'!E469","v":0}]
[null,null,null,null,null,null,null,null,null,null,null,null,null,null,null,null,467,{"$f":"'Voc 7'!C470","v":0},{"$f":"'Voc 7'!D470","v":0},{"$f":"'Voc 7'!E470","v":0}]
[null,null,null,null,null,null,null,null,null,null,null,null,null,null,null,null,468,{"$f":"'Voc 7'!C471","v":0},{"$f":"'Voc 7'!D471","v":0},{"$f":"'Voc 7'!E471","v":0}]
[null,null,null,null,null,null,null,null,null,null,null,null,null,null,null,null,469,{"$f":"'Voc 7'!C472","v":0},{"$f":"'Voc 7'!D472","v":0},{"$f":"'Voc 7'!E472","v":0}]
[null,null,null,null,null,null,null,null,null,null,null,null,null,null,null,null,470,{"$f":"'Voc 7'!C473","v":0},{"$f":"'Voc 7'!D473","v":0},{"$f":"'Voc 7'!E473","v":0}]
[null,null,null,null,null,null,null,null,null,null,null,null,null,null,null,null,471,{"$f":"'Voc 7'!C474","v":0},{"$f":"'Voc 7'!D474","v":0},{"$f":"'Voc 7'!E474","v":0}]
[null,null,null,null,null,null,null,null,null,null,null,null,null,null,null,null,472,{"$f":"'Voc 7'!C475","v":0},{"$f":"'Voc 7'!D475","v":0},{"$f":"'Voc 7'!E475","v":0}]
[null,null,null,null,null,null,null,null,null,null,null,null,null,null,null,null,473,{"$f":"'Voc 7'!C476","v":0},{"$f":"'Voc 7'!D476","v":0},{"$f":"'Voc 7'!E476","v":0}]
[null,null,null,null,null,null,null,null,null,null,null,null,null,null,null,null,474,{"$f":"'Voc 7'!C477","v":0},{"$f":"'Voc 7'!D477","v":0},{"$f":"'Voc 7'!E477","v":0}]
[null,null,null,null,null,null,null,null,null,null,null,null,null,null,null,null,475,{"$f":"'Voc 7'!C478","v":0},{"$f":"'Voc 7'!D478","v":0},{"$f":"'Voc 7'!E478","v":0}]
[null,null,null,null,null,null,null,null,null,null,null,null,null,null,null,null,476,{"$f":"'Voc 7'!C479","v":0},{"$f":"'Voc 7'!D479","v":0},{"$f":"'Voc 7'!E479","v":0}]
[null,null,null,null,null,null,null,null,null,null,null,null,null,null,null,null,477,{"$f":"'Voc 7'!C480","v":0},{"$f":"'Voc 7'!D480","v":0},{"$f":"'Voc 7'!E480","v":0}]
[null,null,null,null,null,null,null,null,null,null,null,null,null,null,null,null,478,{"$f":"'Voc 7'!C481","v":0},{"$f":"'Voc 7'!D481","v":0},{"$f":"'Voc 7'!E481","v":0}]
[null,null,null,null,null,null,null,null,null,null,null,null,null,null,null,null,479,{"$f":"'Voc 7'!C482","v":0},{"$f":"'Voc 7'!D482","v":0},{"$f":"'Voc 7'!E482","v":0}]
[null,null,null,null,null,null,null,null,null,null,null,null,null,null,null,null,480,{"$f":"'Voc 7'!C483","v":0},{"$f":"'Voc 7'!D483","v":0},{"$f":"'Voc 7'!E483","v":0}]
[null,null,null,null,null,null,null,null,null,null,null,null,null,null,null,null,481,{"$f":"'Voc 7'!C484","v":0},{"$f":"'Voc 7'!D484","v":0},{"$f":"'Voc 7'!E484","v":0}]
[null,null,null,null,null,null,null,null,null,null,null,null,null,null,null,null,482,{"$f":"'Voc 7'!C485","v":0},{"$f":"'Voc 7'!D485","v":0},{"$f":"'Voc 7'!E485","v":0}]
[null,null,null,null,null,null,null,null,null,null,null,null,null,null,null,null,483,{"$f":"'Voc 7'!C486","v":0},{"$f":"'Voc 7'!D486","v":0},{"$f":"'Voc 7'!E486","v":0}]
[null,null,null,null,null,null,null,null,null,null,null,null,null,null,null,null,484,{"$f":"'Voc 7'!C487","v":0},{"$f":"'Voc 7'!D487","v":0},{"$f":"'Voc 7'!E487","v":0}]
[null,null,null,null,null,null,null,null,null,null,null,null,null,null,null,null,485,{"$f":"'Voc 7'!C488","v":0},{"$f":"'Voc 7'!D488","v":0},{"$f":"'Voc 7'!E488","v":0}]
[null,null,null,null,null,null,null,null,null,null,null,null,null,null,null,null,486,{"$f":"'Voc 7'!C489","v":0},{"$f":"'Voc 7'!D489","v":0},{"$f":"'Voc 7'!E489","v":0}]
[null,null,null,null,null,null,null,null,null,null,null,null,null,null,null,null,487,{"$f":"'Voc 7'!C490","v":0},{"$f":"'Voc 7'!D490","v":0},{"$f":"'Voc 7'!E490","v":0}]
[null,null,null,null,null,null,null,null,null,null,null,null,null,null,null,null,488,{"$f":"'Voc 7'!C491","v":0},{"$f":"'Voc 7'!D491","v":0},{"$f":"'Voc 7'!E491","v":0}]
[null,null,null,null,null,null,null,null,null,null,null,null,null,null,null,null,489,{"$f":"'Voc 7'!C492","v":0},{"$f":"'Voc 7'!D492","v":0},{"$f":"'Voc 7'!E492","v":0}]
[null,null,null,null,null,null,null,null,null,null,null,null,null,null,null,null,490,{"$f":"'Voc 7'!C493","v":0},{"$f":"'Voc 7'!D493","v":0},{"$f":"'Voc 7'!E493","v":0}]
[null,null,null,null,null,null,null,null,null,null,null,null,null,null,null,null,491,{"$f":"'Voc 7'!C494","v":0},{"$f":"'Voc 7'!D494","v":0},{"$f":"'Voc 7'!E494","v":0}]
[null,null,null,null,null,null,null,null,null,null,null,null,null,null,null,null,492,{"$f":"'Voc 7'!C495","v":0},{"$f":"'Voc 7'!D495","v":0},{"$f":"'Voc 7'!E495","v":0}]
[null,null,null,null,null,null,null,null,null,null,null,null,null,null,null,null,493,{"$f":"'Voc 7'!C496","v":0},{"$f":"'Voc 7'!D496","v":0},{"$f":"'Voc 7'!E496","v":0}]
[null,null,null,null,null,null,null,null,null,null,null,null,null,null,null,null,494,{"$f":"'Voc 7'!C497","v":0},{"$f":"'Voc 7'!D497","v":0},{"$f":"'Voc 7'!E497","v":0}]
[null,null,null,null,null,null,null,null,null,null,null,null,null,null,null,null,495,{"$f":"'Voc 7'!C498","v":0},{"$f":"'Voc 7'!D498","v":0},{"$f":"'Voc 7'!E498","v":0}]
[null,null,null,null,null,null,null,null,null,null,null,null,null,null,null,null,496,{"$f":"'Voc 7'!C499","v":0},{"$f":"'Voc 7'!D499","v":0},{"$f":"'Voc 7'!E499","v":0}]
[null,null,null,null,null,null,null,null,null,null,null,null,null,null,null,null,497,{"$f":"'Voc 7'!C500","v":0},{"$f":"'Voc 7'!D500","v":0},{"$f":"'Voc 7'!E500","v":0}]
[null,null,null,null,null,null,null,null,null,null,null,null,null,null,null,null,498,{"$f":"'Voc 7'!C501","v":0},{"$f":"'Voc 7'!D501","v":0},{"$f":"'Voc 7'!E501","v":0}]
[null,null,null,null,null,null,null,null,null,null,null,null,null,null,null,null,499,{"$f":"'Voc 7'!C502","v":0},{"$f":"'Voc 7'!D502","v":0},{"$f":"'Voc 7'!E502","v":0}]
[null,null,null,null,null,null,null,null,null,null,null,null,null,null,null,null,500,{"$f":"'Voc 7'!C503","v":0},{"$f":"'Voc 7'!D503","v":0},{"$f":"'Voc 7'!E503","v":0}]
[null,null,null,null,null,null,null,null,null,null,null,null,null,null,null,null,501,{"$f":"'Voc 1'!C504","v":0},{"$f":"'Voc 1'!D504","v":0},{"$f":"'Voc 1'!E504","v":0}]
[null,null,null,null,null,null,null,null,null,null,null,null,null,null,null,null,502,{"$f":"'Voc 1'!C505","v":0},{"$f":"'Voc 1'!D505","v":0},{"$f":"'Voc 1'!E505","v":0}]
[null,null,null,null,null,null,null,null,null,null,null,null,null,null,null,null,503,{"$f":"'Voc 1'!C506","v":0},{"$f":"'Voc 1'!D506","v":0},{"$f":"'Voc 1'!E506","v":0}]
[null,null,null,null,null,null,null,null,null,null,null,null,null,null,null,null,504,{"$f":"'Voc 1'!C507","v":0},{"$f":"'Voc 1'!D507","v":0},{"$f":"'Voc 1'!E507","v":0}]

{"sheet":"Voc 1","index":4,"n_rows":326,"n_cols":5,"rows_kept":326,"cut":false,"hidden":true,"merged":[[0,0,0,6],[2,2,2,4]]}
["Base de données"]
[null,null,"Définition","Réponse","Réponse écrite minimum attendue"]
[null,0,"Vocabulaire économique"]
[null,1,"Immédiatement à la présentation d'un papier-valeur","à vue","vue"]
[null,2,"Signature du tiré sur un effet de change par laquelle il s'engage à payer le montant indiqué.","acceptation","acceptation"]
[null,3,"Titre d'un texte publicitaire souvent mis en valeur graphiquement. (Headline)","accroche","accroche"]
[null,4,"Versement d'une partie d'une somme due, à valoir sur le paiement final.","acompte","acompte"]
[null,5,"Ecrit constatant légalement un fait.","acte","acte"]
[null,6,"Ecrit constatant légalement un fait et établi par un notaire","acte authentique","authentique"]
[null,7,"Document établissant, après la faillite, le montant non couvert d'une créance.","acte de défaut de biens","défaut de biens"]
[null,8,"Partie gauche du Bilan où sont énumérés tous les emplois non-consommés","actif","actif"]
[null,9,"Acte par lequel on attribue quelque chose (un bien ou des travaux) à quelqu'un.","adjudication","adjudication"]
[null,10,"Disposition, installation d'un magasin. (vitrines, mobilier, etc...)","agencement","agencement"]
[null,11,"Fait de transmettre à une personne une propriété ou un droit.","aliéner","aliéner"]
[null,12,"Attribuer une somme d'argent à quelqu'un","allouer","allouer"]
[null,13,"Réduction de la valeur d'un poste du Bilan.","amortissement comptable","amortissement comp"]
[null,14,"Remboursement d'une dette.","amortissement financier","amortissement fin"]
[null,15,"Somme dépensée annuellement pour les intérêts et l'amortissement d'une dette.","annuité","annuité"]
[null,16,"Rétribution fixe pour un emploi régulier. (Ne s'emploie qu'au pluriel !)","appointements","appointements"]
[null,17,"Opération visant à tirer profit de la différence de cours du change existant à un moment donné entre plusieurs marchés","arbitrage","arbitrage"]
[null,18,"Périodique publiant le prix moyen des voitures d'occasion","argus","argus"]
[null,19,"Celui qui exerce un métier manuel pour son propre compte","artisan","artisan"]
[null,20,"Versement postal par mandat de paiement.","assignation","assignation"]
[null,21,"Alternance des cultures d'un champ pour obtenir le maximum de rendement, sans épuiser le sol.","assolement","assolement"]
[null,22,"Manière de vivre qui vise à se suffire à soi-même, sans faire appel à une aide extérieure.","autarcie","autarcie"]
[null,23,"Originaire du pays où il vit.","autochtone","autochtone"]
[null,24,"Augmentation du capital de l'entreprise au moyen des bénéfices non distribués.","autofinancement","autofinancement"]
[null,25,"Cautionnement d'un tiers en faveur du tiré.","aval","aval"]
[null,26,"Acte additionnel modifiant un contrat.","avenant","avenant"]
[null,27,"Contrat par lequel le propriétaire d'un bien en cède la jouissance à une autre, moyennant un prix convenu.","bail","bail"]
[null,28,"Action de créer des pièces de monnaie et des billets pour un pays.","battre","battre"]
[null,29,"Chiffre d'affaires net moins Prix de revient d'achat.","bénéfice brut","bénéfice brut"]
[null,30,"Bénéfice brut moins les frais généraux et les frais de vente.","bénéfice net","bénéfice net"]
[null,31,"Celui qui pourra encaisser une lettre de change à l'échéance","bénéficiaire","bénéficiaire"]
[null,32,"Etat de privation qui se traduit par une sensation pénible d'insuffisance génératrice de désir.","besoin","besoin"]
[null,33,"Produit qui sert à satisfaire les besoins","bien","bien"]
[null,34,"Terme cadastral pour définir un bien immobilier (terre, maison).","bien-fonds","bien-fonds"]
[null,35,"Qui a lieu tous les deux ans.","biennal","biennal"]
[null,36,"Tableau résumant la situation de l'entreprise (ressources et emplois) à un moment donné.","bilan","bilan"]
[null,37,"Papier-valeur par lequel le souscripteur s'engage à payer une certaine somme au bénéficiaire.","billet à ordre","billet à ordre"]
[null,38,"Réduction accordée sur un poids brut pour tenir compte des pertes provenant de la vente au détail","bon poids","bon poids"]
[null,39,"Relevé détaillé des éléments d'un décompte, d'un inventaire, d'une opération bancaire, etc.","bordereau","bordereau"]
[null,40,"Ville américaine où furent signés des accords qui donnèrent naissance au FMI en 1944.","Bretton Woods","Bretton Woods"]
[null,41,"Titre délivré à un inventeur et qui lui assure le droit exclusif d'exploiter sa découverte.","brevet","brevet"]
[null,42,"Portion de champs dont on a brûlé les herbes pour améliorer le sol.","brûlis","brûlis"]
[null,43,"Tout compris, c'est-à-dire avant déduction.","brut","brut"]
[null,44,"Evaluation prévisionnelle des recettes et des dépenses pour une période déterminée","budget","budget"]
[null,45,"L'assurance et les frais de transport sont compris dans le prix d'achat.","c.i.f.","c.i.f."]
[null,46,"Revenu d'un artiste","cachet","cachet"]
[null,47,"Courtier en devises","cambiste","cambiste"]
[null,48,"Convention passée entre plusieurs entreprises de la même branche","cartel","cartel"]
[null,49,"Petits coquillages utilisés jadis comme argent en Asie et en Afrique","cauris","cauris"]
[null,50,"Personne qui s'engage à payer à la place d'une autre si celle-ci ne peut pas s'exécuter.","caution","caution"]
[null,51,"Papier-valeur établi par un notaire lors de la constitution d'une hypothèque.","cédule","cédule"]
[null,52,"Cotation qui indique la quantité de monnaie étrangère pour 1 unité nationale","certain","certain"]
[null,53,"Opération qui consiste à échanger une monnaie d'un pays contre une autre d'un autre pays.","change","change"]
[null,54,"Ce qui oblige à des dépenses. Frais que l'entreprise doit supporter pour exercer son activité.","charges","charges"]
[null,55,"Papier-valeur donnant l'ordre à une banque de payer à vue, une somme déterminée à la personne désignée.","chèque","chèque"]
[null,56,"Quantité vendue au prix de vente. Total des ventes.","chiffre d'affaires"," d'affaire"]
[null,57,"Bien immatériel représentant la réputation d'une entreprise et pouvant être négocié","clientèle","clientèle"]
[null,58,"bouclement des comptes à une date donnée","clôture","clôture"]
[null,59,"Tirer le solde d'un compte par différence entre débit et crédit.","clôturer","clôturer"]
[null,60,"Ouvrages où sont regroupés les lois selon leur nature.","code","code"]
[null,61,"Somme due à un courtier ou à un vendeur en fonction de son chiffre d'affaires.","commission","commission"]
[null,62,"avec paiement immédiat","comptant","comptant"]
[null,63,"tableau dans lequel on inscrit les opérations financières entre deux personnes ou deux entreprises.","compte courant","courant"]
[null,64,"Compte de résultat intermédiaire centralisateur des charges et produits de l'activité principale de l'entreprise","compte d'exploitation","exploitation"]
[null,65,"Celui qui propose des idées ou des projets pour la publicité","concepteur","concepteur"]
[null,66,"Compétition entre plusieurs personnes ou plusieurs entreprises visant les mêmes avantages.","concurrence","concurrence"]
[null,67,"Malversation dans l'exercice d'une fonction publique.","concussion","concussion"]
[null,68,"Lettre de transport maritime possédant le caractère d'un papier-valeur.","connaissement","connaissement"]
[null,69,"Accepter qu'une chose se fasse, accorder un avantage à quelqu'un.","consentir","consentir"]
[null,70,"Usure ou destruction d'un bien ou utilisation d'un service pour satisfaire des besoins.","consommation","consommation"]
[null,71,"Dont on ne peut se servir sans le détruire.","consomptible","consomptible"]
[null,72,"acte juridique par lequel une ou plusieurs personnes s'obligent envers une ou plusieurs autres.","contrat","contrat"]
[null,73,"Personne assujettie au paiement d'un impôt.","contribuable","contribuable"]
[null,74,"Adjectif qui qualifie une monnaie que l'on peut échanger contre de l'or.","convertible","convertible"]
[null,75,"Ensemble des personnes exerçant la même profession","corporation","corporation"]
[null,76,"Liste des monnaies étrangères et de leur valeur par rapport à une monnaie donnée.","cote","cote"]
[null,77,"Réduction accordée sur un poids brut pour tenir compte des pertes éventuelles dues aux manipulation de la marchandise.","coulage","coulage"]
[null,78,"Pièce donnant droit au dividende d'une action.","coupon","coupon"]
[null,79,"Monnaie des pays scandinaves","couronne","couronne"]
[null,80,"Prix d'une monnaie étrangère","cours","cours"]
[null,81,"Commission, rémunération du courtier.","courtage","courtage"]
[null,82,"Commerçant dont l'activité consiste à mettre en présence un acheteur et un vendeur.","courtier","courtier"]
[null,83,"Loi non écrite","coutume","coutume"]
[null,84,"Droit que l'on a de demander à quelqu'un le paiement d'une somme due.","créance","créance"]
[null,85,"Personne à qui l'on doit une somme d'argent.","créancier","créancier"]
[null,86,"1) Confiance qu'inspire quelqu'un. Degré de solvabilité","crédit","crédit"]
[null,87,"2) Opération par laquelle une personne met une somme d'argent à disposition d'une autre.","crédit","crédit"]
[null,88,"3) Partie droite d'un compte","crédit","crédit"]
[null,89,"Elevage des lapins","cuniculiculture","cuniculiculture"]
[null,90,"Science qui étudie les mécanismes de communication dans les machines","cybernétique","cybernétique"]
[null,91,"1) Quantité de fluide fournie. (pour une fontaine par ex.)","débit","débit"]
[null,92,"2) Vente au détail","débit","débit"]
[null,93,"3) Partie gauche d'un compte","débit","débit"]
[null,94,"Celui ou celle qui doit une somme d'argent à un tiers.","débiteur","débiteur"]
[null,95,"Qui suit logiquement","découler","découler"]
[null,96,"Situation financière d'une entreprise caractérisée par des dettes supérieures aux biens et aux créances.","découvert","découvert"]
[null,97,"Porter une affaire ou traduire un accusé devant un tribunal.","déférer","déférer"]
[null,98,"Acte illicite, infraction à la loi.","délit","délit"]
[null,99,"Prix auquel la banque achète des monnaies étrangères. Cours ...","demande","demande"]
[null,100,"Terme juridique indiquant un retard.","demeure","demeure"]
[null,101,"Manquer à l'observation d'une loi.","déroger","déroger"]
[null,102,"Somme que l'on doit à quelqu'un.","dette","dette"]
[null,103,"Créances sur l'étranger libellées en monnaie étrangère","devise","devise"]
[null,104,"Désaccord résultant d'une différence d'opinion.","différend","différend"]
[null,105,"Reporter à plus tard.","différer","différer"]
[null,106,"Soin, zèle, faire ....","diligence","diligence"]
[null,107,"Fonds dont on peut user à tout moment.","disponibilité","disponibilité"]
[null,108,"Part du bénéfice d'une société anonyme (SA) qui est versée pour chaque action.","dividende","dividende"]
[null,109,"Qui est du domaine de l'Etat, du seigneur. (adj.)","domanial","domanial"]
[null,110,"Indication d'un lieu de paiement, autre que le domicile du tiré, sur un effet de change","domiciliation","domiciliation"]
[null,111,"Pourcentage reçu par l'auteur sur la production en série d'une de ses oeuvres","droit d'auteur","droit d'auteur"]
[null,112,"Date à laquelle une dette doit être payée.","échéance","échéance"]
[null,113,"Etre payable à une époque déterminée (dette échue).","échoir","échoir"]
[null,114,"Nom (abrégé) de l'unité monétaire européenne.","Ecu","Ecu"]
[null,115,"Action de quitter son pays pour s'établir dans un autre.","émigration","émigration"]
[null,116,"Rétribution tarifée alloué à une administration ou à un notaire.","émolument","émolument"]
[null,117,"Offre supérieure au prix proposé au cours d'une adjudication.","enchère","enchère"]
[null,118,"Maladie qui sévit continuellement dans un pays","endémie","endémie"]
[null,119,"déduction d'un intérêt lors de l'exécution d'un engagement avant l'échéance.","escompte","escompte"]
[null,120,"Action de remettre à la banque un effet avant l'échéance.","escompter","escompter"]
[null,121,"Nom féminin pluriel désignant l'ensemble des billets de banque et des pièces de monnaie.","espèces","espèces"]
[null,122,"Poursuivre une action en justice, comme demandeur ou comme défendeur.","ester","ester"]
[null,123,"Surplus","excédent","excédent"]
[null,124,"Complet","exhaustif","exhaustif"]
[null,125,"Action de mettre en valeur","exploitation","exploitation"]
[null,126,"Transbordement compris dans le prix d'achat.","f.o.b.","f.o.b."]
[null,127,"Procédure judiciaire entraînant la liquidation d'une société qui ne peut plus honorer ses paiements.","faillite","faillite"]
[null,128,"Qui trompe","fallacieux","fallacieux"]
[null,129,"Adjectif qui qualifie la monnaie basée sur la confiance, comme les pièces ou les billets de banque.","fiduciaire","fiduciaire"]
[null,130,"Succursale","filiale","filiale"]
[null,131,"Cours moyen d'un titre fixé entre le prix d'achat et le prix de vente","fixing","fixing"]
[null,132,"Nom de la monnaie hollandaise","florin","florin"]
[null,133,"Sol d'un champ, d'un domaine, terrain (n.m. singulier)","fonds","fonds"]
[null,134,"Somme d'argent à disposition pour acquérir des biens (n. m. pluriel)","fonds","fonds"]
[null,135,"Apport du propriétaire","fonds propres","fonds propres"]
[null,136,"Qui se consomme par l'usage et qui peut être remplacé par une chose analogue.","fongible","fongible"]
[null,137,"Lieu où une action judiciaire doit être intentée","for","for"]
[null,138,"Personne qui nous vend des marchandises à crédit","fournisseur","fournisseur"]
[null,139,"Le fournisseur supporte les frais de transport jusqu'au point indiqué (domicile, douane, etc).","franco","franco"]
[null,140,"Frais de transport par navire ou par avion","fret","fret"]
[null,141,"Bien mobilier remis par un débiteur à son créancier en garantie du paiement d'une dette.","gage","gage"]
[null,142,"Système de virement entre banques permettant le règlement de sommes sans utilisation d'espèces.","giro","giro"]
[null,143,"Mot anglais désignant la valeur immatérielle de la clientèle et du fonds de commerce.","goodwill","goodwill"]
[null,144,"Etablissement non alimentaire, non spécialisé proposant une grande variété de produits, sur un surface de plus de 2500 m2","grand magasin","grand magasin"]
[null,145,"Frapper de charges financières, de servitudes, etc...","grever","grever"]
[null,146,"Publication qui paraît chaque semaine","hebdomadaire","hebdomadaire"]
[null,147,"Rétribution accordée à des personnes exerçant une profession libérale.","honoraire","honoraire"]
[null,148,"Journal édité par une entreprise et destiné à ses collaborateurs ou à ses partenaires commerciaux","house organ","house organ"]
[null,149,"libre-service réalisant plus de 1/3 de son chiffre d'affaires en alimentation, sur une surface de plus de 2500 m2","hypermarché","hypermarché"]
[null,150,"Droit de gage inscrit au R.F., sur un bien immobilier en garantie d'un prêt.","hypothèque","hypothèque"]
[null,151,"Contraire à la loi","illicite","illicite"]
[null,152,"Action de venir s'établir dans un pays étranger.","immigration","immigration"]
[null,153,"Capitaux engagés durablement dans l'entreprise et utilisables de nombreuses fois. (Machines, véhicules, immeubles,etc)","immobilisation","immobilisation"]
[null,154,"Impôt prélevé immédiatement sur des revenus provenant d'un capital et remboursé au contribuable lorsque ces revenus sont","impôt anticipé","impôt anticipé"]
[null,155,"Mettre sur le compte de quelqu'un. Inscrire un montant dans un compte","imputer","imputer"]
[null,156,"Dont l'état général ou les propriétés ne se modifient pas avec le temps.","inaltérable","inaltérable"]
[null,157,"Manière de coter où l'on indique en FS le prix de 100 unités étrangères","incertain","incertain"]
[null,158,"Hausse du niveau général des prix","inflation","inflation"]
[null,159,"Ensemble des constructions de base (routes, ponts, etc...)","infrastructure","infrastructure"]
[null,160,"Attaché à, inséparable.","inhérent","inhérent"]
[null,161,"Qui n'a pas de quoi payer","insolvable","insolvable"]
[null,162,"Entreprendre contre quelqu'un une action en justice.","intenter","intenter"]
[null,163,"Revenu du capital - Loyer perçu pour une somme placée.","intérêt","intérêt"]
[null,164,"Qui qualifie la valeur d'une chose pour elle-même, en dehors de toute convention","intrinsèque","intrinsèque"]
[null,165,"Recensement de tous les biens d'une entreprise, compte par compte.","inventaire","inventaire"]
[null,166,"Consacrer de l'argent à étendre, remplacer, moderniser les moyens de production. Placer une somme d'argent à long terme.","investir","investir"]
[null,167,"D'office, automatiquement","ipso facto","ipso facto"]
[null,168,"Terre labourée, mais non ensemencée, pour la laisser reposer temporairement","jachère","jachère"]
[null,169,"Publicité mélodique ou chantée","jingle","jingle"]
[null,170,"Liste chronologique des opérations comptables","journal","journal"]
[null,171,"Interprétation de la loi donnée par les tribunaux lors de procès et restant valable pour tous les jugements à venir.","jurisprudence","jurisprudence"]
[null,172,"qui demeure caché et qui ne c'est pas encore déclaré","latent","latent"]
[null,173,"Forme d'acquisition de biens entre la vente et la location.","leasing","leasing"]
[null,174,"Blesser quelqu'un dans ses intérêts, ses droits; lui causer du tort.","léser","léser"]
[null,175,"Courte description d'un fait comptable.","libellé","libellé"]
[null,176,"Adjectif qui qualifie une profession qui n'appartient ni à l'industrie, ni au commerce, ni à la fonction publique.","libérale","libérale"]
[null,177,"Barre de métal fondu et non ouvragé.","lingot","lingot"]
[null,178,"Montant des moyens de paiement dont l'entreprise peut disposer immédiatement.","liquidité","liquidité"]
[null,179,"Conflit, contestation donnant matière à procès.","litige","litige"]
[null,180,"Département qui s'occupe de la distribution des biens","logistique","logistique"]
[null,181,"Nom, initiales ou image qui représente symboliquement une marque ou une entreprise","logo","logo"]
[null,182,"Ensemble des règles imposées au citoyen.","loi","loi"]
[null,183,"Qui procure un gain, des profits, des bénéfices.","lucratif","lucratif"]
[null,184,"Amour du gain, du profit.","lucre","lucre"]
[null,185,"Fonctionnaire investi d'une autorité juridique ou politique","magistrat","magistrat"]
[null,186,"Charge salariale de production","main d'oeuvre","main d'oeuvre"]
[null,187,"Augmenter la valeur attribuée à un objet.","majorer","majorer"]
[null,188,"Convention par laquelle une personne donne pouvoir à une autre d'effectuer un acte en son nom.","mandat","mandat"]
[null,189,"Titre postal qui permet d'adresser une somme d'argent à une personne qui n'a pas de CCP.","mandat","mandat"]
[null,190,"Partie principale d'un papier-valeur sans la feuille de coupon","manteau","manteau"]
[null,191,"Grande fabrique où certains produits se font à la main","manufacture","manufacture"]
[null,192,"Transport avec les mains","manutention","manutention"]
[null,193,"différence entre le prix de revient et le prix de vente. (Bénéfice)","marge","marge"]
[null,194,"Science visant à distribuer rationnellement sur un marché des biens et des services adaptés au besoins des consommateurs.","marketing","marketing"]
[null,195,"Protecteur des arts, des sciences ou du sport, généreux et désintéressé","mécène","mécène"]
[null,196,"Moyens de communication tels que la presse, la radio, la TV, le cinéma, les affiches","médias","médias"]
[null,197,"Somme payée mensuellement","mensualité","mensualité"]
[null,198,"publication qui paraît chaque mois","mensuel","mensuel"]
[null,199,"Soldat qui loue ses services.","mercenaire","mercenaire"]
[null,200,"Action de passer d'un pays dans un autre pour s'y établir","migration","migration"]
[null,201,"Revenu au-dessous duquel la survie de l'homme devient difficile.","minimum vital","minimum vital"]
[null,202,"Qui pénalise un débiteur en retard. Intérêt ...","moratoire","moratoire"]
[null,203,"Mise en gage de biens mobiliers en garantie d'un crédit.","nantissement","nantissement"]
[null,204,"Prix ou poids après déduction d'une bonification. Contraire de brut","net","net"]
[null,205,"Qui n'a pas d'habitation fixe","nomade","nomade"]
[null,206,"Se dit d'un titre sur lequel le nom du propriétaire figure.","nominatif","nominatif"]
[null,207,"Document établi par le vendeur, confirmant une diminution d'un prix de vente à faire valoir sur un prochain achat.","note de crédit","note de crédit"]
[null,208,"Papier-valeur incorporant un droit de créance et émis en représentation d'un capital souscrit.","obligation","obligation"]
[null,209,"Diminution de la valeur d'un bien due à un vieillissement technologique.","obsolescence","obsolescence"]
[null,210,"Prendre les précautions nécessaires pour prévenir un mal.","obvier","obvier"]
[null,211,"Prix auquel la banque vend les monnaies étrangères. Cours ...","offre","offre"]
[null,212,"Office Fédéral de l'Industrie, des Arts et Métiers, du travail","OFIAMT","OFIAMT"]
[null,213,"Unité de poids utilisée pour les métaux précieux et valant 31.1035 grammes.","once","once"]
[null,214,"Contraire de gratuit.","onéreux","onéreux"]
[null,215,"Epreuve judiciaire pour établir la culpabilité ou l'innocence d'un accusé. (duel, épreuve du fer rouge ou de l'eau bouillante)","ordalie","ordalie"]
[null,216,"Loi condamnant au bannissement temporaire des citoyens jugés dangereux.","ostracisme","ostracisme"]
[null,217,"Elevage des huîtres","ostréiculture","ostréiculture"]
[null,218,"Titre dans lequel un droit est incorporé d'une manière telle qu'il est impossible de le faire valoir ou de le transmettre","papier-valeur","papier-valeur"]
[null,219,"Egalité de la valeur d'échange.","parité","parité"]
[null,220,"Indemnité versée au propriétaire d'un fonds de commerce par son successeur.","pas de porte","pas de porte"]
[null,221,"Partie droite du Bilan où sont énumérées toutes les ressources financières de l'entreprise.","passif","passif"]
[null,222,"Ensemble des biens d'une famille ou d'une entreprise, appréciable en argent.","patrimoine","patrimoine"]
[null,223,"Droit perçu sur les personnes, les véhicules pour leur passage sur certains chemins, ponts, tunnels, etc...","péage","péage"]
[null,224,"Somme d'argent économisée lentement.","pécule","pécule"]
[null,225,"Relatif à l'argent. (Du mot bétail en latin)","pécuniaire","pécuniaire"]
[null,226,"Contre quoi on ne peut rien répliquer.","péremptoire","péremptoire"]
[null,227,"Région de banlieue entourant une ville","périphérie","périphérie"]
[null,228,"Synonyme de vital pour définir un besoin.","physiologique","physiologique"]
[null,229,"Poteau où l'on attachait les condamnés pour les exposer au public","pilori","pilori"]
[null,230,"Elevage des poissons","pisciculture","pisciculture"]
[null,231,"Personne détenant légalement un titre non nominatif","porteur","porteur"]
[null,232,"adjectif : qui existe en puissance","potentiel","potentiel"]
[null,233,"nom : Ensemble des ressources d'un pays","potentiel","potentiel"]
[null,234,"Droit d'acheter avant tout autre","préemption","préemption"]
[null,235,"Extinction d'un droit par l'écoulement du temps.","prescription","prescription"]
[null,236,"Terme englobant tous les médias imprimés, tels quotidiens, hebdomadaires, revues, etc...","presse","presse"]
[null,237,"Ce qu'une partie s'engage par contrat à faire ou à ne pas faire.","prestation","prestation"]
[null,238,"prêt sans garanties données au créancier (crédit en blanc)","prêt non gagé","prêt non gagé"]
[null,239,"Ensemble des actions qui doivent être mises en oeuvre pour parvenir à une solution judiciaire","procédure","procédure"]
[null,240,"Titre donnant à une personne la capacité d'agir pour une autre.","procuration","procuration"]
[null,241,"qui fait des dépenses excessives","prodigue","prodigue"]
[null,242,"Amélioration quantitative et qualitative de la production","productivité","productivité"]
[null,243,"Ce qui rapporte un capital","produit","produit"]
[null,244,"Interdiction légale.","prohibition","prohibition"]
[null,245,"Mot latin qui signifie proportionnellement.","prorata","prorata"]
[null,246,"Prolonger un délai, différer l'échéance.","proroger","proroger"]
[null,247,"Ensemble des moyens destinés à informer le public et à le convaincre d'acheter un produit ou un service","publicité","publicité"]
[null,248,"Terme juridique indiquant le cadet.","puîné","puîné"]
[null,249,"Qui dure 5 ans ou qui se produit tous les 5 ans.","quinquennal","quinquennal"]
[null,250,"100 kg","quintal","quintal"]
[null,251,"Déclaration écrite que l'on donne à celui qui acquitte une dette","quittance","quittance"]
[null,252,"Publication qui paraît chaque jour","quotidien","quotidien"]
[null,253,"Bonification accordée sur un prix en fonction de la qualité du produit.","rabais","rabais"]
[null,254,"Degré dans une hiérarchie","rang","rang"]
[null,255,"Dénombrement d'une population.","recensement","recensement"]
[null,256,"Document par lequel on reconnaît avoir reçu des documents, des objets ou de l'argent.","récépissé","récépissé"]
[null,257,"Partie gauche d'un bulletin de versement vert.","récépissé PTT","récépissé"]
[null,258,"Taxe","redevance","redevance"]
[null,259,"Action d'un acheteur pour faire annuler une vente dans le cas où l'objet se révèle défectueux.","rédhibition","rédhibition"]
[null,260,"Réduction accordée sur un poids brut pour tenir compte des impuretés et des déchets éventuels.","réfaction","réfaction"]
[null,261,"Bonification accordée sur un prix en fonction de la quantité achetée.","remise","remise"]
[null,262,"Argent reçu contre un travail ou un service.","rémunération","rémunération"]
[null,263,"Action de demander en justice.","réquisition","réquisition"]
[null,264,"Annulation d'un contrat.","résiliation","résiliation"]
[null,265,"Action de retirer de l'argent liquide d'un compte bancaire ou postal.","retrait","retrait"]
[null,266,"Bonification accordée en fin d'année en fonction du volume des commandes.","ristourne","ristourne"]
[null,267,"Frais de licence pour l'exploitation de brevets et de procédés de fabrication. (mot anglais)","royalty","royalty"]
[null,268,"Qui concerne la campagne. (adj)","rural","rural"]
[null,269,"Adjectif qui qualifie une monnaie écrite comme les chèques par exemple.","scripturale","scripturale"]
[null,270,"Qui a une habitation fixe.","sédentaire","sédentaire"]
[null,271,"Signature d'un acte non enregistré devant notaire.","seing privé","seing privé"]
[null,272,"Elevage du ver à soie","sériciculture","sériciculture"]
[null,273,"Charge imposée sur une propriété pour l'usage d'un fonds qui appartient à un autre propriétaire","servitude","servitude"]
[null,274,"Phrase courte facile à retenir, qui est étroitement associée à un produit.","slogan","slogan"]
[null,275,"Qui a les moyens de payer.","solvable","solvable"]
[null,276,"Talon d'un chèque ou d'une quittance qui reste en main de celui qui l'établit.","souche","souche"]
[null,277,"Somme d'argent qui, dans un partage ou un échange, compense l'inégalité des lots.","soulte","soulte"]
[null,278,"Action de s'engager pour un certain montant.","souscription","souscription"]
[null,279,"Recherche d'un profit résultant des variations des cours ou des prix.","spéculation","spéculation"]
[null,280,"Souteneur financier d'une manifestation, d'une équipe, d'un sportif, en échange de publicité indirecte","sponsor","sponsor"]
[null,281,"Publicité radio ou TV de courte durée","spot","spot"]
[null,282,"Payer pour une besogne ignoble. Corrompre.","stipendier","stipendier"]
[null,283,"Enoncer comme condition dans un contrat ou dans un acte.","stipuler","stipuler"]
[null,284,"Quantité de marchandise en réserve.","stock","stock"]
[null,285,"Esquisse d'un projet de film, avec croquis et légendes","storyboard","storyboard"]
[null,286,"Secours d'argent d'un Etat à un autre Etat ami.","subside","subside"]
[null,287,"Aide que l'Etat accorde à un groupement, une association, voire à un privé.","subvention","subvention"]
[null,288,"Entreprise dépendante de la maison mère","succursale","succursale"]
[null,289,"Libre-service vendant principalement des produits alimentaires, sur une surface de 120 à 400 m2","supérette","supérette"]
[null,290,"Libre-service réalisant plus des 2/3 de son chiffre d'affaires en alimentation, sur une surface de 400 à 2500 m2","supermarché","supermarché"]
[null,291,"En plus, en sus...","supplémentaire","supplémentaire"]
[null,292,"Part de la production qui excède la quantité nécessaire à sa propre consommation.","surplus","surplus"]
[null,293,"Culture des arbres","sylviculture","sylviculture"]
[null,294,"Qui comporte des obligations réciproques entre deux parties.(Bilatéral)","synallagmatique","synallagmatique"]
[null,295,"Qui découle du comportement, sans qu'il y ait une acceptation écrite ou orale.","tacite","tacite"]
[null,296,"bon de renouvellement attaché à la feuille de coupons d'un titre","talon","talon"]
[null,297,"Poids de l'emballage.","tare","tare"]
[null,298,"Acheter en payant par acomptes successifs réguliers. Acheter à ...","tempérament","tempérament"]
[null,299,"Expiration d'un délai pour l'accomplissement d'une obligation.","terme","terme"]
[null,300,"Action de retirer de l'argent du circuit économique en le conservant dans un \"bas de laine\".","thésauriser","thésauriser"]
[null,301,"Personne étrangère à l'action.","tiers","tiers"]
[null,302,"Nombre d'exemplaires imprimés et mis en vente","tirage","tirage"]
[null,303,"Celui qui devra payer une lettre de change","tiré","tiré"]
[null,304,"Personne qui établit un effet de change.","tireur","tireur"]
[null,305,"Acte écrit, pièce authentique qui sert a établir un droit ou une qualité.","titre","titre"]
[null,306,"Synonyme de lettre de change","traite","traite"]
[null,307,"Somme d'argent versée à quelqu'un en échange d'un travail fixe pour lequel elle a été nommée.","traitement","traitement"]
[null,308,"Commissionnaire qui se charge du passage des marchandises","transitaire","transitaire"]
[null,309,"Fonds liquides dont dispose une entreprise.","trésorerie","trésorerie"]
[null,310,"Qui a lieu tous les trois ans.","triennal","triennal"]
[null,311,"Echange d'un objet contre un autre, sans usage de monnaie.","troc","troc"]
[null,312,"Intégration par une entreprise de toutes les étapes allant de la production à la distribution","trust","trust"]
[null,313,"Possibilité d'être présent en plusieurs lieux à la fois","ubiquité","ubiquité"]
[null,314,"Droit d'utiliser un bien sans en avoir la propriété","usufruit","usufruit"]
[null,315,"Montant de la rémunération due pour une séance de travail.","vacation","vacation"]
[null,316,"Valeur inscrite sur un titre","valeur nominale","nominale"]
[null,317,"valeur d'un bien après une certaine durée d'utilisation","valeur résiduelle","résiduelle"]
[null,318,"Celui qui confectionne des paniers, corbeilles, sièges en rotin, paille ou osier.","vannier","vannier"]
[null,319,"Transfère d'argent d'un compte sur un autre, sans mouvement d'espèce.","virement","virement"]
[null,320,"Opération qui consiste à reporter un montant d'un compte dans un autre.","virement comptable","virement"]
[null,321,"Livraison de marchandise pêle-mêle, sans emballage.","vrac","vrac"]
[null,322,"Se dit des effets de commerce payables sur simple présentation. A ...","à vue","vue"]
[null,323,"Certificat d'entrepôt servant au nantissement de marchandises.","warrant","warrant"]

{"sheet":"Voc 2","index":5,"n_rows":326,"n_cols":5,"rows_kept":326,"cut":false,"hidden":true,"merged":[[0,0,0,6],[2,2,2,4]]}
["Base de données"]
[null,null,"Définition","Réponse","Réponse écrite minimum attendue"]
[null,0,"Voc. abscons !"]
[null,1,"Difficile à comprendre","abscons","abscons"]
[null,2,"Bas, vil méprisable","abject","abject"]
[null,3,"Dont la profondeur est ou paraît insondable.","abyssal","abyssal"]
[null,4,"D'un goût âpre, fig: sévère et dur.","acerbe","acerbe"]
[null,5,"Graisseux, qui a les caractères de la graisse.","adipeux","adipeux"]
[null,6,"Dont le sens est incertain. Veuillez donner le féminin !","ambiguë","ambiguë"]
[null,7,"Dont l'authenticité est douteuse ou nulle.","apocryphe","apocryphe"]
[null,8,"Qui contient une menace.","comminatoire","comminatoire"]
[null,9,"Opinion fondée sur des présomptions, des probabilités","conjecture","conjecture"]
[null,10,"Qui a la propriété d'absorber l'humidité de l'air et de se résoudre en liquide.","déliquescent","déliquescent"]
[null,11,"Sorte du juron qui signifie Diable","diantre","diantre"]
[null,12,"Qui peut être dit","dicible","dicible"]
[null,13,"Qui fait gagner du temps, qui retarde.","dilatoire","dilatoire"]
[null,14,"Ordonner, prescrire","enjoindre","enjoindre"]
[null,15,"Facilité à discourir, abondance de paroles","faconde","faconde"]
[null,16,"Qui vit en groupe, qui tend à suivre la foule.","grégaire","grégaire"]
[null,17,"Qui se nourrit surtout de poisson.","ichtyophage","ichtyophage"]
[null,18,"appeler d'un jugement devant la juridiction supérieure.","interjeter","interjeter"]
[null,19,"Qui se fait en fraude. fig: équivoque, suspect.","interlope","interlope"]
[null,20,"Commandement, ordre au parlement","jussion","jussion"]
[null,21,"Clair, bien purifié","lampant","lampant"]
[null,22,"Qui apaise","lénifiant","lénifiant"]
[null,23,"Qui n'a qu'une oreille.","monaut","monaut"]
[null,24,"Prendre les précautions nécessaires pour prévenir un mal","obvier","obvier"]
[null,25,"Qui se rapporte à la chose, à la question dont on parle.","pertinent","pertinent"]
[null,26,"Obsur comme les oracles d'une certaine prophétesse de l'Antiquité","sibyllin","sibyllin"]
[null,27,"Qui amollit","lénifiant","lénifiant"]
[null,28]
[null,29]
[null,30]
[null,31]
[null,32]
[null,33]
[null,34]
[null,35]
[null,36]
[null,37]
[null,38]
[null,39]
[null,40]
[null,41]
[null,42]
[null,43,null,"°"]
[null,44]
[null,45]
[null,46]
[null,47]
[null,48]
[null,49]
[null,50]
[null,51]
[null,52]
[null,53]
[null,54]
[null,55]
[null,56]
[null,57]
[null,58]
[null,59]
[null,60]
[null,61]
[null,62]
[null,63]
[null,64]
[null,65]
[null,66]
[null,67]
[null,68]
[null,69]
[null,70]
[null,71]
[null,72]
[null,73]
[null,74]
[null,75]
[null,76]
[null,77]
[null,78]
[null,79]
[null,80]
[null,81]
[null,82]
[null,83]
[null,84]
[null,85]
[null,86]
[null,87]
[null,88]
[null,89]
[null,90]
[null,91]
[null,92]
[null,93]
[null,94]
[null,95]
[null,96]
[null,97]
[null,98]
[null,99]
[null,100]
[null,101]
[null,102]
[null,103]
[null,104]
[null,105]
[null,106]
[null,107]
[null,108]
[null,109]
[null,110]
[null,111]
[null,112]
[null,113]
[null,114]
[null,115]
[null,116]
[null,117]
[null,118]
[null,119]
[null,120]
[null,121]
[null,122]
[null,123]
[null,124]
[null,125]
[null,126]
[null,127]
[null,128]
[null,129]
[null,130]
[null,131]
[null,132]
[null,133]
[null,134]
[null,135]
[null,136]
[null,137]
[null,138]
[null,139]
[null,140]
[null,141]
[null,142]
[null,143]
[null,144]
[null,145]
[null,146]
[null,147]
[null,148]
[null,149]
[null,150]
[null,151]
[null,152]
[null,153]
[null,154]
[null,155]
[null,156]
[null,157]
[null,158]
[null,159]
[null,160]
[null,161]
[null,162]
[null,163]
[null,164]
[null,165]
[null,166]
[null,167]
[null,168]
[null,169]
[null,170]
[null,171]
[null,172]
[null,173]
[null,174]
[null,175]
[null,176]
[null,177]
[null,178]
[null,179]
[null,180]
[null,181]
[null,182]
[null,183]
[null,184]
[null,185]
[null,186]
[null,187]
[null,188]
[null,189]
[null,190]
[null,191]
[null,192]
[null,193]
[null,194]
[null,195]
[null,196]
[null,197]
[null,198]
[null,199]
[null,200]
[null,201]
[null,202]
[null,203]
[null,204]
[null,205]
[null,206]
[null,207]
[null,208]
[null,209]
[null,210]
[null,211]
[null,212]
[null,213]
[null,214]
[null,215]
[null,216]
[null,217]
[null,218]
[null,219]
[null,220]
[null,221]
[null,222]
[null,223]
[null,224]
[null,225]
[null,226]
[null,227]
[null,228]
[null,229]
[null,230]
[null,231]
[null,232]
[null,233]
[null,234]
[null,235]
[null,236]
[null,237]
[null,238]
[null,239]
[null,240]
[null,241]
[null,242]
[null,243]
[null,244]
[null,245]
[null,246]
[null,247]
[null,248]
[null,249]
[null,250]
[null,251]
[null,252]
[null,253]
[null,254]
[null,255]
[null,256]
[null,257]
[null,258]
[null,259]
[null,260]
[null,261]
[null,262]
[null,263]
[null,264]
[null,265]
[null,266]
[null,267]
[null,268]
[null,269]
[null,270]
[null,271]
[null,272]
[null,273]
[null,274]
[null,275]
[null,276]
[null,277]
[null,278]
[null,279]
[null,280]
[null,281]
[null,282]
[null,283]
[null,284]
[null,285]
[null,286]
[null,287]
[null,288]
[null,289]
[null,290]
[null,291]
[null,292]
[null,293]
[null,294]
[null,295]
[null,296]
[null,297]
[null,298]
[null,299]
[null,300]
[null,301]
[null,302]
[null,303]
[null,304]
[null,305]
[null,306]
[null,307]
[null,308]
[null,309]
[null,310]
[null,311]
[null,312]
[null,313]
[null,314]
[null,315]
[null,316]
[null,317]
[null,318]
[null,319]
[null,320]
[null,321]
[null,322]
[null,323]

{"sheet":"Voc 3","index":6,"n_rows":326,"n_cols":19,"rows_kept":326,"cut":false,"hidden":false,"merged":[[0,0,0,6],[2,2,2,4]]}
["Base de données"]
[null,null,"Définition","Réponse","Réponse écrite minimum attendue"]
[null,0,"Voc Louis"]
[null,1,"Se dit des effets de commerce payables sur simple présentation. A ...","à vue","à vue"]
[null,2,"Versement d'une partie d'une somme due, à valoir sur le paiement final.","acompte","acompte"]
[null,3,"Document établissant, après la faillite, le montant non couvert d'une créance.","acte de défaut de biens","acte de défaut de biens"]
[null,4,"Partie gauche du Bilan où sont énumérés tous les emplois non-consommés","actif","actif"]
[null,5,"actifs détenus par l'entreprise et destinés à ne pas y rester durablement, c'est-à-dire pendant moins d'un cycle d'activité.","actifs circulants","actifs circulants"]
[null,6,"actif d'utilisation durable","actifs immobilisés","actifs immobilisés"]
[null,7,"Disposition, installation d'un magasin. (vitrines, mobilier, etc...)","agencement","agencement"]
[null,8,"Réduction de la valeur d'un poste du Bilan.","amortissement comptable","amortissement comptable"]
[null,9,"Remboursement d'une dette.","amortissement financier","amortissement financier"]
[null,10,"Somme dépensée annuellement pour les intérêts et l'amortissement d'une dette.","annuité","annuité"]
[null,11,"Rétribution fixe pour un emploi régulier. (Ne s'emploie qu'au pluriel !)","appointements","appointements"]
[null,12,"Contrat par lequel le propriétaire d'un bien en cède la jouissance à une autre, moyennant un prix convenu.","bail","bail"]
[null,13,"Action de créer des pièces de monnaie et des billets pour un pays.","battre","battre"]
[null,14,"Chiffre d'affaires net moins Prix de revient d'achat.","bénéfice brut","bénéfice brut"]
[null,15,"Bénéfice brut moins les frais généraux et les frais de vente.","bénéfice net","bénéfice net",null,null,null,null,null,null,null,null,null,null,null,null,null,0]
[null,16,"Celui qui pourra encaisser une lettre de change à l'échéance","bénéficiaire","bénéficiaire"]
[null,17,"Terme cadastral pour définir un bien immobilier (terre, maison).","bien-fonds","bien-fonds"]
[null,18,"Tableau résumant la situation de l'entreprise (ressources et emplois) à un moment donné.","bilan","bilan"]
[null,19,"Tout compris, c'est-à-dire avant déduction.","brut","brut"]
[null,20,"Evaluation prévisionnelle des recettes et des dépenses pour une période déterminée","budget","budget"]
[null,21,"Le capital est l'ensemble des sommes mises de façon permanente à la disposition de l'entreprise par ses propriétaires ou associés","capital","capital"]
[null,22,"Les capitaux étrangers englobent les engagements envers des tiers, p. ex. crédits bancaires, prêt ou emprunts émis. En fonction de la durée de l’engagement, il s’agit de capitaux étrangers à court ou à long terme.","capitaux étrangers","capitaux étrangers"]
[null,23,"Appelés aussi fonds propres, sont les ressources (passif) d'une société qui appartiennent au patron ou aux actionnaires.","capitaux propres","capitaux propres"]
[null,24,"Papier-valeur établi par un notaire lors de la constitution d'une hypothèque.","cédule","cédule",null,null,null,null,null,null,null,null,null,1]
[null,25,"Dépenses étrainant une diminution du résultat de l'entreprise","charges","charges"]
[null,26,"Quantité vendue au prix de vente. Total des ventes.","chiffre d'affaires","chiffre d'affaires"]
[null,27,"Bien immatériel représentant la réputation d'une entreprise et pouvant être négocié","clientèle","clientèle"]
[null,28,"bouclement des comptes à une date donnée","clôture","clôture"]
[null,29,"Tirer le solde d'un compte par différence entre débit et crédit.","clôturer","clôturer"]
[null,30,"Somme due à un courtier ou à un vendeur en fonction de son chiffre d'affaires.","commission","commission"]
[null,31,"avec paiement immédiat","comptant","comptant"]
[null,32,"tableau dans lequel on inscrit les opérations financières entre deux personnes ou deux entreprises.","compte courant","compte courant"]
[null,33,"Compte de résultat intermédiaire centralisateur des charges et produits de l'activité principale de l'entreprise","compte d'exploitation","compte d'exploitation"]
[null,34,"Compétition entre plusieurs personnes ou plusieurs entreprises visant les mêmes avantages.","concurrence","concurrence"]
[null,35,"Usure ou destruction d'un bien ou utilisation d'un service pour satisfaire des besoins.","consommation","consommation"]
[null,36,"Dont on ne peut se servir sans le détruire.","consomptible","consomptible"]
[null,37,"acte juridique par lequel une ou plusieurs personnes s'obligent envers une ou plusieurs autres.","contrat","contrat"]
[null,38,"Liste des monnaies étrangères et de leur valeur par rapport à une monnaie donnée.","cote","cote"]
[null,39,"Prix d'une monnaie étrangère","cours","cours"]
[null,40,"Somme d'argent remboursable dans l'année.","court terme (dette à …)","court terme (dette à …)"]
[null,41,"Droit que l'on a de demander à quelqu'un le paiement d'une somme due.","créance","créance"]
[null,42,"Personne à qui l'on doit une somme d'argent.","créancier","créancier"]
[null,43,"1) Confiance qu'inspire quelqu'un. Degré de solvabilité","crédit","crédit"]
[null,44,"2) Opération par laquelle une personne met une somme d'argent à disposition d'une autre.","crédit","crédit"]
[null,45,"3) Partie droite d'un compte","crédit","crédit"]
[null,46,"1) Quantité de fluide fournie. (pour une fontaine par ex.)","débit","débit"]
[null,47,"2) Vente au détail","débit","débit"]
[null,48,"3) Partie gauche d'un compte","débit","débit"]
[null,49,"Celui ou celle qui doit une somme d'argent à un tiers.","débiteur","débiteur"]
[null,50,"Situation financière d'une entreprise caractérisée par des dettes supérieures aux biens et aux créances.","découvert","découvert"]
[null,51,"Terme juridique indiquant un retard.","demeure","demeure"]
[null,52,"Somme que l'on doit à quelqu'un.","dette","dette"]
[null,53,"Créances sur l'étranger libellées en monnaie étrangère","devise","devise"]
[null,54,"Fonds dont on peut user à tout moment.","disponibilité","disponibilité"]
[null,55,"Part du bénéfice d'une société anonyme (SA) qui est versée pour chaque action.","dividende","dividende"]
[null,56,"Date à laquelle une dette doit être payée.","échéance","échéance"]
[null,57,"déduction d'un intérêt lors de l'exécution d'un engagement avant l'échéance.","escompte","escompte"]
[null,58,"Action de remettre à la banque un effet avant l'échéance.","escompter","escompter"]
[null,59,"Nom féminin pluriel désignant l'ensemble des billets de banque et des pièces de monnaie.","espèces","espèces"]
[null,60,"Action de mettre en valeur","exploitation","exploitation"]
[null,61,"Procédure judiciaire entraînant la liquidation d'une société qui ne peut plus honorer ses paiements.","faillite","faillite"]
[null,62,"Adjectif qui qualifie la monnaie basée sur la confiance, comme les pièces ou les billets de banque.","fiduciaire","fiduciaire"]
[null,63,"Sol d'un champ, d'un domaine, terrain (n.m. singulier)","fonds","fonds"]
[null,64,"Somme d'argent à disposition pour acquérir des biens (n. m. pluriel)","fonds","fonds"]
[null,65,"Apport du propriétaire","fonds propres","fonds propres"]
[null,66,"Qui se consomme par l'usage et qui peut être remplacé par une chose analogue.","fongible","fongible"]
[null,67,"Lieu où une action judiciaire doit être intentée","for","for"]
[null,68,"Personne qui nous vend des marchandises à crédit","fournisseur","fournisseur"]
[null,69,"SLIP (Salaire, loyer, impôts, publicité) et autres charges de consommation comme l'eau, l'électricité, les assurances, les frais administratifs, les frais de véhicules, etc...","Frais généraux","Frais généraux"]
[null,70,"Le fournisseur supporte les frais de transport jusqu'au point indiqué (domicile, douane, etc).","franco","franco"]
[null,71,"Frais de transport par navire ou par avion","fret","fret"]
[null,72,"Bien mobilier remis par un débiteur à son créancier en garantie du paiement d'une dette.","gage","gage"]
[null,73,"Système de virement entre banques permettant le règlement de sommes sans utilisation d'espèces.","giro","giro"]
[null,74,"Mot anglais désignant la valeur immatérielle de la clientèle et du fonds de commerce.","goodwill","goodwill"]
[null,75,"Frapper de charges financières, de servitudes, etc...","grever","grever"]
[null,76,"Publication qui paraît chaque semaine","hebdomadaire","hebdomadaire"]
[null,77,"Rétribution accordée à des personnes exerçant une profession libérale.","honoraire","honoraire"]
[null,78,"Droit de gage inscrit au R.F., sur un bien immobilier en garantie d'un prêt.","hypothèque","hypothèque"]
[null,79,"Impôt prélevé immédiatement sur des revenus provenant d'un capital et remboursé au contribuable lorsque ces revenus sont","impôt anticipé","impôt anticipé"]
[null,80,"Mettre sur le compte de quelqu'un. Inscrire un montant dans un compte","imputer","imputer"]
[null,81,"Hausse du niveau général des prix","inflation","inflation"]
[null,82,"Qui n'a pas de quoi payer","insolvable","insolvable"]
[null,83,"Entreprendre contre quelqu'un une action en justice.","intenter","intenter"]
[null,84,"Revenu du capital - Loyer perçu pour une somme placée.","intérêt","intérêt"]
[null,85,"Qui qualifie la valeur d'une chose pour elle-même, en dehors de toute convention","intrinsèque","intrinsèque"]
[null,86,"Recensement de tous les biens d'une entreprise, compte par compte.","inventaire","inventaire"]
[null,87,"Consacrer de l'argent à étendre, remplacer, moderniser les moyens de production. Placer une somme d'argent à long terme.","investir","investir"]
[null,88,"Terre labourée, mais non ensemencée, pour la laisser reposer temporairement","jachère","jachère"]
[null,89,"Liste chronologique des opérations comptables","journal","journal"]
[null,90,"Interprétation de la loi donnée par les tribunaux lors de procès et restant valable pour tous les jugements à venir.","jurisprudence","jurisprudence"]
[null,91,"qui demeure caché et qui ne c'est pas encore déclaré","latent","latent"]
[null,92,"Forme d'acquisition de biens entre la vente et la location.","leasing","leasing"]
[null,93,"Blesser quelqu'un dans ses intérêts, ses droits; lui causer du tort.","léser","léser"]
[null,94,"Courte description d'un fait comptable.","libellé","libellé"]
[null,95,"Montant des moyens de paiement dont l'entreprise peut disposer immédiatement.","liquidité","liquidité"]
[null,96,"Conflit, contestation donnant matière à procès.","litige","litige"]
[null,97,"Qui procure un gain, des profits, des bénéfices.","lucratif","lucratif"]
[null,98,"Amour du gain, du profit.","lucre","lucre"]
[null,99,"Charge salariale de production","main d'oeuvre","main d'oeuvre"]
[null,100,"Augmenter la valeur attribuée à un objet.","majorer","majorer"]
[null,101,"différence entre le prix de revient et le prix de vente. (Bénéfice)","marge","marge"]
[null,102,"Science visant à distribuer rationnellement sur un marché des biens et des services adaptés au besoins des consommateurs.","marketing","marketing"]
[null,103,"Protecteur des arts, des sciences ou du sport, généreux et désintéressé","mécène","mécène"]
[null,104,"Somme payée mensuellement","mensualité","mensualité"]
[null,105,"publication qui paraît chaque mois","mensuel","mensuel"]
[null,106,"Qui pénalise un débiteur en retard. Intérêt ...","moratoire","moratoire"]
[null,107,"Mise en gage de biens mobiliers en garantie d'un crédit.","nantissement","nantissement"]
[null,108,"Prix ou poids après déduction d'une bonification. Contraire de brut","net","net"]
[null,109,"Document établi par le vendeur, confirmant une diminution d'un prix de vente à faire valoir sur un prochain achat.","note de crédit","note de crédit"]
[null,110,"Papier-valeur incorporant un droit de créance et émis en représentation d'un capital souscrit.","obligation","obligation"]
[null,111,"Diminution de la valeur d'un bien due à un vieillissement technologique.","obsolescence","obsolescence"]
[null,112,"Prix auquel la banque vend les monnaies étrangères. Cours ...","offre","offre"]
[null,113,"Office Fédéral de l'Industrie, des Arts et Métiers, du travail","OFIAMT","OFIAMT"]
[null,114,"Unité de poids utilisée pour les métaux précieux et valant 31.1035 grammes.","once","once"]
[null,115,"Contraire de gratuit.","onéreux","onéreux"]
[null,116,"Titre dans lequel un droit est incorporé d'une manière telle qu'il est impossible de le faire valoir ou de le transmettre","papier-valeur","papier-valeur"]
[null,117,"Egalité de la valeur d'échange.","parité","parité"]
[null,118,"Indemnité versée au propriétaire d'un fonds de commerce par son successeur.","pas de porte","pas de porte"]
[null,119,"Partie droite du Bilan où sont énumérées toutes les ressources financières de l'entreprise.","passif","passif"]
[null,120,"Ensemble des biens d'une famille ou d'une entreprise, appréciable en argent.","patrimoine","patrimoine"]
[null,121,"Relatif à l'argent. (Du mot bétail en latin)","pécuniaire","pécuniaire"]
[null,122,"Personne détenant légalement un titre non nominatif","porteur","porteur"]
[null,123,"Droit d'acheter avant tout autre","préemption","préemption"]
[null,124,"Extinction d'un droit par l'écoulement du temps.","prescription","prescription"]
[null,125,"Ce qu'une partie s'engage par contrat à faire ou à ne pas faire.","prestation","prestation"]
[null,126,"prêt sans garanties données au créancier (crédit en blanc)","prêt non gagé","prêt non gagé"]
[null,127,"Ensemble des actions qui doivent être mises en oeuvre pour parvenir à une solution judiciaire","procédure","procédure"]
[null,128,"Titre donnant à une personne la capacité d'agir pour une autre.","procuration","procuration"]
[null,129,"Amélioration quantitative et qualitative de la production","productivité","productivité"]
[null,130,"Ce qui rapporte un capital","produit","produit"]
[null,131,"Recettes entraînant une augmentation du résultat de l'entreprsie.","Produits","Produits"]
[null,132,"Interdiction légale.","prohibition","prohibition"]
[null,133,"Mot latin qui signifie proportionnellement.","prorata","prorata"]
[null,134,"Prolonger un délai, différer l'échéance.","proroger","proroger"]
[null,135,"Ensemble des moyens destinés à informer le public et à le convaincre d'acheter un produit ou un service","publicité","publicité"]
[null,136,"100 kg","quintal","quintal"]
[null,137,"Déclaration écrite que l'on donne à celui qui acquitte une dette","quittance","quittance"]
[null,138,"Bonification accordée sur un prix en fonction de la qualité du produit.","rabais","rabais"]
[null,139,"Degré dans une hiérarchie","rang","rang"]
[null,140,"Dénombrement d'une population.","recensement","recensement"]
[null,141,"Document par lequel on reconnaît avoir reçu des documents, des objets ou de l'argent.","récépissé","récépissé"]
[null,142,"Partie gauche d'un bulletin de versement vert.","récépissé PTT","récépissé PTT"]
[null,143,"Taxe","redevance","redevance"]
[null,144,"Bonification accordée sur un prix en fonction de la quantité achetée.","remise","remise"]
[null,145,"Argent reçu contre un travail ou un service.","rémunération","rémunération"]
[null,146,"Action de demander en justice.","réquisition","réquisition"]
[null,147,"Annulation d'un contrat.","résiliation","résiliation"]
[null,148,"Action de retirer de l'argent liquide d'un compte bancaire ou postal.","retrait","retrait"]
[null,149,"Bonification accordée en fin d'année en fonction du volume des commandes.","ristourne","ristourne"]
[null,150,"Frais de licence pour l'exploitation de brevets et de procédés de fabrication. (mot anglais)","royalty","royalty"]
[null,151,"Qui concerne la campagne. (adj)","rural","rural"]
[null,152,"Adjectif qui qualifie une monnaie écrite comme les chèques par exemple.","scripturale","scripturale"]
[null,153,"Signature d'un acte non enregistré devant notaire.","seing privé","seing privé"]
[null,154,"Charge imposée sur une propriété pour l'usage d'un fonds qui appartient à un autre propriétaire","servitude","servitude"]
[null,155,"Qui a les moyens de payer.","solvable","solvable"]
[null,156,"Talon d'un chèque ou d'une quittance qui reste en main de celui qui l'établit.","souche","souche"]
[null,157,"Somme d'argent qui, dans un partage ou un échange, compense l'inégalité des lots.","soulte","soulte"]
[null,158,"Action de s'engager pour un certain montant.","souscription","souscription"]
[null,159,"Recherche d'un profit résultant des variations des cours ou des prix.","spéculation","spéculation"]
[null,160,"Souteneur financier d'une manifestation, d'une équipe, d'un sportif, en échange de publicité indirecte","sponsor","sponsor"]
[null,161,"Publicité radio ou TV de courte durée","spot","spot"]
[null,162,"Quantité de marchandise en réserve.","stock","stock"]
[null,163,"Secours d'argent d'un Etat à un autre Etat ami.","subside","subside"]
[null,164,"Aide que l'Etat accorde à un groupement, une association, voire à un privé.","subvention","subvention"]
[null,165,"Entreprise dépendante de la maison mère","succursale","succursale"]
[null,166,"En plus, en sus...","supplémentaire","supplémentaire"]
[null,167,"Part de la production qui excède la quantité nécessaire à sa propre consommation.","surplus","surplus"]
[null,168,"Qui découle du comportement, sans qu'il y ait une acceptation écrite ou orale.","tacite","tacite"]
[null,169,"bon de renouvellement attaché à la feuille de coupons d'un titre","talon","talon"]
[null,170,"Poids de l'emballage.","tare","tare"]
[null,171,"Expiration d'un délai pour l'accomplissement d'une obligation.","terme","terme"]
[null,172,"Action de retirer de l'argent du circuit économique en le conservant dans un \"bas de laine\".","thésauriser","thésauriser"]
[null,173,"Personne étrangère à l'action.","tiers","tiers"]
[null,174,"Celui qui devra payer une lettre de change","tiré","tiré"]
[null,175,"Personne qui établit un effet de change.","tireur","tireur"]
[null,176,"Acte écrit, pièce authentique qui sert a établir un droit ou une qualité.","titre","titre"]
[null,177,"Synonyme de lettre de change","traite","traite"]
[null,178,"Somme d'argent versée à quelqu'un en échange d'un travail fixe pour lequel elle a été nommée.","traitement","traitement"]
[null,179,"Fonds liquides dont dispose une entreprise.","trésorerie","trésorerie"]
[null,180,"Echange d'un objet contre un autre, sans usage de monnaie.","troc","troc"]
[null,181,"Droit d'utiliser un bien sans en avoir la propriété","usufruit","usufruit"]
[null,182,"Montant de la rémunération due pour une séance de travail.","vacation","vacation"]
[null,183,"Valeur inscrite sur un titre","valeur nominale","valeur nominale"]
[null,184,"valeur d'un bien après une certaine durée d'utilisation","valeur résiduelle","valeur résiduelle"]
[null,185,"Transfère d'argent d'un compte sur un autre, sans mouvement d'espèce.","virement","virement"]
[null,186,"Opération qui consiste à reporter un montant d'un compte dans un autre.","virement comptable","virement comptable"]
[null,187,"Livraison de marchandise pêle-mêle, sans emballage.","vrac","vrac"]
[null,188,"Certificat d'entrepôt servant au nantissement de marchandises.","warrant","warrant"]
[null,189]
[null,190]
[null,191]
[null,192]
[null,193]
[null,194]
[null,195]
[null,196]
[null,197]
[null,198]
[null,199]
[null,200]
[null,201]
[null,202]
[null,203]
[null,204]
[null,205]
[null,206]
[null,207]
[null,208]
[null,209]
[null,210]
[null,211]
[null,212]
[null,213]
[null,214]
[null,215]
[null,216]
[null,217]
[null,218]
[null,219]
[null,220]
[null,221]
[null,222]
[null,223]
[null,224]
[null,225]
[null,226]
[null,227]
[null,228]
[null,229]
[null,230]
[null,231]
[null,232]
[null,233]
[null,234]
[null,235]
[null,236]
[null,237]
[null,238]
[null,239]
[null,240]
[null,241]
[null,242]
[null,243]
[null,244]
[null,245]
[null,246]
[null,247]
[null,248]
[null,249]
[null,250]
[null,251]
[null,252]
[null,253]
[null,254]
[null,255]
[null,256]
[null,257]
[null,258]
[null,259]
[null,260]
[null,261]
[null,262]
[null,263]
[null,264]
[null,265]
[null,266]
[null,267]
[null,268]
[null,269]
[null,270]
[null,271]
[null,272]
[null,273]
[null,274]
[null,275]
[null,276]
[null,277]
[null,278]
[null,279]
[null,280]
[null,281]
[null,282]
[null,283]
[null,284]
[null,285]
[null,286]
[null,287]
[null,288]
[null,289]
[null,290]
[null,291]
[null,292]
[null,293]
[null,294]
[null,295]
[null,296]
[null,297]
[null,298]
[null,299]
[null,300]
[null,301]
[null,302]
[null,303]
[null,304]
[null,305]
[null,306]
[null,307]
[null,308]
[null,309]
[null,310]
[null,311]
[null,312]
[null,313]
[null,314]
[null,315]
[null,316]
[null,317]
[null,318]
[null,319]
[null,320]
[null,321]
[null,322]
[null,323]

{"sheet":"Voc 4","index":7,"n_rows":326,"n_cols":5,"rows_kept":326,"cut":false,"hidden":false,"merged":[[0,0,0,6],[2,2,2,4]]}
["Base de données"]
[null,null,"Définition","Réponse","Réponse écrite minimum attendue"]
[null,0,"Cris des animaux"]
[null,1," le petit chien ... ?","jappe","jappe"]
[null,2," le crocodile ... ?","vagit","vagit"]
[null,3," l'éléphant ... ?","barrit","barrit"]
[null,4," la fourmi ... ?","croonde","croonde"]
[null,5," le lapin ... ?","clapit","clapit"]
[null,6," la grenouille ... ?","coasse","coasse"]
[null,7," le lièvre ... ?","vagit","vagit"]
[null,8," le lion ... ?","rugit","rugit"]
[null,9," le loup ... ?","hurle","hurle"]
[null,10," l'ours ... ?","grogne","grogne"]
[null,11," le renard ... ?","glapit","glapit"]
[null,12," le porc ... ?","grogne","grogne"]
[null,13," le sanglier ... ?","grommelle","grommelle"]
[null,14," le serpent ... ?","siffle","siffle"]
[null,15," la souris ... ?","chicote","chicote"]
[null,16," le tigre ... ?","feule","feule"]
[null,17," l'aigle ... ?","glatit","glatit"]
[null,18," l'alouette ... ?","tirelire","tirelire"]
[null,19," la bécasse ... ?","croule","croule"]
[null,20," la caille ... ?","courcaille","courcaille"]
[null,21," le cannard ... ?","cancane","cancane"]
[null,22," la chouette ... ?","ulule","ulule"]
[null,23," le coq ... ?","coquerique","coquerique"]
[null,24," la colombe ... ?","roucoule","roucoule"]
[null,25," le corbeau ... ?","croasse","croasse"]
[null,26," le coucou ... ?","coucoule","coucoule"]
[null,27," le dindon ... ?","glougloute","glougloute"]
[null,28," la grue ... ?","craque","craque"]
[null,29," le hibou ... ?","hue","hue"]
[null,30," l'hirondelle ... ?","trisse","trisse"]
[null,31," la huppe ... ?","pupule","pupule"]
[null,32," le merle ... ?","flûte","flûte"]
[null,33," le moineau ... ?","pépie","pépie"]
[null,34," l'oie ... ?","cacarde","cacarde"]
[null,35," la pie ... ?","jacasse","jacasse"]
[null,36," le pigeon ... ?","roucoule","roucoule"]
[null,37," la poule ... ?","glousse","glousse"]
[null,38," le rossignol ... ?","gringotte","gringotte"]
[null,39," l'abeille ... ?","bourdonne","bourdonne"]
[null,40," la cigale ... ?","stridule","stridule"]
[null,41," le grillon ... ?","grésille","grésille"]
[null,42," le chat ... ?","miaule","miaule"]
[null,43," le chameau ... ?","blatère","blatère"]
[null,44," le chien ... ?","aboie","aboie"]
[null,45," le cheval ... ?","hennit","hennit"]
[null,46," la vache... ?","meugle","meugle"]
[null,47,"Cris d'animaux !!!: le nouveau-né ... ?","vagit","vagit"]
[null,48," la chèvre ... ?","bêle","bêle"]
[null,49," l'âne... ?","brait","brait"]
[null,50," la grenouille ... ?","coasse","coasse"]
[null,51," le mouton ... ?","bêle","bêle"]
[null,52," le buffle ... ?","souffle","souffle"]
[null,53," le cerf ... ?","brame","brame"]
[null,54," le rhinocéros ... ?","barète","barète"]
[null,55]
[null,56]
[null,57]
[null,58]
[null,59]
[null,60]
[null,61]
[null,62]
[null,63]
[null,64]
[null,65]
[null,66]
[null,67]
[null,68]
[null,69]
[null,70]
[null,71]
[null,72]
[null,73]
[null,74]
[null,75]
[null,76]
[null,77]
[null,78]
[null,79]
[null,80]
[null,81]
[null,82]
[null,83]
[null,84]
[null,85]
[null,86]
[null,87]
[null,88]
[null,89]
[null,90]
[null,91]
[null,92]
[null,93]
[null,94]
[null,95]
[null,96]
[null,97]
[null,98]
[null,99]
[null,100]
[null,101]
[null,102]
[null,103]
[null,104]
[null,105]
[null,106]
[null,107]
[null,108]
[null,109]
[null,110]
[null,111]
[null,112]
[null,113]
[null,114]
[null,115]
[null,116]
[null,117]
[null,118]
[null,119]
[null,120]
[null,121]
[null,122]
[null,123]
[null,124]
[null,125]
[null,126]
[null,127]
[null,128]
[null,129]
[null,130]
[null,131]
[null,132]
[null,133]
[null,134]
[null,135]
[null,136]
[null,137]
[null,138]
[null,139]
[null,140]
[null,141]
[null,142]
[null,143]
[null,144]
[null,145]
[null,146]
[null,147]
[null,148]
[null,149]
[null,150]
[null,151]
[null,152]
[null,153]
[null,154]
[null,155]
[null,156]
[null,157]
[null,158]
[null,159]
[null,160]
[null,161]
[null,162]
[null,163]
[null,164]
[null,165]
[null,166]
[null,167]
[null,168]
[null,169]
[null,170]
[null,171]
[null,172]
[null,173]
[null,174]
[null,175]
[null,176]
[null,177]
[null,178]
[null,179]
[null,180]
[null,181]
[null,182]
[null,183]
[null,184]
[null,185]
[null,186]
[null,187]
[null,188]
[null,189]
[null,190]
[null,191]
[null,192]
[null,193]
[null,194]
[null,195]
[null,196]
[null,197]
[null,198]
[null,199]
[null,200]
[null,201]
[null,202]
[null,203]
[null,204]
[null,205]
[null,206]
[null,207]
[null,208]
[null,209]
[null,210]
[null,211]
[null,212]
[null,213]
[null,214]
[null,215]
[null,216]
[null,217]
[null,218]
[null,219]
[null,220]
[null,221]
[null,222]
[null,223]
[null,224]
[null,225]
[null,226]
[null,227]
[null,228]
[null,229]
[null,230]
[null,231]
[null,232]
[null,233]
[null,234]
[null,235]
[null,236]
[null,237]
[null,238]
[null,239]
[null,240]
[null,241]
[null,242]
[null,243]
[null,244]
[null,245]
[null,246]
[null,247]
[null,248]
[null,249]
[null,250]
[null,251]
[null,252]
[null,253]
[null,254]
[null,255]
[null,256]
[null,257]
[null,258]
[null,259]
[null,260]
[null,261]
[null,262]
[null,263]
[null,264]
[null,265]
[null,266]
[null,267]
[null,268]
[null,269]
[null,270]
[null,271]
[null,272]
[null,273]
[null,274]
[null,275]
[null,276]
[null,277]
[null,278]
[null,279]
[null,280]
[null,281]
[null,282]
[null,283]
[null,284]
[null,285]
[null,286]
[null,287]
[null,288]
[null,289]
[null,290]
[null,291]
[null,292]
[null,293]
[null,294]
[null,295]
[null,296]
[null,297]
[null,298]
[null,299]
[null,300]
[null,301]
[null,302]
[null,303]
[null,304]
[null,305]
[null,306]
[null,307]
[null,308]
[null,309]
[null,310]
[null,311]
[null,312]
[null,313]
[null,314]
[null,315]
[null,316]
[null,317]
[null,318]
[null,319]
[null,320]
[null,321]
[null,322]
[null,323]

{"sheet":"Voc 5","index":8,"n_rows":326,"n_cols":5,"rows_kept":326,"cut":false,"hidden":false,"merged":[[0,0,0,6],[2,2,2,4]]}
["Base de données"]
[null,null,"Définition","Réponse","Réponse écrite minimum attendue"]
[null,0,"Hommes et femmes "]
[null,1,"Originaire du pays qu'il habite.","arborigène","arborigène"]
[null,2,"Personne qui aime à flatter bassement.","adulateur","adulateur"]
[null,3,"Acteur sans talent.","cabotin","cabotin"]
[null,4,"Agitateur qui flatte les passions de la foule aulieu d'éclairer sa raison.","démagogue","démagogue"]
[null,5,"Celui qui cherche à rabaisser le mérite de quelqu'un.","détracteur","détracteur"]
[null,6,"Qui affecte une bravoure qu'il n'a pas.","fanfaron","fanfaron"]
[null,7,"Poltron, lâche.","couard","couard"]
[null,8,"Corsaire, pirate, celui qui ne respecte aucun droit.","forban","forban"]
[null,9,"Escrot, chevalier d'industrie rusé.","aigrefin","aigrefin"]
[null,10,"Subalterne sur lequel les chefs font retomber la responsabilité de leurs erreurs.","lampiste","lampiste"]
[null,11,"1) Vieux cordage 2) Toute chose ou personne hors d'état de servir.","baderne","baderne"]
[null,12,"Gueux, cuistre, homme de rien, ignorant.","bélître","bélître"]
[null,13,"Inspirer un engouement excessif, voire ridicule.","infatuer","infatuer"]
[null,14,"Pique-assiette, personne qui cherche à manger au dépens d'autrui, parasite.","écornifleur","écornifleur"]
[null,15,"1) Marionnette 2) Homme sans personnalité, qu'on ne peut prendre au sérieux.","fantoche","fantoche"]
[null,16,"Homme infatué de sa beauté.","bellâtre","bellâtre"]
[null,17,"Jeune homme frivole et sans mérite.","freluquet","freluquet"]
[null,18,"Qui parle beaucoup et avec vantardise.","hâbleur","hâbleur"]
[null,19,"Jeune homme d'une élégance affectée et souvent ridicule.","gandin","gandin"]
[null,20,"1) Monstre ailé à visage de femme. 2) Personne avide, rapace et méchante.","harpie","harpie"]
[null,21,"1) (myth.) Une des 3 Furies. 2) Femme méchante et emportée.","mégère","mégère"]
[null,22,"Femme ou fille ayant des manières prétentieuses et affectée.","mijaurée","mijaurée"]
[null,23,"1) Prince des Indes. 2) Personne qui vit dans l'opulence.","nabab","nabab"]
[null,24,"1) Chevalier en quête d'aventures. 2) Homme brave et galant.","paladin","paladin"]
[null,25,"1) Jeune chien qui a de grosses pattes. 2) Personne grosse et courte.","pataud","pataud"]
[null,26,"1) Maître d'école. 2) Personne qui affecte de paraître savante.","pédant","pédant"]
[null,27,"Personne d'une grande rigidité de principes moraux et politiques.","puritain","puritain"]
[null,28,"Homme dont on ignore le nom.","quidam","quidam"]
[null,29,"Celui qui renie sa religion.","renégat","renégat"]
[null,30,"Celui qui fait ou prétend faire des miracles.","thaumaturge","thaumaturge"]
[null,31,"Adj. et nom. Qui exprime la raillerie, parfois insolente.","goguenard","goguenard"]
[null,32,"Jeune homme qui fait le galant auprès des femmes.","godelureau","godelureau"]
[null,33,"Mauvais cuisinier, mauvais traiteur, fricasseur.","gargotier","gargotier"]
[null,34,"Personne qui abuse par amusement de la crédulité de quelqu'un.","mystificateur","mystificateur"]
[null,35,"Qui a une tendance morbide à mentir, à inventer des histoires.","mythomane","mythomane"]
[null,36,"Qui hait les femmes.","misogyne","misogyne"]
[null,37,"Qui tient des deux sexes.","androgyne","androgyne"]
[null,38,"1) Individu qui hait les hommes. 2) Homme bourru et peu sociable.","misanthrope","misanthrope"]
[null,39,"1) Marin indien. 2) Homme hardi et débrouillard.","lascar","lascar"]
[null,40,"Gargotier, mauvais restaurateur.","fricasseur","fricasseur"]
[null,41,"Ensemble des rameurs d'une galère. Ensemble des forçats d'un bagne.","chiourme","chiourme"]
[null,42,"Officier chargé du service intérieur de la chambre d'un haut personnage.","chambellan","chambellan"]
[null,43,"Vieux soldat chevronné.","briscard","briscard"]
[null,44,"Celui qui cherche à détruire les principes traditionnels. Hérétique.","iconoclaste","iconoclaste"]
[null,45,"Russe qui utilise toutes les techniques modernes dans l'organisation du travail.","stakhanoviste","stakhanoviste"]
[null,46]
[null,47]
[null,48]
[null,49]
[null,50]
[null,51]
[null,52]
[null,53]
[null,54]
[null,55]
[null,56]
[null,57]
[null,58]
[null,59]
[null,60]
[null,61]
[null,62]
[null,63]
[null,64]
[null,65]
[null,66]
[null,67]
[null,68]
[null,69]
[null,70]
[null,71]
[null,72]
[null,73]
[null,74]
[null,75]
[null,76]
[null,77]
[null,78]
[null,79]
[null,80]
[null,81]
[null,82]
[null,83]
[null,84]
[null,85]
[null,86]
[null,87]
[null,88]
[null,89]
[null,90]
[null,91]
[null,92]
[null,93]
[null,94]
[null,95]
[null,96]
[null,97]
[null,98]
[null,99]
[null,100]
[null,101]
[null,102]
[null,103]
[null,104]
[null,105]
[null,106]
[null,107]
[null,108]
[null,109]
[null,110]
[null,111]
[null,112]
[null,113]
[null,114]
[null,115]
[null,116]
[null,117]
[null,118]
[null,119]
[null,120]
[null,121]
[null,122]
[null,123]
[null,124]
[null,125]
[null,126]
[null,127]
[null,128]
[null,129]
[null,130]
[null,131]
[null,132]
[null,133]
[null,134]
[null,135]
[null,136]
[null,137]
[null,138]
[null,139]
[null,140]
[null,141]
[null,142]
[null,143]
[null,144]
[null,145]
[null,146]
[null,147]
[null,148]
[null,149]
[null,150]
[null,151]
[null,152]
[null,153]
[null,154]
[null,155]
[null,156]
[null,157]
[null,158]
[null,159]
[null,160]
[null,161]
[null,162]
[null,163]
[null,164]
[null,165]
[null,166]
[null,167]
[null,168]
[null,169]
[null,170]
[null,171]
[null,172]
[null,173]
[null,174]
[null,175]
[null,176]
[null,177]
[null,178]
[null,179]
[null,180]
[null,181]
[null,182]
[null,183]
[null,184]
[null,185]
[null,186]
[null,187]
[null,188]
[null,189]
[null,190]
[null,191]
[null,192]
[null,193]
[null,194]
[null,195]
[null,196]
[null,197]
[null,198]
[null,199]
[null,200]
[null,201]
[null,202]
[null,203]
[null,204]
[null,205]
[null,206]
[null,207]
[null,208]
[null,209]
[null,210]
[null,211]
[null,212]
[null,213]
[null,214]
[null,215]
[null,216]
[null,217]
[null,218]
[null,219]
[null,220]
[null,221]
[null,222]
[null,223]
[null,224]
[null,225]
[null,226]
[null,227]
[null,228]
[null,229]
[null,230]
[null,231]
[null,232]
[null,233]
[null,234]
[null,235]
[null,236]
[null,237]
[null,238]
[null,239]
[null,240]
[null,241]
[null,242]
[null,243]
[null,244]
[null,245]
[null,246]
[null,247]
[null,248]
[null,249]
[null,250]
[null,251]
[null,252]
[null,253]
[null,254]
[null,255]
[null,256]
[null,257]
[null,258]
[null,259]
[null,260]
[null,261]
[null,262]
[null,263]
[null,264]
[null,265]
[null,266]
[null,267]
[null,268]
[null,269]
[null,270]
[null,271]
[null,272]
[null,273]
[null,274]
[null,275]
[null,276]
[null,277]
[null,278]
[null,279]
[null,280]
[null,281]
[null,282]
[null,283]
[null,284]
[null,285]
[null,286]
[null,287]
[null,288]
[null,289]
[null,290]
[null,291]
[null,292]
[null,293]
[null,294]
[null,295]
[null,296]
[null,297]
[null,298]
[null,299]
[null,300]
[null,301]
[null,302]
[null,303]
[null,304]
[null,305]
[null,306]
[null,307]
[null,308]
[null,309]
[null,310]
[null,311]
[null,312]
[null,313]
[null,314]
[null,315]
[null,316]
[null,317]
[null,318]
[null,319]
[null,320]
[null,321]
[null,322]
[null,323]

{"sheet":"Voc 6","index":9,"n_rows":326,"n_cols":5,"rows_kept":326,"cut":false,"hidden":false,"merged":[[0,0,0,6],[2,2,2,4]]}
["Base de données"]
[null,null,"Définition","Réponse","Réponse écrite minimum attendue"]
[null,0,"Architecture"]
[null,1,"Ornement saillant au-dessous d'un plafond, d'une porte, d'une armoire.","corniche","corniche"]
[null,2,"Longue pièce de bois encastrée dans les murs pour soutenir le plancher.","solive","solive"]
[null,3,"Poutre horizontale dans laquelle viennent s'assembler les autres poutres.","sablière","sablière"]
[null,4,"Pièce formant la partie supérieure de l'ouverture d'une porte ou d'une fenêtre.","linteau","linteau"]
[null,5,"Tige servant à maintenir des pièces à distance constante.","entretoise","entretoise"]
[null,6,"Pièce soutenant les lattes d'un plancher.","lambourde","lambourde"]
[null,7,"Poutre horizontale d'un comble et supportant les chevrons","panne","panne"]
[null,8,"Pièce de bois équarrie soutenant les lattes d'un toit.","chevron","chevron"]
[null,9,"Partie plate et continue formant bandeau sous la corniche.","frise","frise"]
[null,10,"Toit à un seul versant, appuyé contre un mur et supporté par des poteaux.","appentis","appentis"]
[null,11,"Pièce en saillie destinée à servir de support.","console","console"]
[null,12,"Assise inférieure sur laquelle semble porter un édifice.","soubassement","soubassement"]
[null,13,"Mur d'appui dans l'embrasure d'une fenêtre.","allège","allège"]
[null,14,"Montant et traverse qui partagent l'ouverture d'une fenêtre.","meneau","meneau"]
[null,15,"Ouverture pour donner de l'air et du jour à une cave.","soupirail","soupirail"]
[null,16,"Ornement qui couronne la façade ou l'entrée d'un édifice.","fronton","fronton"]
[null,17,"Canal placé à la base d'un toit pour recueillir les eaux de pluie. Gouttière.","chéneau","chéneau"]
[null,18,"Portion de mur entre deux fenêtres.","trumeau","trumeau"]
[null,19,"Partie fixe ou mobile, souvent vitrée, qui surmonte une porte ou une fenêtre.","imposte","imposte"]
[null,20,"Escalier extérieur qui se compose de peu de marches et d'une plate-forme.","perron","perron"]
[null,21,"Planche formant la hauteur de chaque marche d'un escalier.","contremarche","contremarche"]
[null,22,"Galerie couverte dont la voûte repose sur des arcades ou des colonnes.","portique","portique"]
[null,23,"Espace triangulaire entre une voûte et le mur d'appui.","tympan","tympan"]
[null,24,"Partie la plus élevée d'un édifice. ","pinacle","pinacle"]
[null,25,"Long dégorgeoir saillant, par lequel l'eau des gouttières se déverse à distance des murs.","gargouille","gargouille"]
[null,26,"1) Ouverture dans un parapet pour tirer sur l'ennemi. 2) Intervalle entre deux unités.","créneau","créneau"]
[null,27,"Encorbeillement au sommet des fortifications d'où on laissait tomber sur l'assaillant des projectiles.","mâchicoulis","mâchicoulis"]
[null,28,"1) Guérite à toit conique à l'angle d'un bastion. 2) Toiture pointue en forme de cône.","poivrière","poivrière"]
[null,29,"Guérite de pierre au sommet des tours ou aux angles des murs d'un lieu fortifié.","échauguette","échauguette"]
[null,30,"Ouverture étroite dans un mur, par laquelle on tire sur l'ennemi.","meurtrière","meurtrière"]
[null,31,"Place ménagée devant la grande façade d'une cathédrale.","parvis","parvis"]
[null,32,"Fossé rempli d'eau entourant un château. Petit fossé pour l'écoulement des eaux.","douve","douve"]
[null,33,"Lambourde indépendante recevant un plancher au droit d'un mur","linçoir","linçoir"]
[null,34,"Pièce de bois horizontale assemblée entre deux solives","chevêtre","chevêtre"]
[null,35,"Espace réservé dans un plancher pour l'âtre d'une cheminée","trémie","trémie"]
[null,36,"Construction en pan de bois dont les vides sont remplis par une maçonnerie légère","colombage","colombage"]
[null,37,"Suite décorative de petites arcades","arcature","arcature"]
[null,38,"Maçonnerie en arc pour soutenir un mur en reportant la poussée sur une culée","arc-boutant","arc-boutant"]
[null,39,"Maçonnerie servant à épauler une construction","culée","culée"]
[null,40,"Statue féminime servant de colonne","caryatide ou cariatide","atide"]
[null,41,"Tablette carrée qui forme la partie supérieure du chapiteau","abaque","abaque"]
[null,42,"Extrémité arrondie de la nef principale","abside","abside"]
[null,43,"Partie de l'entablement placée entre l'architrave et la corniche","frise","frise"]
[null,44,"Bloc de pierre, de bois ou de fer qui ferme par en haut une ouverture rectangulaire","linteau","linteau"]
[null,45,"Projection d'une colonne sur le nu d'un mur par une faible saillie","pilastre","pilastre"]
[null,46]
[null,47]
[null,48]
[null,49]
[null,50]
[null,51]
[null,52]
[null,53]
[null,54]
[null,55]
[null,56]
[null,57]
[null,58]
[null,59]
[null,60]
[null,61]
[null,62]
[null,63]
[null,64]
[null,65]
[null,66]
[null,67]
[null,68]
[null,69]
[null,70]
[null,71]
[null,72]
[null,73]
[null,74]
[null,75]
[null,76]
[null,77]
[null,78]
[null,79]
[null,80]
[null,81]
[null,82]
[null,83]
[null,84]
[null,85]
[null,86]
[null,87]
[null,88]
[null,89]
[null,90]
[null,91]
[null,92]
[null,93]
[null,94]
[null,95]
[null,96]
[null,97]
[null,98]
[null,99]
[null,100]
[null,101]
[null,102]
[null,103]
[null,104]
[null,105]
[null,106]
[null,107]
[null,108]
[null,109]
[null,110]
[null,111]
[null,112]
[null,113]
[null,114]
[null,115]
[null,116]
[null,117]
[null,118]
[null,119]
[null,120]
[null,121]
[null,122]
[null,123]
[null,124]
[null,125]
[null,126]
[null,127]
[null,128]
[null,129]
[null,130]
[null,131]
[null,132]
[null,133]
[null,134]
[null,135]
[null,136]
[null,137]
[null,138]
[null,139]
[null,140]
[null,141]
[null,142]
[null,143]
[null,144]
[null,145]
[null,146]
[null,147]
[null,148]
[null,149]
[null,150]
[null,151]
[null,152]
[null,153]
[null,154]
[null,155]
[null,156]
[null,157]
[null,158]
[null,159]
[null,160]
[null,161]
[null,162]
[null,163]
[null,164]
[null,165]
[null,166]
[null,167]
[null,168]
[null,169]
[null,170]
[null,171]
[null,172]
[null,173]
[null,174]
[null,175]
[null,176]
[null,177]
[null,178]
[null,179]
[null,180]
[null,181]
[null,182]
[null,183]
[null,184]
[null,185]
[null,186]
[null,187]
[null,188]
[null,189]
[null,190]
[null,191]
[null,192]
[null,193]
[null,194]
[null,195]
[null,196]
[null,197]
[null,198]
[null,199]
[null,200]
[null,201]
[null,202]
[null,203]
[null,204]
[null,205]
[null,206]
[null,207]
[null,208]
[null,209]
[null,210]
[null,211]
[null,212]
[null,213]
[null,214]
[null,215]
[null,216]
[null,217]
[null,218]
[null,219]
[null,220]
[null,221]
[null,222]
[null,223]
[null,224]
[null,225]
[null,226]
[null,227]
[null,228]
[null,229]
[null,230]
[null,231]
[null,232]
[null,233]
[null,234]
[null,235]
[null,236]
[null,237]
[null,238]
[null,239]
[null,240]
[null,241]
[null,242]
[null,243]
[null,244]
[null,245]
[null,246]
[null,247]
[null,248]
[null,249]
[null,250]
[null,251]
[null,252]
[null,253]
[null,254]
[null,255]
[null,256]
[null,257]
[null,258]
[null,259]
[null,260]
[null,261]
[null,262]
[null,263]
[null,264]
[null,265]
[null,266]
[null,267]
[null,268]
[null,269]
[null,270]
[null,271]
[null,272]
[null,273]
[null,274]
[null,275]
[null,276]
[null,277]
[null,278]
[null,279]
[null,280]
[null,281]
[null,282]
[null,283]
[null,284]
[null,285]
[null,286]
[null,287]
[null,288]
[null,289]
[null,290]
[null,291]
[null,292]
[null,293]
[null,294]
[null,295]
[null,296]
[null,297]
[null,298]
[null,299]
[null,300]
[null,301]
[null,302]
[null,303]
[null,304]
[null,305]
[null,306]
[null,307]
[null,308]
[null,309]
[null,310]
[null,311]
[null,312]
[null,313]
[null,314]
[null,315]
[null,316]
[null,317]
[null,318]
[null,319]
[null,320]
[null,321]
[null,322]
[null,323]

{"sheet":"Voc 7","index":10,"n_rows":326,"n_cols":5,"rows_kept":326,"cut":false,"hidden":false,"merged":[[0,0,0,6],[2,2,2,4]]}
["Base de données"]
[null,null,"Définition","Réponse","Réponse écrite minimum attendue"]
[null,0,"Anglais de base"]
[null,1,"à la gare","at the station","at the station"]
[null,2,"le train","the train","the train"]
[null,3,"le train se trouve au quai","the train is standing at platform","the train is standing at platform"]
[null,4,"il y a quelques passagers là bas","there are some passengers there","there are some passengers there"]
[null,5,"une dame parle à un porteur","a lady is talking to a porter","a lady is talking to a porter"]
[null,6,"oui, madame","yes, madam","yes, madam"]
[null,7,"comment puis-je aller d'ici à la gare","how can I get from here to the station","how can I get from here to the station"]
[null,8,"en Métro","by Underground","by Underground"]
[null,9,"il y a une file au guichet","there is a queue in the ticket office","there is a queue in the ticket office"]
[null,10,"employé du guichet de réservation","ticket clerk","ticket clerk"]
[null,11,"deuxième classe","second class","second class"]
[null,12,"aller simple ou aller et retour","single or return","single or return"]
[null,13,"monsieur","sir","sir"]
[null,14,"semaine","week","week"]
[null,15,"bon marché","cheap","cheap"]
[null,16,"Est-ce qu'il y a un billet de retour bon marché pour le weekend","is there a cheap weekend return","is there a cheap weekend return"]
[null,17,"Sois de retour lundi","be back on Monday","be back on Monday"]
[null,18,"quand","when","when"]
[null,19,"le prochain train","the next train","the next train"]
[null,20,"nous voulons acheter un billet","we want to buy a ticket","we want to buy a ticket"]
[null,21,"samedi","Saturday","Saturday"]
[null,22,"c'est tout juste, chérie","it's all right, dear","it's all right, dear"]
[null,23,"encore","again","again"]
[null,24,"aux feux de signalisation routière","at the traffic-lights","at the traffic-lights"]
[null,25,"il conduit sa voiture","he is driving his car","he is driving his car"]
[null,26,"à travers","through","through"]
[null,27,"il y a un taxi ici","there is a taxi here","there is a taxi here"]
[null,28,"il est sur sa bicyclette","he is on his bike","he is on his bike"]
[null,29,"le centre de","the centre of","the centre of"]
[null,30,"ils traversent les feux","they are going through the lights","they are going through the lights"]
[null,31,"les feux sont au fer","the lights are green","the lights are green"]
[null,32,"les feux sont au rouge","the lights are red","the lights are red"]
[null,33,"ballon","ball","ball"]
[null,34,"il est footballeur","he is a football player","he is a football player"]
[null,35,"il a un match important","he has got an important match","he has got an important match"]
[null,36,"joueur de foot à Arsenal","football player for Arsenal","football player for Arsenal"]
[null,37,"il n'y a pas de collision","there is no crash","there is no crash"]
[null,38,"elle fait signe à M. Blake de s'arrêter","she is signaling Mr Blake to stop","she is signaling Mr Blake to stop"]
[null,39,"elle emporte son carnet","she is taking out her notebook","she is taking out her notebook"]
[null,40,"qu'elle est votre adresse","what's your address","what's your address"]
[null,41,"juste pour aujourd'hui","just for today","just for today"]
[null,42,"ne peux-tu l'oublier","can't you forget it","can't you forget it"]
[null,43,"tu ne dois pas passer aux feux","°","you must'nt drive through the lights"]
[null,44,"c'est très dangereux","it's very dangerous","it's very dangerous"]
[null,45,"puis-je voir votre permis de conduire","can I see your driving licence","can I see your driving licence"]
[null,46,"vous n'avez pas besoin de faire un rapport","you needn't report it","you needn't report it"]
[null,47,"je suis désolé","I'm sorry","I'm sorry"]
[null,48,"il est supporter","he's a fan","he's a fan"]
[null,49,"moi-même","myself","myself"]
[null,50,"puis-je continuer maintenant","can I drive on noy","can I drive on noy"]
[null,51,"bonne chance","good luck","good luck"]
[null,52,"le conducteur doit s'arrêter","the driver must stop","the driver must stop"]
[null,53,"on sonne à la porte","the door-bell is ringing","the door-bell is ringing"]
[null,54,"un magasin","a shop","a shop"]
[null,55,"le réveil sonne","the alarm clock is ringing","the alarm clock is ringing"]
[null,56,"c'est pourquoi il doit se lever tôt","so he must get up early","so he must get up early"]
[null,57,"son équipe est Arsenal","his team is Arsenal","his team is Arsenal"]
[null,58,"Liverpool contre Arsenal","Liverpool against Arsenal","Liverpool against Arsenal"]
[null,59,"bientôt","soon","soon"]
[null,60,"peu après neuf heures","soon after nine o'clock","soon after nine o'clock"]
[null,61,"il doit se dépêcher parce qu'il est huit heure","he must hurry because it is eight o'clock","he must hurry because it is eight o'clock"]
[null,62,"Alan saute du bus","Alan is jumping off the bus","Alan is jumping off the bus"]
[null,63,"le métro est très plein","the Underground is very full","the Underground is very full"]
[null,64,"Alan doit vraiment se dépêcher maintenant","Alan really must hurry now","Alan really must hurry now"]
[null,65,"Alan doit courir","Alan must run","Alan must run"]
[null,66,"pauvre Alan","poor Alan","poor Alan"]
[null,67,"il doit aller à la maison","he must go home","he must go home"]
[null,68,"il y a un match surprise à la radio","there is a surprise match on the radio","there is a surprise match on the radio"]
[null,69,"il est entrain de brancher la radio","he is switching on the radio","he is switching on the radio"]
[null,70,"le match commence","the match is beginning","the match is beginning"]
[null,71,"où doit-il aller","where must he go","where must he go"]
[null,72,"la bouteille est ouverte","the bottle is open","the bottle is open"]
[null,73,"le café est très chaud","the coffee is very hot","the coffee is very hot"]
[null,74,"la boîte est très grosse","the box is very big","the box is very big"]
[null,75,"lent","slow","slow"]
[null,76,"ils vont tous voir un film","they are all going to see a film","they are all going to see a film"]
[null,77,"ce sont les lunettes de Mme Mason","where are Mrs Mason's glasses","where are Mrs Mason's glasses"]
[null,78,"une fois c'est assez","one is enough","one is enough"]
[null,79,"c'est une voiture rapide","that's a fast car","that's a fast car"]
[null,80,"faible","weak","weak"]
[null,81,"formes accentuées","strong forms","strong forms"]
[null,82,"réponds à la question","answer the question","answer the question"]
[null,83,"Je vais bien, merci","I'm fine, thanks","I'm fine, thanks"]
[null,84,"au revoir","good-bye","good-bye"]
[null,85,"nouvelles du soir","evening news","evening news"]
[null,86,"décris l'image","describe the picture","describe the picture"]
[null,87,"pour la première fois","for the first time","for the first time"]
[null,88,"une femme","a woman","a woman"]
[null,89,"juste devant la gare","just in front of the station","just in front of the station"]
[null,90,"la vedette de tennis","the tennis star","the tennis star"]
[null,91,"ordre","order","order"]
[null,92,"racontez l'histoire avec vos propres mots","tell the story in your own words","tell the story in your own words"]
[null,93,"il porte du sac de tennis","he's carrying a tennis bag","he's carrying a tennis bag"]
[null,94,"ça ne fait rien (tant pis)","never mind","never mind"]
[null,95,"viens","come on","come on"]
[null,96,"le ramasseur de balles","the ball-boy","the ball-boy"]
[null,97,"ils sont à l'aéroport","they are at the airport","they are at the airport"]
[null,98,"ils sont debout dans le hall","they are standing in the hall","they are standing in the hall"]
[null,99,"regarde le tableau des arrivées","look at the arrival board","look at the arrival board"]
[null,100,"regarde les tableaux de départs","look at the departure boards","look at the departure boards"]
[null,101,"voilà un avion de la TWA","There is a TWA plane","There is a TWA plane"]
[null,102,"la TWA n'est-elle pas une compagnie Améciraine","Isn't TWA an Amecian airline ?","Isn't TWA an Amecian airline ?"]
[null,103,"un vol pour Glasgow","a flight to Glasgow","a flight to Glasgow"]
[null,104,"un Gros Avion à réaction","a Jumbo Jet","a Jumbo Jet"]
[null,105,"le Jumbo est en train d'atterrir","the Jumbo Jet is landing","the Jumbo Jet is landing"]
[null,106,"les passagers sont en train de sortir","the passengers are getting off","the passengers are getting off"]
[null,107,"ils sont en train de traverser la passerelle","they are going through the gangway","they are going through the gangway"]
[null,108,"ils entrent dans le bâtiment","they are going into the building","they are going into the building"]
[null,109,"l'avion est prêt","the plane is ready","the plane is ready"]
[null,110,"il est entrain de décoller maintenant","it's taking off now","it's taking off now"]
[null,111,"le haut-parleur","the loudspeaker","the loudspeaker"]
[null,112,"c'est le dernier appel pour Paris","this is the last call to Paris","this is the last call to Paris"]
[null,113,"la porte(de sortie)","the gate","the gate"]
[null,114,"de l'autre côté","on the other side","on the other side"]
[null,115,"les passagers sont entrain d'entrer","the passengers are getting on","the passengers are getting on"]
[null,116,"la valise est dans l'avion","the suitcase is in the plane","the suitcase is in the plane"]
[null,117,"l'avion vole vers Paris","the plane is flying to Paris","the plane is flying to Paris"]
[null,118,"France","France","France"]
[null,119,"Ecosse","Scotland","Scotland"]
[null,120,"pilote","pilot","pilot"]
[null,121,"elle descend du taxi","she is getting out of the taxi","she is getting out of the taxi"]
[null,122,"elle monte dans le taxi","she is getting into the taxi","she is getting into the taxi"]
[null,123,"l'alphabet","the alphabet","the alphabet"]
[null,124,"E est une lettre majuscule","E is a capital letter","E is a capital letter"]
[null,125,"e est une lettre minuscule","e is a small letter","e is a small letter"]
[null,126,"double","double","double"]
[null,127,"lis et épelle","read and spell","read and spell"]
[null,128,"douane","customs","customs"]
[null,129,"rien","nothing","nothing"]
[null,130,"rien à déclarer","nothing to declare","nothing to declare"]
[null,131,"elle est hôtesse de l'air","she is a stewardess","she is a stewardess"]
[null,132,"elle travail pour BA","she works for BA","she works for BA"]
[null,133,"elle vole souvent vers Berlin","she often flies to Berlin","she often flies to Berlin"]
[null,134,"elle habite (vit) à Wembley","she lives in Wembley","she lives in Wembley"]
[null,135,"chaque jour elle va(conduit) à Londre","every day she drives to London","every day she drives to London"]
[null,136,"c'est ce qu'elle fait avant chaque vol","this is what she does before every flight","this is what she does before every flight"]
[null,137,"elle est entrain d'accueillir les passagers","she is welcoming the passengers","she is welcoming the passengers"]
[null,138,"elle lui montre son siège","she is showing him his seat","she is showing him his seat"]
[null,139,"un monsieur","a gentleman","a gentleman"]
[null,140,"bonjour mesdames et messieurs","good morning ladies and gentlemen","good morning ladies and gentlemen"]
[null,141,"elle fume","she is smoking","she is smoking"]
[null,142,"attachez vos ceintures","fasten your seat-belts","fasten your seat-belts"]
[null,143,"décollage","take-off","take-off"]
[null,144,"Genève","Geneva","Geneva"]
[null,145,"Betty lave souvent le chien","Betty often washes the dog","Betty often washes the dog"]
[null,146,"chaque samedi il travaille au jardin","every Saturday he works in the garden","every Saturday he works in the garden"]
[null,147,"jour de congé","free day","free day"]
[null,148,"Betty est entrain de nager","betty is swimming","betty is swimming"]
[null,149,"elle va nager","she goes for a swim","she goes for a swim"]
[null,150,"je joue de la guitare","I'm playing the guitar","I'm playing the guitar"]
[null,151,"je fais la liaison entre les mots","I'm linking the words","I'm linking the words"]
[null,152,"Alain et Pierre ont faim","Alan and Peter are hungry","Alan and Peter are hungry"]
[null,153,"Pierre a soif","Peter is thirsty","Peter is thirsty"]
[null,154,"à libre service","self-service","self-service"]
[null,155,"d'abord ils marchent (traversent) le snack-bar","first they walk through the snack-bar","first they walk through the snack-bar"]
[null,156,"ils marchent jusqu'au comptoir","they walk to the counter","they walk to the counter"]
[null,157,"les garçons prennent un plateau","the boys take a tray","the boys take a tray"]
[null,158,"une pomme","an apple","an apple"]
[null,159,"Alain prend une banane","Alan takes a banana","Alan takes a banana"]
[null,160,"ensuite ils payent à la caisse","then they pay at the cash desk","then they pay at the cash desk"]
[null,161,"après cela, ils cherchent une table","after that they look for a table","after that they look for a table"]
[null,162,"le chauffeur de bus entre dans le snack-bar","the bus driver comes into the snack-bar","the bus driver comes into the snack-bar"]
[null,163,"a l'arrivée les passagers prennent leurs sacs","on arrival the passengers take their bags","on arrival the passengers take their bags"]
[null,164,"ils vont le long de la passerelle","they go along the gangway","they go along the gangway"]
[null,165,"maintenant ils sont dans le local de douane","now they are in the customs hall","now they are in the customs hall"]
[null,166,"les douaniers","the customs officers","the customs officers"]
[null,167,"les trois hommes ont mis des chapeaux noirs","the three man have black hats on","the three man have black hats on"]
[null,168,"est-ce du whisky","is it whisky","is it whisky"]
[null,169,"est-ce de l'or","is it gold","is it gold"]
[null,170,"est-ce que l'homme est un contrebandier","is the man a smuggler","is the man a smuggler"]
[null,171,"les officier en connaissent long","the officers know a lot","the officers know a lot"]
[null,172,"la jeune dame a ... une valise blanche","the young lady has got a white suitcase","the young lady has got a white suitcase"]
[null,173,"avez-vous quelque chose à déclarer","have you anything to declare","have you anything to declare"]
[null,174,"elle doit aller au commissariat","she must go to the police station","she must go to the police station"]
[null,175,"le deuxième homme sort une trompette","the second man takes out a trumpet","the second man takes out a trumpet"]
[null,176,"le troisième homme sort un saxophone","the third man takes out a saxophone","the third man takes out a saxophone"]
[null,177,"ils sont un petit orchestre de jazz","the are a jazz group","the are a jazz group"]
[null,178,"un journaliste","a reporter","a reporter"]
[null,179,"êtes-vous un buveur de thé","are you a tea-drinker","are you a tea-drinker"]
[null,180,"vous êtes entré trop bas","you're coming in too low","you're coming in too low"]
[null,181,"Alain téléphone à Pierre","Alan is telephoning Peter","Alan is telephoning Peter"]
[null,182,"il (chose) quitte Euston bientôt","it leaves Euston soon","it leaves Euston soon"]
[null,183,"il (chose) arrive à Londres","it arrives in London","it arrives in London"]
[null,184,"ils peuvent aider","they can help","they can help"]
[null,185,"le bateau est par labas","the boat is over there","the boat is over there"]
[null,186]
[null,187]
[null,188]
[null,189]
[null,190]
[null,191]
[null,192]
[null,193]
[null,194]
[null,195]
[null,196]
[null,197]
[null,198]
[null,199]
[null,200]
[null,201]
[null,202]
[null,203]
[null,204]
[null,205]
[null,206]
[null,207]
[null,208]
[null,209]
[null,210]
[null,211]
[null,212]
[null,213]
[null,214]
[null,215]
[null,216]
[null,217]
[null,218]
[null,219]
[null,220]
[null,221]
[null,222]
[null,223]
[null,224]
[null,225]
[null,226]
[null,227]
[null,228]
[null,229]
[null,230]
[null,231]
[null,232]
[null,233]
[null,234]
[null,235]
[null,236]
[null,237]
[null,238]
[null,239]
[null,240]
[null,241]
[null,242]
[null,243]
[null,244]
[null,245]
[null,246]
[null,247]
[null,248]
[null,249]
[null,250]
[null,251]
[null,252]
[null,253]
[null,254]
[null,255]
[null,256]
[null,257]
[null,258]
[null,259]
[null,260]
[null,261]
[null,262]
[null,263]
[null,264]
[null,265]
[null,266]
[null,267]
[null,268]
[null,269]
[null,270]
[null,271]
[null,272]
[null,273]
[null,274]
[null,275]
[null,276]
[null,277]
[null,278]
[null,279]
[null,280]
[null,281]
[null,282]
[null,283]
[null,284]
[null,285]
[null,286]
[null,287]
[null,288]
[null,289]
[null,290]
[null,291]
[null,292]
[null,293]
[null,294]
[null,295]
[null,296]
[null,297]
[null,298]
[null,299]
[null,300]
[null,301]
[null,302]
[null,303]
[null,304]
[null,305]
[null,306]
[null,307]
[null,308]
[null,309]
[null,310]
[null,311]
[null,312]
[null,313]
[null,314]
[null,315]
[null,316]
[null,317]
[null,318]
[null,319]
[null,320]
[null,321]
[null,322]
[null,323]

{"sheet":"Voc 8","index":11,"n_rows":326,"n_cols":5,"rows_kept":326,"cut":false,"hidden":false,"merged":[[0,0,0,6],[2,2,2,4]]}
["Base de données"]
[null,null,"Définition","Réponse","Réponse écrite minimum attendue"]
[null,0,"Anglais commercial"]
[null,1,"acte, document, titre","bond","bond"]
[null,2,"acte de vente","sale contract","contract"]
[null,3,"administrateur","director","director"]
[null,4,"directeur","manager","manager"]
[null,5,"affaire","deal","deal"]
[null,6,"bénéfices","profits","profits"]
[null,7,"bilan","balance-sheet","balance-sheet"]
[null,8,"bon","voucher","voucher"]
[null,9,"bon de commande","order form","order form"]
[null,10,"bordereau","schedule","schedule"]
[null,11,"caisse","cash-box","cash-box"]
[null,12,"chiffre d'affaires","turnover","turnover"]
[null,13,"concurrence","competition","competition"]
[null,14,"prix courant","price-current","price-current"]
[null,15,"dommage","damage","damage"]
[null,16,"échéance","due-date","due-date"]
[null,17,"écriture comptable","entry","entry"]
[null,18,"fisc","treasury","treasury"]
[null,19,"fondé de pouvoir","attorney","attorney"]
[null,20,"fonds de commerce","goodwill","goodwill"]
[null,21,"frais (dépenses)","charges","charges"]
[null,22,"gagner sa vie","to earn","to earn"]
[null,23,"gagner de l'argent","to make a profit on","profit"]
[null,24,"gré à gré","by mutual agreement","agreement"]
[null,25,"indemnité","compensation","compensation"]
[null,26,"indemnité de chômage","dole","dole"]
[null,27,"marchandises","goods","goods"]
[null,28,"métier","trade","trade"]
[null,29,"patente","licence","licence"]
[null,30,"pièce de caisse","cash slip","cash slip"]
[null,31,"prime","premium","premium"]
[null,32,"procès","proceedings at law","proceeding"]
[null,33,"raison de commerce","trade","trade"]
[null,34,"redevance","royalty","royalty"]
[null,35,"remise","discount","discount"]
[null,36,"rendement","return","return"]
[null,37,"rente","rent","rent"]
[null,38,"rente viagère","life annuity","annuity"]
[null,39,"ristourne","return","return"]
[null,40,"traite","bill","bill"]
[null,41,"versement","payment","payment"]
[null,42,"virement","transfert","transfert"]
[null,43]
[null,44]
[null,45]
[null,46]
[null,47]
[null,48]
[null,49]
[null,50]
[null,51]
[null,52]
[null,53]
[null,54]
[null,55]
[null,56]
[null,57]
[null,58]
[null,59]
[null,60]
[null,61]
[null,62]
[null,63]
[null,64]
[null,65]
[null,66]
[null,67]
[null,68]
[null,69]
[null,70]
[null,71]
[null,72]
[null,73]
[null,74]
[null,75]
[null,76]
[null,77]
[null,78]
[null,79]
[null,80]
[null,81]
[null,82]
[null,83]
[null,84]
[null,85]
[null,86]
[null,87]
[null,88]
[null,89]
[null,90]
[null,91]
[null,92]
[null,93]
[null,94]
[null,95]
[null,96]
[null,97]
[null,98]
[null,99]
[null,100]
[null,101]
[null,102]
[null,103]
[null,104]
[null,105]
[null,106]
[null,107]
[null,108]
[null,109]
[null,110]
[null,111]
[null,112]
[null,113]
[null,114]
[null,115]
[null,116]
[null,117]
[null,118]
[null,119]
[null,120]
[null,121]
[null,122]
[null,123]
[null,124]
[null,125]
[null,126]
[null,127]
[null,128]
[null,129]
[null,130]
[null,131]
[null,132]
[null,133]
[null,134]
[null,135]
[null,136]
[null,137]
[null,138]
[null,139]
[null,140]
[null,141]
[null,142]
[null,143]
[null,144]
[null,145]
[null,146]
[null,147]
[null,148]
[null,149]
[null,150]
[null,151]
[null,152]
[null,153]
[null,154]
[null,155]
[null,156]
[null,157]
[null,158]
[null,159]
[null,160]
[null,161]
[null,162]
[null,163]
[null,164]
[null,165]
[null,166]
[null,167]
[null,168]
[null,169]
[null,170]
[null,171]
[null,172]
[null,173]
[null,174]
[null,175]
[null,176]
[null,177]
[null,178]
[null,179]
[null,180]
[null,181]
[null,182]
[null,183]
[null,184]
[null,185]
[null,186]
[null,187]
[null,188]
[null,189]
[null,190]
[null,191]
[null,192]
[null,193]
[null,194]
[null,195]
[null,196]
[null,197]
[null,198]
[null,199]
[null,200]
[null,201]
[null,202]
[null,203]
[null,204]
[null,205]
[null,206]
[null,207]
[null,208]
[null,209]
[null,210]
[null,211]
[null,212]
[null,213]
[null,214]
[null,215]
[null,216]
[null,217]
[null,218]
[null,219]
[null,220]
[null,221]
[null,222]
[null,223]
[null,224]
[null,225]
[null,226]
[null,227]
[null,228]
[null,229]
[null,230]
[null,231]
[null,232]
[null,233]
[null,234]
[null,235]
[null,236]
[null,237]
[null,238]
[null,239]
[null,240]
[null,241]
[null,242]
[null,243]
[null,244]
[null,245]
[null,246]
[null,247]
[null,248]
[null,249]
[null,250]
[null,251]
[null,252]
[null,253]
[null,254]
[null,255]
[null,256]
[null,257]
[null,258]
[null,259]
[null,260]
[null,261]
[null,262]
[null,263]
[null,264]
[null,265]
[null,266]
[null,267]
[null,268]
[null,269]
[null,270]
[null,271]
[null,272]
[null,273]
[null,274]
[null,275]
[null,276]
[null,277]
[null,278]
[null,279]
[null,280]
[null,281]
[null,282]
[null,283]
[null,284]
[null,285]
[null,286]
[null,287]
[null,288]
[null,289]
[null,290]
[null,291]
[null,292]
[null,293]
[null,294]
[null,295]
[null,296]
[null,297]
[null,298]
[null,299]
[null,300]
[null,301]
[null,302]
[null,303]
[null,304]
[null,305]
[null,306]
[null,307]
[null,308]
[null,309]
[null,310]
[null,311]
[null,312]
[null,313]
[null,314]
[null,315]
[null,316]
[null,317]
[null,318]
[null,319]
[null,320]
[null,321]
[null,322]
[null,323]

{"sheet":"Voc 9","index":12,"n_rows":326,"n_cols":5,"rows_kept":326,"cut":false,"hidden":false,"merged":[[0,0,0,6],[2,2,2,4]]}
["Base de données"]
[null,null,"Définition","Réponse","Réponse écrite minimum attendue"]
[null,0,"Vide"]
[null,1,"Ce vocabulaire n'existe pas","?","?"]
[null,2]
[null,3]
[null,4]
[null,5]
[null,6]
[null,7]
[null,8]
[null,9]
[null,10]
[null,11]
[null,12]
[null,13]
[null,14]
[null,15]
[null,16]
[null,17]
[null,18]
[null,19]
[null,20]
[null,21]
[null,22]
[null,23]
[null,24]
[null,25]
[null,26]
[null,27]
[null,28]
[null,29]
[null,30]
[null,31]
[null,32]
[null,33]
[null,34]
[null,35]
[null,36]
[null,37]
[null,38]
[null,39]
[null,40]
[null,41]
[null,42]
[null,43,null,"°"]
[null,44]
[null,45]
[null,46]
[null,47]
[null,48]
[null,49]
[null,50]
[null,51]
[null,52]
[null,53]
[null,54]
[null,55]
[null,56]
[null,57]
[null,58]
[null,59]
[null,60]
[null,61]
[null,62]
[null,63]
[null,64]
[null,65]
[null,66]
[null,67]
[null,68]
[null,69]
[null,70]
[null,71]
[null,72]
[null,73]
[null,74]
[null,75]
[null,76]
[null,77]
[null,78]
[null,79]
[null,80]
[null,81]
[null,82]
[null,83]
[null,84]
[null,85]
[null,86]
[null,87]
[null,88]
[null,89]
[null,90]
[null,91]
[null,92]
[null,93]
[null,94]
[null,95]
[null,96]
[null,97]
[null,98]
[null,99]
[null,100]
[null,101]
[null,102]
[null,103]
[null,104]
[null,105]
[null,106]
[null,107]
[null,108]
[null,109]
[null,110]
[null,111]
[null,112]
[null,113]
[null,114]
[null,115]
[null,116]
[null,117]
[null,118]
[null,119]
[null,120]
[null,121]
[null,122]
[null,123]
[null,124]
[null,125]
[null,126]
[null,127]
[null,128]
[null,129]
[null,130]
[null,131]
[null,132]
[null,133]
[null,134]
[null,135]
[null,136]
[null,137]
[null,138]
[null,139]
[null,140]
[null,141]
[null,142]
[null,143]
[null,144]
[null,145]
[null,146]
[null,147]
[null,148]
[null,149]
[null,150]
[null,151]
[null,152]
[null,153]
[null,154]
[null,155]
[null,156]
[null,157]
[null,158]
[null,159]
[null,160]
[null,161]
[null,162]
[null,163]
[null,164]
[null,165]
[null,166]
[null,167]
[null,168]
[null,169]
[null,170]
[null,171]
[null,172]
[null,173]
[null,174]
[null,175]
[null,176]
[null,177]
[null,178]
[null,179]
[null,180]
[null,181]
[null,182]
[null,183]
[null,184]
[null,185]
[null,186]
[null,187]
[null,188]
[null,189]
[null,190]
[null,191]
[null,192]
[null,193]
[null,194]
[null,195]
[null,196]
[null,197]
[null,198]
[null,199]
[null,200]
[null,201]
[null,202]
[null,203]
[null,204]
[null,205]
[null,206]
[null,207]
[null,208]
[null,209]
[null,210]
[null,211]
[null,212]
[null,213]
[null,214]
[null,215]
[null,216]
[null,217]
[null,218]
[null,219]
[null,220]
[null,221]
[null,222]
[null,223]
[null,224]
[null,225]
[null,226]
[null,227]
[null,228]
[null,229]
[null,230]
[null,231]
[null,232]
[null,233]
[null,234]
[null,235]
[null,236]
[null,237]
[null,238]
[null,239]
[null,240]
[null,241]
[null,242]
[null,243]
[null,244]
[null,245]
[null,246]
[null,247]
[null,248]
[null,249]
[null,250]
[null,251]
[null,252]
[null,253]
[null,254]
[null,255]
[null,256]
[null,257]
[null,258]
[null,259]
[null,260]
[null,261]
[null,262]
[null,263]
[null,264]
[null,265]
[null,266]
[null,267]
[null,268]
[null,269]
[null,270]
[null,271]
[null,272]
[null,273]
[null,274]
[null,275]
[null,276]
[null,277]
[null,278]
[null,279]
[null,280]
[null,281]
[null,282]
[null,283]
[null,284]
[null,285]
[null,286]
[null,287]
[null,288]
[null,289]
[null,290]
[null,291]
[null,292]
[null,293]
[null,294]
[null,295]
[null,296]
[null,297]
[null,298]
[null,299]
[null,300]
[null,301]
[null,302]
[null,303]
[null,304]
[null,305]
[null,306]
[null,307]
[null,308]
[null,309]
[null,310]
[null,311]
[null,312]
[null,313]
[null,314]
[null,315]
[null,316]
[null,317]
[null,318]
[null,319]
[null,320]
[null,321]
[null,322]
[null,323]

{"sheet":"Voc 10","index":13,"n_rows":326,"n_cols":5,"rows_kept":326,"cut":false,"hidden":false,"merged":[[0,0,0,6],[2,2,2,4]]}
["Base de données"]
[null,null,"Définition","Réponse","Réponse écrite minimum attendue"]
[null,0,"Vide"]
[null,1,"Ce vocabulaire n'existe pas","?","?"]
[null,2]
[null,3]
[null,4]
[null,5]
[null,6]
[null,7]
[null,8]
[null,9]
[null,10]
[null,11]
[null,12]
[null,13]
[null,14]
[null,15]
[null,16]
[null,17]
[null,18]
[null,19]
[null,20]
[null,21]
[null,22]
[null,23]
[null,24]
[null,25]
[null,26]
[null,27]
[null,28]
[null,29]
[null,30]
[null,31]
[null,32]
[null,33]
[null,34]
[null,35]
[null,36]
[null,37]
[null,38]
[null,39]
[null,40]
[null,41]
[null,42]
[null,43,null,"°"]
[null,44]
[null,45]
[null,46]
[null,47]
[null,48]
[null,49]
[null,50]
[null,51]
[null,52]
[null,53]
[null,54]
[null,55]
[null,56]
[null,57]
[null,58]
[null,59]
[null,60]
[null,61]
[null,62]
[null,63]
[null,64]
[null,65]
[null,66]
[null,67]
[null,68]
[null,69]
[null,70]
[null,71]
[null,72]
[null,73]
[null,74]
[null,75]
[null,76]
[null,77]
[null,78]
[null,79]
[null,80]
[null,81]
[null,82]
[null,83]
[null,84]
[null,85]
[null,86]
[null,87]
[null,88]
[null,89]
[null,90]
[null,91]
[null,92]
[null,93]
[null,94]
[null,95]
[null,96]
[null,97]
[null,98]
[null,99]
[null,100]
[null,101]
[null,102]
[null,103]
[null,104]
[null,105]
[null,106]
[null,107]
[null,108]
[null,109]
[null,110]
[null,111]
[null,112]
[null,113]
[null,114]
[null,115]
[null,116]
[null,117]
[null,118]
[null,119]
[null,120]
[null,121]
[null,122]
[null,123]
[null,124]
[null,125]
[null,126]
[null,127]
[null,128]
[null,129]
[null,130]
[null,131]
[null,132]
[null,133]
[null,134]
[null,135]
[null,136]
[null,137]
[null,138]
[null,139]
[null,140]
[null,141]
[null,142]
[null,143]
[null,144]
[null,145]
[null,146]
[null,147]
[null,148]
[null,149]
[null,150]
[null,151]
[null,152]
[null,153]
[null,154]
[null,155]
[null,156]
[null,157]
[null,158]
[null,159]
[null,160]
[null,161]
[null,162]
[null,163]
[null,164]
[null,165]
[null,166]
[null,167]
[null,168]
[null,169]
[null,170]
[null,171]
[null,172]
[null,173]
[null,174]
[null,175]
[null,176]
[null,177]
[null,178]
[null,179]
[null,180]
[null,181]
[null,182]
[null,183]
[null,184]
[null,185]
[null,186]
[null,187]
[null,188]
[null,189]
[null,190]
[null,191]
[null,192]
[null,193]
[null,194]
[null,195]
[null,196]
[null,197]
[null,198]
[null,199]
[null,200]
[null,201]
[null,202]
[null,203]
[null,204]
[null,205]
[null,206]
[null,207]
[null,208]
[null,209]
[null,210]
[null,211]
[null,212]
[null,213]
[null,214]
[null,215]
[null,216]
[null,217]
[null,218]
[null,219]
[null,220]
[null,221]
[null,222]
[null,223]
[null,224]
[null,225]
[null,226]
[null,227]
[null,228]
[null,229]
[null,230]
[null,231]
[null,232]
[null,233]
[null,234]
[null,235]
[null,236]
[null,237]
[null,238]
[null,239]
[null,240]
[null,241]
[null,242]
[null,243]
[null,244]
[null,245]
[null,246]
[null,247]
[null,248]
[null,249]
[null,250]
[null,251]
[null,252]
[null,253]
[null,254]
[null,255]
[null,256]
[null,257]
[null,258]
[null,259]
[null,260]
[null,261]
[null,262]
[null,263]
[null,264]
[null,265]
[null,266]
[null,267]
[null,268]
[null,269]
[null,270]
[null,271]
[null,272]
[null,273]
[null,274]
[null,275]
[null,276]
[null,277]
[null,278]
[null,279]
[null,280]
[null,281]
[null,282]
[null,283]
[null,284]
[null,285]
[null,286]
[null,287]
[null,288]
[null,289]
[null,290]
[null,291]
[null,292]
[null,293]
[null,294]
[null,295]
[null,296]
[null,297]
[null,298]
[null,299]
[null,300]
[null,301]
[null,302]
[null,303]
[null,304]
[null,305]
[null,306]
[null,307]
[null,308]
[null,309]
[null,310]
[null,311]
[null,312]
[null,313]
[null,314]
[null,315]
[null,316]
[null,317]
[null,318]
[null,319]
[null,320]
[null,321]
[null,322]
[null,323]

{"sheet":"Maître","index":14,"n_rows":82,"n_cols":6,"rows_kept":82,"cut":false,"hidden":false,"merged":[[1,0,1,8],[5,1,5,6],[14,1,15,7],[7,1,8,7],[9,1,10,7],[3,1,4,7],[12,1,13,7],[20,1,21,7],[17,1,18,7],[33,3,34,8],[75,3,77,9],[56,3,57,8],[29,1,31,11]]}
[]
["Informations pour les créateurs de Vocabulaires"]
[]
[null,"La feuille no 2, appelée \"Trouver le mot (Ecrit)\" contient le quiz pour donner  par écrit (ou oralement)une réponse fermée à la question posée. "]
[]
[null,"(Une bonne réponse écrite sort la question du tirage)"]
[]
[null,"La feuille no 3, appelée \"Trouver le mot Oral\" contient le quiz pour donner oralement  une réponse fermée à la question posée. "]
[]
[null,"(Les questions ne sont posées qu'une fois. Le bouton \"Remettre\" permet de réintégrer une question.)"]
[]
[]
[null,"La feuille no 4, appelée \"Chercher la définition\" contient le quiz pour donner oralement un réponse longue à la question courte posée."]
[]
[null,"(Les questions ne sont posées qu'une fois. Le bouton \"Remettre\" permet de réintégrer une question.)"]
[]
[]
[null,"Ces deux feuilles peuvent également être utilisées pour driller le vocabulaire d'une langue étrangère, dans les 2 sens, par exemple."]
[]
[]
[null,"Les feuilles 5 à 13, appelées \"Voc1, Voc 2,....\" contiennent les vocabulaires que vous voulez placer dans Sos_Vocabu."]
[]
[]
[null,"Ces feuilles peuvent recevoir de 1 à 500 lignes de questions avec la structure :"]
[null,null,"No","Question","Réponse","Minimum"]
[null,"exemple :",1,"la reine","the queen","queen"]
[]
[null,"La ligne 0 est réservée pour le titre du vocabulaire. (Longueur, 25 caractères maximum)"]
[]
[null,"Pour rendre ces feuilles invisibles aux yeux indiscrets, vous pouvez, soit mettre les colonnes à la largeur zéro, soit cacher les onglets avec la commande : Fichier - Options  - Options avancées -  Affichage les onglets de classeur, soit encore, dans Auuueil / Format / Masquer & Afficher ...."]
[]
[]
[]
[null,null,null,"Si le texte contenu dans la zone de questions et trop grand, vous pouvez réduire les caractères avec l'un de ces boutons."]
[]
[]
[]
[null,"Tirage au sort",null,"Envoie une question tirée au sort dans la fourchette définie dans le tableau du bas de la fenêtre."]
[null,null,null,"Par défaut le tirage se fait entre 1 et le nombre total de question du vocabulaire sélectionné."]
[]
[null,"Première lettre",null,"Si la cellule est activée, la première lettre de la réponse est donnée au joueur."]
[]
[null,"Zoom",null,"Permet d'adapter facilement la feuille à la grandeur de l'écran utilisé."]
[]
[null,"Nouveau quiz",null,"Remet les compteurs de questions et les résultats à zéro."]
[]
[null,"Points",null,"Donne le nombre de réponses écrites justes. "]
[]
[]
[null,null,null,"Va à la feuille no 3 \"Trouver le mot (Oral)\"."]
[null,null,null,"Autre mode d'accès : clic sur l'onglet no 3 s'il est visible ou au clavier avec Ctrl + PageUp "]
[]
[null,null,null,"Va à la feuille no 4 \"Chercher la définition\". "]
[null,null,null,"Autre mode d'accès : clic sur l'onglet no 4 s'il est visible ou au clavier avec Ctrl + PageDn "]
[]
[]
[null,"Onglets",null,"Attention, il ne faut pas renommer les onglets."]
[]
[]
[]
[]
[]
[]
[]
[]
[]
[]
[]
[]
[null,null,null,null,"Retour à l'Entrée"]
["haut de la page"]
[]
[]
[]
[]
[null,"SMAKY",null,"Les fichiers .voc de VOCA et VOCABU peuvent être transformés facilement avec le programme Excel \"Transpose...\" puis collés dans ce programme."]
[]
[]
[]
[]
[]
[null,"PS",null,"Les macros Travail sont à usage exclusif des programmeurs !"]